Workbook

Sheet 00. MENU
B7: PARQUE NACIONAL DE BRASÍLIA E FLORESTA NACIONAL
B9: 01. PC
B10: Painel de controle das principais variáveis do modelo. Nesta aba é possível alterar variáveis como prazo do Projeto, preço do ingresso, NIG e etc. Além de alterar as premissas, é possível ver os principais outputs do modelo resumido.
B11: 02. WACC
B12: Cálculo do WACC, que representa o retorno mínimo exigido para o Projeto.
B13: 03. FCL - UGC
B14: Apresenta a visão do Fluxo de Caixa Livre do Projeto por Unidade Geradora de Caixa (UGC).
B15: 04. RECEITAS
B16: Aba responsável pelo cálculo das receitas do Projeto.
B17: 04.1 (a) DEMANDA
B18: Apresenta o cálculo da demanda de visitantes.
B19: 04.2 (b) DEMANDA PROJEÇÃO
B20: Aba de entrada dos inputs relacionados à demanda utilizada como auxiliar para o cálculo de visitantes anuais.
B21: 05. (a) CAPEX
B22: Apresenta o CAPEX projetado para cada ano do Projeto.
B23: 05. (b) CAPEX POR ÁREA
B24: Apresenta o CAPEX projetado para cada ano do Projeto, com divisão por área.
B25: 05. (c) CAPEX INPUT
B26: Aba de entrada dos inputs relacionados ao CAPEX utilizada como auxiliar para o cálculo dos investimentos. Utilizada para inserir os valores na moeda de referência dos preços.
B27: 06. D&A FISCAL
B28: Calcula a amortização fiscais dos ativos.
B29: 07. (a) OPEX
B30: Apresenta o OPEX projetado para cada ano do Projeto.
B31: 07. (b) MÃO DE OBRA
B32: Apresenta a base dos cálculos de Mão de Obra.
B33: 07. (c) OPEX POR ÁREA
B34: Apresenta o OPEX projetado para cada ano do Projeto, com divisão por área.
B35: 08. NIG
B36: Apresenta a Necessidade de Investimento em Giro e variação de capital de giro calculada.
B37: 09. OUTORGAS E RESSARCIMENTOS
B38: Apresenta o cálculo da outorga fixa, outorga variável, encargos acessórios e reembolsos dos estudos contratados, BNDES e remuneração da B3.
B39: 10. (a) TRIBUTOS PROJETO - LR
B40: Apresenta o cálculo dos tributos no regime de Lucro Real.
B41: 10. (b) TRIBUTOS ACIONISTA - LR
B42: Apresenta o cálculo dos tributos no regime de Lucro Real considerando o benefício fiscal da dívida.
B43: 11. FCD
B44: Apresenta o fluxo de caixa da dívida em termos nominais.
B45: 12. EQUITY
B46: Apresenta os saldos de caixa e fluxo de integralização de capital. É utilizada para calcular a necessidade de captação de financiamentos.
B47: 13. DF'S PROJETO
B48: Apresenta a DRE, Fluxo de Caixa e Balanço Patrimonial em termos reais e nominais.
B49: 14. DF'S ACIONISTA
B50: Apresenta a DRE, Fluxo de Caixa e Balanço Patrimonial em termos reais e nominais.
B51: 15. USOS E FONTES
B52: Apresenta o Quadro de Usos e Fontes.
B53: 16. COVENANTS
B54: Apresenta os principais indicadores de endividamento.
B55: 17. ÍNDICES
B56: Apresenta a projeção de inflação.
B57: 18. RISCO
B58: Apresenta a sensibilidade da TIR de Projeto em relação a variações de CAPEX, OPEX e demanda.
B60: Padrão de formatação utilizado - Legenda
B61: Células com fundo amarelo e fonte azul | F61: Inputs (Podem ser alteradas)
B62: Células com fonte verde | F62: Células que têm origem em outra aba (Não alterar)
B63: Células com fonte preta | F63: Fórmulas (Não alterar)

Sheet 01. PC
B5: Painel de Controle
B6: Premissas Gerais | C6: Valor
B7: Prazo da concessão | C7: 30 | P7: 3
B8: Ano inicial | C8: 2026 | P8: 1.10106383
B9: Ano final | C9: =ano_inicial+C7-1 -> 2055 | P9: 1.095744681
B10: Data-base do modelo econômico-financeiro | C10: 2025-07-01 | P10: 0.9680851064
B11: Correção Data-Base IPCA (antes: mar/22) | C11: =_xlfn.XLOOKUP(C10,'17. ÍNDICES'!$I$9:$I$51,'17. ÍNDICES'!$K$9:$K$51,) -> 0.1766155948
B12: Projeção de Demanda | C12: Nova
B13: Cenário Meia Estudantes | C13: Não | P13: 0.7234042553
B15: Análise de projetos
B16: TIR de Projeto - Real (% a.a.) | C16: ='03. FCL - UGCs'!D63 -> 0.09097385075
B17: WACC - Real (% a.a.) | C17: ='02. WACC'!$H$49 -> 0.09097385075
B18: VPL do Projeto (R$ milhões) | C18: ='03. FCL - UGCs'!D65 -> -2.087219286e-14
B19: TIR de Acionista - Real (% a.a.) | C19: ='14. DFs ACIONISTA'!$D$196 -> 0.1159708372
B20: VPL do Acionista (R$ milhões) | C20: =NPV((1+INDEX('10. (a) TRIBUTOS PROJETO - LR'!$D$111:$AL$111,1,prazo))^(1/(prazo-1))-1,'14. DFs ACIONISTA'!D194:AL194) -> 1.028211991
B21: Payback Simples (anos) | C21: =COUNTIF('13. DFs PROJETO'!$D$225:$AG$225,"<0")+1 -> 15
B22: Payback Descontado (anos) | C22: =IF(COUNTIF('13. DFs PROJETO'!$D$227:$AG$227,"<0")>30,"-",COUNTIF('13. DFs PROJETO'!$D$227:$AG$227,"<0")) -> 23
P23: 0.7234042553
B24: Capital de giro | G24: Cenários - Áreas | P24: 0.8829787234
B25: Prazo médio de recebimento (meses) | C25: 1 | G25: Área | H25: Ano Inicial | I25: Ano Final
B26: Prazo médio de pagamento (meses) | C26: 0 | G26: FLONA | H26: 10 | I26: =H26+2 -> 12
G27: PNB | H27: 1 | I27: =H27+2 -> 3
B28: Contas a Receber | G28: Santa Maria | H28: 5 | I28: =H28+2 -> 7
B29: Visitação em dezembro | C29: ='04.1 DEMANDA'!$N$49 -> 0.07254012131 | G29: Vale do Rio da Palma | H29: 5 | I29: =H29+2 -> 7
B31: Valor de Ingresso | G31: Ticket Médio
B32: Ano | C32: Aumento | D32: Ingresso - PNB | E32: Ingresso - FLONA | G32: Atrativo | H32: Ticket Médio (R$ jul-25) | I32: Ticket Médio (R$ original) | J32: Adesão
B33: 1 | C33: 0 | D33: 34.93853705 | E33: 0 | G33: Estacionamento - PNB | H33: =ROUNDUP(I33*(1+$C$11),0) -> 24 | I33: 20 | J33: 0.75
B34: 2 | C34: 0.05 | D34: =D33*(1+C34) -> 36.6854639 | E34: =E33*(1+C34) -> 0 | G34: Estacionamento - FLONA | H34: =ROUNDUP(I34*(1+$C$11),0) -> 24 | I34: 20 | J34: 0.6
B35: 3 | C35: 0.05 | D35: =D34*(1+C35) -> 38.5197371 | E35: =E34*(1+C35) -> 0 | G35: Transporte Interno - PNB | H35: 18 | I35: 15 | J35: 0.03
B36: 4 | C36: 0.05 | D36: =D35*(1+C36) -> 40.44572395 | E36: =E35*(1+C36) -> 0 | G36: Transporte Interno - FLONA | H36: 0 | I36: 0 | J36: 0
B37: 5 em diante | C37: 0.05 | D37: =D36*(1+C37) -> 42.46801015 | E37: =E36*(1+C37) -> 0 | G37: Lanchonete - Pedreira | H37: 36 | I37: 30 | J37: 0.03
G38: Quiosque Vazio - Pedreira | H38: 48 | I38: 40 | J38: 0.03
B39: Outorgas | D39: Início (ano) | G39: Lanchonete Areal | H39: 36 | I39: 30 | J39: 0.03
B40: Outorga fixa (R$) | C40: 500000 | D40: 1 | G40: Quiosques Areal | H40: 48 | I40: 40 | J40: 0.03
B41: Outorga variável (% ROB) | C41: 0.01 | D41: 5 | G41: Galeria Santa Maria | H41: 48 | I41: 40 | J41: 0.03
B42: Macrotemas (% ROB) | C42: 0.02 | D42: 2 | G42: Quiosque - Vale do Rio da Palma | H42: 48 | I42: 40 | J42: 0.03
G43: Lanchonete - Vale do Rio da Palma | H43: 36 | I43: 30 | J43: 0.03
B44: Reembolsos e Ressarcimentos | G44: Mercado Aberto - FLONA | H44: 36 | I44: 30 | J44: 0
B45: Estudos Contratados + B3 (R$ milhões) | C45: =(C117+C118+C119)/1000000 -> 1.312656374 | G45: Lanchonete Centro de Visitantes - FLONA | H45: 36 | I45: 30 | J45: 0.15
B46: BNDES (R$ milhões) | G46: Espaço do Ciclista Centro de Visitantes - FLONA | H46: 36 | I46: 30 | J46: 0.05
B47: Parcela fixa (R$ milhões) | C47: =C120/1000000 -> 2.35323119 | G47: Alimentação temporária - FLONA | H47: 48 | I47: 40 | J47: 0.2
B48: Parcela variável (%) | C48: 0.01 | G48: Espaço do Ciclista - FLONA | H48: 43 | I48: 36 | J48: 0.1
G49: Mercado Aberto | H49: 43 | I49: 36 | J49: 0
B50: Valor do contrato | C50: Valor (R$ milhões) | G50: Varejo Temporário | H50: 43 | I50: 36 | J50: 0.1
B51: CAPEX | C51: =-'03. FCL - UGCs'!$AI$32 -> 36.27385379
A52: -42.73572426 | B52: Outorga Fixa | C52: ='09. OUTORGAS E RESSARCIMENTOS'!$AN$14 -> 0.5 | G52: Monitoramento de Incêndio | H52: 1
B53: Outorga Variável | C53: ='09. OUTORGAS E RESSARCIMENTOS'!$AN$16 -> 5.048768899
B54: Macrotemas | C54: ='09. OUTORGAS E RESSARCIMENTOS'!$AN$22 -> 10.78624173
B55: Total | C55: =SUM(C51:C54) -> 52.60886442
B57: Alíquotas | C57: Lucro Real | D57: Lucro Presumido
B58: ISS | C58: 0.05 | D58: 0.05
B59: ICMS | C59: 0.12 | D59: 0.12
B60: PIS/COFINS | C60: 0.0925 | D60: 0.0365
B61: IRPJ/CSLL | C61: 0.34 | D61: 0.34
B62: Base de cálculo | C62: Lucro Real | D62: Lucro Presumido
B63: ISS | C63: Receitas | D63: Receitas, ex. A&B e Souvenirs | K63: Inteira
B64: ICMS | C64: Receitas | D64: Receitas de A&B e Souvenirs | K64: Meia
B65: PIS/COFINS | C65: Receitas | D65: Receita total | K65: Isentos
B66: IRPJ/CSLL | C66: LAIR | D66: 0.32
B68: D&A Fiscal
B69: Classe de ativo | C69: Vida útil (anos)
B70: Edificações | C70: 25
B71: Obra Civil | C71: 25
B72: Equipamentos | C72: 10
B73: Benfeitoria | C73: 25
B74: Outorga Fixa | C74: =prazo -> 30
B76: Premissas de financiamento
B78: nº | C78: Ano de início | D78: Sistema | E78: Prazo (anos) | F78: Carência (anos) | G78: Capex (R$ milhões) | H78: Captação (%) | I78: Captação (R$ milhões) | J78: Carência de juros capitaliza? (s/n)
B79: Financiamento 01 | C79: =IFERROR(SMALL(IF('05. (a) CAPEX'!D$13:AL$13<>0, COLUMN('05. (a) CAPEX'!D$13:AL$13)-COLUMN('05. (a) CAPEX'!D$13)+1), ROW(A1)),"-") -> 3 | D79: SAC | E79: =IF(ISNUMBER(C79),prazo-C79+1,"-") -> 28 | F79: 0 | G79: =IFERROR(INDEX('05. (a) CAPEX'!D$13:AL$13, SMALL(IF('05. (a) CAPEX'!D$13:AL$13<>0, COLUMN('05. (a) CAPEX'!D$13:AL$13)-COLUMN('05. (a) CAPEX'!D$13)+1), ROW(A1)))*INDEX('06. D&A FISCAL'!$D$431:$AL$431,1,'01. PC'!C79),0) -> 15.10999345 | H79: =IF(G79<>0,'02. WACC'!$H$45,0) -> 0.2424978996 | I79: =IF(SUMIF('12. EQUITY'!$D$11:$AL$11,C79,'12. EQUITY'!$D$15:$AL$15)<G79,(G79-SUMIF('12. EQUITY'!$D$11:$AL$11,C79,'12. EQUITY'!$D$15:$AL$15))*H79,0) -> 3.235180993 | J79: n
B80: Financiamento 02 | C80: =IFERROR(SMALL(IF('05. (a) CAPEX'!D$13:AL$13<>0, COLUMN('05. (a) CAPEX'!D$13:AL$13)-COLUMN('05. (a) CAPEX'!D$13)+1), ROW(A2)),"-") -> 5 | D80: SAC | E80: 26 | F80: 0 | G80: =IFERROR(INDEX('05. (a) CAPEX'!D$13:AL$13, SMALL(IF('05. (a) CAPEX'!D$13:AL$13<>0, COLUMN('05. (a) CAPEX'!D$13:AL$13)-COLUMN('05. (a) CAPEX'!D$13)+1), ROW(A2)))*INDEX('06. D&A FISCAL'!$D$431:$AL$431,1,'01. PC'!C80),0) -> 2.85614281 | H80: =IF(G80<>0,'02. WACC'!$H$45,0) -> 0.2424978996 | I80: =IF(SUMIF('12. EQUITY'!$D$11:$AL$11,C80,'12. EQUITY'!$D$15:$AL$15)<G80,(G80-SUMIF('12. EQUITY'!$D$11:$AL$11,C80,'12. EQUITY'!$D$15:$AL$15))*H80,0) -> 0.1957366741 | J80: n
B81: Financiamento 03 | C81: =IFERROR(SMALL(IF('05. (a) CAPEX'!D$13:AL$13<>0, COLUMN('05. (a) CAPEX'!D$13:AL$13)-COLUMN('05. (a) CAPEX'!D$13)+1), ROW(A3)),"-") -> 6 | D81: SAC | E81: 25 | F81: 0 | G81: =IFERROR(INDEX('05. (a) CAPEX'!D$13:AL$13, SMALL(IF('05. (a) CAPEX'!D$13:AL$13<>0, COLUMN('05. (a) CAPEX'!D$13:AL$13)-COLUMN('05. (a) CAPEX'!D$13)+1), ROW(A3)))*INDEX('06. D&A FISCAL'!$D$431:$AL$431,1,'01. PC'!C81),0) -> 6.176664069 | H81: =IF(G81<>0,'02. WACC'!$H$45,0) -> 0.2424978996 | I81: =IF(SUMIF('12. EQUITY'!$D$11:$AL$11,C81,'12. EQUITY'!$D$15:$AL$15)<G81,(G81-SUMIF('12. EQUITY'!$D$11:$AL$11,C81,'12. EQUITY'!$D$15:$AL$15))*H81,0) -> 1.11482593 | J81: n
B82: Financiamento 04 | C82: =IFERROR(SMALL(IF('05. (a) CAPEX'!D$13:AL$13<>0, COLUMN('05. (a) CAPEX'!D$13:AL$13)-COLUMN('05. (a) CAPEX'!D$13)+1), ROW(A4)),"-") -> 7 | D82: SAC | E82: 24 | F82: 0 | G82: =IFERROR(INDEX('05. (a) CAPEX'!D$13:AL$13, SMALL(IF('05. (a) CAPEX'!D$13:AL$13<>0, COLUMN('05. (a) CAPEX'!D$13:AL$13)-COLUMN('05. (a) CAPEX'!D$13)+1), ROW(A4)))*INDEX('06. D&A FISCAL'!$D$431:$AL$431,1,'01. PC'!C82),0) -> 0.106653425 | H82: =IF(G82<>0,'02. WACC'!$H$45,0) -> 0.2424978996 | I82: =IF(SUMIF('12. EQUITY'!$D$11:$AL$11,C82,'12. EQUITY'!$D$15:$AL$15)<G82,(G82-SUMIF('12. EQUITY'!$D$11:$AL$11,C82,'12. EQUITY'!$D$15:$AL$15))*H82,0) -> 0.02586323155 | J82: n
B83: Financiamento 05 | C83: =IFERROR(SMALL(IF('05. (a) CAPEX'!D$13:AL$13<>0, COLUMN('05. (a) CAPEX'!D$13:AL$13)-COLUMN('05. (a) CAPEX'!D$13)+1), ROW(A5)),"-") -> 11 | D83: SAC | E83: 20 | F83: 0 | G83: =IFERROR(INDEX('05. (a) CAPEX'!D$13:AL$13, SMALL(IF('05. (a) CAPEX'!D$13:AL$13<>0, COLUMN('05. (a) CAPEX'!D$13:AL$13)-COLUMN('05. (a) CAPEX'!D$13)+1), ROW(A5)))*INDEX('06. D&A FISCAL'!$D$431:$AL$431,1,'01. PC'!C83),0) -> 11.94196236 | H83: =IF(G83<>0,'02. WACC'!$H$45,0) -> 0.2424978996 | I83: =IF(SUMIF('12. EQUITY'!$D$11:$AL$11,C83,'12. EQUITY'!$D$15:$AL$15)<G83,(G83-SUMIF('12. EQUITY'!$D$11:$AL$11,C83,'12. EQUITY'!$D$15:$AL$15))*H83,0) -> 0.1155787397 | J83: n
B84: Financiamento 06 | C84: =IFERROR(SMALL(IF('05. (a) CAPEX'!D$13:AL$13<>0, COLUMN('05. (a) CAPEX'!D$13:AL$13)-COLUMN('05. (a) CAPEX'!D$13)+1), ROW(A6)),"-") -> 12 | D84: SAC | E84: 19 | F84: 0 | G84: =IFERROR(INDEX('05. (a) CAPEX'!D$13:AL$13, SMALL(IF('05. (a) CAPEX'!D$13:AL$13<>0, COLUMN('05. (a) CAPEX'!D$13:AL$13)-COLUMN('05. (a) CAPEX'!D$13)+1), ROW(A6)))*INDEX('06. D&A FISCAL'!$D$431:$AL$431,1,'01. PC'!C84),0) -> 0.1864457799 | H84: =IF(G84<>0,'02. WACC'!$H$45,0) -> 0.2424978996 | I84: =IF(SUMIF('12. EQUITY'!$D$11:$AL$11,C84,'12. EQUITY'!$D$15:$AL$15)<G84,(G84-SUMIF('12. EQUITY'!$D$11:$AL$11,C84,'12. EQUITY'!$D$15:$AL$15))*H84,0) -> 0 | J84: n | S84: 25
B85: Financiamento 07 | C85: =IFERROR(SMALL(IF('05. (a) CAPEX'!D$13:AL$13<>0, COLUMN('05. (a) CAPEX'!D$13:AL$13)-COLUMN('05. (a) CAPEX'!D$13)+1), ROW(A7)),"-") -> 14 | D85: SAC | E85: 17 | F85: 0 | G85: =IFERROR(INDEX('05. (a) CAPEX'!D$13:AL$13, SMALL(IF('05. (a) CAPEX'!D$13:AL$13<>0, COLUMN('05. (a) CAPEX'!D$13:AL$13)-COLUMN('05. (a) CAPEX'!D$13)+1), ROW(A7)))*INDEX('06. D&A FISCAL'!$D$431:$AL$431,1,'01. PC'!C85),0) -> 0.006508661485 | H85: =IF(G85<>0,'02. WACC'!$H$45,0) -> 0.2424978996 | I85: =IF(SUMIF('12. EQUITY'!$D$11:$AL$11,C85,'12. EQUITY'!$D$15:$AL$15)<G85,(G85-SUMIF('12. EQUITY'!$D$11:$AL$11,C85,'12. EQUITY'!$D$15:$AL$15))*H85,0) -> 0 | J85: n
B86: Financiamento 08 | C86: =IFERROR(SMALL(IF('05. (a) CAPEX'!D$13:AL$13<>0, COLUMN('05. (a) CAPEX'!D$13:AL$13)-COLUMN('05. (a) CAPEX'!D$13)+1), ROW(A8)),"-") -> 15 | D86: SAC | E86: 16 | F86: 0 | G86: =IFERROR(INDEX('05. (a) CAPEX'!D$13:AL$13, SMALL(IF('05. (a) CAPEX'!D$13:AL$13<>0, COLUMN('05. (a) CAPEX'!D$13:AL$13)-COLUMN('05. (a) CAPEX'!D$13)+1), ROW(A8)))*INDEX('06. D&A FISCAL'!$D$431:$AL$431,1,'01. PC'!C86),0) -> 0.2662848999 | H86: =IF(G86<>0,'02. WACC'!$H$45,0) -> 0.2424978996 | I86: =IF(SUMIF('12. EQUITY'!$D$11:$AL$11,C86,'12. EQUITY'!$D$15:$AL$15)<G86,(G86-SUMIF('12. EQUITY'!$D$11:$AL$11,C86,'12. EQUITY'!$D$15:$AL$15))*H86,0) -> 0 | J86: n
B87: Financiamento 09 | C87: =IFERROR(SMALL(IF('05. (a) CAPEX'!D$13:AL$13<>0, COLUMN('05. (a) CAPEX'!D$13:AL$13)-COLUMN('05. (a) CAPEX'!D$13)+1), ROW(A9)),"-") -> 19 | D87: SAC | E87: 12 | F87: 0 | G87: =IFERROR(INDEX('05. (a) CAPEX'!D$13:AL$13, SMALL(IF('05. (a) CAPEX'!D$13:AL$13<>0, COLUMN('05. (a) CAPEX'!D$13:AL$13)-COLUMN('05. (a) CAPEX'!D$13)+1), ROW(A9)))*INDEX('06. D&A FISCAL'!$D$431:$AL$431,1,'01. PC'!C87),0) -> 0.5858666949 | H87: =IF(G87<>0,'02. WACC'!$H$45,0) -> 0.2424978996 | I87: =IF(SUMIF('12. EQUITY'!$D$11:$AL$11,C87,'12. EQUITY'!$D$15:$AL$15)<G87,(G87-SUMIF('12. EQUITY'!$D$11:$AL$11,C87,'12. EQUITY'!$D$15:$AL$15))*H87,0) -> 0 | J87: n
B88: Financiamento 10 | C88: =IFERROR(SMALL(IF('05. (a) CAPEX'!D$13:AL$13<>0, COLUMN('05. (a) CAPEX'!D$13:AL$13)-COLUMN('05. (a) CAPEX'!D$13)+1), ROW(A10)),"-") -> 20 | D88: SAC | E88: 11 | F88: 0 | G88: =IFERROR(INDEX('05. (a) CAPEX'!D$13:AL$13, SMALL(IF('05. (a) CAPEX'!D$13:AL$13<>0, COLUMN('05. (a) CAPEX'!D$13:AL$13)-COLUMN('05. (a) CAPEX'!D$13)+1), ROW(A10)))*INDEX('06. D&A FISCAL'!$D$431:$AL$431,1,'01. PC'!C88),0) -> 0.2398778436 | H88: =IF(G88<>0,'02. WACC'!$H$45,0) -> 0.2424978996 | I88: =IF(SUMIF('12. EQUITY'!$D$11:$AL$11,C88,'12. EQUITY'!$D$15:$AL$15)<G88,(G88-SUMIF('12. EQUITY'!$D$11:$AL$11,C88,'12. EQUITY'!$D$15:$AL$15))*H88,0) -> 0 | J88: n
B89: Financiamento 11 | C89: =IFERROR(SMALL(IF('05. (a) CAPEX'!D$13:AL$13<>0, COLUMN('05. (a) CAPEX'!D$13:AL$13)-COLUMN('05. (a) CAPEX'!D$13)+1), ROW(A11)),"-") -> 21 | D89: SAC | E89: =IF(ISNUMBER(C89),prazo-C89+1,"-") -> 10 | F89: 0 | G89: =IFERROR(INDEX('05. (a) CAPEX'!D$13:AL$13, SMALL(IF('05. (a) CAPEX'!D$13:AL$13<>0, COLUMN('05. (a) CAPEX'!D$13:AL$13)-COLUMN('05. (a) CAPEX'!D$13)+1), ROW(A11)))*INDEX('06. D&A FISCAL'!$D$431:$AL$431,1,'01. PC'!C89),0) -> 0.340613793 | H89: =IF(G89<>0,'02. WACC'!$H$45,0) -> 0.2424978996 | I89: =IF(SUMIF('12. EQUITY'!$D$11:$AL$11,C89,'12. EQUITY'!$D$15:$AL$15)<G89,(G89-SUMIF('12. EQUITY'!$D$11:$AL$11,C89,'12. EQUITY'!$D$15:$AL$15))*H89,0) -> 0 | J89: n
B90: Financiamento 12 | C90: =IFERROR(SMALL(IF('05. (a) CAPEX'!D$13:AL$13<>0, COLUMN('05. (a) CAPEX'!D$13:AL$13)-COLUMN('05. (a) CAPEX'!D$13)+1), ROW(A12)),"-") -> 24 | D90: SAC | E90: 7 | F90: 0 | G90: =IFERROR(INDEX('05. (a) CAPEX'!D$13:AL$13, SMALL(IF('05. (a) CAPEX'!D$13:AL$13<>0, COLUMN('05. (a) CAPEX'!D$13:AL$13)-COLUMN('05. (a) CAPEX'!D$13)+1), ROW(A12)))*INDEX('06. D&A FISCAL'!$D$431:$AL$431,1,'01. PC'!C90),0) -> 0.008918435123 | H90: =IF(G90<>0,'02. WACC'!$H$45,0) -> 0.2424978996 | I90: =IF(SUMIF('12. EQUITY'!$D$11:$AL$11,C90,'12. EQUITY'!$D$15:$AL$15)<G90,(G90-SUMIF('12. EQUITY'!$D$11:$AL$11,C90,'12. EQUITY'!$D$15:$AL$15))*H90,0) -> 0 | J90: n
B91: Financiamento 13 | C91: =IFERROR(SMALL(IF('05. (a) CAPEX'!D$13:AL$13<>0, COLUMN('05. (a) CAPEX'!D$13:AL$13)-COLUMN('05. (a) CAPEX'!D$13)+1), ROW(A13)),"-") -> 26 | D91: SAC | E91: 5 | F91: 0 | G91: =IFERROR(INDEX('05. (a) CAPEX'!D$13:AL$13, SMALL(IF('05. (a) CAPEX'!D$13:AL$13<>0, COLUMN('05. (a) CAPEX'!D$13:AL$13)-COLUMN('05. (a) CAPEX'!D$13)+1), ROW(A13)))*INDEX('06. D&A FISCAL'!$D$431:$AL$431,1,'01. PC'!C91),0) -> 6.681864484 | H91: =IF(G91<>0,'02. WACC'!$H$45,0) -> 0.2424978996 | I91: =IF(SUMIF('12. EQUITY'!$D$11:$AL$11,C91,'12. EQUITY'!$D$15:$AL$15)<G91,(G91-SUMIF('12. EQUITY'!$D$11:$AL$11,C91,'12. EQUITY'!$D$15:$AL$15))*H91,0) -> 0 | J91: n
B92: Financiamento 14 | C92: =IFERROR(SMALL(IF('05. (a) CAPEX'!D$13:AL$13<>0, COLUMN('05. (a) CAPEX'!D$13:AL$13)-COLUMN('05. (a) CAPEX'!D$13)+1), ROW(A14)),"-") -> 27 | D92: SAC | E92: 4 | F92: 0 | G92: =IFERROR(INDEX('05. (a) CAPEX'!D$13:AL$13, SMALL(IF('05. (a) CAPEX'!D$13:AL$13<>0, COLUMN('05. (a) CAPEX'!D$13:AL$13)-COLUMN('05. (a) CAPEX'!D$13)+1), ROW(A14)))*INDEX('06. D&A FISCAL'!$D$431:$AL$431,1,'01. PC'!C92),0) -> 1.616524753 | H92: =IF(G92<>0,'02. WACC'!$H$45,0) -> 0.2424978996 | I92: =IF(SUMIF('12. EQUITY'!$D$11:$AL$11,C92,'12. EQUITY'!$D$15:$AL$15)<G92,(G92-SUMIF('12. EQUITY'!$D$11:$AL$11,C92,'12. EQUITY'!$D$15:$AL$15))*H92,0) -> 0 | J92: n
B93: Financiamento 15 | C93: =IFERROR(SMALL(IF('05. (a) CAPEX'!D$13:AL$13<>0, COLUMN('05. (a) CAPEX'!D$13:AL$13)-COLUMN('05. (a) CAPEX'!D$13)+1), ROW(A15)),"-") -> 28 | D93: SAC | E93: 3 | F93: 0 | G93: =IFERROR(INDEX('05. (a) CAPEX'!D$13:AL$13, SMALL(IF('05. (a) CAPEX'!D$13:AL$13<>0, COLUMN('05. (a) CAPEX'!D$13:AL$13)-COLUMN('05. (a) CAPEX'!D$13)+1), ROW(A15)))*INDEX('06. D&A FISCAL'!$D$431:$AL$431,1,'01. PC'!C93),0) -> 0.308622592 | H93: =IF(G93<>0,'02. WACC'!$H$45,0) -> 0.2424978996 | I93: =IF(SUMIF('12. EQUITY'!$D$11:$AL$11,C93,'12. EQUITY'!$D$15:$AL$15)<G93,(G93-SUMIF('12. EQUITY'!$D$11:$AL$11,C93,'12. EQUITY'!$D$15:$AL$15))*H93,0) -> 0 | J93: n
B94: Financiamento 16 | C94: =IFERROR(SMALL(IF('05. (a) CAPEX'!D$13:AL$13<>0, COLUMN('05. (a) CAPEX'!D$13:AL$13)-COLUMN('05. (a) CAPEX'!D$13)+1), ROW(A16)),"-") -> 29 | D94: SAC | E94: 2 | F94: 0 | G94: =IFERROR(INDEX('05. (a) CAPEX'!D$13:AL$13, SMALL(IF('05. (a) CAPEX'!D$13:AL$13<>0, COLUMN('05. (a) CAPEX'!D$13:AL$13)-COLUMN('05. (a) CAPEX'!D$13)+1), ROW(A16)))*INDEX('06. D&A FISCAL'!$D$431:$AL$431,1,'01. PC'!C94),0) -> 3.010267184 | H94: =IF(G94<>0,'02. WACC'!$H$45,0) -> 0.2424978996 | I94: =IF(SUMIF('12. EQUITY'!$D$11:$AL$11,C94,'12. EQUITY'!$D$15:$AL$15)<G94,(G94-SUMIF('12. EQUITY'!$D$11:$AL$11,C94,'12. EQUITY'!$D$15:$AL$15))*H94,0) -> 0 | J94: n
B95: Financiamento 17 | C95: =IFERROR(SMALL(IF('05. (a) CAPEX'!D$13:AL$13<>0, COLUMN('05. (a) CAPEX'!D$13:AL$13)-COLUMN('05. (a) CAPEX'!D$13)+1), ROW(A17)),"-") -> 30 | D95: SAC | E95: 1 | F95: 0 | G95: =IFERROR(INDEX('05. (a) CAPEX'!D$13:AL$13, SMALL(IF('05. (a) CAPEX'!D$13:AL$13<>0, COLUMN('05. (a) CAPEX'!D$13:AL$13)-COLUMN('05. (a) CAPEX'!D$13)+1), ROW(A17)))*INDEX('06. D&A FISCAL'!$D$431:$AL$431,1,'01. PC'!C95),0) -> 0.04732017088 | H95: =IF(G95<>0,'02. WACC'!$H$45,0) -> 0.2424978996 | I95: =IF(SUMIF('12. EQUITY'!$D$11:$AL$11,C95,'12. EQUITY'!$D$15:$AL$15)<G95,(G95-SUMIF('12. EQUITY'!$D$11:$AL$11,C95,'12. EQUITY'!$D$15:$AL$15))*H95,0) -> 0 | J95: n
B97: Política de Gratuidade | G97: Política de Gratuidade - Meia Estudantes
B98: Público | C98: Histórico 2023 | D98: % | E98: Isenção | G98: Público | H98: Histórico 2023 | I98: % | J98: Isenção
B99: Brasileiros | C99: =207224+569+357+409 -> 208559 | D99: =C99/$C$104 -> 0.7006241686 | E99: Pagante | G99: Brasileiros | H99: =207224+569+357+409-H103 -> 193553.1255 | I99: =H99/$H$105 -> 0.6502140768 | J99: Pagante
B100: Crianças (0 a 12 anos) | C100: 52405 | D100: 0.1760471116 | E100: - | G100: Crianças (0 a 12 anos) | H100: 52405 | I100: 0.1760471116 | J100: -
B101: Crianças (0 a 6) | C101: =C100/2 -> 26202.5 | D101: 0.08802355581 | E101: Isento | G101: Crianças (0 a 6) | H101: =H100/2 -> 26202.5 | I101: 0.08802355581 | J101: Isento
B102: Crianças (6 a 12 anos) | C102: =C100/2 -> 26202.5 | D102: 0.08802355581 | E102: Meia | G102: Crianças (6 a 12 anos) | H102: =H100/2 -> 26202.5 | I102: 0.08802355581 | J102: Meia
B103: Idoso | C103: 36712 | D103: 0.1233287198 | E103: Meia | G103: Total Estudantes (sem Crianças 0 a 12) | H103: =(I116-H100)*I120 -> 15005.87446 | I103: =H103/$H$105 -> 0.05041009171 | J103: =IF(C13="Sim","Meia","Pagante") -> Pagante
B104: Total | C104: =SUM(C99+C100+C103) -> 297676 | D104: 1 | E104: - | G104: Idoso | H104: 36712 | I104: 0.1233287198 | J104: Meia
B105: Isenções por Idade | D105: =SUMIF(E99:E103,"Isento",D99:D103)+(SUMIF(E99:E103,"Meia",D99:D103)*0.5) -> 0.1936996936 | G105: Total | H105: =SUM(H99+H100+H104+H103) -> 297676 | I105: =H105/$C$104 -> 1 | J105: -
G106: Isenções - Idade/Estudante | I106: =SUMIF(J99:J104,"Isento",I99:I104)+(SUMIF(J99:J104,"Meia",I99:I104)*0.5) -> 0.1936996936
B107: Meia-entrada CadÚnico
B108: Todo o DF | C108: 0.209 | D108: Isento | G108: CadÚnico
G109: Todo o DF | H109: 0.209 | I109: Isento
B110: Isenções Totais | C110: =1-((1-C108)*(1-D105)) -> 0.3622164577
G111: Isenções Totais | H111: =1-((1-H109)*(1-I122)) -> 0.6816225
H114: Matrículas Ensino Básico | I114: 464977 | J114: https://www.educacao.df.gov.br/secretaria-de-educacao-do-df-divulga-censo-escolar-2023/
H115: Matrículas Ensino Superior | I115: 234605 | J115: https://www.semesp.org.br/mapa/edicao-15/regioes/centro-oeste/distrito-federal/
B116: Estudos Contratados + B3 (R$ milhões) | H116: Total Estudantes 2023 | I116: =SUM(I114:I115) -> 699582
B117: SPIn | C117: =(1+C11)*275164 -> 323762.2535 | H117: População Estimada 2024 | I117: 2996899 | J117: https://g1.globo.com/df/distrito-federal/noticia/2025/08/28/df-tem-2996899-milhoes-de-habitantes-diz-ibge.ghtml
B118: Natureza Urbana | C118: 460894.12 | H118: % Pop DF - Estudantes | I118: =I116/I117 -> 0.2334352943
B119: B3 | C119: 528000 | H119: % Pop DF - Visitantes | I119: =SUM(C99+H100+H104)/I117 -> 0.09932800538
B120: Remuneração Fixa BNDES | C120: =2000000*(1+C11) -> 2353231.19 | H120: % Pop DF Estudante e Visitante | I120: =I119*I118 -> 0.02318666217
B121: Remuneração Variável BNDES
G122: Outras Referências | H122: ANCINE | I122: 0.5975 | J122: https://www.gov.br/ancine/pt-br/centrais-de-conteudo/publicacoes/artigos/ID9153.pdf

Sheet 02. WACC
F5: Data Referência | H5: 2025-07-01 | J5: =$H$5 -> 2025-07-01
B7: WACC | H7: Lucro Real | J7: Lucro Presumido
B9: Custo Médio Ponderado de Capital - WACC BRL Nominal | H9: =H47 -> 0.1323201296 | J9: =J47 -> 0.1474681744
B11: Custo Médio Ponderado de Capital - WACC BRL Real | H11: =H49 -> 0.09097385075 | J11: =J49 -> 0.1055687699
B13: Custo de Capital Próprio | H13: Valor | J13: Valor
B15: Beta Realavancado | H15: =H18*(1+(H17)*(1-H19)) -> 1.042798231 | J15: =J18*(1+(J17)*(1-J19)) -> 1.13650201
B17: D/E Projeto | E17: Global | F17: Recreation | H17: 0.3201283528 | J17: =J45/J44 -> 0.3201283528
B18: Beta Desalavancado | E18: Global | F18: Recreation | H18: 0.8609026597 | J18: =H18 -> 0.8609026597
B19: Alíquota Imposto | H19: 0.34 | J19: 0
B21: Ke nominal (USD) | H21: =H23+H26*(H28)+H27 -> 0.1315613162 | J21: =J23+J26*(J28)+J27 -> 0.1380442092
B23: Taxa Livre Risco (Rf) | H23: 0.042725 | J23: =H23 -> 0.042725
B25: Retorno Histórico de Mercado - EUA (Rm) - S&P500 | H25: 0.1092635242 | J25: =H25 -> 0.1092635242
B26: Beta Alavancado | H26: =H15 -> 1.042798231 | J26: =J15 -> 1.13650201
B27: Risco Brasil | H27: 0.01669035385 | J27: =H27 -> 0.01669035385
B28: Industry Risk Premium (IRP) » Prêmio para o Risco de Mercado (Rm - Rf) | H28: 0.06918496812 | J28: =H28 -> 0.06918496812
B29: Inflação BR/Inflação USA | H29: =((1+H31)/(1+H30)-1) -> 0.01508902182 | J29: =((1+J31)/(1+J30)-1) -> 0.01508902182
B30: Inflação EUA | H30: 0.02247042729 | J30: =H30 -> 0.02247042729
B31: Inflação Brasil | H31: 0.03789850588 | J31: =H31 -> 0.03789850588
B32: Ke Nominal (BRL) | H32: =(1+H21)*(1+H29)-1 -> 0.1486354696 | J32: =(1+J21)*(1+J29)-1 -> 0.1552161831
B33: Ke Real (BRL) | H33: =((1+H32)/(1+H31))-1 -> 0.1066934417 | J33: =((1+J32)/(1+J31))-1 -> 0.1130338627
B35: Custo da Dívida | H35: Valor | J35: Valor
G36: 1. Debêntures
B37: Taxa de Juros Nominal | E37: Composição da Dívida: | F37: 3. Debêntures e BNDES | G37: 2. BNDES | H37: =CHOOSE(LEFT(F37,1),C67,C59,AVERAGE(C59,C67)) -> 0.1232653553 | J37: =H37 -> 0.1232653553
B38: Alíquota Imposto | G38: 3. Debêntures e BNDES | H38: 0.34 | J38: 0
B39: Kd Nominal (BRL) | H39: =((H37))*(1-H38) -> 0.08135513448 | J39: =((J37))*(1-J38) -> 0.1232653553
B40: Kd Real (BRL) | H40: =(1+H39)/(1+H31)-1 -> 0.0418698248 | J40: =(1+J39)/(1+J31)-1 -> 0.08224970833
B42: Estrutura de Capital | H42: Valor | J42: Valor
B44: % Equity | H44: =1/(1+H17) -> 0.7575021004 | J44: =1-J45 -> 0.7575021004
B45: % Debt | H45: =1-H44 -> 0.2424978996 | J45: =H45 -> 0.2424978996
B47: WACC Nominal (BRL) | H47: =(H32*H44)+(H39*H45) -> 0.1323201296 | J47: =(J32*J44)+(J39*J45) -> 0.1474681744
B49: WACC Real (BRL) | H49: =(1+H47)/(1+H31)-1 -> 0.09097385075 | J49: =(1+J47)/(1+J31)-1 -> 0.1055687699
B51: Dívida
B53: BNDES
B55: Kd Nominal | C55: Valor | D55: Referência
B56: Parcela fixa da TLP - dez/2024 | C56: 0.0754 | D56: TLP
B57: Remuneração BNDES | C57: 0.015 | D57: BNDES - Finem
B58: Inflação Brasil | C58: =H31 -> 0.03789850588 | E58: 2
B59: Kd Nominal | C59: =(1+C56)*(1+C57)*(1+C58)-1 -> 0.132898394 | D59: = (1+TPL) x (1+BNDES) x (1 + Inflação) - 1 | E59: 2
B60: Taxa Financiamento Real | C60: =((1+C59)/(1+C66)-1) -> 0.091531 | D60: = (1 + Kd Nominal)/(1+Inflação Brasil)
B62: Debêntures incentivadas
B64: Kd Nominal
B65: Média de spreads praticados (index. IPCA) | C65: 0.07296841667 | D65: ANBIMA
B66: Inflação Brasil | C66: =H31 -> 0.03789850588 | D66: Projeção Focus
B67: Kd Nominal | C67: =(1+C65)*(1+C66)-1 -> 0.1136323165 | D67: = (1 + Média dos spreads) x (1 + Inflação Brasil) - 1
B69: Média da Taxa Real | C69: =CHOOSE(LEFT(F37,1),C65,C60,AVERAGE(C60,C65)) -> 0.08224970833

Sheet 03. FCL - UGCs
B6: Fluxo de Caixa Livre do Projeto - Visão por UGC (R$ milhões)
B7: Prazo | D7: =IF(D11<=prazo,1,0) -> 1 | E7: 1 | F7: 1 | G7: 1 | H7: 1 | I7: 1 | J7: 1 | K7: 1 | L7: 1 | M7: 1 | N7: 1 | O7: 1 | P7: 1 | Q7: 1 | R7: 1 | S7: 1 | T7: 1 | U7: 1 | V7: 1 | W7: 1 | X7: 1 | Y7: 1 | Z7: 1 | AA7: 1 | AB7: 1 | AC7: 1 | AD7: 1 | AE7: 1 | AF7: 1 | AG7: 1
B9: Ano | D9: =ano_inicial -> 2026 | E9: =D9+1 -> 2027 | F9: =E9+1 -> 2028 | G9: 2029 | H9: 2030 | I9: 2031 | J9: 2032 | K9: 2033 | L9: 2034 | M9: 2035 | N9: 2036 | O9: 2037 | P9: 2038 | Q9: 2039 | R9: 2040 | S9: 2041 | T9: 2042 | U9: 2043 | V9: 2044 | W9: 2045 | X9: 2046 | Y9: 2047 | Z9: 2048 | AA9: 2049 | AB9: 2050 | AC9: 2051 | AD9: 2052 | AE9: 2053 | AF9: 2054 | AG9: 2055
D11: 1 | E11: =D11+1 -> 2 | F11: 3 | G11: 4 | H11: 5 | I11: 6 | J11: 7 | K11: 8 | L11: 9 | M11: 10 | N11: 11 | O11: 12 | P11: 13 | Q11: 14 | R11: 15 | S11: 16 | T11: 17 | U11: 18 | V11: 19 | W11: 20 | X11: 21 | Y11: 22 | Z11: 23 | AA11: 24 | AB11: 25 | AC11: 26 | AD11: 27 | AE11: 28 | AF11: 29 | AG11: 30 | AI11: TOTAL | AK11: VPL | AL11: RISCO
B13: Receitas | D13: =SUM(D15:D20) -> 10.37778468 | E13: =SUM(E15:E20) -> 10.90069209 | F13: 11.46648514 | G13: 12.06801953 | H13: 14.16185207 | I13: 14.42343499 | J13: 14.76287919 | K13: 15.03556365 | L13: 15.31328485 | M13: 16.95548739 | N13: 17.26867142 | O13: 17.63074386 | P13: 17.95640052 | Q13: 18.28807237 | R13: 18.62587051 | S13: 18.96990811 | T13: 19.32030041 | U13: 19.67716479 | V13: 20.04062079 | W13: 20.41079017 | X13: 20.78779694 | Y13: 21.17176738 | Z13: 21.56283012 | AA13: 21.96111616 | AB13: 22.36675893 | AC13: 22.7798943 | AD13: 23.20066068 | AE13: 23.62919901 | AF13: 24.06565286 | AG13: 24.51016843 | AI13: =SUM(D13:AG13) -> 549.6898713 | AK13: =NPV(WACC,'03. FCL - UGCs'!E13:AG13)+'03. FCL - UGCs'!D13 -> 172.4030236
B15: Bilheteria | D15: =SUMIF('04. RECEITAS'!$B:$B,'03. FCL - UGCs'!$B15,'04. RECEITAS'!C:C) -> 6.698403961 | E15: =SUMIF('04. RECEITAS'!$B:$B,'03. FCL - UGCs'!$B15,'04. RECEITAS'!D:D) -> 7.156745369 | F15: =SUMIF('04. RECEITAS'!$B:$B,'03. FCL - UGCs'!$B15,'04. RECEITAS'!E:E) -> 7.653384148 | G15: =SUMIF('04. RECEITAS'!$B:$B,'03. FCL - UGCs'!$B15,'04. RECEITAS'!F:F) -> 8.184486927 | H15: =SUMIF('04. RECEITAS'!$B:$B,'03. FCL - UGCs'!$B15,'04. RECEITAS'!G:G) -> 8.752445318 | I15: =SUMIF('04. RECEITAS'!$B:$B,'03. FCL - UGCs'!$B15,'04. RECEITAS'!H:H) -> 8.914111332 | J15: =SUMIF('04. RECEITAS'!$B:$B,'03. FCL - UGCs'!$B15,'04. RECEITAS'!I:I) -> 9.078763472 | K15: =SUMIF('04. RECEITAS'!$B:$B,'03. FCL - UGCs'!$B15,'04. RECEITAS'!J:J) -> 9.246456894 | L15: =SUMIF('04. RECEITAS'!$B:$B,'03. FCL - UGCs'!$B15,'04. RECEITAS'!K:K) -> 9.417247774 | M15: =SUMIF('04. RECEITAS'!$B:$B,'03. FCL - UGCs'!$B15,'04. RECEITAS'!L:L) -> 9.591193324 | N15: =SUMIF('04. RECEITAS'!$B:$B,'03. FCL - UGCs'!$B15,'04. RECEITAS'!M:M) -> 9.768351814 | O15: =SUMIF('04. RECEITAS'!$B:$B,'03. FCL - UGCs'!$B15,'04. RECEITAS'!N:N) -> 9.94878259 | P15: =SUMIF('04. RECEITAS'!$B:$B,'03. FCL - UGCs'!$B15,'04. RECEITAS'!O:O) -> 10.1325461 | Q15: =SUMIF('04. RECEITAS'!$B:$B,'03. FCL - UGCs'!$B15,'04. RECEITAS'!P:P) -> 10.31970389 | R15: =SUMIF('04. RECEITAS'!$B:$B,'03. FCL - UGCs'!$B15,'04. RECEITAS'!Q:Q) -> 10.51031866 | S15: =SUMIF('04. RECEITAS'!$B:$B,'03. FCL - UGCs'!$B15,'04. RECEITAS'!R:R) -> 10.70445427 | T15: =SUMIF('04. RECEITAS'!$B:$B,'03. FCL - UGCs'!$B15,'04. RECEITAS'!S:S) -> 10.90217576 | U15: =SUMIF('04. RECEITAS'!$B:$B,'03. FCL - UGCs'!$B15,'04. RECEITAS'!T:T) -> 11.10354934 | V15: =SUMIF('04. RECEITAS'!$B:$B,'03. FCL - UGCs'!$B15,'04. RECEITAS'!U:U) -> 11.30864249 | W15: =SUMIF('04. RECEITAS'!$B:$B,'03. FCL - UGCs'!$B15,'04. RECEITAS'!V:V) -> 11.51752391 | X15: =SUMIF('04. RECEITAS'!$B:$B,'03. FCL - UGCs'!$B15,'04. RECEITAS'!W:W) -> 11.73026356 | Y15: =SUMIF('04. RECEITAS'!$B:$B,'03. FCL - UGCs'!$B15,'04. RECEITAS'!X:X) -> 11.94693272 | Z15: =SUMIF('04. RECEITAS'!$B:$B,'03. FCL - UGCs'!$B15,'04. RECEITAS'!Y:Y) -> 12.16760396 | AA15: =SUMIF('04. RECEITAS'!$B:$B,'03. FCL - UGCs'!$B15,'04. RECEITAS'!Z:Z) -> 12.39235121 | AB15: =SUMIF('04. RECEITAS'!$B:$B,'03. FCL - UGCs'!$B15,'04. RECEITAS'!AA:AA) -> 12.62124976 | AC15: =SUMIF('04. RECEITAS'!$B:$B,'03. FCL - UGCs'!$B15,'04. RECEITAS'!AB:AB) -> 12.85437629 | AD15: =SUMIF('04. RECEITAS'!$B:$B,'03. FCL - UGCs'!$B15,'04. RECEITAS'!AC:AC) -> 13.09180888 | AE15: =SUMIF('04. RECEITAS'!$B:$B,'03. FCL - UGCs'!$B15,'04. RECEITAS'!AD:AD) -> 13.33362708 | AF15: =SUMIF('04. RECEITAS'!$B:$B,'03. FCL - UGCs'!$B15,'04. RECEITAS'!AE:AE) -> 13.57991189 | AG15: =SUMIF('04. RECEITAS'!$B:$B,'03. FCL - UGCs'!$B15,'04. RECEITAS'!AF:AF) -> 13.83074582 | AI15: =SUM(D15:AG15) -> 318.4581585
B16: Estacionamento | D16: =SUMIF('04. RECEITAS'!$B:$B,'03. FCL - UGCs'!$B16,'04. RECEITAS'!C:C) -> 2.1643416 | E16: =SUMIF('04. RECEITAS'!$B:$B,'03. FCL - UGCs'!$B16,'04. RECEITAS'!D:D) -> 2.202321601 | F16: =SUMIF('04. RECEITAS'!$B:$B,'03. FCL - UGCs'!$B16,'04. RECEITAS'!E:E) -> 2.243000582 | G16: =SUMIF('04. RECEITAS'!$B:$B,'03. FCL - UGCs'!$B16,'04. RECEITAS'!F:F) -> 2.284430942 | H16: =SUMIF('04. RECEITAS'!$B:$B,'03. FCL - UGCs'!$B16,'04. RECEITAS'!G:G) -> 2.326626561 | I16: =SUMIF('04. RECEITAS'!$B:$B,'03. FCL - UGCs'!$B16,'04. RECEITAS'!H:H) -> 2.369601573 | J16: =SUMIF('04. RECEITAS'!$B:$B,'03. FCL - UGCs'!$B16,'04. RECEITAS'!I:I) -> 2.413370375 | K16: =SUMIF('04. RECEITAS'!$B:$B,'03. FCL - UGCs'!$B16,'04. RECEITAS'!J:J) -> 2.457947628 | L16: =SUMIF('04. RECEITAS'!$B:$B,'03. FCL - UGCs'!$B16,'04. RECEITAS'!K:K) -> 2.503348265 | M16: =SUMIF('04. RECEITAS'!$B:$B,'03. FCL - UGCs'!$B16,'04. RECEITAS'!L:L) -> 3.003229731 | N16: =SUMIF('04. RECEITAS'!$B:$B,'03. FCL - UGCs'!$B16,'04. RECEITAS'!M:M) -> 3.058702249 | O16: =SUMIF('04. RECEITAS'!$B:$B,'03. FCL - UGCs'!$B16,'04. RECEITAS'!N:N) -> 3.115199398 | P16: =SUMIF('04. RECEITAS'!$B:$B,'03. FCL - UGCs'!$B16,'04. RECEITAS'!O:O) -> 3.172740102 | Q16: =SUMIF('04. RECEITAS'!$B:$B,'03. FCL - UGCs'!$B16,'04. RECEITAS'!P:P) -> 3.231343639 | R16: =SUMIF('04. RECEITAS'!$B:$B,'03. FCL - UGCs'!$B16,'04. RECEITAS'!Q:Q) -> 3.291029638 | S16: =SUMIF('04. RECEITAS'!$B:$B,'03. FCL - UGCs'!$B16,'04. RECEITAS'!R:R) -> 3.351818095 | T16: =SUMIF('04. RECEITAS'!$B:$B,'03. FCL - UGCs'!$B16,'04. RECEITAS'!S:S) -> 3.413729373 | U16: =SUMIF('04. RECEITAS'!$B:$B,'03. FCL - UGCs'!$B16,'04. RECEITAS'!T:T) -> 3.476784211 | V16: =SUMIF('04. RECEITAS'!$B:$B,'03. FCL - UGCs'!$B16,'04. RECEITAS'!U:U) -> 3.541003732 | W16: =SUMIF('04. RECEITAS'!$B:$B,'03. FCL - UGCs'!$B16,'04. RECEITAS'!V:V) -> 3.606409449 | X16: =SUMIF('04. RECEITAS'!$B:$B,'03. FCL - UGCs'!$B16,'04. RECEITAS'!W:W) -> 3.673023272 | Y16: =SUMIF('04. RECEITAS'!$B:$B,'03. FCL - UGCs'!$B16,'04. RECEITAS'!X:X) -> 3.740867515 | Z16: =SUMIF('04. RECEITAS'!$B:$B,'03. FCL - UGCs'!$B16,'04. RECEITAS'!Y:Y) -> 3.809964907 | AA16: =SUMIF('04. RECEITAS'!$B:$B,'03. FCL - UGCs'!$B16,'04. RECEITAS'!Z:Z) -> 3.880338593 | AB16: =SUMIF('04. RECEITAS'!$B:$B,'03. FCL - UGCs'!$B16,'04. RECEITAS'!AA:AA) -> 3.952012149 | AC16: =SUMIF('04. RECEITAS'!$B:$B,'03. FCL - UGCs'!$B16,'04. RECEITAS'!AB:AB) -> 4.025009583 | AD16: =SUMIF('04. RECEITAS'!$B:$B,'03. FCL - UGCs'!$B16,'04. RECEITAS'!AC:AC) -> 4.09935535 | AE16: =SUMIF('04. RECEITAS'!$B:$B,'03. FCL - UGCs'!$B16,'04. RECEITAS'!AD:AD) -> 4.175074354 | AF16: =SUMIF('04. RECEITAS'!$B:$B,'03. FCL - UGCs'!$B16,'04. RECEITAS'!AE:AE) -> 4.25219196 | AG16: =SUMIF('04. RECEITAS'!$B:$B,'03. FCL - UGCs'!$B16,'04. RECEITAS'!AF:AF) -> 4.330734002 | AI16: 97.16555043
B17: Transporte Interno | D17: =SUMIF('04. RECEITAS'!$B:$B,'03. FCL - UGCs'!$B17,'04. RECEITAS'!C:C) -> 0 | E17: =SUMIF('04. RECEITAS'!$B:$B,'03. FCL - UGCs'!$B17,'04. RECEITAS'!D:D) -> 0 | F17: =SUMIF('04. RECEITAS'!$B:$B,'03. FCL - UGCs'!$B17,'04. RECEITAS'!E:E) -> 0 | G17: =SUMIF('04. RECEITAS'!$B:$B,'03. FCL - UGCs'!$B17,'04. RECEITAS'!F:F) -> 0 | H17: =SUMIF('04. RECEITAS'!$B:$B,'03. FCL - UGCs'!$B17,'04. RECEITAS'!G:G) -> 0.1744969921 | I17: =SUMIF('04. RECEITAS'!$B:$B,'03. FCL - UGCs'!$B17,'04. RECEITAS'!H:H) -> 0.177720118 | J17: =SUMIF('04. RECEITAS'!$B:$B,'03. FCL - UGCs'!$B17,'04. RECEITAS'!I:I) -> 0.1810027781 | K17: =SUMIF('04. RECEITAS'!$B:$B,'03. FCL - UGCs'!$B17,'04. RECEITAS'!J:J) -> 0.1843460721 | L17: =SUMIF('04. RECEITAS'!$B:$B,'03. FCL - UGCs'!$B17,'04. RECEITAS'!K:K) -> 0.1877511199 | M17: =SUMIF('04. RECEITAS'!$B:$B,'03. FCL - UGCs'!$B17,'04. RECEITAS'!L:L) -> 0.1912190622 | N17: =SUMIF('04. RECEITAS'!$B:$B,'03. FCL - UGCs'!$B17,'04. RECEITAS'!M:M) -> 0.1947510607 | O17: =SUMIF('04. RECEITAS'!$B:$B,'03. FCL - UGCs'!$B17,'04. RECEITAS'!N:N) -> 0.1983482985 | P17: =SUMIF('04. RECEITAS'!$B:$B,'03. FCL - UGCs'!$B17,'04. RECEITAS'!O:O) -> 0.2020119808 | Q17: =SUMIF('04. RECEITAS'!$B:$B,'03. FCL - UGCs'!$B17,'04. RECEITAS'!P:P) -> 0.2057433348 | R17: =SUMIF('04. RECEITAS'!$B:$B,'03. FCL - UGCs'!$B17,'04. RECEITAS'!Q:Q) -> 0.2095436105 | S17: =SUMIF('04. RECEITAS'!$B:$B,'03. FCL - UGCs'!$B17,'04. RECEITAS'!R:R) -> 0.2134140809 | T17: =SUMIF('04. RECEITAS'!$B:$B,'03. FCL - UGCs'!$B17,'04. RECEITAS'!S:S) -> 0.2173560425 | U17: =SUMIF('04. RECEITAS'!$B:$B,'03. FCL - UGCs'!$B17,'04. RECEITAS'!T:T) -> 0.221370816 | V17: =SUMIF('04. RECEITAS'!$B:$B,'03. FCL - UGCs'!$B17,'04. RECEITAS'!U:U) -> 0.2254597461 | W17: =SUMIF('04. RECEITAS'!$B:$B,'03. FCL - UGCs'!$B17,'04. RECEITAS'!V:V) -> 0.2296242027 | X17: =SUMIF('04. RECEITAS'!$B:$B,'03. FCL - UGCs'!$B17,'04. RECEITAS'!W:W) -> 0.2338655808 | Y17: =SUMIF('04. RECEITAS'!$B:$B,'03. FCL - UGCs'!$B17,'04. RECEITAS'!X:X) -> 0.2381853012 | Z17: =SUMIF('04. RECEITAS'!$B:$B,'03. FCL - UGCs'!$B17,'04. RECEITAS'!Y:Y) -> 0.2425848109 | AA17: =SUMIF('04. RECEITAS'!$B:$B,'03. FCL - UGCs'!$B17,'04. RECEITAS'!Z:Z) -> 0.2470655838 | AB17: =SUMIF('04. RECEITAS'!$B:$B,'03. FCL - UGCs'!$B17,'04. RECEITAS'!AA:AA) -> 0.2516291208 | AC17: =SUMIF('04. RECEITAS'!$B:$B,'03. FCL - UGCs'!$B17,'04. RECEITAS'!AB:AB) -> 0.2562769507 | AD17: =SUMIF('04. RECEITAS'!$B:$B,'03. FCL - UGCs'!$B17,'04. RECEITAS'!AC:AC) -> 0.2610106304 | AE17: =SUMIF('04. RECEITAS'!$B:$B,'03. FCL - UGCs'!$B17,'04. RECEITAS'!AD:AD) -> 0.2658317458 | AF17: =SUMIF('04. RECEITAS'!$B:$B,'03. FCL - UGCs'!$B17,'04. RECEITAS'!AE:AE) -> 0.2707419117 | AG17: =SUMIF('04. RECEITAS'!$B:$B,'03. FCL - UGCs'!$B17,'04. RECEITAS'!AF:AF) -> 0.2757427731 | AI17: 5.757093725
B18: Alimentação | D18: =SUMIF('04. RECEITAS'!$B:$B,'03. FCL - UGCs'!$B18,'04. RECEITAS'!C:C) -> 1.51503912 | E18: =SUMIF('04. RECEITAS'!$B:$B,'03. FCL - UGCs'!$B18,'04. RECEITAS'!D:D) -> 1.541625121 | F18: =SUMIF('04. RECEITAS'!$B:$B,'03. FCL - UGCs'!$B18,'04. RECEITAS'!E:E) -> 1.570100407 | G18: =SUMIF('04. RECEITAS'!$B:$B,'03. FCL - UGCs'!$B18,'04. RECEITAS'!F:F) -> 1.59910166 | H18: =SUMIF('04. RECEITAS'!$B:$B,'03. FCL - UGCs'!$B18,'04. RECEITAS'!G:G) -> 2.908283201 | I18: =SUMIF('04. RECEITAS'!$B:$B,'03. FCL - UGCs'!$B18,'04. RECEITAS'!H:H) -> 2.962001967 | J18: =SUMIF('04. RECEITAS'!$B:$B,'03. FCL - UGCs'!$B18,'04. RECEITAS'!I:I) -> 3.016712968 | K18: =SUMIF('04. RECEITAS'!$B:$B,'03. FCL - UGCs'!$B18,'04. RECEITAS'!J:J) -> 3.072434535 | L18: =SUMIF('04. RECEITAS'!$B:$B,'03. FCL - UGCs'!$B18,'04. RECEITAS'!K:K) -> 3.129185332 | M18: =SUMIF('04. RECEITAS'!$B:$B,'03. FCL - UGCs'!$B18,'04. RECEITAS'!L:L) -> 3.754037164 | N18: =SUMIF('04. RECEITAS'!$B:$B,'03. FCL - UGCs'!$B18,'04. RECEITAS'!M:M) -> 3.823377812 | O18: =SUMIF('04. RECEITAS'!$B:$B,'03. FCL - UGCs'!$B18,'04. RECEITAS'!N:N) -> 3.893999247 | P18: =SUMIF('04. RECEITAS'!$B:$B,'03. FCL - UGCs'!$B18,'04. RECEITAS'!O:O) -> 3.965925128 | Q18: =SUMIF('04. RECEITAS'!$B:$B,'03. FCL - UGCs'!$B18,'04. RECEITAS'!P:P) -> 4.039179548 | R18: =SUMIF('04. RECEITAS'!$B:$B,'03. FCL - UGCs'!$B18,'04. RECEITAS'!Q:Q) -> 4.113787048 | S18: =SUMIF('04. RECEITAS'!$B:$B,'03. FCL - UGCs'!$B18,'04. RECEITAS'!R:R) -> 4.189772619 | T18: =SUMIF('04. RECEITAS'!$B:$B,'03. FCL - UGCs'!$B18,'04. RECEITAS'!S:S) -> 4.267161716 | U18: =SUMIF('04. RECEITAS'!$B:$B,'03. FCL - UGCs'!$B18,'04. RECEITAS'!T:T) -> 4.345980264 | V18: =SUMIF('04. RECEITAS'!$B:$B,'03. FCL - UGCs'!$B18,'04. RECEITAS'!U:U) -> 4.426254665 | W18: =SUMIF('04. RECEITAS'!$B:$B,'03. FCL - UGCs'!$B18,'04. RECEITAS'!V:V) -> 4.508011811 | X18: =SUMIF('04. RECEITAS'!$B:$B,'03. FCL - UGCs'!$B18,'04. RECEITAS'!W:W) -> 4.59127909 | Y18: =SUMIF('04. RECEITAS'!$B:$B,'03. FCL - UGCs'!$B18,'04. RECEITAS'!X:X) -> 4.676084394 | Z18: =SUMIF('04. RECEITAS'!$B:$B,'03. FCL - UGCs'!$B18,'04. RECEITAS'!Y:Y) -> 4.762456134 | AA18: =SUMIF('04. RECEITAS'!$B:$B,'03. FCL - UGCs'!$B18,'04. RECEITAS'!Z:Z) -> 4.850423242 | AB18: =SUMIF('04. RECEITAS'!$B:$B,'03. FCL - UGCs'!$B18,'04. RECEITAS'!AA:AA) -> 4.940015186 | AC18: =SUMIF('04. RECEITAS'!$B:$B,'03. FCL - UGCs'!$B18,'04. RECEITAS'!AB:AB) -> 5.031261979 | AD18: =SUMIF('04. RECEITAS'!$B:$B,'03. FCL - UGCs'!$B18,'04. RECEITAS'!AC:AC) -> 5.124194187 | AE18: =SUMIF('04. RECEITAS'!$B:$B,'03. FCL - UGCs'!$B18,'04. RECEITAS'!AD:AD) -> 5.218842942 | AF18: =SUMIF('04. RECEITAS'!$B:$B,'03. FCL - UGCs'!$B18,'04. RECEITAS'!AE:AE) -> 5.31523995 | AG18: =SUMIF('04. RECEITAS'!$B:$B,'03. FCL - UGCs'!$B18,'04. RECEITAS'!AF:AF) -> 5.413417502 | AI18: 116.5651859
B19: Varejo | D19: =SUMIF('04. RECEITAS'!$B:$B,'03. FCL - UGCs'!$B19,'04. RECEITAS'!C:C) -> 0 | E19: =SUMIF('04. RECEITAS'!$B:$B,'03. FCL - UGCs'!$B19,'04. RECEITAS'!D:D) -> 0 | F19: =SUMIF('04. RECEITAS'!$B:$B,'03. FCL - UGCs'!$B19,'04. RECEITAS'!E:E) -> 0 | G19: =SUMIF('04. RECEITAS'!$B:$B,'03. FCL - UGCs'!$B19,'04. RECEITAS'!F:F) -> 0 | H19: =SUMIF('04. RECEITAS'!$B:$B,'03. FCL - UGCs'!$B19,'04. RECEITAS'!G:G) -> 0 | I19: =SUMIF('04. RECEITAS'!$B:$B,'03. FCL - UGCs'!$B19,'04. RECEITAS'!H:H) -> 0 | J19: =SUMIF('04. RECEITAS'!$B:$B,'03. FCL - UGCs'!$B19,'04. RECEITAS'!I:I) -> 0 | K19: =SUMIF('04. RECEITAS'!$B:$B,'03. FCL - UGCs'!$B19,'04. RECEITAS'!J:J) -> 0 | L19: =SUMIF('04. RECEITAS'!$B:$B,'03. FCL - UGCs'!$B19,'04. RECEITAS'!K:K) -> 0 | M19: =SUMIF('04. RECEITAS'!$B:$B,'03. FCL - UGCs'!$B19,'04. RECEITAS'!L:L) -> 0.3386565301 | N19: =SUMIF('04. RECEITAS'!$B:$B,'03. FCL - UGCs'!$B19,'04. RECEITAS'!M:M) -> 0.3449118393 | O19: =SUMIF('04. RECEITAS'!$B:$B,'03. FCL - UGCs'!$B19,'04. RECEITAS'!N:N) -> 0.35128269 | P19: =SUMIF('04. RECEITAS'!$B:$B,'03. FCL - UGCs'!$B19,'04. RECEITAS'!O:O) -> 0.3577712163 | Q19: =SUMIF('04. RECEITAS'!$B:$B,'03. FCL - UGCs'!$B19,'04. RECEITAS'!P:P) -> 0.364379592 | R19: =SUMIF('04. RECEITAS'!$B:$B,'03. FCL - UGCs'!$B19,'04. RECEITAS'!Q:Q) -> 0.3711100307 | S19: =SUMIF('04. RECEITAS'!$B:$B,'03. FCL - UGCs'!$B19,'04. RECEITAS'!R:R) -> 0.377964787 | T19: =SUMIF('04. RECEITAS'!$B:$B,'03. FCL - UGCs'!$B19,'04. RECEITAS'!S:S) -> 0.3849461571 | U19: =SUMIF('04. RECEITAS'!$B:$B,'03. FCL - UGCs'!$B19,'04. RECEITAS'!T:T) -> 0.3920564799 | V19: =SUMIF('04. RECEITAS'!$B:$B,'03. FCL - UGCs'!$B19,'04. RECEITAS'!U:U) -> 0.399298137 | W19: =SUMIF('04. RECEITAS'!$B:$B,'03. FCL - UGCs'!$B19,'04. RECEITAS'!V:V) -> 0.4066735545 | X19: =SUMIF('04. RECEITAS'!$B:$B,'03. FCL - UGCs'!$B19,'04. RECEITAS'!W:W) -> 0.414185203 | Y19: =SUMIF('04. RECEITAS'!$B:$B,'03. FCL - UGCs'!$B19,'04. RECEITAS'!X:X) -> 0.4218355989 | Z19: =SUMIF('04. RECEITAS'!$B:$B,'03. FCL - UGCs'!$B19,'04. RECEITAS'!Y:Y) -> 0.4296273048 | AA19: =SUMIF('04. RECEITAS'!$B:$B,'03. FCL - UGCs'!$B19,'04. RECEITAS'!Z:Z) -> 0.4375629309 | AB19: =SUMIF('04. RECEITAS'!$B:$B,'03. FCL - UGCs'!$B19,'04. RECEITAS'!AA:AA) -> 0.4456451357 | AC19: =SUMIF('04. RECEITAS'!$B:$B,'03. FCL - UGCs'!$B19,'04. RECEITAS'!AB:AB) -> 0.4538766265 | AD19: =SUMIF('04. RECEITAS'!$B:$B,'03. FCL - UGCs'!$B19,'04. RECEITAS'!AC:AC) -> 0.4622601607 | AE19: =SUMIF('04. RECEITAS'!$B:$B,'03. FCL - UGCs'!$B19,'04. RECEITAS'!AD:AD) -> 0.4707985469 | AF19: =SUMIF('04. RECEITAS'!$B:$B,'03. FCL - UGCs'!$B19,'04. RECEITAS'!AE:AE) -> 0.4794946451 | AG19: =SUMIF('04. RECEITAS'!$B:$B,'03. FCL - UGCs'!$B19,'04. RECEITAS'!AF:AF) -> 0.4883513686 | AI19: 8.592688535
B20: Hospedagem | D20: =SUMIF('04. RECEITAS'!$B:$B,'03. FCL - UGCs'!$B20,'04. RECEITAS'!C:C) -> 0 | E20: =SUMIF('04. RECEITAS'!$B:$B,'03. FCL - UGCs'!$B20,'04. RECEITAS'!D:D) -> 0 | F20: =SUMIF('04. RECEITAS'!$B:$B,'03. FCL - UGCs'!$B20,'04. RECEITAS'!E:E) -> 0 | G20: =SUMIF('04. RECEITAS'!$B:$B,'03. FCL - UGCs'!$B20,'04. RECEITAS'!F:F) -> 0 | H20: =SUMIF('04. RECEITAS'!$B:$B,'03. FCL - UGCs'!$B20,'04. RECEITAS'!G:G) -> 0 | I20: =SUMIF('04. RECEITAS'!$B:$B,'03. FCL - UGCs'!$B20,'04. RECEITAS'!H:H) -> 0 | J20: =SUMIF('04. RECEITAS'!$B:$B,'03. FCL - UGCs'!$B20,'04. RECEITAS'!I:I) -> 0.07302959311 | K20: =SUMIF('04. RECEITAS'!$B:$B,'03. FCL - UGCs'!$B20,'04. RECEITAS'!J:J) -> 0.07437851936 | L20: =SUMIF('04. RECEITAS'!$B:$B,'03. FCL - UGCs'!$B20,'04. RECEITAS'!K:K) -> 0.07575236157 | M20: =SUMIF('04. RECEITAS'!$B:$B,'03. FCL - UGCs'!$B20,'04. RECEITAS'!L:L) -> 0.07715157995 | N20: =SUMIF('04. RECEITAS'!$B:$B,'03. FCL - UGCs'!$B20,'04. RECEITAS'!M:M) -> 0.07857664323 | O20: =SUMIF('04. RECEITAS'!$B:$B,'03. FCL - UGCs'!$B20,'04. RECEITAS'!N:N) -> 0.1231316403 | P20: =SUMIF('04. RECEITAS'!$B:$B,'03. FCL - UGCs'!$B20,'04. RECEITAS'!O:O) -> 0.1254059991 | Q20: =SUMIF('04. RECEITAS'!$B:$B,'03. FCL - UGCs'!$B20,'04. RECEITAS'!P:P) -> 0.1277223675 | R20: =SUMIF('04. RECEITAS'!$B:$B,'03. FCL - UGCs'!$B20,'04. RECEITAS'!Q:Q) -> 0.1300815215 | S20: =SUMIF('04. RECEITAS'!$B:$B,'03. FCL - UGCs'!$B20,'04. RECEITAS'!R:R) -> 0.1324842513 | T20: =SUMIF('04. RECEITAS'!$B:$B,'03. FCL - UGCs'!$B20,'04. RECEITAS'!S:S) -> 0.1349313618 | U20: =SUMIF('04. RECEITAS'!$B:$B,'03. FCL - UGCs'!$B20,'04. RECEITAS'!T:T) -> 0.1374236728 | V20: =SUMIF('04. RECEITAS'!$B:$B,'03. FCL - UGCs'!$B20,'04. RECEITAS'!U:U) -> 0.1399620191 | W20: =SUMIF('04. RECEITAS'!$B:$B,'03. FCL - UGCs'!$B20,'04. RECEITAS'!V:V) -> 0.1425472511 | X20: =SUMIF('04. RECEITAS'!$B:$B,'03. FCL - UGCs'!$B20,'04. RECEITAS'!W:W) -> 0.1451802348 | Y20: =SUMIF('04. RECEITAS'!$B:$B,'03. FCL - UGCs'!$B20,'04. RECEITAS'!X:X) -> 0.1478618523 | Z20: =SUMIF('04. RECEITAS'!$B:$B,'03. FCL - UGCs'!$B20,'04. RECEITAS'!Y:Y) -> 0.1505930017 | AA20: =SUMIF('04. RECEITAS'!$B:$B,'03. FCL - UGCs'!$B20,'04. RECEITAS'!Z:Z) -> 0.1533745981 | AB20: =SUMIF('04. RECEITAS'!$B:$B,'03. FCL - UGCs'!$B20,'04. RECEITAS'!AA:AA) -> 0.1562075733 | AC20: =SUMIF('04. RECEITAS'!$B:$B,'03. FCL - UGCs'!$B20,'04. RECEITAS'!AB:AB) -> 0.1590928762 | AD20: =SUMIF('04. RECEITAS'!$B:$B,'03. FCL - UGCs'!$B20,'04. RECEITAS'!AC:AC) -> 0.1620314733 | AE20: =SUMIF('04. RECEITAS'!$B:$B,'03. FCL - UGCs'!$B20,'04. RECEITAS'!AD:AD) -> 0.1650243492 | AF20: =SUMIF('04. RECEITAS'!$B:$B,'03. FCL - UGCs'!$B20,'04. RECEITAS'!AE:AE) -> 0.1680725064 | AG20: =SUMIF('04. RECEITAS'!$B:$B,'03. FCL - UGCs'!$B20,'04. RECEITAS'!AF:AF) -> 0.1711769659 | AI20: =SUM(D20:AG20) -> 3.151194213
B22: Opex | D22: =SUM(D24:D30) -> -6.042579699 | E22: =SUM(E24:E30) -> -6.987729736 | F22: -7.547440362 | G22: -7.69115426 | H22: -9.567988274 | I22: -9.43927541 | J22: -9.530991118 | K22: -9.5735594 | L22: -9.666285217 | M22: -11.98612967 | N22: -12.07815282 | O22: -12.41748708 | P22: -12.52453845 | Q22: -12.58330203 | R22: -12.69321982 | S22: -12.80352681 | T22: -12.91495934 | U22: -12.97816694 | V22: -13.04393073 | W22: -13.15941712 | X22: -13.27632165 | Y22: -13.34433027 | Z22: -13.41359506 | AA22: -13.53352856 | AB22: -13.65474702 | AC22: -13.74062542 | AD22: -13.86750074 | AE22: -13.9933254 | AF22: -14.1252084 | AG22: -14.20402005 | AI22: =SUM(D22:AG22) -> -352.3830368 | AK22: =NPV(WACC,'03. FCL - UGCs'!E22:AG22)+'03. FCL - UGCs'!D22 -> -112.289562 | AL22: ='18. RISCO'!$C$10 -> 0
B24: CSP/CMV | D24: =-'07. (a) OPEX POR ÁREA'!D13*(1+$AL$22) -> -1.29860496 | E24: =-'07. (a) OPEX POR ÁREA'!E13*(1+$AL$22) -> -1.321392961 | F24: =-'07. (a) OPEX POR ÁREA'!F13*(1+$AL$22) -> -1.77085038 | G24: =-'07. (a) OPEX POR ÁREA'!G13*(1+$AL$22) -> -1.795708596 | H24: =-'07. (a) OPEX POR ÁREA'!H13*(1+$AL$22) -> -2.688794598 | I24: =-'07. (a) OPEX POR ÁREA'!I13*(1+$AL$22) -> -2.727022139 | J24: =-'07. (a) OPEX POR ÁREA'!J13*(1+$AL$22) -> -2.76595578 | K24: =-'07. (a) OPEX POR ÁREA'!K13*(1+$AL$22) -> -2.805608562 | L24: =-'07. (a) OPEX POR ÁREA'!L13*(1+$AL$22) -> -2.845993769 | M24: =-'07. (a) OPEX POR ÁREA'!M13*(1+$AL$22) -> -3.516686365 | N24: =-'07. (a) OPEX POR ÁREA'!N13*(1+$AL$22) -> -3.568771465 | O24: =-'07. (a) OPEX POR ÁREA'!O13*(1+$AL$22) -> -3.621818627 | P24: =-'07. (a) OPEX POR ÁREA'!P13*(1+$AL$22) -> -3.67584562 | Q24: =-'07. (a) OPEX POR ÁREA'!Q13*(1+$AL$22) -> -3.730870544 | R24: =-'07. (a) OPEX POR ÁREA'!R13*(1+$AL$22) -> -3.78691183 | S24: =-'07. (a) OPEX POR ÁREA'!S13*(1+$AL$22) -> -3.843988252 | T24: =-'07. (a) OPEX POR ÁREA'!T13*(1+$AL$22) -> -3.902118931 | U24: =-'07. (a) OPEX POR ÁREA'!U13*(1+$AL$22) -> -3.961323338 | V24: =-'07. (a) OPEX POR ÁREA'!V13*(1+$AL$22) -> -4.021621308 | W24: =-'07. (a) OPEX POR ÁREA'!W13*(1+$AL$22) -> -4.083033038 | X24: =-'07. (a) OPEX POR ÁREA'!X13*(1+$AL$22) -> -4.145579101 | Y24: =-'07. (a) OPEX POR ÁREA'!Y13*(1+$AL$22) -> -4.209280451 | Z24: =-'07. (a) OPEX POR ÁREA'!Z13*(1+$AL$22) -> -4.274158424 | AA24: =-'07. (a) OPEX POR ÁREA'!AA13*(1+$AL$22) -> -4.340234756 | AB24: =-'07. (a) OPEX POR ÁREA'!AB13*(1+$AL$22) -> -4.407531581 | AC24: =-'07. (a) OPEX POR ÁREA'!AC13*(1+$AL$22) -> -4.476071442 | AD24: =-'07. (a) OPEX POR ÁREA'!AD13*(1+$AL$22) -> -4.5458773 | AE24: =-'07. (a) OPEX POR ÁREA'!AE13*(1+$AL$22) -> -4.616972538 | AF24: =-'07. (a) OPEX POR ÁREA'!AF13*(1+$AL$22) -> -4.689380974 | AG24: =-'07. (a) OPEX POR ÁREA'!AG13*(1+$AL$22) -> -4.763126862 | AI24: =SUM(D24:AG24) -> -106.2011345
B25: Pessoal | D25: =-'07. (a) OPEX POR ÁREA'!D54*(1+$AL$22) -> -3.539609136 | E25: =-'07. (a) OPEX POR ÁREA'!E54*(1+$AL$22) -> -4.349135334 | F25: =-'07. (a) OPEX POR ÁREA'!F54*(1+$AL$22) -> -4.391303016 | G25: =-'07. (a) OPEX POR ÁREA'!G54*(1+$AL$22) -> -4.499793609 | H25: =-'07. (a) OPEX POR ÁREA'!H54*(1+$AL$22) -> -5.423769451 | I25: =-'07. (a) OPEX POR ÁREA'!I54*(1+$AL$22) -> -5.237187203 | J25: =-'07. (a) OPEX POR ÁREA'!J54*(1+$AL$22) -> -5.281060372 | K25: =-'07. (a) OPEX POR ÁREA'!K54*(1+$AL$22) -> -5.282797362 | L25: =-'07. (a) OPEX POR ÁREA'!L54*(1+$AL$22) -> -5.326734117 | M25: =-'07. (a) OPEX POR ÁREA'!M54*(1+$AL$22) -> -6.887326334 | N25: =-'07. (a) OPEX POR ÁREA'!N54*(1+$AL$22) -> -6.889161364 | O25: =-'07. (a) OPEX POR ÁREA'!O54*(1+$AL$22) -> -7.120012825 | P25: =-'07. (a) OPEX POR ÁREA'!P54*(1+$AL$22) -> -7.164083953 | Q25: =-'07. (a) OPEX POR ÁREA'!Q54*(1+$AL$22) -> -7.166022557 | R25: =-'07. (a) OPEX POR ÁREA'!R54*(1+$AL$22) -> -7.210164651 | S25: =-'07. (a) OPEX POR ÁREA'!S54*(1+$AL$22) -> -7.254343214 | T25: =-'07. (a) OPEX POR ÁREA'!T54*(1+$AL$22) -> -7.29855892 | U25: =-'07. (a) OPEX POR ÁREA'!U54*(1+$AL$22) -> -7.300644773 | V25: =-'07. (a) OPEX POR ÁREA'!V54*(1+$AL$22) -> -7.302769153 | W25: =-'07. (a) OPEX POR ÁREA'!W54*(1+$AL$22) -> -7.347100455 | X25: =-'07. (a) OPEX POR ÁREA'!X54*(1+$AL$22) -> -7.391471721 | Y25: =-'07. (a) OPEX POR ÁREA'!Y54*(1+$AL$22) -> -7.393716008 | Z25: =-'07. (a) OPEX POR ÁREA'!Z54*(1+$AL$22) -> -7.396001748 | AA25: =-'07. (a) OPEX POR ÁREA'!AA54*(1+$AL$22) -> -7.44049739 | AB25: =-'07. (a) OPEX POR ÁREA'!AB54*(1+$AL$22) -> -7.485036032 | AC25: =-'07. (a) OPEX POR ÁREA'!AC54*(1+$AL$22) -> -7.487450786 | AD25: =-'07. (a) OPEX POR ÁREA'!AD54*(1+$AL$22) -> -7.532077825 | AE25: =-'07. (a) OPEX POR ÁREA'!AE54*(1+$AL$22) -> -7.57675029 | AF25: =-'07. (a) OPEX POR ÁREA'!AF54*(1+$AL$22) -> -7.621469021 | AG25: =-'07. (a) OPEX POR ÁREA'!AG54*(1+$AL$22) -> -7.624067191 | AI25: -197.2201158
B26: Operação e Manutenção (O&M) | D26: =-'07. (a) OPEX POR ÁREA'!D315*(1+$AL$22) -> -0.9161246861 | E26: =-'07. (a) OPEX POR ÁREA'!E315*(1+$AL$22) -> -0.9294345136 | F26: =-'07. (a) OPEX POR ÁREA'!F315*(1+$AL$22) -> -0.9303552508 | G26: =-'07. (a) OPEX POR ÁREA'!G315*(1+$AL$22) -> -0.9312780845 | H26: =-'07. (a) OPEX POR ÁREA'!H315*(1+$AL$22) -> -0.9614700839 | I26: =-'07. (a) OPEX POR ÁREA'!I315*(1+$AL$22) -> -0.9580817023 | J26: =-'07. (a) OPEX POR ÁREA'!J315*(1+$AL$22) -> -0.9590437097 | K26: =-'07. (a) OPEX POR ÁREA'!K315*(1+$AL$22) -> -0.9592013448 | L26: =-'07. (a) OPEX POR ÁREA'!L315*(1+$AL$22) -> -0.9601691228 | M26: =-'07. (a) OPEX POR ÁREA'!M315*(1+$AL$22) -> -1.004668515 | N26: =-'07. (a) OPEX POR ÁREA'!N315*(1+$AL$22) -> -1.004835048 | O26: =-'07. (a) OPEX POR ÁREA'!O315*(1+$AL$22) -> -1.032480222 | P26: =-'07. (a) OPEX POR ÁREA'!P315*(1+$AL$22) -> -1.033460194 | Q26: =-'07. (a) OPEX POR ÁREA'!Q315*(1+$AL$22) -> -1.033636127 | R26: =-'07. (a) OPEX POR ÁREA'!R315*(1+$AL$22) -> -1.034622539 | S26: =-'07. (a) OPEX POR ÁREA'!S315*(1+$AL$22) -> -1.035612262 | T26: =-'07. (a) OPEX POR ÁREA'!T315*(1+$AL$22) -> -1.036605355 | U26: =-'07. (a) OPEX POR ÁREA'!U315*(1+$AL$22) -> -1.03679465 | V26: =-'07. (a) OPEX POR ÁREA'!V315*(1+$AL$22) -> -1.036987442 | W26: =-'07. (a) OPEX POR ÁREA'!W315*(1+$AL$22) -> -1.037991026 | X26: =-'07. (a) OPEX POR ÁREA'!X315*(1+$AL$22) -> -1.038998236 | Y26: =-'07. (a) OPEX POR ÁREA'!Y315*(1+$AL$22) -> -1.03920191 | Z26: =-'07. (a) OPEX POR ÁREA'!Z315*(1+$AL$22) -> -1.039409345 | AA26: =-'07. (a) OPEX POR ÁREA'!AA315*(1+$AL$22) -> -1.040427843 | AB26: =-'07. (a) OPEX POR ÁREA'!AB315*(1+$AL$22) -> -1.041450244 | AC26: =-'07. (a) OPEX POR ÁREA'!AC315*(1+$AL$22) -> -1.041669387 | AD26: =-'07. (a) OPEX POR ÁREA'!AD315*(1+$AL$22) -> -1.04269981 | AE26: =-'07. (a) OPEX POR ÁREA'!AE315*(1+$AL$22) -> -1.043734355 | AF26: =-'07. (a) OPEX POR ÁREA'!AF315*(1+$AL$22) -> -1.044773098 | AG26: =-'07. (a) OPEX POR ÁREA'!AG315*(1+$AL$22) -> -1.045008887 | AI26: -30.25022499
B27: Despesas Admnistrativas e Técnico-Operacionais | D27: =-'07. (a) OPEX POR ÁREA'!D454*(1+$AL$22) -> -0.02501075881 | E27: =-'07. (a) OPEX POR ÁREA'!E454*(1+$AL$22) -> -0.06456284611 | F27: =-'07. (a) OPEX POR ÁREA'!F454*(1+$AL$22) -> -0.06597732873 | G27: =-'07. (a) OPEX POR ÁREA'!G454*(1+$AL$22) -> -0.06895289903 | H27: =-'07. (a) OPEX POR ÁREA'!H454*(1+$AL$22) -> -0.07418748039 | I27: =-'07. (a) OPEX POR ÁREA'!I454*(1+$AL$22) -> -0.07484143768 | J27: =-'07. (a) OPEX POR ÁREA'!J454*(1+$AL$22) -> -0.07569004817 | K27: =-'07. (a) OPEX POR ÁREA'!K454*(1+$AL$22) -> -0.07637175932 | L27: =-'07. (a) OPEX POR ÁREA'!L454*(1+$AL$22) -> -0.07706606233 | M27: =-'07. (a) OPEX POR ÁREA'!M454*(1+$AL$22) -> -0.08117156868 | N27: =-'07. (a) OPEX POR ÁREA'!N454*(1+$AL$22) -> -0.08195452875 | O27: =-'07. (a) OPEX POR ÁREA'!O454*(1+$AL$22) -> -0.08285970986 | P27: =-'07. (a) OPEX POR ÁREA'!P454*(1+$AL$22) -> -0.08367385151 | Q27: =-'07. (a) OPEX POR ÁREA'!Q454*(1+$AL$22) -> -0.08450303113 | R27: =-'07. (a) OPEX POR ÁREA'!R454*(1+$AL$22) -> -0.08534752648 | S27: =-'07. (a) OPEX POR ÁREA'!S454*(1+$AL$22) -> -0.08620762047 | T27: =-'07. (a) OPEX POR ÁREA'!T454*(1+$AL$22) -> -0.08708360122 | U27: =-'07. (a) OPEX POR ÁREA'!U454*(1+$AL$22) -> -0.08797576217 | V27: =-'07. (a) OPEX POR ÁREA'!V454*(1+$AL$22) -> -0.08888440218 | W27: =-'07. (a) OPEX POR ÁREA'!W454*(1+$AL$22) -> -0.08980982564 | X27: =-'07. (a) OPEX POR ÁREA'!X454*(1+$AL$22) -> -0.09075234255 | Y27: =-'07. (a) OPEX POR ÁREA'!Y454*(1+$AL$22) -> -0.09171226865 | Z27: =-'07. (a) OPEX POR ÁREA'!Z454*(1+$AL$22) -> -0.0926899255 | AA27: =-'07. (a) OPEX POR ÁREA'!AA454*(1+$AL$22) -> -0.09368564061 | AB27: =-'07. (a) OPEX POR ÁREA'!AB454*(1+$AL$22) -> -0.09469974752 | AC27: =-'07. (a) OPEX POR ÁREA'!AC454*(1+$AL$22) -> -0.09573258596 | AD27: =-'07. (a) OPEX POR ÁREA'!AD454*(1+$AL$22) -> -0.0967845019 | AE27: =-'07. (a) OPEX POR ÁREA'!AE454*(1+$AL$22) -> -0.09785584774 | AF27: =-'07. (a) OPEX POR ÁREA'!AF454*(1+$AL$22) -> -0.09894698236 | AG27: =-'07. (a) OPEX POR ÁREA'!AG454*(1+$AL$22) -> -0.1000582713 | AI27: -2.495050163
B28: Materiais e Insumos | D28: =-'07. (a) OPEX POR ÁREA'!D487*(1+$AL$22) -> -0.09903378547 | E28: =-'07. (a) OPEX POR ÁREA'!E487*(1+$AL$22) -> -0.1289432263 | F28: =-'07. (a) OPEX POR ÁREA'!F487*(1+$AL$22) -> -0.135339571 | G28: =-'07. (a) OPEX POR ÁREA'!G487*(1+$AL$22) -> -0.1417359156 | H28: =-'07. (a) OPEX POR ÁREA'!H487*(1+$AL$22) -> -0.1554878162 | I28: =-'07. (a) OPEX POR ÁREA'!I487*(1+$AL$22) -> -0.155741827 | J28: =-'07. (a) OPEX POR ÁREA'!J487*(1+$AL$22) -> -0.1623968741 | K28: =-'07. (a) OPEX POR ÁREA'!K487*(1+$AL$22) -> -0.1626603552 | L28: =-'07. (a) OPEX POR ÁREA'!L487*(1+$AL$22) -> -0.1693250476 | M28: =-'07. (a) OPEX POR ÁREA'!M487*(1+$AL$22) -> -0.1887873859 | N28: =-'07. (a) OPEX POR ÁREA'!N487*(1+$AL$22) -> -0.1890657385 | O28: =-'07. (a) OPEX POR ÁREA'!O487*(1+$AL$22) -> -0.2149346111 | P28: =-'07. (a) OPEX POR ÁREA'!P487*(1+$AL$22) -> -0.2216196862 | Q28: =-'07. (a) OPEX POR ÁREA'!Q487*(1+$AL$22) -> -0.2219137497 | R28: =-'07. (a) OPEX POR ÁREA'!R487*(1+$AL$22) -> -0.2286095896 | S28: =-'07. (a) OPEX POR ÁREA'!S487*(1+$AL$22) -> -0.2353109614 | T28: =-'07. (a) OPEX POR ÁREA'!T487*(1+$AL$22) -> -0.2420179674 | U28: =-'07. (a) OPEX POR ÁREA'!U487*(1+$AL$22) -> -0.2423343669 | V28: =-'07. (a) OPEX POR ÁREA'!V487*(1+$AL$22) -> -0.2426566106 | W28: =-'07. (a) OPEX POR ÁREA'!W487*(1+$AL$22) -> -0.2493811511 | X28: =-'07. (a) OPEX POR ÁREA'!X487*(1+$AL$22) -> -0.2561117537 | Y28: =-'07. (a) OPEX POR ÁREA'!Y487*(1+$AL$22) -> -0.2564521858 | Z28: =-'07. (a) OPEX POR ÁREA'!Z487*(1+$AL$22) -> -0.2567989059 | AA28: =-'07. (a) OPEX POR ÁREA'!AA487*(1+$AL$22) -> -0.2635483749 | AB28: =-'07. (a) OPEX POR ÁREA'!AB487*(1+$AL$22) -> -0.2703043665 | AC28: =-'07. (a) OPEX POR ÁREA'!AC487*(1+$AL$22) -> -0.2706706564 | AD28: =-'07. (a) OPEX POR ÁREA'!AD487*(1+$AL$22) -> -0.2774400567 | AE28: =-'07. (a) OPEX POR ÁREA'!AE487*(1+$AL$22) -> -0.2842163478 | AF28: =-'07. (a) OPEX POR ÁREA'!AF487*(1+$AL$22) -> -0.2909996567 | AG28: =-'07. (a) OPEX POR ÁREA'!AG487*(1+$AL$22) -> -0.2913937687 | AI28: -6.50523231
B29: Verificador Independente | D29: =-'07. (a) OPEX POR ÁREA'!D497*(1+$AL$22) -> -0.15 | E29: =-'07. (a) OPEX POR ÁREA'!E497*(1+$AL$22) -> -0.18 | F29: =-'07. (a) OPEX POR ÁREA'!F497*(1+$AL$22) -> -0.18 | G29: =-'07. (a) OPEX POR ÁREA'!G497*(1+$AL$22) -> -0.18 | H29: =-'07. (a) OPEX POR ÁREA'!H497*(1+$AL$22) -> -0.18 | I29: =-'07. (a) OPEX POR ÁREA'!I497*(1+$AL$22) -> -0.18 | J29: =-'07. (a) OPEX POR ÁREA'!J497*(1+$AL$22) -> -0.18 | K29: =-'07. (a) OPEX POR ÁREA'!K497*(1+$AL$22) -> -0.18 | L29: =-'07. (a) OPEX POR ÁREA'!L497*(1+$AL$22) -> -0.18 | M29: =-'07. (a) OPEX POR ÁREA'!M497*(1+$AL$22) -> -0.18 | N29: =-'07. (a) OPEX POR ÁREA'!N497*(1+$AL$22) -> -0.18 | O29: =-'07. (a) OPEX POR ÁREA'!O497*(1+$AL$22) -> -0.18 | P29: =-'07. (a) OPEX POR ÁREA'!P497*(1+$AL$22) -> -0.18 | Q29: =-'07. (a) OPEX POR ÁREA'!Q497*(1+$AL$22) -> -0.18 | R29: =-'07. (a) OPEX POR ÁREA'!R497*(1+$AL$22) -> -0.18 | S29: =-'07. (a) OPEX POR ÁREA'!S497*(1+$AL$22) -> -0.18 | T29: =-'07. (a) OPEX POR ÁREA'!T497*(1+$AL$22) -> -0.18 | U29: =-'07. (a) OPEX POR ÁREA'!U497*(1+$AL$22) -> -0.18 | V29: =-'07. (a) OPEX POR ÁREA'!V497*(1+$AL$22) -> -0.18 | W29: =-'07. (a) OPEX POR ÁREA'!W497*(1+$AL$22) -> -0.18 | X29: =-'07. (a) OPEX POR ÁREA'!X497*(1+$AL$22) -> -0.18 | Y29: =-'07. (a) OPEX POR ÁREA'!Y497*(1+$AL$22) -> -0.18 | Z29: =-'07. (a) OPEX POR ÁREA'!Z497*(1+$AL$22) -> -0.18 | AA29: =-'07. (a) OPEX POR ÁREA'!AA497*(1+$AL$22) -> -0.18 | AB29: =-'07. (a) OPEX POR ÁREA'!AB497*(1+$AL$22) -> -0.18 | AC29: =-'07. (a) OPEX POR ÁREA'!AC497*(1+$AL$22) -> -0.18 | AD29: =-'07. (a) OPEX POR ÁREA'!AD497*(1+$AL$22) -> -0.18 | AE29: =-'07. (a) OPEX POR ÁREA'!AE497*(1+$AL$22) -> -0.18 | AF29: =-'07. (a) OPEX POR ÁREA'!AF497*(1+$AL$22) -> -0.18 | AG29: =-'07. (a) OPEX POR ÁREA'!AG497*(1+$AL$22) -> -0.18 | AI29: -5.37
B30: Seguros | D30: =-'07. (a) OPEX POR ÁREA'!D503*(1+$AL$22) -> -0.01419637288 | E30: =-'07. (a) OPEX POR ÁREA'!E503*(1+$AL$22) -> -0.01426085499 | F30: =-'07. (a) OPEX POR ÁREA'!F503*(1+$AL$22) -> -0.0736148163 | G30: =-'07. (a) OPEX POR ÁREA'!G503*(1+$AL$22) -> -0.0736851564 | H30: =-'07. (a) OPEX POR ÁREA'!H503*(1+$AL$22) -> -0.08427884467 | I30: =-'07. (a) OPEX POR ÁREA'!I503*(1+$AL$22) -> -0.106401101 | J30: =-'07. (a) OPEX POR ÁREA'!J503*(1+$AL$22) -> -0.1068443343 | K30: =-'07. (a) OPEX POR ÁREA'!K503*(1+$AL$22) -> -0.1069200172 | L30: =-'07. (a) OPEX POR ÁREA'!L503*(1+$AL$22) -> -0.106997098 | M30: =-'07. (a) OPEX POR ÁREA'!M503*(1+$AL$22) -> -0.1274895032 | N30: =-'07. (a) OPEX POR ÁREA'!N503*(1+$AL$22) -> -0.1643646747 | O30: =-'07. (a) OPEX POR ÁREA'!O503*(1+$AL$22) -> -0.1653810887 | P30: =-'07. (a) OPEX POR ÁREA'!P503*(1+$AL$22) -> -0.1658551466 | Q30: =-'07. (a) OPEX POR ÁREA'!Q503*(1+$AL$22) -> -0.1663560199 | R30: =-'07. (a) OPEX POR ÁREA'!R503*(1+$AL$22) -> -0.1675636812 | S30: =-'07. (a) OPEX POR ÁREA'!S503*(1+$AL$22) -> -0.1680644962 | T30: =-'07. (a) OPEX POR ÁREA'!T503*(1+$AL$22) -> -0.1685745617 | U30: =-'07. (a) OPEX POR ÁREA'!U503*(1+$AL$22) -> -0.1690940486 | V30: =-'07. (a) OPEX POR ÁREA'!V503*(1+$AL$22) -> -0.171011815 | W30: =-'07. (a) OPEX POR ÁREA'!W503*(1+$AL$22) -> -0.1721016237 | X30: =-'07. (a) OPEX POR ÁREA'!X503*(1+$AL$22) -> -0.1734084987 | Y30: =-'07. (a) OPEX POR ÁREA'!Y503*(1+$AL$22) -> -0.1739674438 | Z30: =-'07. (a) OPEX POR ÁREA'!Z503*(1+$AL$22) -> -0.1745367133 | AA30: =-'07. (a) OPEX POR ÁREA'!AA503*(1+$AL$22) -> -0.1751345567 | AB30: =-'07. (a) OPEX POR ÁREA'!AB503*(1+$AL$22) -> -0.1757250502 | AC30: =-'07. (a) OPEX POR ÁREA'!AC503*(1+$AL$22) -> -0.1890305658 | AD30: =-'07. (a) OPEX POR ÁREA'!AD503*(1+$AL$22) -> -0.1926212443 | AE30: =-'07. (a) OPEX POR ÁREA'!AE503*(1+$AL$22) -> -0.1937960206 | AF30: =-'07. (a) OPEX POR ÁREA'!AF503*(1+$AL$22) -> -0.1996386671 | AG30: =-'07. (a) OPEX POR ÁREA'!AG503*(1+$AL$22) -> -0.2003650662 | AI30: =SUM(D30:AG30) -> -4.341279082
B32: Capex | D32: =SUM(D34:D36) -> 0 | E32: =SUM(E34:E36) -> 0 | F32: -13.9493875 | G32: 0 | H32: -2.475776218 | I32: -5.188069111 | J32: -0.08680542747 | K32: 0 | L32: 0 | M32: 0 | N32: -8.568977105 | O32: -0.129636156 | P32: 0 | Q32: -0.004249187321 | R32: -0.1684538864 | S32: 0 | T32: 0 | U32: 0 | V32: -0.3267491873 | W32: -0.129636156 | X32: -0.1783686568 | Y32: 0 | Z32: 0 | AA32: -0.004249187321 | AB32: 0 | AC32: -2.989203543 | AD32: -0.7007457732 | AE32: -0.129636156 | AF32: -1.225247365 | AG32: -0.01866316691 | AI32: =SUM(D32:AG32) -> -36.27385379 | AK32: =NPV(WACC,'03. FCL - UGCs'!E32:AG32)+'03. FCL - UGCs'!D32 -> -21.22179967 | AL32: ='18. RISCO'!$C$11 -> 0
B34: Atrativo | D34: =-SUMIF('05. (a) CAPEX'!$B:$B,'03. FCL - UGCs'!$B34,'05. (a) CAPEX'!D:D)*(1+$AL$32) -> 0 | E34: =-SUMIF('05. (a) CAPEX'!$B:$B,'03. FCL - UGCs'!$B34,'05. (a) CAPEX'!E:E)*(1+$AL$32) -> 0 | F34: =-SUMIF('05. (a) CAPEX'!$B:$B,'03. FCL - UGCs'!$B34,'05. (a) CAPEX'!F:F)*(1+$AL$32) -> -4.712612028 | G34: =-SUMIF('05. (a) CAPEX'!$B:$B,'03. FCL - UGCs'!$B34,'05. (a) CAPEX'!G:G)*(1+$AL$32) -> 0 | H34: =-SUMIF('05. (a) CAPEX'!$B:$B,'03. FCL - UGCs'!$B34,'05. (a) CAPEX'!H:H)*(1+$AL$32) -> -0.01223274317 | I34: =-SUMIF('05. (a) CAPEX'!$B:$B,'03. FCL - UGCs'!$B34,'05. (a) CAPEX'!I:I)*(1+$AL$32) -> 0 | J34: =-SUMIF('05. (a) CAPEX'!$B:$B,'03. FCL - UGCs'!$B34,'05. (a) CAPEX'!J:J)*(1+$AL$32) -> 0 | K34: =-SUMIF('05. (a) CAPEX'!$B:$B,'03. FCL - UGCs'!$B34,'05. (a) CAPEX'!K:K)*(1+$AL$32) -> 0 | L34: =-SUMIF('05. (a) CAPEX'!$B:$B,'03. FCL - UGCs'!$B34,'05. (a) CAPEX'!L:L)*(1+$AL$32) -> 0 | M34: =-SUMIF('05. (a) CAPEX'!$B:$B,'03. FCL - UGCs'!$B34,'05. (a) CAPEX'!M:M)*(1+$AL$32) -> 0 | N34: =-SUMIF('05. (a) CAPEX'!$B:$B,'03. FCL - UGCs'!$B34,'05. (a) CAPEX'!N:N)*(1+$AL$32) -> -0.02446548633 | O34: =-SUMIF('05. (a) CAPEX'!$B:$B,'03. FCL - UGCs'!$B34,'05. (a) CAPEX'!O:O)*(1+$AL$32) -> 0 | P34: =-SUMIF('05. (a) CAPEX'!$B:$B,'03. FCL - UGCs'!$B34,'05. (a) CAPEX'!P:P)*(1+$AL$32) -> 0 | Q34: =-SUMIF('05. (a) CAPEX'!$B:$B,'03. FCL - UGCs'!$B34,'05. (a) CAPEX'!Q:Q)*(1+$AL$32) -> 0 | R34: =-SUMIF('05. (a) CAPEX'!$B:$B,'03. FCL - UGCs'!$B34,'05. (a) CAPEX'!R:R)*(1+$AL$32) -> 0 | S34: =-SUMIF('05. (a) CAPEX'!$B:$B,'03. FCL - UGCs'!$B34,'05. (a) CAPEX'!S:S)*(1+$AL$32) -> 0 | T34: =-SUMIF('05. (a) CAPEX'!$B:$B,'03. FCL - UGCs'!$B34,'05. (a) CAPEX'!T:T)*(1+$AL$32) -> 0 | U34: =-SUMIF('05. (a) CAPEX'!$B:$B,'03. FCL - UGCs'!$B34,'05. (a) CAPEX'!U:U)*(1+$AL$32) -> 0 | V34: =-SUMIF('05. (a) CAPEX'!$B:$B,'03. FCL - UGCs'!$B34,'05. (a) CAPEX'!V:V)*(1+$AL$32) -> 0 | W34: =-SUMIF('05. (a) CAPEX'!$B:$B,'03. FCL - UGCs'!$B34,'05. (a) CAPEX'!W:W)*(1+$AL$32) -> 0 | X34: =-SUMIF('05. (a) CAPEX'!$B:$B,'03. FCL - UGCs'!$B34,'05. (a) CAPEX'!X:X)*(1+$AL$32) -> 0 | Y34: =-SUMIF('05. (a) CAPEX'!$B:$B,'03. FCL - UGCs'!$B34,'05. (a) CAPEX'!Y:Y)*(1+$AL$32) -> 0 | Z34: =-SUMIF('05. (a) CAPEX'!$B:$B,'03. FCL - UGCs'!$B34,'05. (a) CAPEX'!Z:Z)*(1+$AL$32) -> 0 | AA34: =-SUMIF('05. (a) CAPEX'!$B:$B,'03. FCL - UGCs'!$B34,'05. (a) CAPEX'!AA:AA)*(1+$AL$32) -> 0 | AB34: =-SUMIF('05. (a) CAPEX'!$B:$B,'03. FCL - UGCs'!$B34,'05. (a) CAPEX'!AB:AB)*(1+$AL$32) -> 0 | AC34: =-SUMIF('05. (a) CAPEX'!$B:$B,'03. FCL - UGCs'!$B34,'05. (a) CAPEX'!AC:AC)*(1+$AL$32) -> -1.013211586 | AD34: =-SUMIF('05. (a) CAPEX'!$B:$B,'03. FCL - UGCs'!$B34,'05. (a) CAPEX'!AD:AD)*(1+$AL$32) -> -0.002630039781 | AE34: =-SUMIF('05. (a) CAPEX'!$B:$B,'03. FCL - UGCs'!$B34,'05. (a) CAPEX'!AE:AE)*(1+$AL$32) -> 0 | AF34: =-SUMIF('05. (a) CAPEX'!$B:$B,'03. FCL - UGCs'!$B34,'05. (a) CAPEX'!AF:AF)*(1+$AL$32) -> 0 | AG34: =-SUMIF('05. (a) CAPEX'!$B:$B,'03. FCL - UGCs'!$B34,'05. (a) CAPEX'!AG:AG)*(1+$AL$32) -> 0 | AI34: =SUM(D34:AG34) -> -5.765151884
B35: Serviços de Apoio à Visitação | D35: =-SUMIF('05. (a) CAPEX'!$B:$B,'03. FCL - UGCs'!$B35,'05. (a) CAPEX'!D:D)*(1+$AL$32) -> 0 | E35: =-SUMIF('05. (a) CAPEX'!$B:$B,'03. FCL - UGCs'!$B35,'05. (a) CAPEX'!E:E)*(1+$AL$32) -> 0 | F35: =-SUMIF('05. (a) CAPEX'!$B:$B,'03. FCL - UGCs'!$B35,'05. (a) CAPEX'!F:F)*(1+$AL$32) -> -0.8463946623 | G35: =-SUMIF('05. (a) CAPEX'!$B:$B,'03. FCL - UGCs'!$B35,'05. (a) CAPEX'!G:G)*(1+$AL$32) -> 0 | H35: =-SUMIF('05. (a) CAPEX'!$B:$B,'03. FCL - UGCs'!$B35,'05. (a) CAPEX'!H:H)*(1+$AL$32) -> 0 | I35: =-SUMIF('05. (a) CAPEX'!$B:$B,'03. FCL - UGCs'!$B35,'05. (a) CAPEX'!I:I)*(1+$AL$32) -> -0.7032518482 | J35: =-SUMIF('05. (a) CAPEX'!$B:$B,'03. FCL - UGCs'!$B35,'05. (a) CAPEX'!J:J)*(1+$AL$32) -> 0 | K35: =-SUMIF('05. (a) CAPEX'!$B:$B,'03. FCL - UGCs'!$B35,'05. (a) CAPEX'!K:K)*(1+$AL$32) -> 0 | L35: =-SUMIF('05. (a) CAPEX'!$B:$B,'03. FCL - UGCs'!$B35,'05. (a) CAPEX'!L:L)*(1+$AL$32) -> 0 | M35: =-SUMIF('05. (a) CAPEX'!$B:$B,'03. FCL - UGCs'!$B35,'05. (a) CAPEX'!M:M)*(1+$AL$32) -> 0 | N35: =-SUMIF('05. (a) CAPEX'!$B:$B,'03. FCL - UGCs'!$B35,'05. (a) CAPEX'!N:N)*(1+$AL$32) -> -0.3802828662 | O35: =-SUMIF('05. (a) CAPEX'!$B:$B,'03. FCL - UGCs'!$B35,'05. (a) CAPEX'!O:O)*(1+$AL$32) -> 0 | P35: =-SUMIF('05. (a) CAPEX'!$B:$B,'03. FCL - UGCs'!$B35,'05. (a) CAPEX'!P:P)*(1+$AL$32) -> 0 | Q35: =-SUMIF('05. (a) CAPEX'!$B:$B,'03. FCL - UGCs'!$B35,'05. (a) CAPEX'!Q:Q)*(1+$AL$32) -> 0 | R35: =-SUMIF('05. (a) CAPEX'!$B:$B,'03. FCL - UGCs'!$B35,'05. (a) CAPEX'!R:R)*(1+$AL$32) -> 0 | S35: =-SUMIF('05. (a) CAPEX'!$B:$B,'03. FCL - UGCs'!$B35,'05. (a) CAPEX'!S:S)*(1+$AL$32) -> 0 | T35: =-SUMIF('05. (a) CAPEX'!$B:$B,'03. FCL - UGCs'!$B35,'05. (a) CAPEX'!T:T)*(1+$AL$32) -> 0 | U35: =-SUMIF('05. (a) CAPEX'!$B:$B,'03. FCL - UGCs'!$B35,'05. (a) CAPEX'!U:U)*(1+$AL$32) -> 0 | V35: =-SUMIF('05. (a) CAPEX'!$B:$B,'03. FCL - UGCs'!$B35,'05. (a) CAPEX'!V:V)*(1+$AL$32) -> 0 | W35: =-SUMIF('05. (a) CAPEX'!$B:$B,'03. FCL - UGCs'!$B35,'05. (a) CAPEX'!W:W)*(1+$AL$32) -> 0 | X35: =-SUMIF('05. (a) CAPEX'!$B:$B,'03. FCL - UGCs'!$B35,'05. (a) CAPEX'!X:X)*(1+$AL$32) -> 0 | Y35: =-SUMIF('05. (a) CAPEX'!$B:$B,'03. FCL - UGCs'!$B35,'05. (a) CAPEX'!Y:Y)*(1+$AL$32) -> 0 | Z35: =-SUMIF('05. (a) CAPEX'!$B:$B,'03. FCL - UGCs'!$B35,'05. (a) CAPEX'!Z:Z)*(1+$AL$32) -> 0 | AA35: =-SUMIF('05. (a) CAPEX'!$B:$B,'03. FCL - UGCs'!$B35,'05. (a) CAPEX'!AA:AA)*(1+$AL$32) -> 0 | AB35: =-SUMIF('05. (a) CAPEX'!$B:$B,'03. FCL - UGCs'!$B35,'05. (a) CAPEX'!AB:AB)*(1+$AL$32) -> 0 | AC35: =-SUMIF('05. (a) CAPEX'!$B:$B,'03. FCL - UGCs'!$B35,'05. (a) CAPEX'!AC:AC)*(1+$AL$32) -> -0.1819748524 | AD35: =-SUMIF('05. (a) CAPEX'!$B:$B,'03. FCL - UGCs'!$B35,'05. (a) CAPEX'!AD:AD)*(1+$AL$32) -> 0 | AE35: =-SUMIF('05. (a) CAPEX'!$B:$B,'03. FCL - UGCs'!$B35,'05. (a) CAPEX'!AE:AE)*(1+$AL$32) -> 0 | AF35: =-SUMIF('05. (a) CAPEX'!$B:$B,'03. FCL - UGCs'!$B35,'05. (a) CAPEX'!AF:AF)*(1+$AL$32) -> -0.1511991474 | AG35: =-SUMIF('05. (a) CAPEX'!$B:$B,'03. FCL - UGCs'!$B35,'05. (a) CAPEX'!AG:AG)*(1+$AL$32) -> 0 | AI35: -2.263103376
B36: Infraestrutura | D36: =-SUMIF('05. (a) CAPEX'!$B:$B,'03. FCL - UGCs'!$B36,'05. (a) CAPEX'!D:D)*(1+$AL$32) -> 0 | E36: =-SUMIF('05. (a) CAPEX'!$B:$B,'03. FCL - UGCs'!$B36,'05. (a) CAPEX'!E:E)*(1+$AL$32) -> 0 | F36: =-SUMIF('05. (a) CAPEX'!$B:$B,'03. FCL - UGCs'!$B36,'05. (a) CAPEX'!F:F)*(1+$AL$32) -> -8.390380813 | G36: =-SUMIF('05. (a) CAPEX'!$B:$B,'03. FCL - UGCs'!$B36,'05. (a) CAPEX'!G:G)*(1+$AL$32) -> 0 | H36: =-SUMIF('05. (a) CAPEX'!$B:$B,'03. FCL - UGCs'!$B36,'05. (a) CAPEX'!H:H)*(1+$AL$32) -> -2.463543475 | I36: =-SUMIF('05. (a) CAPEX'!$B:$B,'03. FCL - UGCs'!$B36,'05. (a) CAPEX'!I:I)*(1+$AL$32) -> -4.484817263 | J36: =-SUMIF('05. (a) CAPEX'!$B:$B,'03. FCL - UGCs'!$B36,'05. (a) CAPEX'!J:J)*(1+$AL$32) -> -0.08680542747 | K36: =-SUMIF('05. (a) CAPEX'!$B:$B,'03. FCL - UGCs'!$B36,'05. (a) CAPEX'!K:K)*(1+$AL$32) -> 0 | L36: =-SUMIF('05. (a) CAPEX'!$B:$B,'03. FCL - UGCs'!$B36,'05. (a) CAPEX'!L:L)*(1+$AL$32) -> 0 | M36: =-SUMIF('05. (a) CAPEX'!$B:$B,'03. FCL - UGCs'!$B36,'05. (a) CAPEX'!M:M)*(1+$AL$32) -> 0 | N36: =-SUMIF('05. (a) CAPEX'!$B:$B,'03. FCL - UGCs'!$B36,'05. (a) CAPEX'!N:N)*(1+$AL$32) -> -8.164228752 | O36: =-SUMIF('05. (a) CAPEX'!$B:$B,'03. FCL - UGCs'!$B36,'05. (a) CAPEX'!O:O)*(1+$AL$32) -> -0.129636156 | P36: =-SUMIF('05. (a) CAPEX'!$B:$B,'03. FCL - UGCs'!$B36,'05. (a) CAPEX'!P:P)*(1+$AL$32) -> 0 | Q36: =-SUMIF('05. (a) CAPEX'!$B:$B,'03. FCL - UGCs'!$B36,'05. (a) CAPEX'!Q:Q)*(1+$AL$32) -> -0.004249187321 | R36: =-SUMIF('05. (a) CAPEX'!$B:$B,'03. FCL - UGCs'!$B36,'05. (a) CAPEX'!R:R)*(1+$AL$32) -> -0.1684538864 | S36: =-SUMIF('05. (a) CAPEX'!$B:$B,'03. FCL - UGCs'!$B36,'05. (a) CAPEX'!S:S)*(1+$AL$32) -> 0 | T36: =-SUMIF('05. (a) CAPEX'!$B:$B,'03. FCL - UGCs'!$B36,'05. (a) CAPEX'!T:T)*(1+$AL$32) -> 0 | U36: =-SUMIF('05. (a) CAPEX'!$B:$B,'03. FCL - UGCs'!$B36,'05. (a) CAPEX'!U:U)*(1+$AL$32) -> 0 | V36: =-SUMIF('05. (a) CAPEX'!$B:$B,'03. FCL - UGCs'!$B36,'05. (a) CAPEX'!V:V)*(1+$AL$32) -> -0.3267491873 | W36: =-SUMIF('05. (a) CAPEX'!$B:$B,'03. FCL - UGCs'!$B36,'05. (a) CAPEX'!W:W)*(1+$AL$32) -> -0.129636156 | X36: =-SUMIF('05. (a) CAPEX'!$B:$B,'03. FCL - UGCs'!$B36,'05. (a) CAPEX'!X:X)*(1+$AL$32) -> -0.1783686568 | Y36: =-SUMIF('05. (a) CAPEX'!$B:$B,'03. FCL - UGCs'!$B36,'05. (a) CAPEX'!Y:Y)*(1+$AL$32) -> 0 | Z36: =-SUMIF('05. (a) CAPEX'!$B:$B,'03. FCL - UGCs'!$B36,'05. (a) CAPEX'!Z:Z)*(1+$AL$32) -> 0 | AA36: =-SUMIF('05. (a) CAPEX'!$B:$B,'03. FCL - UGCs'!$B36,'05. (a) CAPEX'!AA:AA)*(1+$AL$32) -> -0.004249187321 | AB36: =-SUMIF('05. (a) CAPEX'!$B:$B,'03. FCL - UGCs'!$B36,'05. (a) CAPEX'!AB:AB)*(1+$AL$32) -> 0 | AC36: =-SUMIF('05. (a) CAPEX'!$B:$B,'03. FCL - UGCs'!$B36,'05. (a) CAPEX'!AC:AC)*(1+$AL$32) -> -1.794017104 | AD36: =-SUMIF('05. (a) CAPEX'!$B:$B,'03. FCL - UGCs'!$B36,'05. (a) CAPEX'!AD:AD)*(1+$AL$32) -> -0.6981157334 | AE36: =-SUMIF('05. (a) CAPEX'!$B:$B,'03. FCL - UGCs'!$B36,'05. (a) CAPEX'!AE:AE)*(1+$AL$32) -> -0.129636156 | AF36: =-SUMIF('05. (a) CAPEX'!$B:$B,'03. FCL - UGCs'!$B36,'05. (a) CAPEX'!AF:AF)*(1+$AL$32) -> -1.074048218 | AG36: =-SUMIF('05. (a) CAPEX'!$B:$B,'03. FCL - UGCs'!$B36,'05. (a) CAPEX'!AG:AG)*(1+$AL$32) -> -0.01866316691 | AI36: -28.24559853
B38: Tributos | D38: =SUM(D40:D43) -> -2.249239663 | E38: =SUM(E40:E43) -> -2.075086026 | F38: -1.858557583 | G38: -2.073797233 | H38: -2.201640513 | I38: -2.264740635 | J38: -2.385894587 | K38: -2.497005997 | L38: -2.592343443 | M38: -2.472383339 | N38: -2.375413858 | O38: -2.421715334 | P38: -2.554604972 | Q38: -2.687639696 | R38: -2.799363016 | S38: -2.937049227 | T38: -3.057893695 | U38: -3.197834781 | V38: -3.326040899 | W38: -3.448123417 | X38: -3.617526186 | Y38: -3.764777459 | Z38: -3.914204202 | AA38: -4.04851115 | AB38: -4.188062829 | AC38: -4.099417506 | AD38: -4.17679642 | AE38: -4.40983081 | AF38: -4.324618937 | AG38: -4.515111024 | AI38: =SUM(D38:AG38) -> -92.53522443 | AK38: =NPV(WACC,'03. FCL - UGCs'!E38:AG38)+'03. FCL - UGCs'!D38 -> -28.61323655
B40: ISS | D40: ='10. (a) TRIBUTOS PROJETO - LR'!D22 -> -0.4431372781 | E40: ='10. (a) TRIBUTOS PROJETO - LR'!E22 -> -0.4679533485 | F40: ='10. (a) TRIBUTOS PROJETO - LR'!F22 -> -0.4948192365 | G40: ='10. (a) TRIBUTOS PROJETO - LR'!G22 -> -0.5234458935 | H40: ='10. (a) TRIBUTOS PROJETO - LR'!H22 -> -0.5626784436 | I40: ='10. (a) TRIBUTOS PROJETO - LR'!I22 -> -0.5730716512 | J40: ='10. (a) TRIBUTOS PROJETO - LR'!J22 -> -0.5873083109 | K40: ='10. (a) TRIBUTOS PROJETO - LR'!K22 -> -0.5981564557 | L40: ='10. (a) TRIBUTOS PROJETO - LR'!L22 -> -0.609204976 | M40: ='10. (a) TRIBUTOS PROJETO - LR'!M22 -> -0.6431396849 | N40: ='10. (a) TRIBUTOS PROJETO - LR'!N22 -> -0.6550190884 | O40: ='10. (a) TRIBUTOS PROJETO - LR'!O22 -> -0.6692730963 | P40: ='10. (a) TRIBUTOS PROJETO - LR'!P22 -> -0.6816352089 | Q40: ='10. (a) TRIBUTOS PROJETO - LR'!Q22 -> -0.6942256614 | R40: ='10. (a) TRIBUTOS PROJETO - LR'!R22 -> -0.7070486717 | S40: ='10. (a) TRIBUTOS PROJETO - LR'!S22 -> -0.7201085351 | T40: ='10. (a) TRIBUTOS PROJETO - LR'!T22 -> -0.7334096267 | U40: ='10. (a) TRIBUTOS PROJETO - LR'!U22 -> -0.7469564021 | V40: ='10. (a) TRIBUTOS PROJETO - LR'!V22 -> -0.7607533994 | W40: ='10. (a) TRIBUTOS PROJETO - LR'!W22 -> -0.7748052404 | X40: ='10. (a) TRIBUTOS PROJETO - LR'!X22 -> -0.7891166324 | Y40: ='10. (a) TRIBUTOS PROJETO - LR'!Y22 -> -0.8036923693 | Z40: ='10. (a) TRIBUTOS PROJETO - LR'!Z22 -> -0.8185373341 | AA40: ='10. (a) TRIBUTOS PROJETO - LR'!AA22 -> -0.8336564995 | AB40: ='10. (a) TRIBUTOS PROJETO - LR'!AB22 -> -0.8490549303 | AC40: ='10. (a) TRIBUTOS PROJETO - LR'!AC22 -> -0.8647377848 | AD40: ='10. (a) TRIBUTOS PROJETO - LR'!AD22 -> -0.8807103166 | AE40: ='10. (a) TRIBUTOS PROJETO - LR'!AE22 -> -0.8969778763 | AF40: ='10. (a) TRIBUTOS PROJETO - LR'!AF22 -> -0.9135459133 | AG40: ='10. (a) TRIBUTOS PROJETO - LR'!AG22 -> -0.9304199778 | AI40: =SUM(D40:AG40) -> -21.22659984
B41: ICMS | D41: ='10. (a) TRIBUTOS PROJETO - LR'!D30 -> -0.0909023472 | E41: ='10. (a) TRIBUTOS PROJETO - LR'!E30 -> -0.09249750725 | F41: ='10. (a) TRIBUTOS PROJETO - LR'!F30 -> -0.09420602444 | G41: ='10. (a) TRIBUTOS PROJETO - LR'!G30 -> -0.09594609958 | H41: ='10. (a) TRIBUTOS PROJETO - LR'!H30 -> -0.1744969921 | I41: ='10. (a) TRIBUTOS PROJETO - LR'!I30 -> -0.177720118 | J41: ='10. (a) TRIBUTOS PROJETO - LR'!J30 -> -0.1810027781 | K41: ='10. (a) TRIBUTOS PROJETO - LR'!K30 -> -0.1843460721 | L41: ='10. (a) TRIBUTOS PROJETO - LR'!L30 -> -0.1877511199 | M41: ='10. (a) TRIBUTOS PROJETO - LR'!M30 -> -0.2475935608 | N41: ='10. (a) TRIBUTOS PROJETO - LR'!N30 -> -0.2521668501 | O41: ='10. (a) TRIBUTOS PROJETO - LR'!O30 -> -0.2568246124 | P41: ='10. (a) TRIBUTOS PROJETO - LR'!P30 -> -0.261568408 | Q41: ='10. (a) TRIBUTOS PROJETO - LR'!Q30 -> -0.266399826 | R41: ='10. (a) TRIBUTOS PROJETO - LR'!R30 -> -0.2713204849 | S41: ='10. (a) TRIBUTOS PROJETO - LR'!S30 -> -0.2763320331 | T41: ='10. (a) TRIBUTOS PROJETO - LR'!T30 -> -0.2814361493 | U41: ='10. (a) TRIBUTOS PROJETO - LR'!U30 -> -0.2866345435 | V41: ='10. (a) TRIBUTOS PROJETO - LR'!V30 -> -0.2919289569 | W41: ='10. (a) TRIBUTOS PROJETO - LR'!W30 -> -0.2973211633 | X41: ='10. (a) TRIBUTOS PROJETO - LR'!X30 -> -0.3028129688 | Y41: ='10. (a) TRIBUTOS PROJETO - LR'!Y30 -> -0.3084062132 | Z41: ='10. (a) TRIBUTOS PROJETO - LR'!Z30 -> -0.3141027701 | AA41: ='10. (a) TRIBUTOS PROJETO - LR'!AA30 -> -0.3199045479 | AB41: ='10. (a) TRIBUTOS PROJETO - LR'!AB30 -> -0.3258134901 | AC41: ='10. (a) TRIBUTOS PROJETO - LR'!AC30 -> -0.3318315761 | AD41: ='10. (a) TRIBUTOS PROJETO - LR'!AD30 -> -0.3379608218 | AE41: ='10. (a) TRIBUTOS PROJETO - LR'!AE30 -> -0.3442032806 | AF41: ='10. (a) TRIBUTOS PROJETO - LR'!AF30 -> -0.3505610436 | AG41: ='10. (a) TRIBUTOS PROJETO - LR'!AG30 -> -0.3570362404 | AI41: -7.5610286
B42: PIS e COFINS | D42: ='10. (a) TRIBUTOS PROJETO - LR'!D42 -> -0.7150536267 | E42: ='10. (a) TRIBUTOS PROJETO - LR'!E42 -> -0.7514443941 | F42: ='10. (a) TRIBUTOS PROJETO - LR'!F42 -> -0.7013476705 | G42: ='10. (a) TRIBUTOS PROJETO - LR'!G42 -> -0.7558201127 | H42: ='10. (a) TRIBUTOS PROJETO - LR'!H42 -> -0.854223772 | I42: ='10. (a) TRIBUTOS PROJETO - LR'!I42 -> -0.8526884918 | J42: ='10. (a) TRIBUTOS PROJETO - LR'!J42 -> -0.8822041705 | K42: ='10. (a) TRIBUTOS PROJETO - LR'!K42 -> -0.9064488386 | L42: ='10. (a) TRIBUTOS PROJETO - LR'!L42 -> -0.9303365442 | M42: ='10. (a) TRIBUTOS PROJETO - LR'!M42 -> -1.014636853 | N42: ='10. (a) TRIBUTOS PROJETO - LR'!N42 -> -0.9906475419 | O42: ='10. (a) TRIBUTOS PROJETO - LR'!O42 -> -1.017402851 | P42: ='10. (a) TRIBUTOS PROJETO - LR'!P42 -> -1.049671321 | Q42: ='10. (a) TRIBUTOS PROJETO - LR'!Q42 -> -1.078635311 | R42: ='10. (a) TRIBUTOS PROJETO - LR'!R42 -> -1.105958931 | S42: ='10. (a) TRIBUTOS PROJETO - LR'!S42 -> -1.139238397 | T42: ='10. (a) TRIBUTOS PROJETO - LR'!T42 -> -1.168600458 | U42: ='10. (a) TRIBUTOS PROJETO - LR'!U42 -> -1.199026738 | V42: ='10. (a) TRIBUTOS PROJETO - LR'!V42 -> -1.226712233 | W42: ='10. (a) TRIBUTOS PROJETO - LR'!W42 -> -1.256257297 | X42: ='10. (a) TRIBUTOS PROJETO - LR'!X42 -> -1.296681067 | Y42: ='10. (a) TRIBUTOS PROJETO - LR'!Y42 -> -1.328652855 | Z42: ='10. (a) TRIBUTOS PROJETO - LR'!Z42 -> -1.361089629 | AA42: ='10. (a) TRIBUTOS PROJETO - LR'!AA42 -> -1.393308404 | AB42: ='10. (a) TRIBUTOS PROJETO - LR'!AB42 -> -1.426698703 | AC42: ='10. (a) TRIBUTOS PROJETO - LR'!AC42 -> -1.404111002 | AD42: ='10. (a) TRIBUTOS PROJETO - LR'!AD42 -> -1.423083074 | AE42: ='10. (a) TRIBUTOS PROJETO - LR'!AE42 -> -1.477915936 | AF42: ='10. (a) TRIBUTOS PROJETO - LR'!AF42 -> -1.459305987 | AG42: ='10. (a) TRIBUTOS PROJETO - LR'!AG42 -> -1.500937102 | AI42: -33.66813931
B43: IRPJ/CSLL | D43: ='10. (a) TRIBUTOS PROJETO - LR'!D74 -> -1.000146411 | E43: ='10. (a) TRIBUTOS PROJETO - LR'!E74 -> -0.7631907761 | F43: ='10. (a) TRIBUTOS PROJETO - LR'!F74 -> -0.5681846516 | G43: ='10. (a) TRIBUTOS PROJETO - LR'!G74 -> -0.6985851277 | H43: ='10. (a) TRIBUTOS PROJETO - LR'!H74 -> -0.6102413051 | I43: ='10. (a) TRIBUTOS PROJETO - LR'!I74 -> -0.6612603738 | J43: ='10. (a) TRIBUTOS PROJETO - LR'!J74 -> -0.7353793279 | K43: ='10. (a) TRIBUTOS PROJETO - LR'!K74 -> -0.8080546303 | L43: ='10. (a) TRIBUTOS PROJETO - LR'!L74 -> -0.8650508028 | M43: ='10. (a) TRIBUTOS PROJETO - LR'!M74 -> -0.5670132406 | N43: ='10. (a) TRIBUTOS PROJETO - LR'!N74 -> -0.4775803774 | O43: ='10. (a) TRIBUTOS PROJETO - LR'!O74 -> -0.4782147742 | P43: ='10. (a) TRIBUTOS PROJETO - LR'!P74 -> -0.561730034 | Q43: ='10. (a) TRIBUTOS PROJETO - LR'!Q74 -> -0.6483788975 | R43: ='10. (a) TRIBUTOS PROJETO - LR'!R74 -> -0.7150349292 | S43: ='10. (a) TRIBUTOS PROJETO - LR'!S74 -> -0.8013702613 | T43: ='10. (a) TRIBUTOS PROJETO - LR'!T74 -> -0.8744474611 | U43: ='10. (a) TRIBUTOS PROJETO - LR'!U74 -> -0.965217098 | V43: ='10. (a) TRIBUTOS PROJETO - LR'!V74 -> -1.04664631 | W43: ='10. (a) TRIBUTOS PROJETO - LR'!W74 -> -1.119739716 | X43: ='10. (a) TRIBUTOS PROJETO - LR'!X74 -> -1.228915517 | Y43: ='10. (a) TRIBUTOS PROJETO - LR'!Y74 -> -1.324026021 | Z43: ='10. (a) TRIBUTOS PROJETO - LR'!Z74 -> -1.420474469 | AA43: ='10. (a) TRIBUTOS PROJETO - LR'!AA74 -> -1.501641698 | AB43: ='10. (a) TRIBUTOS PROJETO - LR'!AB74 -> -1.586495706 | AC43: ='10. (a) TRIBUTOS PROJETO - LR'!AC74 -> -1.498737143 | AD43: ='10. (a) TRIBUTOS PROJETO - LR'!AD74 -> -1.535042208 | AE43: ='10. (a) TRIBUTOS PROJETO - LR'!AE74 -> -1.690733717 | AF43: ='10. (a) TRIBUTOS PROJETO - LR'!AF74 -> -1.601205993 | AG43: ='10. (a) TRIBUTOS PROJETO - LR'!AG74 -> -1.726717704 | AI43: -30.07945668
B45: NIG | D45: =SUM(D47) -> -0.7528057597 | E45: =SUM(E47) -> -0.03793176697 | F45: -0.07458710834 | G45: -0.07350649203 | H45: -0.1790315365 | I45: -0.05082959663 | J45: -0.05706604332 | K45: -0.05298679794 | L45: -0.05396551464 | M45: -0.1535698363 | N45: -0.06085648829 | O45: -0.06510730689 | P45: -0.06328011297 | Q45: -0.06444895702 | R45: -0.06563939073 | S45: -0.0668518129 | T45: -0.06808662966 | U45: -0.06934425466 | V45: -0.07062510919 | W45: -0.07192962233 | X45: -0.07325823107 | Y45: -0.07461138048 | Z45: -0.07598952386 | AA45: -0.07739312285 | AB45: -0.07882264766 | AC45: -0.08027857715 | AD45: -0.08176139906 | AE45: -0.08327161009 | AF45: -0.08480971617 | AG45: 1.691594358 | AI45: =SUM(D45:AG45) -> -1.171051987 | AK45: =NPV(WACC,'03. FCL - UGCs'!E45:AG45)+'03. FCL - UGCs'!D45 -> -1.371722976
B47: Variação de capital de giro | D47: ='08. NIG'!D54 -> -0.7528057597 | E47: ='08. NIG'!E54 -> -0.03793176697 | F47: ='08. NIG'!F54 -> -0.07458710834 | G47: ='08. NIG'!G54 -> -0.07350649203 | H47: ='08. NIG'!H54 -> -0.1790315365 | I47: ='08. NIG'!I54 -> -0.05082959663 | J47: ='08. NIG'!J54 -> -0.05706604332 | K47: ='08. NIG'!K54 -> -0.05298679794 | L47: ='08. NIG'!L54 -> -0.05396551464 | M47: ='08. NIG'!M54 -> -0.1535698363 | N47: ='08. NIG'!N54 -> -0.06085648829 | O47: ='08. NIG'!O54 -> -0.06510730689 | P47: ='08. NIG'!P54 -> -0.06328011297 | Q47: ='08. NIG'!Q54 -> -0.06444895702 | R47: ='08. NIG'!R54 -> -0.06563939073 | S47: ='08. NIG'!S54 -> -0.0668518129 | T47: ='08. NIG'!T54 -> -0.06808662966 | U47: ='08. NIG'!U54 -> -0.06934425466 | V47: ='08. NIG'!V54 -> -0.07062510919 | W47: ='08. NIG'!W54 -> -0.07192962233 | X47: ='08. NIG'!X54 -> -0.07325823107 | Y47: ='08. NIG'!Y54 -> -0.07461138048 | Z47: ='08. NIG'!Z54 -> -0.07598952386 | AA47: ='08. NIG'!AA54 -> -0.07739312285 | AB47: ='08. NIG'!AB54 -> -0.07882264766 | AC47: ='08. NIG'!AC54 -> -0.08027857715 | AD47: ='08. NIG'!AD54 -> -0.08176139906 | AE47: ='08. NIG'!AE54 -> -0.08327161009 | AF47: ='08. NIG'!AF54 -> -0.08480971617 | AG47: ='08. NIG'!AG54 -> 1.691594358 | AI47: =SUM(D47:AG47) -> -1.171051987
B49: OUTORGAS | D49: =D51+D52 -> -0.5 | E49: =E51+E52 -> -0.2180138418 | F49: -0.2293297027 | G49: -0.2413603906 | H49: -0.4248555622 | I49: -0.4327030497 | J49: -0.4428863756 | K49: -0.4510669094 | L49: -0.4593985456 | M49: -0.5086646217 | N49: -0.5180601425 | O49: -0.5289223159 | P49: -0.5386920157 | Q49: -0.5486421711 | R49: -0.5587761154 | S49: -0.5690972432 | T49: -0.5796090122 | U49: -0.5903149436 | V49: -0.6012186237 | W49: -0.6123237052 | X49: -0.6236339082 | Y49: -0.6351530214 | Z49: -0.6468849036 | AA49: -0.6588334849 | AB49: -0.6710027678 | AC49: -0.683396829 | AD49: -0.6960198204 | AE49: -0.7088759704 | AF49: -0.7219695858 | AG49: -0.7353050528 | AI49: =SUM(D49:AG49) -> -16.33501063 | AK49: =NPV(WACC,'03. FCL - UGCs'!E49:AG49)+'03. FCL - UGCs'!D49 -> -5.071563274
B51: Outorga Fixa | D51: =-'09. OUTORGAS E RESSARCIMENTOS'!D14 -> -0.5 | E51: =-'09. OUTORGAS E RESSARCIMENTOS'!E14 -> 0 | F51: =-'09. OUTORGAS E RESSARCIMENTOS'!F14 -> 0 | G51: =-'09. OUTORGAS E RESSARCIMENTOS'!G14 -> 0 | H51: =-'09. OUTORGAS E RESSARCIMENTOS'!H14 -> 0 | I51: =-'09. OUTORGAS E RESSARCIMENTOS'!I14 -> 0 | J51: =-'09. OUTORGAS E RESSARCIMENTOS'!J14 -> 0 | K51: =-'09. OUTORGAS E RESSARCIMENTOS'!K14 -> 0 | L51: =-'09. OUTORGAS E RESSARCIMENTOS'!L14 -> 0 | M51: =-'09. OUTORGAS E RESSARCIMENTOS'!M14 -> 0 | N51: =-'09. OUTORGAS E RESSARCIMENTOS'!N14 -> 0 | O51: =-'09. OUTORGAS E RESSARCIMENTOS'!O14 -> 0 | P51: =-'09. OUTORGAS E RESSARCIMENTOS'!P14 -> 0 | Q51: =-'09. OUTORGAS E RESSARCIMENTOS'!Q14 -> 0 | R51: =-'09. OUTORGAS E RESSARCIMENTOS'!R14 -> 0 | S51: =-'09. OUTORGAS E RESSARCIMENTOS'!S14 -> 0 | T51: =-'09. OUTORGAS E RESSARCIMENTOS'!T14 -> 0 | U51: =-'09. OUTORGAS E RESSARCIMENTOS'!U14 -> 0 | V51: =-'09. OUTORGAS E RESSARCIMENTOS'!V14 -> 0 | W51: =-'09. OUTORGAS E RESSARCIMENTOS'!W14 -> 0 | X51: =-'09. OUTORGAS E RESSARCIMENTOS'!X14 -> 0 | Y51: =-'09. OUTORGAS E RESSARCIMENTOS'!Y14 -> 0 | Z51: =-'09. OUTORGAS E RESSARCIMENTOS'!Z14 -> 0 | AA51: =-'09. OUTORGAS E RESSARCIMENTOS'!AA14 -> 0 | AB51: =-'09. OUTORGAS E RESSARCIMENTOS'!AB14 -> 0 | AC51: =-'09. OUTORGAS E RESSARCIMENTOS'!AC14 -> 0 | AD51: =-'09. OUTORGAS E RESSARCIMENTOS'!AD14 -> 0 | AE51: =-'09. OUTORGAS E RESSARCIMENTOS'!AE14 -> 0 | AF51: =-'09. OUTORGAS E RESSARCIMENTOS'!AF14 -> 0 | AG51: =-'09. OUTORGAS E RESSARCIMENTOS'!AG14 -> 0 | AI51: =SUM(D51:AG51) -> -0.5
B52: Outorga Variável e Macrotemas | D52: =-SUM('09. OUTORGAS E RESSARCIMENTOS'!D16,'09. OUTORGAS E RESSARCIMENTOS'!D21) -> 0 | E52: =-SUM('09. OUTORGAS E RESSARCIMENTOS'!E16,'09. OUTORGAS E RESSARCIMENTOS'!E21) -> -0.2180138418 | F52: =-SUM('09. OUTORGAS E RESSARCIMENTOS'!F16,'09. OUTORGAS E RESSARCIMENTOS'!F21) -> -0.2293297027 | G52: =-SUM('09. OUTORGAS E RESSARCIMENTOS'!G16,'09. OUTORGAS E RESSARCIMENTOS'!G21) -> -0.2413603906 | H52: =-SUM('09. OUTORGAS E RESSARCIMENTOS'!H16,'09. OUTORGAS E RESSARCIMENTOS'!H21) -> -0.4248555622 | I52: =-SUM('09. OUTORGAS E RESSARCIMENTOS'!I16,'09. OUTORGAS E RESSARCIMENTOS'!I21) -> -0.4327030497 | J52: =-SUM('09. OUTORGAS E RESSARCIMENTOS'!J16,'09. OUTORGAS E RESSARCIMENTOS'!J21) -> -0.4428863756 | K52: =-SUM('09. OUTORGAS E RESSARCIMENTOS'!K16,'09. OUTORGAS E RESSARCIMENTOS'!K21) -> -0.4510669094 | L52: =-SUM('09. OUTORGAS E RESSARCIMENTOS'!L16,'09. OUTORGAS E RESSARCIMENTOS'!L21) -> -0.4593985456 | M52: =-SUM('09. OUTORGAS E RESSARCIMENTOS'!M16,'09. OUTORGAS E RESSARCIMENTOS'!M21) -> -0.5086646217 | N52: =-SUM('09. OUTORGAS E RESSARCIMENTOS'!N16,'09. OUTORGAS E RESSARCIMENTOS'!N21) -> -0.5180601425 | O52: =-SUM('09. OUTORGAS E RESSARCIMENTOS'!O16,'09. OUTORGAS E RESSARCIMENTOS'!O21) -> -0.5289223159 | P52: =-SUM('09. OUTORGAS E RESSARCIMENTOS'!P16,'09. OUTORGAS E RESSARCIMENTOS'!P21) -> -0.5386920157 | Q52: =-SUM('09. OUTORGAS E RESSARCIMENTOS'!Q16,'09. OUTORGAS E RESSARCIMENTOS'!Q21) -> -0.5486421711 | R52: =-SUM('09. OUTORGAS E RESSARCIMENTOS'!R16,'09. OUTORGAS E RESSARCIMENTOS'!R21) -> -0.5587761154 | S52: =-SUM('09. OUTORGAS E RESSARCIMENTOS'!S16,'09. OUTORGAS E RESSARCIMENTOS'!S21) -> -0.5690972432 | T52: =-SUM('09. OUTORGAS E RESSARCIMENTOS'!T16,'09. OUTORGAS E RESSARCIMENTOS'!T21) -> -0.5796090122 | U52: =-SUM('09. OUTORGAS E RESSARCIMENTOS'!U16,'09. OUTORGAS E RESSARCIMENTOS'!U21) -> -0.5903149436 | V52: =-SUM('09. OUTORGAS E RESSARCIMENTOS'!V16,'09. OUTORGAS E RESSARCIMENTOS'!V21) -> -0.6012186237 | W52: =-SUM('09. OUTORGAS E RESSARCIMENTOS'!W16,'09. OUTORGAS E RESSARCIMENTOS'!W21) -> -0.6123237052 | X52: =-SUM('09. OUTORGAS E RESSARCIMENTOS'!X16,'09. OUTORGAS E RESSARCIMENTOS'!X21) -> -0.6236339082 | Y52: =-SUM('09. OUTORGAS E RESSARCIMENTOS'!Y16,'09. OUTORGAS E RESSARCIMENTOS'!Y21) -> -0.6351530214 | Z52: =-SUM('09. OUTORGAS E RESSARCIMENTOS'!Z16,'09. OUTORGAS E RESSARCIMENTOS'!Z21) -> -0.6468849036 | AA52: =-SUM('09. OUTORGAS E RESSARCIMENTOS'!AA16,'09. OUTORGAS E RESSARCIMENTOS'!AA21) -> -0.6588334849 | AB52: =-SUM('09. OUTORGAS E RESSARCIMENTOS'!AB16,'09. OUTORGAS E RESSARCIMENTOS'!AB21) -> -0.6710027678 | AC52: =-SUM('09. OUTORGAS E RESSARCIMENTOS'!AC16,'09. OUTORGAS E RESSARCIMENTOS'!AC21) -> -0.683396829 | AD52: =-SUM('09. OUTORGAS E RESSARCIMENTOS'!AD16,'09. OUTORGAS E RESSARCIMENTOS'!AD21) -> -0.6960198204 | AE52: =-SUM('09. OUTORGAS E RESSARCIMENTOS'!AE16,'09. OUTORGAS E RESSARCIMENTOS'!AE21) -> -0.7088759704 | AF52: =-SUM('09. OUTORGAS E RESSARCIMENTOS'!AF16,'09. OUTORGAS E RESSARCIMENTOS'!AF21) -> -0.7219695858 | AG52: =-SUM('09. OUTORGAS E RESSARCIMENTOS'!AG16,'09. OUTORGAS E RESSARCIMENTOS'!AG21) -> -0.7353050528 | AI52: =SUM(D52:AG52) -> -15.83501063
B54: RESSARCIMENTOS | D54: =SUM(D56:D57) -> -3.8351392 | E54: 0 | F54: 0 | G54: 0 | H54: 0 | I54: 0 | J54: 0 | K54: 0 | L54: 0 | M54: 0 | N54: 0 | O54: 0 | P54: 0 | Q54: 0 | R54: 0 | S54: 0 | T54: 0 | U54: 0 | V54: 0 | W54: 0 | X54: 0 | Y54: 0 | Z54: 0 | AA54: 0 | AB54: 0 | AC54: 0 | AD54: 0 | AE54: 0 | AF54: 0 | AG54: 0 | AI54: =SUM(D54:AG54) -> -3.8351392 | AK54: =NPV(WACC,'03. FCL - UGCs'!E54:AG54)+'03. FCL - UGCs'!D54 -> -3.8351392
B56: Estudos + B3 | D56: =-'09. OUTORGAS E RESSARCIMENTOS'!D28 -> -1.312656374 | E56: =-'09. OUTORGAS E RESSARCIMENTOS'!E28 -> 0 | F56: =-'09. OUTORGAS E RESSARCIMENTOS'!F28 -> 0 | G56: =-'09. OUTORGAS E RESSARCIMENTOS'!G28 -> 0 | H56: =-'09. OUTORGAS E RESSARCIMENTOS'!H28 -> 0 | I56: =-'09. OUTORGAS E RESSARCIMENTOS'!I28 -> 0 | J56: =-'09. OUTORGAS E RESSARCIMENTOS'!J28 -> 0 | K56: =-'09. OUTORGAS E RESSARCIMENTOS'!K28 -> 0 | L56: =-'09. OUTORGAS E RESSARCIMENTOS'!L28 -> 0 | M56: =-'09. OUTORGAS E RESSARCIMENTOS'!M28 -> 0 | N56: =-'09. OUTORGAS E RESSARCIMENTOS'!N28 -> 0 | O56: =-'09. OUTORGAS E RESSARCIMENTOS'!O28 -> 0 | P56: =-'09. OUTORGAS E RESSARCIMENTOS'!P28 -> 0 | Q56: =-'09. OUTORGAS E RESSARCIMENTOS'!Q28 -> 0 | R56: =-'09. OUTORGAS E RESSARCIMENTOS'!R28 -> 0 | S56: =-'09. OUTORGAS E RESSARCIMENTOS'!S28 -> 0 | T56: =-'09. OUTORGAS E RESSARCIMENTOS'!T28 -> 0 | U56: =-'09. OUTORGAS E RESSARCIMENTOS'!U28 -> 0 | V56: =-'09. OUTORGAS E RESSARCIMENTOS'!V28 -> 0 | W56: =-'09. OUTORGAS E RESSARCIMENTOS'!W28 -> 0 | X56: =-'09. OUTORGAS E RESSARCIMENTOS'!X28 -> 0 | Y56: =-'09. OUTORGAS E RESSARCIMENTOS'!Y28 -> 0 | Z56: =-'09. OUTORGAS E RESSARCIMENTOS'!Z28 -> 0 | AA56: =-'09. OUTORGAS E RESSARCIMENTOS'!AA28 -> 0 | AB56: =-'09. OUTORGAS E RESSARCIMENTOS'!AB28 -> 0 | AC56: =-'09. OUTORGAS E RESSARCIMENTOS'!AC28 -> 0 | AD56: =-'09. OUTORGAS E RESSARCIMENTOS'!AD28 -> 0 | AE56: =-'09. OUTORGAS E RESSARCIMENTOS'!AE28 -> 0 | AF56: =-'09. OUTORGAS E RESSARCIMENTOS'!AF28 -> 0 | AG56: =-'09. OUTORGAS E RESSARCIMENTOS'!AG28 -> 0 | AI56: =SUM(D56:AG56) -> -1.312656374
B57: BNDES | D57: =-'09. OUTORGAS E RESSARCIMENTOS'!D30 -> -2.522482827 | E57: =-'09. OUTORGAS E RESSARCIMENTOS'!E30 -> 0 | F57: =-'09. OUTORGAS E RESSARCIMENTOS'!F30 -> 0 | G57: =-'09. OUTORGAS E RESSARCIMENTOS'!G30 -> 0 | H57: =-'09. OUTORGAS E RESSARCIMENTOS'!H30 -> 0 | I57: =-'09. OUTORGAS E RESSARCIMENTOS'!I30 -> 0 | J57: =-'09. OUTORGAS E RESSARCIMENTOS'!J30 -> 0 | K57: =-'09. OUTORGAS E RESSARCIMENTOS'!K30 -> 0 | L57: =-'09. OUTORGAS E RESSARCIMENTOS'!L30 -> 0 | M57: =-'09. OUTORGAS E RESSARCIMENTOS'!M30 -> 0 | N57: =-'09. OUTORGAS E RESSARCIMENTOS'!N30 -> 0 | O57: =-'09. OUTORGAS E RESSARCIMENTOS'!O30 -> 0 | P57: =-'09. OUTORGAS E RESSARCIMENTOS'!P30 -> 0 | Q57: =-'09. OUTORGAS E RESSARCIMENTOS'!Q30 -> 0 | R57: =-'09. OUTORGAS E RESSARCIMENTOS'!R30 -> 0 | S57: =-'09. OUTORGAS E RESSARCIMENTOS'!S30 -> 0 | T57: =-'09. OUTORGAS E RESSARCIMENTOS'!T30 -> 0 | U57: =-'09. OUTORGAS E RESSARCIMENTOS'!U30 -> 0 | V57: =-'09. OUTORGAS E RESSARCIMENTOS'!V30 -> 0 | W57: =-'09. OUTORGAS E RESSARCIMENTOS'!W30 -> 0 | X57: =-'09. OUTORGAS E RESSARCIMENTOS'!X30 -> 0 | Y57: =-'09. OUTORGAS E RESSARCIMENTOS'!Y30 -> 0 | Z57: =-'09. OUTORGAS E RESSARCIMENTOS'!Z30 -> 0 | AA57: =-'09. OUTORGAS E RESSARCIMENTOS'!AA30 -> 0 | AB57: =-'09. OUTORGAS E RESSARCIMENTOS'!AB30 -> 0 | AC57: =-'09. OUTORGAS E RESSARCIMENTOS'!AC30 -> 0 | AD57: =-'09. OUTORGAS E RESSARCIMENTOS'!AD30 -> 0 | AE57: =-'09. OUTORGAS E RESSARCIMENTOS'!AE30 -> 0 | AF57: =-'09. OUTORGAS E RESSARCIMENTOS'!AF30 -> 0 | AG57: =-'09. OUTORGAS E RESSARCIMENTOS'!AG30 -> 0 | AI57: =SUM(D57:AG57) -> -2.522482827
B59: Fluxo de Caixa Livre Projeto | D59: =SUM(D13,D22,D32,D38,D45,D49,D54) -> -3.001979641 | E59: 1.581930721 | F59: -12.19281712 | G59: 1.988201153 | H59: -0.6874400303 | I59: -2.952182811 | J59: 2.259235635 | K59: 2.460944544 | L59: 2.541292132 | M59: 1.834739923 | N59: -6.332788993 | O59: 2.067875668 | P59: 2.27528497 | Q59: 2.39979033 | R59: 2.340418286 | S59: 2.593383019 | T59: 2.699751735 | U59: 2.841503868 | V59: 2.672056241 | W59: 2.989360155 | X59: 3.018688304 | Y59: 3.352895253 | Z59: 3.512156428 | AA59: 3.638600655 | AB59: 3.774123661 | AC59: 1.186972423 | AD59: 3.677836529 | AE59: 4.304259069 | AF59: 3.583798857 | AG59: 6.728663496 | AI59: =SUM(D59:AG59) -> 47.15655445 | AK59: =AK13+AK22+AK32+AK3+AK38+AK45+AK49+AK54 -> -2.26485497e-14
B61: Fluxo de Caixa Livre Projeto Acumulado | D61: =D59 -> -3.001979641 | E61: =D61+E59 -> -1.42004892 | F61: -13.61286604 | G61: -11.62466489 | H61: -12.31210492 | I61: -15.26428773 | J61: -13.0050521 | K61: -10.54410755 | L61: -8.002815422 | M61: -6.168075498 | N61: -12.50086449 | O61: -10.43298882 | P61: -8.157703854 | Q61: -5.757913524 | R61: -3.417495239 | S61: -0.8241122191 | T61: 1.875639515 | U61: 4.717143383 | V61: 7.389199625 | W61: 10.37855978 | X61: 13.39724808 | Y61: 16.75014334 | Z61: 20.26229976 | AA61: 23.90090042 | AB61: 27.67502408 | AC61: 28.8619965 | AD61: 32.53983303 | AE61: 36.8440921 | AF61: 40.42789096 | AG61: 47.15655445
B63: TIR Projeto (a.a.) | D63: =IRR(D59:AG59) -> 0.09097385075
B65: VPL do Projeto | D65: =NPV(WACC,E59:AG59)+'03. FCL - UGCs'!D59 -> -2.087219286e-14

Sheet 04. RECEITAS
B6: Receitas (R$ milhões)
B7: Prazo | C7: =IF(C9<=ano_final,1,0) -> 1 | D7: 1 | E7: 1 | F7: 1 | G7: 1 | H7: 1 | I7: 1 | J7: 1 | K7: 1 | L7: 1 | M7: 1 | N7: 1 | O7: 1 | P7: 1 | Q7: 1 | R7: 1 | S7: 1 | T7: 1 | U7: 1 | V7: 1 | W7: 1 | X7: 1 | Y7: 1 | Z7: 1 | AA7: 1 | AB7: 1 | AC7: 1 | AD7: 1 | AE7: 1 | AF7: 1 | AG7: 0 | AH7: 0 | AI7: 0 | AJ7: 0 | AK7: 0
B9: Ano Calendário | C9: =ano_inicial -> 2026 | D9: =C9+1 -> 2027 | E9: 2028 | F9: 2029 | G9: 2030 | H9: 2031 | I9: 2032 | J9: 2033 | K9: 2034 | L9: 2035 | M9: 2036 | N9: 2037 | O9: 2038 | P9: 2039 | Q9: 2040 | R9: 2041 | S9: 2042 | T9: 2043 | U9: 2044 | V9: 2045 | W9: 2046 | X9: 2047 | Y9: 2048 | Z9: 2049 | AA9: 2050 | AB9: 2051 | AC9: 2052 | AD9: 2053 | AE9: 2054 | AF9: 2055 | AG9: 2056 | AH9: 2057 | AI9: 2058 | AJ9: 2059 | AK9: 2060
B11: Ano | C11: 1 | D11: =C11+1 -> 2 | E11: 3 | F11: 4 | G11: 5 | H11: 6 | I11: 7 | J11: 8 | K11: 9 | L11: 10 | M11: 11 | N11: 12 | O11: 13 | P11: 14 | Q11: 15 | R11: 16 | S11: 17 | T11: 18 | U11: 19 | V11: 20 | W11: 21 | X11: 22 | Y11: 23 | Z11: 24 | AA11: 25 | AB11: 26 | AC11: 27 | AD11: 28 | AE11: 29 | AF11: 30 | AG11: 31 | AH11: 32 | AI11: 33 | AJ11: 34 | AK11: 35 | AM11: Total
B13: Receita Total | C13: =C15+C27+C39+C54+C95+C110 -> 10.37778468 | D13: =D15+D27+D39+D54+D95+D110 -> 10.90069209 | E13: 11.46648514 | F13: 12.06801953 | G13: 14.16185207 | H13: 14.42343499 | I13: 14.76287919 | J13: 15.03556365 | K13: 15.31328485 | L13: 16.95548739 | M13: 17.26867142 | N13: 17.63074386 | O13: 17.95640052 | P13: 18.28807237 | Q13: 18.62587051 | R13: 18.96990811 | S13: 19.32030041 | T13: 19.67716479 | U13: 20.04062079 | V13: 20.41079017 | W13: 20.78779694 | X13: 21.17176738 | Y13: 21.56283012 | Z13: 21.96111616 | AA13: 22.36675893 | AB13: 22.7798943 | AC13: 23.20066068 | AD13: 23.62919901 | AE13: 24.06565286 | AF13: 24.51016843 | AG13: 0 | AH13: 0 | AI13: 0 | AJ13: 0 | AK13: 0 | AM13: =SUM(C13:AK13) -> 549.6898713
B15: Bilheteria | C15: =C17+C22 -> 6.698403961 | D15: 7.156745369 | E15: 7.653384148 | F15: 8.184486927 | G15: 8.752445318 | H15: 8.914111332 | I15: 9.078763472 | J15: 9.246456894 | K15: 9.417247774 | L15: 9.591193324 | M15: 9.768351814 | N15: 9.94878259 | O15: 10.1325461 | P15: 10.31970389 | Q15: 10.51031866 | R15: 10.70445427 | S15: 10.90217576 | T15: 11.10354934 | U15: 11.30864249 | V15: 11.51752391 | W15: 11.73026356 | X15: 11.94693272 | Y15: 12.16760396 | Z15: 12.39235121 | AA15: 12.62124976 | AB15: 12.85437629 | AC15: 13.09180888 | AD15: 13.33362708 | AE15: 13.57991189 | AF15: 13.83074582 | AG15: 0 | AH15: 0 | AI15: 0 | AJ15: 0 | AK15: 0 | AM15: =SUM(C15:AK15) -> 318.4581585
B17: PNB | C17: =C18/10^6 -> 6.698403961 | D17: 7.156745369 | E17: 7.653384148 | F17: 8.184486927 | G17: 8.752445318 | H17: 8.914111332 | I17: 9.078763472 | J17: 9.246456894 | K17: 9.417247774 | L17: 9.591193324 | M17: 9.768351814 | N17: 9.94878259 | O17: 10.1325461 | P17: 10.31970389 | Q17: 10.51031866 | R17: 10.70445427 | S17: 10.90217576 | T17: 11.10354934 | U17: 11.30864249 | V17: 11.51752391 | W17: 11.73026356 | X17: 11.94693272 | Y17: 12.16760396 | Z17: 12.39235121 | AA17: 12.62124976 | AB17: 12.85437629 | AC17: 13.09180888 | AD17: 13.33362708 | AE17: 13.57991189 | AF17: 13.83074582 | AG17: 0 | AH17: 0 | AI17: 0 | AJ17: 0 | AK17: 0 | AM17: =SUM(C17:AK17) -> 318.4581585
B18: Brasileiros (R$) | C18: =C19*C20*C$7 -> 6698403.961 | D18: 7156745.369 | E18: 7653384.148 | F18: 8184486.927 | G18: 8752445.318 | H18: 8914111.332 | I18: 9078763.472 | J18: 9246456.894 | K18: 9417247.774 | L18: 9591193.324 | M18: 9768351.814 | N18: 9948782.59 | O18: 10132546.1 | P18: 10319703.89 | Q18: 10510318.66 | R18: 10704454.27 | S18: 10902175.76 | T18: 11103549.34 | U18: 11308642.49 | V18: 11517523.91 | W18: 11730263.56 | X18: 11946932.72 | Y18: 12167603.96 | Z18: 12392351.21 | AA18: 12621249.76 | AB18: 12854376.29 | AC18: 13091808.88 | AD18: 13333627.08 | AE18: 13579911.89 | AF18: 13830745.82 | AG18: 0 | AH18: 0 | AI18: 0 | AJ18: 0 | AK18: 0 | AM18: =SUM(C18:AK18) -> 318458158.5
B19: Visitas por ano | C19: ='04.1 DEMANDA'!D22 -> 191719.6462 | D19: ='04.1 DEMANDA'!E22 -> 195083.9545 | E19: ='04.1 DEMANDA'!F22 -> 198687.3412 | F19: ='04.1 DEMANDA'!G22 -> 202357.2859 | G19: ='04.1 DEMANDA'!H22 -> 206095.018 | H19: ='04.1 DEMANDA'!I22 -> 209901.7896 | I19: ='04.1 DEMANDA'!J22 -> 213778.8759 | J19: ='04.1 DEMANDA'!K22 -> 217727.5757 | K19: ='04.1 DEMANDA'!L22 -> 221749.2117 | L19: ='04.1 DEMANDA'!M22 -> 225845.1312 | M19: ='04.1 DEMANDA'!N22 -> 230016.7062 | N19: ='04.1 DEMANDA'!O22 -> 234265.3342 | O19: ='04.1 DEMANDA'!P22 -> 238592.4384 | P19: ='04.1 DEMANDA'!Q22 -> 242999.4683 | Q19: ='04.1 DEMANDA'!R22 -> 247487.9003 | R19: ='04.1 DEMANDA'!S22 -> 252059.2379 | S19: ='04.1 DEMANDA'!T22 -> 256715.0125 | T19: ='04.1 DEMANDA'!U22 -> 261456.7837 | U19: ='04.1 DEMANDA'!V22 -> 266286.1399 | V19: ='04.1 DEMANDA'!W22 -> 271204.6989 | W19: ='04.1 DEMANDA'!X22 -> 276214.1084 | X19: ='04.1 DEMANDA'!Y22 -> 281316.0465 | Y19: ='04.1 DEMANDA'!Z22 -> 286512.2222 | Z19: ='04.1 DEMANDA'!AA22 -> 291804.3763 | AA19: ='04.1 DEMANDA'!AB22 -> 297194.2815 | AB19: ='04.1 DEMANDA'!AC22 -> 302683.7434 | AC19: ='04.1 DEMANDA'!AD22 -> 308274.6009 | AD19: ='04.1 DEMANDA'!AE22 -> 313968.7268 | AE19: ='04.1 DEMANDA'!AF22 -> 319768.0287 | AF19: ='04.1 DEMANDA'!AG22 -> 325674.4492 | AG19: ='04.1 DEMANDA'!AH22 -> 0 | AH19: ='04.1 DEMANDA'!AI22 -> 0 | AI19: ='04.1 DEMANDA'!AJ22 -> 0 | AJ19: ='04.1 DEMANDA'!AK22 -> 0 | AK19: ='04.1 DEMANDA'!AL22 -> 0 | AM19: =SUM(C19:AK19) -> 7587440.134
B20: Ingresso (R$) | C20: =IF(C$11='01. PC'!$B$33,'01. PC'!$D$33,IF(C$11='01. PC'!$B$34,'01. PC'!$D$34,IF(C$11='01. PC'!$B$35,'01. PC'!$D$35,IF(C$11='01. PC'!$B$36,'01. PC'!$D$36,'01. PC'!$D$37)))) -> 34.93853705 | D20: =IF(D$11='01. PC'!$B$33,'01. PC'!$D$33,IF(D$11='01. PC'!$B$34,'01. PC'!$D$34,IF(D$11='01. PC'!$B$35,'01. PC'!$D$35,IF(D$11='01. PC'!$B$36,'01. PC'!$D$36,'01. PC'!$D$37)))) -> 36.6854639 | E20: =IF(E$11='01. PC'!$B$33,'01. PC'!$D$33,IF(E$11='01. PC'!$B$34,'01. PC'!$D$34,IF(E$11='01. PC'!$B$35,'01. PC'!$D$35,IF(E$11='01. PC'!$B$36,'01. PC'!$D$36,'01. PC'!$D$37)))) -> 38.5197371 | F20: =IF(F$11='01. PC'!$B$33,'01. PC'!$D$33,IF(F$11='01. PC'!$B$34,'01. PC'!$D$34,IF(F$11='01. PC'!$B$35,'01. PC'!$D$35,IF(F$11='01. PC'!$B$36,'01. PC'!$D$36,'01. PC'!$D$37)))) -> 40.44572395 | G20: =IF(G$11='01. PC'!$B$33,'01. PC'!$D$33,IF(G$11='01. PC'!$B$34,'01. PC'!$D$34,IF(G$11='01. PC'!$B$35,'01. PC'!$D$35,IF(G$11='01. PC'!$B$36,'01. PC'!$D$36,'01. PC'!$D$37)))) -> 42.46801015 | H20: =IF(H$11='01. PC'!$B$33,'01. PC'!$D$33,IF(H$11='01. PC'!$B$34,'01. PC'!$D$34,IF(H$11='01. PC'!$B$35,'01. PC'!$D$35,IF(H$11='01. PC'!$B$36,'01. PC'!$D$36,'01. PC'!$D$37)))) -> 42.46801015 | I20: =IF(I$11='01. PC'!$B$33,'01. PC'!$D$33,IF(I$11='01. PC'!$B$34,'01. PC'!$D$34,IF(I$11='01. PC'!$B$35,'01. PC'!$D$35,IF(I$11='01. PC'!$B$36,'01. PC'!$D$36,'01. PC'!$D$37)))) -> 42.46801015 | J20: =IF(J$11='01. PC'!$B$33,'01. PC'!$D$33,IF(J$11='01. PC'!$B$34,'01. PC'!$D$34,IF(J$11='01. PC'!$B$35,'01. PC'!$D$35,IF(J$11='01. PC'!$B$36,'01. PC'!$D$36,'01. PC'!$D$37)))) -> 42.46801015 | K20: =IF(K$11='01. PC'!$B$33,'01. PC'!$D$33,IF(K$11='01. PC'!$B$34,'01. PC'!$D$34,IF(K$11='01. PC'!$B$35,'01. PC'!$D$35,IF(K$11='01. PC'!$B$36,'01. PC'!$D$36,'01. PC'!$D$37)))) -> 42.46801015 | L20: =IF(L$11='01. PC'!$B$33,'01. PC'!$D$33,IF(L$11='01. PC'!$B$34,'01. PC'!$D$34,IF(L$11='01. PC'!$B$35,'01. PC'!$D$35,IF(L$11='01. PC'!$B$36,'01. PC'!$D$36,'01. PC'!$D$37)))) -> 42.46801015 | M20: =IF(M$11='01. PC'!$B$33,'01. PC'!$D$33,IF(M$11='01. PC'!$B$34,'01. PC'!$D$34,IF(M$11='01. PC'!$B$35,'01. PC'!$D$35,IF(M$11='01. PC'!$B$36,'01. PC'!$D$36,'01. PC'!$D$37)))) -> 42.46801015 | N20: =IF(N$11='01. PC'!$B$33,'01. PC'!$D$33,IF(N$11='01. PC'!$B$34,'01. PC'!$D$34,IF(N$11='01. PC'!$B$35,'01. PC'!$D$35,IF(N$11='01. PC'!$B$36,'01. PC'!$D$36,'01. PC'!$D$37)))) -> 42.46801015 | O20: =IF(O$11='01. PC'!$B$33,'01. PC'!$D$33,IF(O$11='01. PC'!$B$34,'01. PC'!$D$34,IF(O$11='01. PC'!$B$35,'01. PC'!$D$35,IF(O$11='01. PC'!$B$36,'01. PC'!$D$36,'01. PC'!$D$37)))) -> 42.46801015 | P20: =IF(P$11='01. PC'!$B$33,'01. PC'!$D$33,IF(P$11='01. PC'!$B$34,'01. PC'!$D$34,IF(P$11='01. PC'!$B$35,'01. PC'!$D$35,IF(P$11='01. PC'!$B$36,'01. PC'!$D$36,'01. PC'!$D$37)))) -> 42.46801015 | Q20: =IF(Q$11='01. PC'!$B$33,'01. PC'!$D$33,IF(Q$11='01. PC'!$B$34,'01. PC'!$D$34,IF(Q$11='01. PC'!$B$35,'01. PC'!$D$35,IF(Q$11='01. PC'!$B$36,'01. PC'!$D$36,'01. PC'!$D$37)))) -> 42.46801015 | R20: =IF(R$11='01. PC'!$B$33,'01. PC'!$D$33,IF(R$11='01. PC'!$B$34,'01. PC'!$D$34,IF(R$11='01. PC'!$B$35,'01. PC'!$D$35,IF(R$11='01. PC'!$B$36,'01. PC'!$D$36,'01. PC'!$D$37)))) -> 42.46801015 | S20: =IF(S$11='01. PC'!$B$33,'01. PC'!$D$33,IF(S$11='01. PC'!$B$34,'01. PC'!$D$34,IF(S$11='01. PC'!$B$35,'01. PC'!$D$35,IF(S$11='01. PC'!$B$36,'01. PC'!$D$36,'01. PC'!$D$37)))) -> 42.46801015 | T20: =IF(T$11='01. PC'!$B$33,'01. PC'!$D$33,IF(T$11='01. PC'!$B$34,'01. PC'!$D$34,IF(T$11='01. PC'!$B$35,'01. PC'!$D$35,IF(T$11='01. PC'!$B$36,'01. PC'!$D$36,'01. PC'!$D$37)))) -> 42.46801015 | U20: =IF(U$11='01. PC'!$B$33,'01. PC'!$D$33,IF(U$11='01. PC'!$B$34,'01. PC'!$D$34,IF(U$11='01. PC'!$B$35,'01. PC'!$D$35,IF(U$11='01. PC'!$B$36,'01. PC'!$D$36,'01. PC'!$D$37)))) -> 42.46801015 | V20: =IF(V$11='01. PC'!$B$33,'01. PC'!$D$33,IF(V$11='01. PC'!$B$34,'01. PC'!$D$34,IF(V$11='01. PC'!$B$35,'01. PC'!$D$35,IF(V$11='01. PC'!$B$36,'01. PC'!$D$36,'01. PC'!$D$37)))) -> 42.46801015 | W20: =IF(W$11='01. PC'!$B$33,'01. PC'!$D$33,IF(W$11='01. PC'!$B$34,'01. PC'!$D$34,IF(W$11='01. PC'!$B$35,'01. PC'!$D$35,IF(W$11='01. PC'!$B$36,'01. PC'!$D$36,'01. PC'!$D$37)))) -> 42.46801015 | X20: =IF(X$11='01. PC'!$B$33,'01. PC'!$D$33,IF(X$11='01. PC'!$B$34,'01. PC'!$D$34,IF(X$11='01. PC'!$B$35,'01. PC'!$D$35,IF(X$11='01. PC'!$B$36,'01. PC'!$D$36,'01. PC'!$D$37)))) -> 42.46801015 | Y20: =IF(Y$11='01. PC'!$B$33,'01. PC'!$D$33,IF(Y$11='01. PC'!$B$34,'01. PC'!$D$34,IF(Y$11='01. PC'!$B$35,'01. PC'!$D$35,IF(Y$11='01. PC'!$B$36,'01. PC'!$D$36,'01. PC'!$D$37)))) -> 42.46801015 | Z20: =IF(Z$11='01. PC'!$B$33,'01. PC'!$D$33,IF(Z$11='01. PC'!$B$34,'01. PC'!$D$34,IF(Z$11='01. PC'!$B$35,'01. PC'!$D$35,IF(Z$11='01. PC'!$B$36,'01. PC'!$D$36,'01. PC'!$D$37)))) -> 42.46801015 | AA20: =IF(AA$11='01. PC'!$B$33,'01. PC'!$D$33,IF(AA$11='01. PC'!$B$34,'01. PC'!$D$34,IF(AA$11='01. PC'!$B$35,'01. PC'!$D$35,IF(AA$11='01. PC'!$B$36,'01. PC'!$D$36,'01. PC'!$D$37)))) -> 42.46801015 | AB20: =IF(AB$11='01. PC'!$B$33,'01. PC'!$D$33,IF(AB$11='01. PC'!$B$34,'01. PC'!$D$34,IF(AB$11='01. PC'!$B$35,'01. PC'!$D$35,IF(AB$11='01. PC'!$B$36,'01. PC'!$D$36,'01. PC'!$D$37)))) -> 42.46801015 | AC20: =IF(AC$11='01. PC'!$B$33,'01. PC'!$D$33,IF(AC$11='01. PC'!$B$34,'01. PC'!$D$34,IF(AC$11='01. PC'!$B$35,'01. PC'!$D$35,IF(AC$11='01. PC'!$B$36,'01. PC'!$D$36,'01. PC'!$D$37)))) -> 42.46801015 | AD20: =IF(AD$11='01. PC'!$B$33,'01. PC'!$D$33,IF(AD$11='01. PC'!$B$34,'01. PC'!$D$34,IF(AD$11='01. PC'!$B$35,'01. PC'!$D$35,IF(AD$11='01. PC'!$B$36,'01. PC'!$D$36,'01. PC'!$D$37)))) -> 42.46801015 | AE20: =IF(AE$11='01. PC'!$B$33,'01. PC'!$D$33,IF(AE$11='01. PC'!$B$34,'01. PC'!$D$34,IF(AE$11='01. PC'!$B$35,'01. PC'!$D$35,IF(AE$11='01. PC'!$B$36,'01. PC'!$D$36,'01. PC'!$D$37)))) -> 42.46801015 | AF20: =IF(AF$11='01. PC'!$B$33,'01. PC'!$D$33,IF(AF$11='01. PC'!$B$34,'01. PC'!$D$34,IF(AF$11='01. PC'!$B$35,'01. PC'!$D$35,IF(AF$11='01. PC'!$B$36,'01. PC'!$D$36,'01. PC'!$D$37)))) -> 42.46801015 | AG20: =IF(AG$11='01. PC'!$B$33,'01. PC'!$D$33,IF(AG$11='01. PC'!$B$34,'01. PC'!$D$34,IF(AG$11='01. PC'!$B$35,'01. PC'!$D$35,IF(AG$11='01. PC'!$B$36,'01. PC'!$D$36,'01. PC'!$D$37)))) -> 42.46801015 | AH20: =IF(AH$11='01. PC'!$B$33,'01. PC'!$D$33,IF(AH$11='01. PC'!$B$34,'01. PC'!$D$34,IF(AH$11='01. PC'!$B$35,'01. PC'!$D$35,IF(AH$11='01. PC'!$B$36,'01. PC'!$D$36,'01. PC'!$D$37)))) -> 42.46801015 | AI20: =IF(AI$11='01. PC'!$B$33,'01. PC'!$D$33,IF(AI$11='01. PC'!$B$34,'01. PC'!$D$34,IF(AI$11='01. PC'!$B$35,'01. PC'!$D$35,IF(AI$11='01. PC'!$B$36,'01. PC'!$D$36,'01. PC'!$D$37)))) -> 42.46801015 | AJ20: =IF(AJ$11='01. PC'!$B$33,'01. PC'!$D$33,IF(AJ$11='01. PC'!$B$34,'01. PC'!$D$34,IF(AJ$11='01. PC'!$B$35,'01. PC'!$D$35,IF(AJ$11='01. PC'!$B$36,'01. PC'!$D$36,'01. PC'!$D$37)))) -> 42.46801015 | AK20: =IF(AK$11='01. PC'!$B$33,'01. PC'!$D$33,IF(AK$11='01. PC'!$B$34,'01. PC'!$D$34,IF(AK$11='01. PC'!$B$35,'01. PC'!$D$35,IF(AK$11='01. PC'!$B$36,'01. PC'!$D$36,'01. PC'!$D$37)))) -> 42.46801015 | AM20: -
B22: FLONA | C22: =C23/10^6 -> 0 | D22: 0 | E22: 0 | F22: 0 | G22: 0 | H22: 0 | I22: 0 | J22: 0 | K22: 0 | L22: 0 | M22: 0 | N22: 0 | O22: 0 | P22: 0 | Q22: 0 | R22: 0 | S22: 0 | T22: 0 | U22: 0 | V22: 0 | W22: 0 | X22: 0 | Y22: 0 | Z22: 0 | AA22: 0 | AB22: 0 | AC22: 0 | AD22: 0 | AE22: 0 | AF22: 0 | AG22: 0 | AH22: 0 | AI22: 0 | AJ22: 0 | AK22: 0 | AM22: =SUM(C22:AK22) -> 0
B23: Brasileiros (R$) | C23: =C24*C25*IF(C11>='01. PC'!$I$26,1,0)*C$7 -> 0 | D23: =D24*D25*IF(D11>='01. PC'!$I$26,1,0)*D$7 -> 0 | E23: =E24*E25*IF(E11>='01. PC'!$I$26,1,0)*E$7 -> 0 | F23: =F24*F25*IF(F11>='01. PC'!$I$26,1,0)*F$7 -> 0 | G23: =G24*G25*IF(G11>='01. PC'!$I$26,1,0)*G$7 -> 0 | H23: =H24*H25*IF(H11>='01. PC'!$I$26,1,0)*H$7 -> 0 | I23: =I24*I25*IF(I11>='01. PC'!$I$26,1,0)*I$7 -> 0 | J23: =J24*J25*IF(J11>='01. PC'!$I$26,1,0)*J$7 -> 0 | K23: =K24*K25*IF(K11>='01. PC'!$I$26,1,0)*K$7 -> 0 | L23: =L24*L25*IF(L11>='01. PC'!$I$26,1,0)*L$7 -> 0 | M23: =M24*M25*IF(M11>='01. PC'!$I$26,1,0)*M$7 -> 0 | N23: =N24*N25*IF(N11>='01. PC'!$I$26,1,0)*N$7 -> 0 | O23: =O24*O25*IF(O11>='01. PC'!$I$26,1,0)*O$7 -> 0 | P23: =P24*P25*IF(P11>='01. PC'!$I$26,1,0)*P$7 -> 0 | Q23: =Q24*Q25*IF(Q11>='01. PC'!$I$26,1,0)*Q$7 -> 0 | R23: =R24*R25*IF(R11>='01. PC'!$I$26,1,0)*R$7 -> 0 | S23: =S24*S25*IF(S11>='01. PC'!$I$26,1,0)*S$7 -> 0 | T23: =T24*T25*IF(T11>='01. PC'!$I$26,1,0)*T$7 -> 0 | U23: =U24*U25*IF(U11>='01. PC'!$I$26,1,0)*U$7 -> 0 | V23: =V24*V25*IF(V11>='01. PC'!$I$26,1,0)*V$7 -> 0 | W23: =W24*W25*IF(W11>='01. PC'!$I$26,1,0)*W$7 -> 0 | X23: =X24*X25*IF(X11>='01. PC'!$I$26,1,0)*X$7 -> 0 | Y23: =Y24*Y25*IF(Y11>='01. PC'!$I$26,1,0)*Y$7 -> 0 | Z23: =Z24*Z25*IF(Z11>='01. PC'!$I$26,1,0)*Z$7 -> 0 | AA23: =AA24*AA25*IF(AA11>='01. PC'!$I$26,1,0)*AA$7 -> 0 | AB23: =AB24*AB25*IF(AB11>='01. PC'!$I$26,1,0)*AB$7 -> 0 | AC23: =AC24*AC25*IF(AC11>='01. PC'!$I$26,1,0)*AC$7 -> 0 | AD23: =AD24*AD25*IF(AD11>='01. PC'!$I$26,1,0)*AD$7 -> 0 | AE23: =AE24*AE25*IF(AE11>='01. PC'!$I$26,1,0)*AE$7 -> 0 | AF23: =AF24*AF25*IF(AF11>='01. PC'!$I$26,1,0)*AF$7 -> 0 | AG23: =AG24*AG25*IF(AG11>='01. PC'!$I$26,1,0)*AG$7 -> 0 | AH23: =AH24*AH25*IF(AH11>='01. PC'!$I$26,1,0)*AH$7 -> 0 | AI23: =AI24*AI25*IF(AI11>='01. PC'!$I$26,1,0)*AI$7 -> 0 | AJ23: =AJ24*AJ25*IF(AJ11>='01. PC'!$I$26,1,0)*AJ$7 -> 0 | AK23: =AK24*AK25*IF(AK11>='01. PC'!$I$26,1,0)*AK$7 -> 0 | AM23: =SUM(C23:AK23) -> 0
B24: Visitas por ano | C24: ='04.1 DEMANDA'!D27 -> 42640.29429 | D24: ='04.1 DEMANDA'!E27 -> 43388.54883 | E24: ='04.1 DEMANDA'!F27 -> 44189.97672 | F24: ='04.1 DEMANDA'!G27 -> 45006.20774 | G24: ='04.1 DEMANDA'!H27 -> 45837.51533 | H24: ='04.1 DEMANDA'!I27 -> 46684.17797 | I24: ='04.1 DEMANDA'!J27 -> 47546.47927 | J24: ='04.1 DEMANDA'!K27 -> 48424.7081 | K24: ='04.1 DEMANDA'!L27 -> 49319.15865 | L24: ='04.1 DEMANDA'!M27 -> 50230.13056 | M24: ='04.1 DEMANDA'!N27 -> 51157.92899 | N24: ='04.1 DEMANDA'!O27 -> 52102.86474 | O24: ='04.1 DEMANDA'!P27 -> 53065.25435 | P24: ='04.1 DEMANDA'!Q27 -> 54045.42022 | Q24: ='04.1 DEMANDA'!R27 -> 55043.69069 | R24: ='04.1 DEMANDA'!S27 -> 56060.40016 | S24: ='04.1 DEMANDA'!T27 -> 57095.88923 | T24: ='04.1 DEMANDA'!U27 -> 58150.50477 | U24: ='04.1 DEMANDA'!V27 -> 59224.60007 | V24: ='04.1 DEMANDA'!W27 -> 60318.53493 | W24: ='04.1 DEMANDA'!X27 -> 61432.67581 | X24: ='04.1 DEMANDA'!Y27 -> 62567.39594 | Y24: ='04.1 DEMANDA'!Z27 -> 63723.07542 | Z24: ='04.1 DEMANDA'!AA27 -> 64900.10142 | AA24: ='04.1 DEMANDA'!AB27 -> 66098.8682 | AB24: ='04.1 DEMANDA'!AC27 -> 67319.77735 | AC24: ='04.1 DEMANDA'!AD27 -> 68563.23786 | AD24: ='04.1 DEMANDA'!AE27 -> 69829.66627 | AE24: ='04.1 DEMANDA'!AF27 -> 71119.48682 | AF24: ='04.1 DEMANDA'!AG27 -> 72433.13158 | AG24: ='04.1 DEMANDA'!AH27 -> 0 | AH24: ='04.1 DEMANDA'!AI27 -> 0 | AI24: ='04.1 DEMANDA'!AJ27 -> 0 | AJ24: ='04.1 DEMANDA'!AK27 -> 0 | AK24: ='04.1 DEMANDA'!AL27 -> 0 | AM24: =SUM(C24:AK24) -> 1687519.702
B25: Ingresso (R$) | C25: =IF(C$11='01. PC'!$B$33,'01. PC'!$E$33,IF(C$11='01. PC'!$B$34,'01. PC'!$E$34,IF(C$11='01. PC'!$B$35,'01. PC'!$E$35,IF(C$11='01. PC'!$B$36,'01. PC'!$E$36,'01. PC'!$E$37)))) -> 0 | D25: =IF(D$11='01. PC'!$B$33,'01. PC'!$E$33,IF(D$11='01. PC'!$B$34,'01. PC'!$E$34,IF(D$11='01. PC'!$B$35,'01. PC'!$E$35,IF(D$11='01. PC'!$B$36,'01. PC'!$E$36,'01. PC'!$E$37)))) -> 0 | E25: =IF(E$11='01. PC'!$B$33,'01. PC'!$E$33,IF(E$11='01. PC'!$B$34,'01. PC'!$E$34,IF(E$11='01. PC'!$B$35,'01. PC'!$E$35,IF(E$11='01. PC'!$B$36,'01. PC'!$E$36,'01. PC'!$E$37)))) -> 0 | F25: =IF(F$11='01. PC'!$B$33,'01. PC'!$E$33,IF(F$11='01. PC'!$B$34,'01. PC'!$E$34,IF(F$11='01. PC'!$B$35,'01. PC'!$E$35,IF(F$11='01. PC'!$B$36,'01. PC'!$E$36,'01. PC'!$E$37)))) -> 0 | G25: =IF(G$11='01. PC'!$B$33,'01. PC'!$E$33,IF(G$11='01. PC'!$B$34,'01. PC'!$E$34,IF(G$11='01. PC'!$B$35,'01. PC'!$E$35,IF(G$11='01. PC'!$B$36,'01. PC'!$E$36,'01. PC'!$E$37)))) -> 0 | H25: =IF(H$11='01. PC'!$B$33,'01. PC'!$E$33,IF(H$11='01. PC'!$B$34,'01. PC'!$E$34,IF(H$11='01. PC'!$B$35,'01. PC'!$E$35,IF(H$11='01. PC'!$B$36,'01. PC'!$E$36,'01. PC'!$E$37)))) -> 0 | I25: =IF(I$11='01. PC'!$B$33,'01. PC'!$E$33,IF(I$11='01. PC'!$B$34,'01. PC'!$E$34,IF(I$11='01. PC'!$B$35,'01. PC'!$E$35,IF(I$11='01. PC'!$B$36,'01. PC'!$E$36,'01. PC'!$E$37)))) -> 0 | J25: =IF(J$11='01. PC'!$B$33,'01. PC'!$E$33,IF(J$11='01. PC'!$B$34,'01. PC'!$E$34,IF(J$11='01. PC'!$B$35,'01. PC'!$E$35,IF(J$11='01. PC'!$B$36,'01. PC'!$E$36,'01. PC'!$E$37)))) -> 0 | K25: =IF(K$11='01. PC'!$B$33,'01. PC'!$E$33,IF(K$11='01. PC'!$B$34,'01. PC'!$E$34,IF(K$11='01. PC'!$B$35,'01. PC'!$E$35,IF(K$11='01. PC'!$B$36,'01. PC'!$E$36,'01. PC'!$E$37)))) -> 0 | L25: =IF(L$11='01. PC'!$B$33,'01. PC'!$E$33,IF(L$11='01. PC'!$B$34,'01. PC'!$E$34,IF(L$11='01. PC'!$B$35,'01. PC'!$E$35,IF(L$11='01. PC'!$B$36,'01. PC'!$E$36,'01. PC'!$E$37)))) -> 0 | M25: =IF(M$11='01. PC'!$B$33,'01. PC'!$E$33,IF(M$11='01. PC'!$B$34,'01. PC'!$E$34,IF(M$11='01. PC'!$B$35,'01. PC'!$E$35,IF(M$11='01. PC'!$B$36,'01. PC'!$E$36,'01. PC'!$E$37)))) -> 0 | N25: =IF(N$11='01. PC'!$B$33,'01. PC'!$E$33,IF(N$11='01. PC'!$B$34,'01. PC'!$E$34,IF(N$11='01. PC'!$B$35,'01. PC'!$E$35,IF(N$11='01. PC'!$B$36,'01. PC'!$E$36,'01. PC'!$E$37)))) -> 0 | O25: =IF(O$11='01. PC'!$B$33,'01. PC'!$E$33,IF(O$11='01. PC'!$B$34,'01. PC'!$E$34,IF(O$11='01. PC'!$B$35,'01. PC'!$E$35,IF(O$11='01. PC'!$B$36,'01. PC'!$E$36,'01. PC'!$E$37)))) -> 0 | P25: =IF(P$11='01. PC'!$B$33,'01. PC'!$E$33,IF(P$11='01. PC'!$B$34,'01. PC'!$E$34,IF(P$11='01. PC'!$B$35,'01. PC'!$E$35,IF(P$11='01. PC'!$B$36,'01. PC'!$E$36,'01. PC'!$E$37)))) -> 0 | Q25: =IF(Q$11='01. PC'!$B$33,'01. PC'!$E$33,IF(Q$11='01. PC'!$B$34,'01. PC'!$E$34,IF(Q$11='01. PC'!$B$35,'01. PC'!$E$35,IF(Q$11='01. PC'!$B$36,'01. PC'!$E$36,'01. PC'!$E$37)))) -> 0 | R25: =IF(R$11='01. PC'!$B$33,'01. PC'!$E$33,IF(R$11='01. PC'!$B$34,'01. PC'!$E$34,IF(R$11='01. PC'!$B$35,'01. PC'!$E$35,IF(R$11='01. PC'!$B$36,'01. PC'!$E$36,'01. PC'!$E$37)))) -> 0 | S25: =IF(S$11='01. PC'!$B$33,'01. PC'!$E$33,IF(S$11='01. PC'!$B$34,'01. PC'!$E$34,IF(S$11='01. PC'!$B$35,'01. PC'!$E$35,IF(S$11='01. PC'!$B$36,'01. PC'!$E$36,'01. PC'!$E$37)))) -> 0 | T25: =IF(T$11='01. PC'!$B$33,'01. PC'!$E$33,IF(T$11='01. PC'!$B$34,'01. PC'!$E$34,IF(T$11='01. PC'!$B$35,'01. PC'!$E$35,IF(T$11='01. PC'!$B$36,'01. PC'!$E$36,'01. PC'!$E$37)))) -> 0 | U25: =IF(U$11='01. PC'!$B$33,'01. PC'!$E$33,IF(U$11='01. PC'!$B$34,'01. PC'!$E$34,IF(U$11='01. PC'!$B$35,'01. PC'!$E$35,IF(U$11='01. PC'!$B$36,'01. PC'!$E$36,'01. PC'!$E$37)))) -> 0 | V25: =IF(V$11='01. PC'!$B$33,'01. PC'!$E$33,IF(V$11='01. PC'!$B$34,'01. PC'!$E$34,IF(V$11='01. PC'!$B$35,'01. PC'!$E$35,IF(V$11='01. PC'!$B$36,'01. PC'!$E$36,'01. PC'!$E$37)))) -> 0 | W25: =IF(W$11='01. PC'!$B$33,'01. PC'!$E$33,IF(W$11='01. PC'!$B$34,'01. PC'!$E$34,IF(W$11='01. PC'!$B$35,'01. PC'!$E$35,IF(W$11='01. PC'!$B$36,'01. PC'!$E$36,'01. PC'!$E$37)))) -> 0 | X25: =IF(X$11='01. PC'!$B$33,'01. PC'!$E$33,IF(X$11='01. PC'!$B$34,'01. PC'!$E$34,IF(X$11='01. PC'!$B$35,'01. PC'!$E$35,IF(X$11='01. PC'!$B$36,'01. PC'!$E$36,'01. PC'!$E$37)))) -> 0 | Y25: =IF(Y$11='01. PC'!$B$33,'01. PC'!$E$33,IF(Y$11='01. PC'!$B$34,'01. PC'!$E$34,IF(Y$11='01. PC'!$B$35,'01. PC'!$E$35,IF(Y$11='01. PC'!$B$36,'01. PC'!$E$36,'01. PC'!$E$37)))) -> 0 | Z25: =IF(Z$11='01. PC'!$B$33,'01. PC'!$E$33,IF(Z$11='01. PC'!$B$34,'01. PC'!$E$34,IF(Z$11='01. PC'!$B$35,'01. PC'!$E$35,IF(Z$11='01. PC'!$B$36,'01. PC'!$E$36,'01. PC'!$E$37)))) -> 0 | AA25: =IF(AA$11='01. PC'!$B$33,'01. PC'!$E$33,IF(AA$11='01. PC'!$B$34,'01. PC'!$E$34,IF(AA$11='01. PC'!$B$35,'01. PC'!$E$35,IF(AA$11='01. PC'!$B$36,'01. PC'!$E$36,'01. PC'!$E$37)))) -> 0 | AB25: =IF(AB$11='01. PC'!$B$33,'01. PC'!$E$33,IF(AB$11='01. PC'!$B$34,'01. PC'!$E$34,IF(AB$11='01. PC'!$B$35,'01. PC'!$E$35,IF(AB$11='01. PC'!$B$36,'01. PC'!$E$36,'01. PC'!$E$37)))) -> 0 | AC25: =IF(AC$11='01. PC'!$B$33,'01. PC'!$E$33,IF(AC$11='01. PC'!$B$34,'01. PC'!$E$34,IF(AC$11='01. PC'!$B$35,'01. PC'!$E$35,IF(AC$11='01. PC'!$B$36,'01. PC'!$E$36,'01. PC'!$E$37)))) -> 0 | AD25: =IF(AD$11='01. PC'!$B$33,'01. PC'!$E$33,IF(AD$11='01. PC'!$B$34,'01. PC'!$E$34,IF(AD$11='01. PC'!$B$35,'01. PC'!$E$35,IF(AD$11='01. PC'!$B$36,'01. PC'!$E$36,'01. PC'!$E$37)))) -> 0 | AE25: =IF(AE$11='01. PC'!$B$33,'01. PC'!$E$33,IF(AE$11='01. PC'!$B$34,'01. PC'!$E$34,IF(AE$11='01. PC'!$B$35,'01. PC'!$E$35,IF(AE$11='01. PC'!$B$36,'01. PC'!$E$36,'01. PC'!$E$37)))) -> 0 | AF25: =IF(AF$11='01. PC'!$B$33,'01. PC'!$E$33,IF(AF$11='01. PC'!$B$34,'01. PC'!$E$34,IF(AF$11='01. PC'!$B$35,'01. PC'!$E$35,IF(AF$11='01. PC'!$B$36,'01. PC'!$E$36,'01. PC'!$E$37)))) -> 0 | AG25: =IF(AG$11='01. PC'!$B$33,'01. PC'!$E$33,IF(AG$11='01. PC'!$B$34,'01. PC'!$E$34,IF(AG$11='01. PC'!$B$35,'01. PC'!$E$35,IF(AG$11='01. PC'!$B$36,'01. PC'!$E$36,'01. PC'!$E$37)))) -> 0 | AH25: =IF(AH$11='01. PC'!$B$33,'01. PC'!$E$33,IF(AH$11='01. PC'!$B$34,'01. PC'!$E$34,IF(AH$11='01. PC'!$B$35,'01. PC'!$E$35,IF(AH$11='01. PC'!$B$36,'01. PC'!$E$36,'01. PC'!$E$37)))) -> 0 | AI25: =IF(AI$11='01. PC'!$B$33,'01. PC'!$E$33,IF(AI$11='01. PC'!$B$34,'01. PC'!$E$34,IF(AI$11='01. PC'!$B$35,'01. PC'!$E$35,IF(AI$11='01. PC'!$B$36,'01. PC'!$E$36,'01. PC'!$E$37)))) -> 0 | AJ25: =IF(AJ$11='01. PC'!$B$33,'01. PC'!$E$33,IF(AJ$11='01. PC'!$B$34,'01. PC'!$E$34,IF(AJ$11='01. PC'!$B$35,'01. PC'!$E$35,IF(AJ$11='01. PC'!$B$36,'01. PC'!$E$36,'01. PC'!$E$37)))) -> 0 | AK25: =IF(AK$11='01. PC'!$B$33,'01. PC'!$E$33,IF(AK$11='01. PC'!$B$34,'01. PC'!$E$34,IF(AK$11='01. PC'!$B$35,'01. PC'!$E$35,IF(AK$11='01. PC'!$B$36,'01. PC'!$E$36,'01. PC'!$E$37)))) -> 0 | AM25: -
B27: Estacionamento | C27: =C29+C34 -> 2.1643416 | D27: 2.202321601 | E27: 2.243000582 | F27: 2.284430942 | G27: 2.326626561 | H27: 2.369601573 | I27: 2.413370375 | J27: 2.457947628 | K27: 2.503348265 | L27: 3.003229731 | M27: 3.058702249 | N27: 3.115199398 | O27: 3.172740102 | P27: 3.231343639 | Q27: 3.291029638 | R27: 3.351818095 | S27: 3.413729373 | T27: 3.476784211 | U27: 3.541003732 | V27: 3.606409449 | W27: 3.673023272 | X27: 3.740867515 | Y27: 3.809964907 | Z27: 3.880338593 | AA27: 3.952012149 | AB27: 4.025009583 | AC27: 4.09935535 | AD27: 4.175074354 | AE27: 4.25219196 | AF27: 4.330734002 | AG27: 0 | AH27: 0 | AI27: 0 | AJ27: 0 | AK27: 0 | AM27: =SUM(C27:AK27) -> 97.16555043
B29: PNB | C29: =C30/10^6 -> 2.1643416 | D29: 2.202321601 | E29: 2.243000582 | F29: 2.284430942 | G29: 2.326626561 | H29: 2.369601573 | I29: 2.413370375 | J29: 2.457947628 | K29: 2.503348265 | L29: 2.549587496 | M29: 2.596680809 | N29: 2.644643981 | O29: 2.693493078 | P29: 2.743244464 | Q29: 2.793914807 | R29: 2.845521078 | S29: 2.898080567 | T29: 2.95161088 | U29: 3.006129948 | V29: 3.061656036 | W29: 3.118207744 | X29: 3.175804015 | Y29: 3.234464145 | Z29: 3.294207783 | AA29: 3.355054944 | AB29: 3.417026009 | AC29: 3.480141739 | AD29: 3.544423277 | AE29: 3.609892156 | AF29: 3.676570308 | AG29: 0 | AH29: 0 | AI29: 0 | AJ29: 0 | AK29: 0 | AM29: =SUM(C29:AK29) -> 85.65534439
B30: Valor Anual Estacionamento | C30: =C31*C32*C$7 -> 2164341.6 | D30: 2202321.601 | E30: 2243000.582 | F30: 2284430.942 | G30: 2326626.561 | H30: 2369601.573 | I30: 2413370.375 | J30: 2457947.628 | K30: 2503348.265 | L30: 2549587.496 | M30: 2596680.809 | N30: 2644643.981 | O30: 2693493.078 | P30: 2743244.464 | Q30: 2793914.807 | R30: 2845521.078 | S30: 2898080.567 | T30: 2951610.88 | U30: 3006129.948 | V30: 3061656.036 | W30: 3118207.744 | X30: 3175804.015 | Y30: 3234464.145 | Z30: 3294207.783 | AA30: 3355054.944 | AB30: 3417026.009 | AC30: 3480141.739 | AD30: 3544423.277 | AE30: 3609892.156 | AF30: 3676570.308 | AG30: 0 | AH30: 0 | AI30: 0 | AJ30: 0 | AK30: 0 | AM30: =SUM(C30:AK30) -> 85655344.39
B31: Demanda por Estacionamento | C31: ='04.1 DEMANDA'!D34 -> 90180.9 | D31: ='04.1 DEMANDA'!E34 -> 91763.40005 | E31: ='04.1 DEMANDA'!F34 -> 93458.35758 | F31: ='04.1 DEMANDA'!G34 -> 95184.6226 | G31: ='04.1 DEMANDA'!H34 -> 96942.77338 | H31: ='04.1 DEMANDA'!I34 -> 98733.39889 | I31: ='04.1 DEMANDA'!J34 -> 100557.0989 | J31: ='04.1 DEMANDA'!K34 -> 102414.4845 | K31: ='04.1 DEMANDA'!L34 -> 104306.1777 | L31: ='04.1 DEMANDA'!M34 -> 106232.8123 | M31: ='04.1 DEMANDA'!N34 -> 108195.0337 | N31: ='04.1 DEMANDA'!O34 -> 110193.4992 | O31: ='04.1 DEMANDA'!P34 -> 112228.8782 | P31: ='04.1 DEMANDA'!Q34 -> 114301.8527 | Q31: ='04.1 DEMANDA'!R34 -> 116413.1169 | R31: ='04.1 DEMANDA'!S34 -> 118563.3783 | S31: ='04.1 DEMANDA'!T34 -> 120753.357 | T31: ='04.1 DEMANDA'!U34 -> 122983.7867 | U31: ='04.1 DEMANDA'!V34 -> 125255.4145 | V31: ='04.1 DEMANDA'!W34 -> 127569.0015 | W31: ='04.1 DEMANDA'!X34 -> 129925.3227 | X31: ='04.1 DEMANDA'!Y34 -> 132325.1673 | Y31: ='04.1 DEMANDA'!Z34 -> 134769.3394 | Z31: ='04.1 DEMANDA'!AA34 -> 137258.6576 | AA31: ='04.1 DEMANDA'!AB34 -> 139793.956 | AB31: ='04.1 DEMANDA'!AC34 -> 142376.0837 | AC31: ='04.1 DEMANDA'!AD34 -> 145005.9058 | AD31: ='04.1 DEMANDA'!AE34 -> 147684.3032 | AE31: ='04.1 DEMANDA'!AF34 -> 150412.1732 | AF31: ='04.1 DEMANDA'!AG34 -> 153190.4295 | AG31: ='04.1 DEMANDA'!AH34 -> 0 | AH31: ='04.1 DEMANDA'!AI34 -> 0 | AI31: ='04.1 DEMANDA'!AJ34 -> 0 | AJ31: ='04.1 DEMANDA'!AK34 -> 0 | AK31: ='04.1 DEMANDA'!AL34 -> 0 | AM31: =SUM(C31:AK31) -> 3568972.683
B32: Ticket Médio (R$) | C32: ='01. PC'!$H$33 -> 24 | D32: =C32 -> 24 | E32: 24 | F32: 24 | G32: 24 | H32: 24 | I32: 24 | J32: 24 | K32: 24 | L32: 24 | M32: 24 | N32: 24 | O32: 24 | P32: 24 | Q32: 24 | R32: 24 | S32: 24 | T32: 24 | U32: 24 | V32: 24 | W32: 24 | X32: 24 | Y32: 24 | Z32: 24 | AA32: 24 | AB32: 24 | AC32: 24 | AD32: 24 | AE32: 24 | AF32: 24 | AG32: 24 | AH32: 24 | AI32: 24 | AJ32: 24 | AK32: 24 | AM32: -
B34: FLONA | C34: =C35/10^6 -> 0 | D34: =D35/10^6 -> 0 | E34: 0 | F34: 0 | G34: 0 | H34: 0 | I34: 0 | J34: 0 | K34: 0 | L34: 0.4536422357 | M34: 0.4620214405 | N34: 0.4705554172 | O34: 0.4792470247 | P34: 0.4880991744 | Q34: 0.4971148318 | R34: 0.5062970169 | S34: 0.5156488058 | T34: 0.5251733312 | U34: 0.5348737836 | V34: 0.5447534126 | W34: 0.5548155278 | X34: 0.5650634999 | Y34: 0.5755007617 | Z34: 0.5861308098 | AA34: 0.596957205 | AB34: 0.607983574 | AC34: 0.6192136106 | AD34: 0.6306510767 | AE34: 0.6422998037 | AF34: 0.6541636938 | AG34: 0 | AH34: 0 | AI34: 0 | AJ34: 0 | AK34: 0 | AM34: =SUM(C34:AK34) -> 11.51020604
B35: Valor Anual Estacionamento | C35: =IF(C11>='01. PC'!$H$26,C36*C37,0)*C$7 -> 0 | D35: =IF(D11>='01. PC'!$H$26,D36*D37,0)*D$7 -> 0 | E35: =IF(E11>='01. PC'!$H$26,E36*E37,0)*E$7 -> 0 | F35: =IF(F11>='01. PC'!$H$26,F36*F37,0)*F$7 -> 0 | G35: =IF(G11>='01. PC'!$H$26,G36*G37,0)*G$7 -> 0 | H35: =IF(H11>='01. PC'!$H$26,H36*H37,0)*H$7 -> 0 | I35: =IF(I11>='01. PC'!$H$26,I36*I37,0)*I$7 -> 0 | J35: =IF(J11>='01. PC'!$H$26,J36*J37,0)*J$7 -> 0 | K35: =IF(K11>='01. PC'!$H$26,K36*K37,0)*K$7 -> 0 | L35: =IF(L11>='01. PC'!$H$26,L36*L37,0)*L$7 -> 453642.2357 | M35: =IF(M11>='01. PC'!$H$26,M36*M37,0)*M$7 -> 462021.4405 | N35: =IF(N11>='01. PC'!$H$26,N36*N37,0)*N$7 -> 470555.4172 | O35: =IF(O11>='01. PC'!$H$26,O36*O37,0)*O$7 -> 479247.0247 | P35: =IF(P11>='01. PC'!$H$26,P36*P37,0)*P$7 -> 488099.1744 | Q35: =IF(Q11>='01. PC'!$H$26,Q36*Q37,0)*Q$7 -> 497114.8318 | R35: =IF(R11>='01. PC'!$H$26,R36*R37,0)*R$7 -> 506297.0169 | S35: =IF(S11>='01. PC'!$H$26,S36*S37,0)*S$7 -> 515648.8058 | T35: =IF(T11>='01. PC'!$H$26,T36*T37,0)*T$7 -> 525173.3312 | U35: =IF(U11>='01. PC'!$H$26,U36*U37,0)*U$7 -> 534873.7836 | V35: =IF(V11>='01. PC'!$H$26,V36*V37,0)*V$7 -> 544753.4126 | W35: =IF(W11>='01. PC'!$H$26,W36*W37,0)*W$7 -> 554815.5278 | X35: =IF(X11>='01. PC'!$H$26,X36*X37,0)*X$7 -> 565063.4999 | Y35: =IF(Y11>='01. PC'!$H$26,Y36*Y37,0)*Y$7 -> 575500.7617 | Z35: =IF(Z11>='01. PC'!$H$26,Z36*Z37,0)*Z$7 -> 586130.8098 | AA35: =IF(AA11>='01. PC'!$H$26,AA36*AA37,0)*AA$7 -> 596957.205 | AB35: =IF(AB11>='01. PC'!$H$26,AB36*AB37,0)*AB$7 -> 607983.574 | AC35: =IF(AC11>='01. PC'!$H$26,AC36*AC37,0)*AC$7 -> 619213.6106 | AD35: =IF(AD11>='01. PC'!$H$26,AD36*AD37,0)*AD$7 -> 630651.0767 | AE35: =IF(AE11>='01. PC'!$H$26,AE36*AE37,0)*AE$7 -> 642299.8037 | AF35: =IF(AF11>='01. PC'!$H$26,AF36*AF37,0)*AF$7 -> 654163.6938 | AG35: =IF(AG11>='01. PC'!$H$26,AG36*AG37,0)*AG$7 -> 0 | AH35: =IF(AH11>='01. PC'!$H$26,AH36*AH37,0)*AH$7 -> 0 | AI35: =IF(AI11>='01. PC'!$H$26,AI36*AI37,0)*AI$7 -> 0 | AJ35: =IF(AJ11>='01. PC'!$H$26,AJ36*AJ37,0)*AJ$7 -> 0 | AK35: =IF(AK11>='01. PC'!$H$26,AK36*AK37,0)*AK$7 -> 0 | AM35: =SUM(C35:AK35) -> 11510206.04
B36: Demanda por Estacionamento | C36: ='04.1 DEMANDA'!D39 -> 16045.68 | D36: ='04.1 DEMANDA'!E39 -> 16327.25059 | E36: ='04.1 DEMANDA'!F39 -> 16628.83049 | F36: ='04.1 DEMANDA'!G39 -> 16935.98085 | G36: ='04.1 DEMANDA'!H39 -> 17248.80457 | H36: ='04.1 DEMANDA'!I39 -> 17567.40644 | I36: ='04.1 DEMANDA'!J39 -> 17891.8932 | J36: ='04.1 DEMANDA'!K39 -> 18222.37354 | K36: ='04.1 DEMANDA'!L39 -> 18558.95816 | L36: ='04.1 DEMANDA'!M39 -> 18901.75982 | M36: ='04.1 DEMANDA'!N39 -> 19250.89335 | N36: ='04.1 DEMANDA'!O39 -> 19606.47572 | O36: ='04.1 DEMANDA'!P39 -> 19968.62603 | P36: ='04.1 DEMANDA'!Q39 -> 20337.4656 | Q36: ='04.1 DEMANDA'!R39 -> 20713.11799 | R36: ='04.1 DEMANDA'!S39 -> 21095.70904 | S36: ='04.1 DEMANDA'!T39 -> 21485.36691 | T36: ='04.1 DEMANDA'!U39 -> 21882.22213 | U36: ='04.1 DEMANDA'!V39 -> 22286.40765 | V36: ='04.1 DEMANDA'!W39 -> 22698.05886 | W36: ='04.1 DEMANDA'!X39 -> 23117.31366 | X36: ='04.1 DEMANDA'!Y39 -> 23544.31249 | Y36: ='04.1 DEMANDA'!Z39 -> 23979.19841 | Z36: ='04.1 DEMANDA'!AA39 -> 24422.11708 | AA36: ='04.1 DEMANDA'!AB39 -> 24873.21688 | AB36: ='04.1 DEMANDA'!AC39 -> 25332.64892 | AC36: ='04.1 DEMANDA'!AD39 -> 25800.56711 | AD36: ='04.1 DEMANDA'!AE39 -> 26277.1282 | AE36: ='04.1 DEMANDA'!AF39 -> 26762.49182 | AF36: ='04.1 DEMANDA'!AG39 -> 27256.82058 | AG36: ='04.1 DEMANDA'!AH39 -> 0 | AH36: ='04.1 DEMANDA'!AI39 -> 0 | AI36: ='04.1 DEMANDA'!AJ39 -> 0 | AJ36: ='04.1 DEMANDA'!AK39 -> 0 | AK36: ='04.1 DEMANDA'!AL39 -> 0 | AM36: =SUM(C36:AK36) -> 635019.0961
B37: Ticket Médio (R$) | C37: ='01. PC'!$H$34 -> 24 | D37: =C37 -> 24 | E37: 24 | F37: 24 | G37: 24 | H37: 24 | I37: 24 | J37: 24 | K37: 24 | L37: 24 | M37: 24 | N37: 24 | O37: 24 | P37: 24 | Q37: 24 | R37: 24 | S37: 24 | T37: 24 | U37: 24 | V37: 24 | W37: 24 | X37: 24 | Y37: 24 | Z37: 24 | AA37: 24 | AB37: 24 | AC37: 24 | AD37: 24 | AE37: 24 | AF37: 24 | AG37: 24 | AH37: 24 | AI37: 24 | AJ37: 24 | AK37: 24 | AM37: -
B39: Transporte Interno | C39: =C41+C48 -> 0 | D39: 0 | E39: 0 | F39: 0 | G39: 0.1744969921 | H39: 0.177720118 | I39: 0.1810027781 | J39: 0.1843460721 | K39: 0.1877511199 | L39: 0.1912190622 | M39: 0.1947510607 | N39: 0.1983482985 | O39: 0.2020119808 | P39: 0.2057433348 | Q39: 0.2095436105 | R39: 0.2134140809 | S39: 0.2173560425 | T39: 0.221370816 | U39: 0.2254597461 | V39: 0.2296242027 | W39: 0.2338655808 | X39: 0.2381853012 | Y39: 0.2425848109 | Z39: 0.2470655838 | AA39: 0.2516291208 | AB39: 0.2562769507 | AC39: 0.2610106304 | AD39: 0.2658317458 | AE39: 0.2707419117 | AF39: 0.2757427731 | AG39: 0 | AH39: 0 | AI39: 0 | AJ39: 0 | AK39: 0 | AM39: =SUM(C39:AK39) -> 5.757093725
B41: PNB | C41: =C42/10^6 -> 0 | D41: =D42/10^6 -> 0 | E41: 0 | F41: 0 | G41: 0.1744969921 | H41: 0.177720118 | I41: 0.1810027781 | J41: 0.1843460721 | K41: 0.1877511199 | L41: 0.1912190622 | M41: 0.1947510607 | N41: 0.1983482985 | O41: 0.2020119808 | P41: 0.2057433348 | Q41: 0.2095436105 | R41: 0.2134140809 | S41: 0.2173560425 | T41: 0.221370816 | U41: 0.2254597461 | V41: 0.2296242027 | W41: 0.2338655808 | X41: 0.2381853012 | Y41: 0.2425848109 | Z41: 0.2470655838 | AA41: 0.2516291208 | AB41: 0.2562769507 | AC41: 0.2610106304 | AD41: 0.2658317458 | AE41: 0.2707419117 | AF41: 0.2757427731 | AG41: 0 | AH41: 0 | AI41: 0 | AJ41: 0 | AK41: 0 | AM41: =SUM(C41:AK41) -> 5.757093725
B42: Transporte Interno (R$) | C42: =(C43*C44*C45*C$7*IF(C$11>=$D$169,C46,0)) -> 0 | D42: =(D43*D44*D45*D$7*IF(D$11>=$D$169,D46,0)) -> 0 | E42: 0 | F42: 0 | G42: 174496.9921 | H42: 177720.118 | I42: 181002.7781 | J42: 184346.0721 | K42: 187751.1199 | L42: 191219.0622 | M42: 194751.0607 | N42: 198348.2985 | O42: 202011.9808 | P42: 205743.3348 | Q42: 209543.6105 | R42: 213414.0809 | S42: 217356.0425 | T42: 221370.816 | U42: 225459.7461 | V42: 229624.2027 | W42: 233865.5808 | X42: 238185.3012 | Y42: 242584.8109 | Z42: 247065.5838 | AA42: 251629.1208 | AB42: 256276.9507 | AC42: 261010.6304 | AD42: 265831.7458 | AE42: 270741.9117 | AF42: 275742.7731 | AG42: 0 | AH42: 0 | AI42: 0 | AJ42: 0 | AK42: 0 | AM42: =SUM(C42:AK42) -> 5757093.725
B43: Visitas por ano | C43: ='04.1 DEMANDA'!D21 -> 300603 | D43: ='04.1 DEMANDA'!E21 -> 305878.0002 | E43: ='04.1 DEMANDA'!F21 -> 311527.8586 | F43: ='04.1 DEMANDA'!G21 -> 317282.0753 | G43: ='04.1 DEMANDA'!H21 -> 323142.5779 | H43: ='04.1 DEMANDA'!I21 -> 329111.3296 | I43: ='04.1 DEMANDA'!J21 -> 335190.3298 | J43: ='04.1 DEMANDA'!K21 -> 341381.615 | K43: ='04.1 DEMANDA'!L21 -> 347687.2591 | L43: ='04.1 DEMANDA'!M21 -> 354109.3744 | M43: ='04.1 DEMANDA'!N21 -> 360650.1124 | N43: ='04.1 DEMANDA'!O21 -> 367311.664 | O43: ='04.1 DEMANDA'!P21 -> 374096.2608 | P43: ='04.1 DEMANDA'!Q21 -> 381006.1756 | Q43: ='04.1 DEMANDA'!R21 -> 388043.7231 | R43: ='04.1 DEMANDA'!S21 -> 395211.2609 | S43: ='04.1 DEMANDA'!T21 -> 402511.1899 | T43: ='04.1 DEMANDA'!U21 -> 409945.9555 | U43: ='04.1 DEMANDA'!V21 -> 417518.0484 | V43: ='04.1 DEMANDA'!W21 -> 425230.005 | W43: ='04.1 DEMANDA'!X21 -> 433084.4089 | X43: ='04.1 DEMANDA'!Y21 -> 441083.891 | Y43: ='04.1 DEMANDA'!Z21 -> 449231.1313 | Z43: ='04.1 DEMANDA'!AA21 -> 457528.8588 | AA43: ='04.1 DEMANDA'!AB21 -> 465979.8533 | AB43: ='04.1 DEMANDA'!AC21 -> 474586.9457 | AC43: ='04.1 DEMANDA'!AD21 -> 483353.0193 | AD43: ='04.1 DEMANDA'!AE21 -> 492281.0107 | AE43: ='04.1 DEMANDA'!AF21 -> 501373.9105 | AF43: ='04.1 DEMANDA'!AG21 -> 510634.765 | AG43: ='04.1 DEMANDA'!AH21 -> 0 | AH43: ='04.1 DEMANDA'!AI21 -> 0 | AI43: ='04.1 DEMANDA'!AJ21 -> 0 | AJ43: ='04.1 DEMANDA'!AK21 -> 0 | AK43: ='04.1 DEMANDA'!AL21 -> 0 | AM43: =SUM(C43:AK43) -> 11896575.61
B44: Ticket Médio (R$) | C44: ='01. PC'!$H$35 -> 18 | D44: =C44 -> 18 | E44: 18 | F44: 18 | G44: 18 | H44: 18 | I44: 18 | J44: 18 | K44: 18 | L44: 18 | M44: 18 | N44: 18 | O44: 18 | P44: 18 | Q44: 18 | R44: 18 | S44: 18 | T44: 18 | U44: 18 | V44: 18 | W44: 18 | X44: 18 | Y44: 18 | Z44: 18 | AA44: 18 | AB44: 18 | AC44: 18 | AD44: 18 | AE44: 18 | AF44: 18 | AG44: 18 | AH44: 18 | AI44: 18 | AJ44: 18 | AK44: 18 | AM44: -
B45: Adesão | C45: ='01. PC'!$J$35 -> 0.03 | D45: =C45 -> 0.03 | E45: 0.03 | F45: 0.03 | G45: 0.03 | H45: 0.03 | I45: 0.03 | J45: 0.03 | K45: 0.03 | L45: 0.03 | M45: 0.03 | N45: 0.03 | O45: 0.03 | P45: 0.03 | Q45: 0.03 | R45: 0.03 | S45: 0.03 | T45: 0.03 | U45: 0.03 | V45: 0.03 | W45: 0.03 | X45: 0.03 | Y45: 0.03 | Z45: 0.03 | AA45: 0.03 | AB45: 0.03 | AC45: 0.03 | AD45: 0.03 | AE45: 0.03 | AF45: 0.03 | AG45: 0.03 | AH45: 0.03 | AI45: 0.03 | AJ45: 0.03 | AK45: 0.03 | AM45: =SUM(C45:AK45) -> 1.05
B46: Funcionamento | C46: =IF('01. PC'!$H$28<=SUM('04. RECEITAS'!$C$7:'04. RECEITAS'!C7),1,0) -> 0 | D46: =IF('01. PC'!$H$28<=SUM('04. RECEITAS'!$C$7:'04. RECEITAS'!D7),1,0) -> 0 | E46: =IF('01. PC'!$H$28<=SUM('04. RECEITAS'!$C$7:'04. RECEITAS'!E7),1,0) -> 0 | F46: =IF('01. PC'!$H$28<=SUM('04. RECEITAS'!$C$7:'04. RECEITAS'!F7),1,0) -> 0 | G46: =IF('01. PC'!$H$28<=SUM('04. RECEITAS'!$C$7:'04. RECEITAS'!G7),1,0) -> 1 | H46: =IF('01. PC'!$H$28<=SUM('04. RECEITAS'!$C$7:'04. RECEITAS'!H7),1,0) -> 1 | I46: =IF('01. PC'!$H$28<=SUM('04. RECEITAS'!$C$7:'04. RECEITAS'!I7),1,0) -> 1 | J46: =IF('01. PC'!$H$28<=SUM('04. RECEITAS'!$C$7:'04. RECEITAS'!J7),1,0) -> 1 | K46: =IF('01. PC'!$H$28<=SUM('04. RECEITAS'!$C$7:'04. RECEITAS'!K7),1,0) -> 1 | L46: =IF('01. PC'!$H$28<=SUM('04. RECEITAS'!$C$7:'04. RECEITAS'!L7),1,0) -> 1 | M46: =IF('01. PC'!$H$28<=SUM('04. RECEITAS'!$C$7:'04. RECEITAS'!M7),1,0) -> 1 | N46: =IF('01. PC'!$H$28<=SUM('04. RECEITAS'!$C$7:'04. RECEITAS'!N7),1,0) -> 1 | O46: =IF('01. PC'!$H$28<=SUM('04. RECEITAS'!$C$7:'04. RECEITAS'!O7),1,0) -> 1 | P46: =IF('01. PC'!$H$28<=SUM('04. RECEITAS'!$C$7:'04. RECEITAS'!P7),1,0) -> 1 | Q46: =IF('01. PC'!$H$28<=SUM('04. RECEITAS'!$C$7:'04. RECEITAS'!Q7),1,0) -> 1 | R46: =IF('01. PC'!$H$28<=SUM('04. RECEITAS'!$C$7:'04. RECEITAS'!R7),1,0) -> 1 | S46: =IF('01. PC'!$H$28<=SUM('04. RECEITAS'!$C$7:'04. RECEITAS'!S7),1,0) -> 1 | T46: =IF('01. PC'!$H$28<=SUM('04. RECEITAS'!$C$7:'04. RECEITAS'!T7),1,0) -> 1 | U46: =IF('01. PC'!$H$28<=SUM('04. RECEITAS'!$C$7:'04. RECEITAS'!U7),1,0) -> 1 | V46: =IF('01. PC'!$H$28<=SUM('04. RECEITAS'!$C$7:'04. RECEITAS'!V7),1,0) -> 1 | W46: =IF('01. PC'!$H$28<=SUM('04. RECEITAS'!$C$7:'04. RECEITAS'!W7),1,0) -> 1 | X46: =IF('01. PC'!$H$28<=SUM('04. RECEITAS'!$C$7:'04. RECEITAS'!X7),1,0) -> 1 | Y46: =IF('01. PC'!$H$28<=SUM('04. RECEITAS'!$C$7:'04. RECEITAS'!Y7),1,0) -> 1 | Z46: =IF('01. PC'!$H$28<=SUM('04. RECEITAS'!$C$7:'04. RECEITAS'!Z7),1,0) -> 1 | AA46: =IF('01. PC'!$H$28<=SUM('04. RECEITAS'!$C$7:'04. RECEITAS'!AA7),1,0) -> 1 | AB46: =IF('01. PC'!$H$28<=SUM('04. RECEITAS'!$C$7:'04. RECEITAS'!AB7),1,0) -> 1 | AC46: =IF('01. PC'!$H$28<=SUM('04. RECEITAS'!$C$7:'04. RECEITAS'!AC7),1,0) -> 1 | AD46: =IF('01. PC'!$H$28<=SUM('04. RECEITAS'!$C$7:'04. RECEITAS'!AD7),1,0) -> 1 | AE46: =IF('01. PC'!$H$28<=SUM('04. RECEITAS'!$C$7:'04. RECEITAS'!AE7),1,0) -> 1 | AF46: =IF('01. PC'!$H$28<=SUM('04. RECEITAS'!$C$7:'04. RECEITAS'!AF7),1,0) -> 1 | AG46: =IF('01. PC'!$H$28<=SUM('04. RECEITAS'!$C$7:'04. RECEITAS'!AG7),1,0) -> 1 | AH46: =IF('01. PC'!$H$28<=SUM('04. RECEITAS'!$C$7:'04. RECEITAS'!AH7),1,0) -> 1 | AI46: =IF('01. PC'!$H$28<=SUM('04. RECEITAS'!$C$7:'04. RECEITAS'!AI7),1,0) -> 1 | AJ46: =IF('01. PC'!$H$28<=SUM('04. RECEITAS'!$C$7:'04. RECEITAS'!AJ7),1,0) -> 1 | AK46: =IF('01. PC'!$H$28<=SUM('04. RECEITAS'!$C$7:'04. RECEITAS'!AK7),1,0) -> 1
B48: FLONA | C48: =C49/10^6 -> 0 | D48: 0 | E48: 0 | F48: 0 | G48: 0 | H48: 0 | I48: 0 | J48: 0 | K48: 0 | L48: 0 | M48: 0 | N48: 0 | O48: 0 | P48: 0 | Q48: 0 | R48: 0 | S48: 0 | T48: 0 | U48: 0 | V48: 0 | W48: 0 | X48: 0 | Y48: 0 | Z48: 0 | AA48: 0 | AB48: 0 | AC48: 0 | AD48: 0 | AE48: 0 | AF48: 0 | AG48: 0 | AH48: 0 | AI48: 0 | AJ48: 0 | AK48: 0 | AM48: =SUM(C48:AK48) -> 0
B49: Transporte Interno | C49: =C50*C51*C52*C$7*IF(C11>=$D$170,C52,) -> 0 | D49: 0 | E49: 0 | F49: 0 | G49: 0 | H49: 0 | I49: 0 | J49: 0 | K49: 0 | L49: 0 | M49: 0 | N49: 0 | O49: 0 | P49: 0 | Q49: 0 | R49: 0 | S49: 0 | T49: 0 | U49: 0 | V49: 0 | W49: 0 | X49: 0 | Y49: 0 | Z49: 0 | AA49: 0 | AB49: 0 | AC49: 0 | AD49: 0 | AE49: 0 | AF49: 0 | AG49: 0 | AH49: 0 | AI49: 0 | AJ49: 0 | AK49: 0 | AM49: =SUM(C49:AK49) -> 0
B50: Visitas por ano | C50: ='04.1 DEMANDA'!D26 -> 66857 | D50: ='04.1 DEMANDA'!E26 -> 68030.2108 | E50: ='04.1 DEMANDA'!F26 -> 69286.79369 | F50: ='04.1 DEMANDA'!G26 -> 70566.58686 | G50: ='04.1 DEMANDA'!H26 -> 71870.01904 | H50: ='04.1 DEMANDA'!I26 -> 73197.52685 | I50: ='04.1 DEMANDA'!J26 -> 74549.555 | J50: ='04.1 DEMANDA'!K26 -> 75926.5564 | K50: ='04.1 DEMANDA'!L26 -> 77328.99232 | L50: ='04.1 DEMANDA'!M26 -> 78757.33258 | M50: ='04.1 DEMANDA'!N26 -> 80212.05564 | N50: ='04.1 DEMANDA'!O26 -> 81693.64883 | O50: ='04.1 DEMANDA'!P26 -> 83202.60845 | P50: ='04.1 DEMANDA'!Q26 -> 84739.44 | Q50: ='04.1 DEMANDA'!R26 -> 86304.65829 | R50: ='04.1 DEMANDA'!S26 -> 87898.78766 | S50: ='04.1 DEMANDA'!T26 -> 89522.36212 | T50: ='04.1 DEMANDA'!U26 -> 91175.92555 | U50: ='04.1 DEMANDA'!V26 -> 92860.03187 | V50: ='04.1 DEMANDA'!W26 -> 94575.24524 | W50: ='04.1 DEMANDA'!X26 -> 96322.14024 | X50: ='04.1 DEMANDA'!Y26 -> 98101.30206 | Y50: ='04.1 DEMANDA'!Z26 -> 99913.32669 | Z50: ='04.1 DEMANDA'!AA26 -> 101758.8211 | AA50: ='04.1 DEMANDA'!AB26 -> 103638.4036 | AB50: ='04.1 DEMANDA'!AC26 -> 105552.7038 | AC50: ='04.1 DEMANDA'!AD26 -> 107502.363 | AD50: ='04.1 DEMANDA'!AE26 -> 109488.0342 | AE50: ='04.1 DEMANDA'!AF26 -> 111510.3826 | AF50: ='04.1 DEMANDA'!AG26 -> 113570.0857 | AG50: ='04.1 DEMANDA'!AH26 -> 0 | AH50: ='04.1 DEMANDA'!AI26 -> 0 | AI50: ='04.1 DEMANDA'!AJ26 -> 0 | AJ50: ='04.1 DEMANDA'!AK26 -> 0 | AK50: ='04.1 DEMANDA'!AL26 -> 0 | AM50: =SUM(C50:AK50) -> 2645912.9
B51: Ticket Médio (R$) | C51: ='01. PC'!$H$36 -> 0 | D51: =C51 -> 0 | E51: 0 | F51: 0 | G51: 0 | H51: 0 | I51: 0 | J51: 0 | K51: 0 | L51: 0 | M51: 0 | N51: 0 | O51: 0 | P51: 0 | Q51: 0 | R51: 0 | S51: 0 | T51: 0 | U51: 0 | V51: 0 | W51: 0 | X51: 0 | Y51: 0 | Z51: 0 | AA51: 0 | AB51: 0 | AC51: 0 | AD51: 0 | AE51: 0 | AF51: 0 | AG51: 0 | AH51: 0 | AI51: 0 | AJ51: 0 | AK51: 0 | AM51: -
B52: Adesão | C52: ='01. PC'!$J$36 -> 0 | D52: =C52 -> 0 | E52: 0 | F52: 0 | G52: 0 | H52: 0 | I52: 0 | J52: 0 | K52: 0 | L52: 0 | M52: 0 | N52: 0 | O52: 0 | P52: 0 | Q52: 0 | R52: 0 | S52: 0 | T52: 0 | U52: 0 | V52: 0 | W52: 0 | X52: 0 | Y52: 0 | Z52: 0 | AA52: 0 | AB52: 0 | AC52: 0 | AD52: 0 | AE52: 0 | AF52: 0 | AG52: 0 | AH52: 0 | AI52: 0 | AJ52: 0 | AK52: 0 | AM52: =SUM(C52:AK52) -> 0
B54: Alimentação | C54: =C56+C79+C90 -> 1.51503912 | D54: 1.541625121 | E54: 1.570100407 | F54: 1.59910166 | G54: 2.908283201 | H54: 2.962001967 | I54: 3.016712968 | J54: 3.072434535 | K54: 3.129185332 | L54: 3.754037164 | M54: 3.823377812 | N54: 3.893999247 | O54: 3.965925128 | P54: 4.039179548 | Q54: 4.113787048 | R54: 4.189772619 | S54: 4.267161716 | T54: 4.345980264 | U54: 4.426254665 | V54: 4.508011811 | W54: 4.59127909 | X54: 4.676084394 | Y54: 4.762456134 | Z54: 4.850423242 | AA54: 4.940015186 | AB54: 5.031261979 | AC54: 5.124194187 | AD54: 5.218842942 | AE54: 5.31523995 | AF54: 5.413417502 | AG54: 0 | AH54: 0 | AI54: 0 | AJ54: 0 | AK54: 0 | AM54: =SUM(C54:AK54) -> 116.5651859
B56: PNB | C56: =(C57+C60+C63+C66+C69+C72+C75)/10^6 -> 1.51503912 | D56: 1.541625121 | E56: 1.570100407 | F56: 1.59910166 | G56: 2.908283201 | H56: 2.962001967 | I56: 3.016712968 | J56: 3.072434535 | K56: 3.129185332 | L56: 3.18698437 | M56: 3.245851011 | N56: 3.305804976 | O56: 3.366866347 | P56: 3.42905558 | Q56: 3.492393508 | R56: 3.556901348 | S56: 3.622600709 | T56: 3.6895136 | U56: 3.757662435 | V56: 3.827070045 | W56: 3.89775968 | X56: 3.969755019 | Y56: 4.043080181 | Z56: 4.117759729 | AA56: 4.19381868 | AB56: 4.271282511 | AC56: 4.350177174 | AD56: 4.430529096 | AE56: 4.512365195 | AF56: 4.595712885 | AG56: 0 | AH56: 0 | AI56: 0 | AJ56: 0 | AK56: 0 | AM56: =SUM(C56:AK56) -> 102.1774284
B57: Lanchonete - Pedreira | C57: =IF(C$11>=SUMIF($B$151:$B$161,$B57,$D$151:$D$161),'04.1 DEMANDA'!D$14*C58*C59,0)*SUMIF($B$151:$B$161,$B57,$C$151:$C$161) -> 324651.24 | D57: =IF(D$11>=SUMIF($B$151:$B$161,$B57,$D$151:$D$161),'04.1 DEMANDA'!E$14*D58*D59,0)*SUMIF($B$151:$B$161,$B57,$C$151:$C$161) -> 330348.2402 | E57: =IF(E$11>=SUMIF($B$151:$B$161,$B57,$D$151:$D$161),'04.1 DEMANDA'!F$14*E58*E59,0)*SUMIF($B$151:$B$161,$B57,$C$151:$C$161) -> 336450.0873 | F57: =IF(F$11>=SUMIF($B$151:$B$161,$B57,$D$151:$D$161),'04.1 DEMANDA'!G$14*F58*F59,0)*SUMIF($B$151:$B$161,$B57,$C$151:$C$161) -> 342664.6414 | G57: =IF(G$11>=SUMIF($B$151:$B$161,$B57,$D$151:$D$161),'04.1 DEMANDA'!H$14*G58*G59,0)*SUMIF($B$151:$B$161,$B57,$C$151:$C$161) -> 348993.9842 | H57: =IF(H$11>=SUMIF($B$151:$B$161,$B57,$D$151:$D$161),'04.1 DEMANDA'!I$14*H58*H59,0)*SUMIF($B$151:$B$161,$B57,$C$151:$C$161) -> 355440.236 | I57: =IF(I$11>=SUMIF($B$151:$B$161,$B57,$D$151:$D$161),'04.1 DEMANDA'!J$14*I58*I59,0)*SUMIF($B$151:$B$161,$B57,$C$151:$C$161) -> 362005.5562 | J57: =IF(J$11>=SUMIF($B$151:$B$161,$B57,$D$151:$D$161),'04.1 DEMANDA'!K$14*J58*J59,0)*SUMIF($B$151:$B$161,$B57,$C$151:$C$161) -> 368692.1442 | K57: =IF(K$11>=SUMIF($B$151:$B$161,$B57,$D$151:$D$161),'04.1 DEMANDA'!L$14*K58*K59,0)*SUMIF($B$151:$B$161,$B57,$C$151:$C$161) -> 375502.2398 | L57: =IF(L$11>=SUMIF($B$151:$B$161,$B57,$D$151:$D$161),'04.1 DEMANDA'!M$14*L58*L59,0)*SUMIF($B$151:$B$161,$B57,$C$151:$C$161) -> 382438.1244 | M57: =IF(M$11>=SUMIF($B$151:$B$161,$B57,$D$151:$D$161),'04.1 DEMANDA'!N$14*M58*M59,0)*SUMIF($B$151:$B$161,$B57,$C$151:$C$161) -> 389502.1213 | N57: =IF(N$11>=SUMIF($B$151:$B$161,$B57,$D$151:$D$161),'04.1 DEMANDA'!O$14*N58*N59,0)*SUMIF($B$151:$B$161,$B57,$C$151:$C$161) -> 396696.5971 | O57: =IF(O$11>=SUMIF($B$151:$B$161,$B57,$D$151:$D$161),'04.1 DEMANDA'!P$14*O58*O59,0)*SUMIF($B$151:$B$161,$B57,$C$151:$C$161) -> 404023.9617 | P57: =IF(P$11>=SUMIF($B$151:$B$161,$B57,$D$151:$D$161),'04.1 DEMANDA'!Q$14*P58*P59,0)*SUMIF($B$151:$B$161,$B57,$C$151:$C$161) -> 411486.6697 | Q57: =IF(Q$11>=SUMIF($B$151:$B$161,$B57,$D$151:$D$161),'04.1 DEMANDA'!R$14*Q58*Q59,0)*SUMIF($B$151:$B$161,$B57,$C$151:$C$161) -> 419087.221 | R57: =IF(R$11>=SUMIF($B$151:$B$161,$B57,$D$151:$D$161),'04.1 DEMANDA'!S$14*R58*R59,0)*SUMIF($B$151:$B$161,$B57,$C$151:$C$161) -> 426828.1617 | S57: =IF(S$11>=SUMIF($B$151:$B$161,$B57,$D$151:$D$161),'04.1 DEMANDA'!T$14*S58*S59,0)*SUMIF($B$151:$B$161,$B57,$C$151:$C$161) -> 434712.0851 | T57: =IF(T$11>=SUMIF($B$151:$B$161,$B57,$D$151:$D$161),'04.1 DEMANDA'!U$14*T58*T59,0)*SUMIF($B$151:$B$161,$B57,$C$151:$C$161) -> 442741.632 | U57: =IF(U$11>=SUMIF($B$151:$B$161,$B57,$D$151:$D$161),'04.1 DEMANDA'!V$14*U58*U59,0)*SUMIF($B$151:$B$161,$B57,$C$151:$C$161) -> 450919.4923 | V57: =IF(V$11>=SUMIF($B$151:$B$161,$B57,$D$151:$D$161),'04.1 DEMANDA'!W$14*V58*V59,0)*SUMIF($B$151:$B$161,$B57,$C$151:$C$161) -> 459248.4054 | W57: =IF(W$11>=SUMIF($B$151:$B$161,$B57,$D$151:$D$161),'04.1 DEMANDA'!X$14*W58*W59,0)*SUMIF($B$151:$B$161,$B57,$C$151:$C$161) -> 467731.1616 | X57: =IF(X$11>=SUMIF($B$151:$B$161,$B57,$D$151:$D$161),'04.1 DEMANDA'!Y$14*X58*X59,0)*SUMIF($B$151:$B$161,$B57,$C$151:$C$161) -> 476370.6023 | Y57: =IF(Y$11>=SUMIF($B$151:$B$161,$B57,$D$151:$D$161),'04.1 DEMANDA'!Z$14*Y58*Y59,0)*SUMIF($B$151:$B$161,$B57,$C$151:$C$161) -> 485169.6218 | Z57: =IF(Z$11>=SUMIF($B$151:$B$161,$B57,$D$151:$D$161),'04.1 DEMANDA'!AA$14*Z58*Z59,0)*SUMIF($B$151:$B$161,$B57,$C$151:$C$161) -> 494131.1675 | AA57: =IF(AA$11>=SUMIF($B$151:$B$161,$B57,$D$151:$D$161),'04.1 DEMANDA'!AB$14*AA58*AA59,0)*SUMIF($B$151:$B$161,$B57,$C$151:$C$161) -> 503258.2415 | AB57: =IF(AB$11>=SUMIF($B$151:$B$161,$B57,$D$151:$D$161),'04.1 DEMANDA'!AC$14*AB58*AB59,0)*SUMIF($B$151:$B$161,$B57,$C$151:$C$161) -> 512553.9014 | AC57: =IF(AC$11>=SUMIF($B$151:$B$161,$B57,$D$151:$D$161),'04.1 DEMANDA'!AD$14*AC58*AC59,0)*SUMIF($B$151:$B$161,$B57,$C$151:$C$161) -> 522021.2609 | AD57: =IF(AD$11>=SUMIF($B$151:$B$161,$B57,$D$151:$D$161),'04.1 DEMANDA'!AE$14*AD58*AD59,0)*SUMIF($B$151:$B$161,$B57,$C$151:$C$161) -> 531663.4915 | AE57: =IF(AE$11>=SUMIF($B$151:$B$161,$B57,$D$151:$D$161),'04.1 DEMANDA'!AF$14*AE58*AE59,0)*SUMIF($B$151:$B$161,$B57,$C$151:$C$161) -> 541483.8234 | AF57: =IF(AF$11>=SUMIF($B$151:$B$161,$B57,$D$151:$D$161),'04.1 DEMANDA'!AG$14*AF58*AF59,0)*SUMIF($B$151:$B$161,$B57,$C$151:$C$161) -> 551485.5462 | AG57: =IF(AG$11>=SUMIF($B$151:$B$161,$B57,$D$151:$D$161),'04.1 DEMANDA'!AH$14*AG58*AG59,0)*SUMIF($B$151:$B$161,$B57,$C$151:$C$161) -> 0 | AH57: =IF(AH$11>=SUMIF($B$151:$B$161,$B57,$D$151:$D$161),'04.1 DEMANDA'!AI$14*AH58*AH59,0)*SUMIF($B$151:$B$161,$B57,$C$151:$C$161) -> 0 | AI57: =IF(AI$11>=SUMIF($B$151:$B$161,$B57,$D$151:$D$161),'04.1 DEMANDA'!AJ$14*AI58*AI59,0)*SUMIF($B$151:$B$161,$B57,$C$151:$C$161) -> 0 | AJ57: =IF(AJ$11>=SUMIF($B$151:$B$161,$B57,$D$151:$D$161),'04.1 DEMANDA'!AK$14*AJ58*AJ59,0)*SUMIF($B$151:$B$161,$B57,$C$151:$C$161) -> 0 | AK57: =IF(AK$11>=SUMIF($B$151:$B$161,$B57,$D$151:$D$161),'04.1 DEMANDA'!AL$14*AK58*AK59,0)*SUMIF($B$151:$B$161,$B57,$C$151:$C$161) -> 0 | AM57: =SUM(C57:AK57) -> 12848301.66
B58: Adesão | C58: ='01. PC'!$J$37 -> 0.03 | D58: =C58 -> 0.03 | E58: 0.03 | F58: 0.03 | G58: 0.03 | H58: 0.03 | I58: 0.03 | J58: 0.03 | K58: 0.03 | L58: 0.03 | M58: 0.03 | N58: 0.03 | O58: 0.03 | P58: 0.03 | Q58: 0.03 | R58: 0.03 | S58: 0.03 | T58: 0.03 | U58: 0.03 | V58: 0.03 | W58: 0.03 | X58: 0.03 | Y58: 0.03 | Z58: 0.03 | AA58: 0.03 | AB58: 0.03 | AC58: 0.03 | AD58: 0.03 | AE58: 0.03 | AF58: 0.03 | AG58: 0.03 | AH58: 0.03 | AI58: 0.03 | AJ58: 0.03 | AK58: 0.03 | AM58: =SUM(C58:AK58) -> 1.05
B59: Ticket Médio (R$) | C59: ='01. PC'!$H$37 -> 36 | D59: =C59 -> 36 | E59: 36 | F59: 36 | G59: 36 | H59: 36 | I59: 36 | J59: 36 | K59: 36 | L59: 36 | M59: 36 | N59: 36 | O59: 36 | P59: 36 | Q59: 36 | R59: 36 | S59: 36 | T59: 36 | U59: 36 | V59: 36 | W59: 36 | X59: 36 | Y59: 36 | Z59: 36 | AA59: 36 | AB59: 36 | AC59: 36 | AD59: 36 | AE59: 36 | AF59: 36 | AG59: 36 | AH59: 36 | AI59: 36 | AJ59: 36 | AK59: 36 | AM59: -
B60: Quiosque Vazio - Pedreira | C60: =IF(C$11>=SUMIF($B$151:$B$161,$B60,$D$151:$D$161),'04.1 DEMANDA'!D$14*C61*C62,0)*SUMIF($B$151:$B$161,$B60,$C$151:$C$161) -> 432868.32 | D60: =IF(D$11>=SUMIF($B$151:$B$161,$B60,$D$151:$D$161),'04.1 DEMANDA'!E$14*D61*D62,0)*SUMIF($B$151:$B$161,$B60,$C$151:$C$161) -> 440464.3202 | E60: =IF(E$11>=SUMIF($B$151:$B$161,$B60,$D$151:$D$161),'04.1 DEMANDA'!F$14*E61*E62,0)*SUMIF($B$151:$B$161,$B60,$C$151:$C$161) -> 448600.1164 | F60: =IF(F$11>=SUMIF($B$151:$B$161,$B60,$D$151:$D$161),'04.1 DEMANDA'!G$14*F61*F62,0)*SUMIF($B$151:$B$161,$B60,$C$151:$C$161) -> 456886.1885 | G60: =IF(G$11>=SUMIF($B$151:$B$161,$B60,$D$151:$D$161),'04.1 DEMANDA'!H$14*G61*G62,0)*SUMIF($B$151:$B$161,$B60,$C$151:$C$161) -> 465325.3122 | H60: =IF(H$11>=SUMIF($B$151:$B$161,$B60,$D$151:$D$161),'04.1 DEMANDA'!I$14*H61*H62,0)*SUMIF($B$151:$B$161,$B60,$C$151:$C$161) -> 473920.3146 | I60: =IF(I$11>=SUMIF($B$151:$B$161,$B60,$D$151:$D$161),'04.1 DEMANDA'!J$14*I61*I62,0)*SUMIF($B$151:$B$161,$B60,$C$151:$C$161) -> 482674.075 | J60: =IF(J$11>=SUMIF($B$151:$B$161,$B60,$D$151:$D$161),'04.1 DEMANDA'!K$14*J61*J62,0)*SUMIF($B$151:$B$161,$B60,$C$151:$C$161) -> 491589.5256 | K60: =IF(K$11>=SUMIF($B$151:$B$161,$B60,$D$151:$D$161),'04.1 DEMANDA'!L$14*K61*K62,0)*SUMIF($B$151:$B$161,$B60,$C$151:$C$161) -> 500669.653 | L60: =IF(L$11>=SUMIF($B$151:$B$161,$B60,$D$151:$D$161),'04.1 DEMANDA'!M$14*L61*L62,0)*SUMIF($B$151:$B$161,$B60,$C$151:$C$161) -> 509917.4992 | M60: =IF(M$11>=SUMIF($B$151:$B$161,$B60,$D$151:$D$161),'04.1 DEMANDA'!N$14*M61*M62,0)*SUMIF($B$151:$B$161,$B60,$C$151:$C$161) -> 519336.1618 | N60: =IF(N$11>=SUMIF($B$151:$B$161,$B60,$D$151:$D$161),'04.1 DEMANDA'!O$14*N61*N62,0)*SUMIF($B$151:$B$161,$B60,$C$151:$C$161) -> 528928.7961 | O60: =IF(O$11>=SUMIF($B$151:$B$161,$B60,$D$151:$D$161),'04.1 DEMANDA'!P$14*O61*O62,0)*SUMIF($B$151:$B$161,$B60,$C$151:$C$161) -> 538698.6156 | P60: =IF(P$11>=SUMIF($B$151:$B$161,$B60,$D$151:$D$161),'04.1 DEMANDA'!Q$14*P61*P62,0)*SUMIF($B$151:$B$161,$B60,$C$151:$C$161) -> 548648.8929 | Q60: =IF(Q$11>=SUMIF($B$151:$B$161,$B60,$D$151:$D$161),'04.1 DEMANDA'!R$14*Q61*Q62,0)*SUMIF($B$151:$B$161,$B60,$C$151:$C$161) -> 558782.9613 | R60: =IF(R$11>=SUMIF($B$151:$B$161,$B60,$D$151:$D$161),'04.1 DEMANDA'!S$14*R61*R62,0)*SUMIF($B$151:$B$161,$B60,$C$151:$C$161) -> 569104.2157 | S60: =IF(S$11>=SUMIF($B$151:$B$161,$B60,$D$151:$D$161),'04.1 DEMANDA'!T$14*S61*S62,0)*SUMIF($B$151:$B$161,$B60,$C$151:$C$161) -> 579616.1134 | T60: =IF(T$11>=SUMIF($B$151:$B$161,$B60,$D$151:$D$161),'04.1 DEMANDA'!U$14*T61*T62,0)*SUMIF($B$151:$B$161,$B60,$C$151:$C$161) -> 590322.1759 | U60: =IF(U$11>=SUMIF($B$151:$B$161,$B60,$D$151:$D$161),'04.1 DEMANDA'!V$14*U61*U62,0)*SUMIF($B$151:$B$161,$B60,$C$151:$C$161) -> 601225.9897 | V60: =IF(V$11>=SUMIF($B$151:$B$161,$B60,$D$151:$D$161),'04.1 DEMANDA'!W$14*V61*V62,0)*SUMIF($B$151:$B$161,$B60,$C$151:$C$161) -> 612331.2072 | W60: =IF(W$11>=SUMIF($B$151:$B$161,$B60,$D$151:$D$161),'04.1 DEMANDA'!X$14*W61*W62,0)*SUMIF($B$151:$B$161,$B60,$C$151:$C$161) -> 623641.5488 | X60: =IF(X$11>=SUMIF($B$151:$B$161,$B60,$D$151:$D$161),'04.1 DEMANDA'!Y$14*X61*X62,0)*SUMIF($B$151:$B$161,$B60,$C$151:$C$161) -> 635160.8031 | Y60: =IF(Y$11>=SUMIF($B$151:$B$161,$B60,$D$151:$D$161),'04.1 DEMANDA'!Z$14*Y61*Y62,0)*SUMIF($B$151:$B$161,$B60,$C$151:$C$161) -> 646892.829 | Z60: =IF(Z$11>=SUMIF($B$151:$B$161,$B60,$D$151:$D$161),'04.1 DEMANDA'!AA$14*Z61*Z62,0)*SUMIF($B$151:$B$161,$B60,$C$151:$C$161) -> 658841.5567 | AA60: =IF(AA$11>=SUMIF($B$151:$B$161,$B60,$D$151:$D$161),'04.1 DEMANDA'!AB$14*AA61*AA62,0)*SUMIF($B$151:$B$161,$B60,$C$151:$C$161) -> 671010.9887 | AB60: =IF(AB$11>=SUMIF($B$151:$B$161,$B60,$D$151:$D$161),'04.1 DEMANDA'!AC$14*AB61*AB62,0)*SUMIF($B$151:$B$161,$B60,$C$151:$C$161) -> 683405.2018 | AC60: =IF(AC$11>=SUMIF($B$151:$B$161,$B60,$D$151:$D$161),'04.1 DEMANDA'!AD$14*AC61*AC62,0)*SUMIF($B$151:$B$161,$B60,$C$151:$C$161) -> 696028.3478 | AD60: =IF(AD$11>=SUMIF($B$151:$B$161,$B60,$D$151:$D$161),'04.1 DEMANDA'!AE$14*AD61*AD62,0)*SUMIF($B$151:$B$161,$B60,$C$151:$C$161) -> 708884.6554 | AE60: =IF(AE$11>=SUMIF($B$151:$B$161,$B60,$D$151:$D$161),'04.1 DEMANDA'!AF$14*AE61*AE62,0)*SUMIF($B$151:$B$161,$B60,$C$151:$C$161) -> 721978.4312 | AF60: =IF(AF$11>=SUMIF($B$151:$B$161,$B60,$D$151:$D$161),'04.1 DEMANDA'!AG$14*AF61*AF62,0)*SUMIF($B$151:$B$161,$B60,$C$151:$C$161) -> 735314.0615 | AG60: =IF(AG$11>=SUMIF($B$151:$B$161,$B60,$D$151:$D$161),'04.1 DEMANDA'!AH$14*AG61*AG62,0)*SUMIF($B$151:$B$161,$B60,$C$151:$C$161) -> 0 | AH60: =IF(AH$11>=SUMIF($B$151:$B$161,$B60,$D$151:$D$161),'04.1 DEMANDA'!AI$14*AH61*AH62,0)*SUMIF($B$151:$B$161,$B60,$C$151:$C$161) -> 0 | AI60: =IF(AI$11>=SUMIF($B$151:$B$161,$B60,$D$151:$D$161),'04.1 DEMANDA'!AJ$14*AI61*AI62,0)*SUMIF($B$151:$B$161,$B60,$C$151:$C$161) -> 0 | AJ60: =IF(AJ$11>=SUMIF($B$151:$B$161,$B60,$D$151:$D$161),'04.1 DEMANDA'!AK$14*AJ61*AJ62,0)*SUMIF($B$151:$B$161,$B60,$C$151:$C$161) -> 0 | AK60: =IF(AK$11>=SUMIF($B$151:$B$161,$B60,$D$151:$D$161),'04.1 DEMANDA'!AL$14*AK61*AK62,0)*SUMIF($B$151:$B$161,$B60,$C$151:$C$161) -> 0 | AM60: =SUM(C60:AK60) -> 17131068.88
B61: Adesão | C61: ='01. PC'!$J$38 -> 0.03 | D61: =C61 -> 0.03 | E61: 0.03 | F61: 0.03 | G61: 0.03 | H61: 0.03 | I61: 0.03 | J61: 0.03 | K61: 0.03 | L61: 0.03 | M61: 0.03 | N61: 0.03 | O61: 0.03 | P61: 0.03 | Q61: 0.03 | R61: 0.03 | S61: 0.03 | T61: 0.03 | U61: 0.03 | V61: 0.03 | W61: 0.03 | X61: 0.03 | Y61: 0.03 | Z61: 0.03 | AA61: 0.03 | AB61: 0.03 | AC61: 0.03 | AD61: 0.03 | AE61: 0.03 | AF61: 0.03 | AG61: 0.03 | AH61: 0.03 | AI61: 0.03 | AJ61: 0.03 | AK61: 0.03 | AM61: =SUM(C61:AK61) -> 1.05
B62: Ticket Médio (R$) | C62: ='01. PC'!$H$38 -> 48 | D62: =C62 -> 48 | E62: 48 | F62: 48 | G62: 48 | H62: 48 | I62: 48 | J62: 48 | K62: 48 | L62: 48 | M62: 48 | N62: 48 | O62: 48 | P62: 48 | Q62: 48 | R62: 48 | S62: 48 | T62: 48 | U62: 48 | V62: 48 | W62: 48 | X62: 48 | Y62: 48 | Z62: 48 | AA62: 48 | AB62: 48 | AC62: 48 | AD62: 48 | AE62: 48 | AF62: 48 | AG62: 48 | AH62: 48 | AI62: 48 | AJ62: 48 | AK62: 48 | AM62: -
B63: Lanchonete Areal | C63: =IF(C$11>=SUMIF($B$151:$B$161,$B63,$D$151:$D$161),'04.1 DEMANDA'!D$14*C64*C65,0)*SUMIF($B$151:$B$161,$B63,$C$151:$C$161) -> 324651.24 | D63: =IF(D$11>=SUMIF($B$151:$B$161,$B63,$D$151:$D$161),'04.1 DEMANDA'!E$14*D64*D65,0)*SUMIF($B$151:$B$161,$B63,$C$151:$C$161) -> 330348.2402 | E63: =IF(E$11>=SUMIF($B$151:$B$161,$B63,$D$151:$D$161),'04.1 DEMANDA'!F$14*E64*E65,0)*SUMIF($B$151:$B$161,$B63,$C$151:$C$161) -> 336450.0873 | F63: =IF(F$11>=SUMIF($B$151:$B$161,$B63,$D$151:$D$161),'04.1 DEMANDA'!G$14*F64*F65,0)*SUMIF($B$151:$B$161,$B63,$C$151:$C$161) -> 342664.6414 | G63: =IF(G$11>=SUMIF($B$151:$B$161,$B63,$D$151:$D$161),'04.1 DEMANDA'!H$14*G64*G65,0)*SUMIF($B$151:$B$161,$B63,$C$151:$C$161) -> 348993.9842 | H63: =IF(H$11>=SUMIF($B$151:$B$161,$B63,$D$151:$D$161),'04.1 DEMANDA'!I$14*H64*H65,0)*SUMIF($B$151:$B$161,$B63,$C$151:$C$161) -> 355440.236 | I63: =IF(I$11>=SUMIF($B$151:$B$161,$B63,$D$151:$D$161),'04.1 DEMANDA'!J$14*I64*I65,0)*SUMIF($B$151:$B$161,$B63,$C$151:$C$161) -> 362005.5562 | J63: =IF(J$11>=SUMIF($B$151:$B$161,$B63,$D$151:$D$161),'04.1 DEMANDA'!K$14*J64*J65,0)*SUMIF($B$151:$B$161,$B63,$C$151:$C$161) -> 368692.1442 | K63: =IF(K$11>=SUMIF($B$151:$B$161,$B63,$D$151:$D$161),'04.1 DEMANDA'!L$14*K64*K65,0)*SUMIF($B$151:$B$161,$B63,$C$151:$C$161) -> 375502.2398 | L63: =IF(L$11>=SUMIF($B$151:$B$161,$B63,$D$151:$D$161),'04.1 DEMANDA'!M$14*L64*L65,0)*SUMIF($B$151:$B$161,$B63,$C$151:$C$161) -> 382438.1244 | M63: =IF(M$11>=SUMIF($B$151:$B$161,$B63,$D$151:$D$161),'04.1 DEMANDA'!N$14*M64*M65,0)*SUMIF($B$151:$B$161,$B63,$C$151:$C$161) -> 389502.1213 | N63: =IF(N$11>=SUMIF($B$151:$B$161,$B63,$D$151:$D$161),'04.1 DEMANDA'!O$14*N64*N65,0)*SUMIF($B$151:$B$161,$B63,$C$151:$C$161) -> 396696.5971 | O63: =IF(O$11>=SUMIF($B$151:$B$161,$B63,$D$151:$D$161),'04.1 DEMANDA'!P$14*O64*O65,0)*SUMIF($B$151:$B$161,$B63,$C$151:$C$161) -> 404023.9617 | P63: =IF(P$11>=SUMIF($B$151:$B$161,$B63,$D$151:$D$161),'04.1 DEMANDA'!Q$14*P64*P65,0)*SUMIF($B$151:$B$161,$B63,$C$151:$C$161) -> 411486.6697 | Q63: =IF(Q$11>=SUMIF($B$151:$B$161,$B63,$D$151:$D$161),'04.1 DEMANDA'!R$14*Q64*Q65,0)*SUMIF($B$151:$B$161,$B63,$C$151:$C$161) -> 419087.221 | R63: =IF(R$11>=SUMIF($B$151:$B$161,$B63,$D$151:$D$161),'04.1 DEMANDA'!S$14*R64*R65,0)*SUMIF($B$151:$B$161,$B63,$C$151:$C$161) -> 426828.1617 | S63: =IF(S$11>=SUMIF($B$151:$B$161,$B63,$D$151:$D$161),'04.1 DEMANDA'!T$14*S64*S65,0)*SUMIF($B$151:$B$161,$B63,$C$151:$C$161) -> 434712.0851 | T63: =IF(T$11>=SUMIF($B$151:$B$161,$B63,$D$151:$D$161),'04.1 DEMANDA'!U$14*T64*T65,0)*SUMIF($B$151:$B$161,$B63,$C$151:$C$161) -> 442741.632 | U63: =IF(U$11>=SUMIF($B$151:$B$161,$B63,$D$151:$D$161),'04.1 DEMANDA'!V$14*U64*U65,0)*SUMIF($B$151:$B$161,$B63,$C$151:$C$161) -> 450919.4923 | V63: =IF(V$11>=SUMIF($B$151:$B$161,$B63,$D$151:$D$161),'04.1 DEMANDA'!W$14*V64*V65,0)*SUMIF($B$151:$B$161,$B63,$C$151:$C$161) -> 459248.4054 | W63: =IF(W$11>=SUMIF($B$151:$B$161,$B63,$D$151:$D$161),'04.1 DEMANDA'!X$14*W64*W65,0)*SUMIF($B$151:$B$161,$B63,$C$151:$C$161) -> 467731.1616 | X63: =IF(X$11>=SUMIF($B$151:$B$161,$B63,$D$151:$D$161),'04.1 DEMANDA'!Y$14*X64*X65,0)*SUMIF($B$151:$B$161,$B63,$C$151:$C$161) -> 476370.6023 | Y63: =IF(Y$11>=SUMIF($B$151:$B$161,$B63,$D$151:$D$161),'04.1 DEMANDA'!Z$14*Y64*Y65,0)*SUMIF($B$151:$B$161,$B63,$C$151:$C$161) -> 485169.6218 | Z63: =IF(Z$11>=SUMIF($B$151:$B$161,$B63,$D$151:$D$161),'04.1 DEMANDA'!AA$14*Z64*Z65,0)*SUMIF($B$151:$B$161,$B63,$C$151:$C$161) -> 494131.1675 | AA63: =IF(AA$11>=SUMIF($B$151:$B$161,$B63,$D$151:$D$161),'04.1 DEMANDA'!AB$14*AA64*AA65,0)*SUMIF($B$151:$B$161,$B63,$C$151:$C$161) -> 503258.2415 | AB63: =IF(AB$11>=SUMIF($B$151:$B$161,$B63,$D$151:$D$161),'04.1 DEMANDA'!AC$14*AB64*AB65,0)*SUMIF($B$151:$B$161,$B63,$C$151:$C$161) -> 512553.9014 | AC63: =IF(AC$11>=SUMIF($B$151:$B$161,$B63,$D$151:$D$161),'04.1 DEMANDA'!AD$14*AC64*AC65,0)*SUMIF($B$151:$B$161,$B63,$C$151:$C$161) -> 522021.2609 | AD63: =IF(AD$11>=SUMIF($B$151:$B$161,$B63,$D$151:$D$161),'04.1 DEMANDA'!AE$14*AD64*AD65,0)*SUMIF($B$151:$B$161,$B63,$C$151:$C$161) -> 531663.4915 | AE63: =IF(AE$11>=SUMIF($B$151:$B$161,$B63,$D$151:$D$161),'04.1 DEMANDA'!AF$14*AE64*AE65,0)*SUMIF($B$151:$B$161,$B63,$C$151:$C$161) -> 541483.8234 | AF63: =IF(AF$11>=SUMIF($B$151:$B$161,$B63,$D$151:$D$161),'04.1 DEMANDA'!AG$14*AF64*AF65,0)*SUMIF($B$151:$B$161,$B63,$C$151:$C$161) -> 551485.5462 | AG63: =IF(AG$11>=SUMIF($B$151:$B$161,$B63,$D$151:$D$161),'04.1 DEMANDA'!AH$14*AG64*AG65,0)*SUMIF($B$151:$B$161,$B63,$C$151:$C$161) -> 0 | AH63: =IF(AH$11>=SUMIF($B$151:$B$161,$B63,$D$151:$D$161),'04.1 DEMANDA'!AI$14*AH64*AH65,0)*SUMIF($B$151:$B$161,$B63,$C$151:$C$161) -> 0 | AI63: =IF(AI$11>=SUMIF($B$151:$B$161,$B63,$D$151:$D$161),'04.1 DEMANDA'!AJ$14*AI64*AI65,0)*SUMIF($B$151:$B$161,$B63,$C$151:$C$161) -> 0 | AJ63: =IF(AJ$11>=SUMIF($B$151:$B$161,$B63,$D$151:$D$161),'04.1 DEMANDA'!AK$14*AJ64*AJ65,0)*SUMIF($B$151:$B$161,$B63,$C$151:$C$161) -> 0 | AK63: =IF(AK$11>=SUMIF($B$151:$B$161,$B63,$D$151:$D$161),'04.1 DEMANDA'!AL$14*AK64*AK65,0)*SUMIF($B$151:$B$161,$B63,$C$151:$C$161) -> 0 | AM63: =SUM(C63:AK63) -> 12848301.66
B64: Adesão | C64: ='01. PC'!$J$39 -> 0.03 | D64: =C64 -> 0.03 | E64: 0.03 | F64: 0.03 | G64: 0.03 | H64: 0.03 | I64: 0.03 | J64: 0.03 | K64: 0.03 | L64: 0.03 | M64: 0.03 | N64: 0.03 | O64: 0.03 | P64: 0.03 | Q64: 0.03 | R64: 0.03 | S64: 0.03 | T64: 0.03 | U64: 0.03 | V64: 0.03 | W64: 0.03 | X64: 0.03 | Y64: 0.03 | Z64: 0.03 | AA64: 0.03 | AB64: 0.03 | AC64: 0.03 | AD64: 0.03 | AE64: 0.03 | AF64: 0.03 | AG64: 0.03 | AH64: 0.03 | AI64: 0.03 | AJ64: 0.03 | AK64: 0.03 | AM64: =SUM(C64:AK64) -> 1.05
B65: Ticket Médio (R$) | C65: ='01. PC'!H39 -> 36 | D65: =C65 -> 36 | E65: 36 | F65: 36 | G65: 36 | H65: 36 | I65: 36 | J65: 36 | K65: 36 | L65: 36 | M65: 36 | N65: 36 | O65: 36 | P65: 36 | Q65: 36 | R65: 36 | S65: 36 | T65: 36 | U65: 36 | V65: 36 | W65: 36 | X65: 36 | Y65: 36 | Z65: 36 | AA65: 36 | AB65: 36 | AC65: 36 | AD65: 36 | AE65: 36 | AF65: 36 | AG65: 36 | AH65: 36 | AI65: 36 | AJ65: 36 | AK65: 36 | AM65: -
B66: Quiosques Areal | C66: =IF(C$11>=SUMIF($B$151:$B$161,$B66,$D$151:$D$161),'04.1 DEMANDA'!D$14*C67*C68,0)*SUMIF($B$151:$B$161,$B66,$C$151:$C$161) -> 432868.32 | D66: =IF(D$11>=SUMIF($B$151:$B$161,$B66,$D$151:$D$161),'04.1 DEMANDA'!E$14*D67*D68,0)*SUMIF($B$151:$B$161,$B66,$C$151:$C$161) -> 440464.3202 | E66: =IF(E$11>=SUMIF($B$151:$B$161,$B66,$D$151:$D$161),'04.1 DEMANDA'!F$14*E67*E68,0)*SUMIF($B$151:$B$161,$B66,$C$151:$C$161) -> 448600.1164 | F66: =IF(F$11>=SUMIF($B$151:$B$161,$B66,$D$151:$D$161),'04.1 DEMANDA'!G$14*F67*F68,0)*SUMIF($B$151:$B$161,$B66,$C$151:$C$161) -> 456886.1885 | G66: =IF(G$11>=SUMIF($B$151:$B$161,$B66,$D$151:$D$161),'04.1 DEMANDA'!H$14*G67*G68,0)*SUMIF($B$151:$B$161,$B66,$C$151:$C$161) -> 465325.3122 | H66: =IF(H$11>=SUMIF($B$151:$B$161,$B66,$D$151:$D$161),'04.1 DEMANDA'!I$14*H67*H68,0)*SUMIF($B$151:$B$161,$B66,$C$151:$C$161) -> 473920.3146 | I66: =IF(I$11>=SUMIF($B$151:$B$161,$B66,$D$151:$D$161),'04.1 DEMANDA'!J$14*I67*I68,0)*SUMIF($B$151:$B$161,$B66,$C$151:$C$161) -> 482674.075 | J66: =IF(J$11>=SUMIF($B$151:$B$161,$B66,$D$151:$D$161),'04.1 DEMANDA'!K$14*J67*J68,0)*SUMIF($B$151:$B$161,$B66,$C$151:$C$161) -> 491589.5256 | K66: =IF(K$11>=SUMIF($B$151:$B$161,$B66,$D$151:$D$161),'04.1 DEMANDA'!L$14*K67*K68,0)*SUMIF($B$151:$B$161,$B66,$C$151:$C$161) -> 500669.653 | L66: =IF(L$11>=SUMIF($B$151:$B$161,$B66,$D$151:$D$161),'04.1 DEMANDA'!M$14*L67*L68,0)*SUMIF($B$151:$B$161,$B66,$C$151:$C$161) -> 509917.4992 | M66: =IF(M$11>=SUMIF($B$151:$B$161,$B66,$D$151:$D$161),'04.1 DEMANDA'!N$14*M67*M68,0)*SUMIF($B$151:$B$161,$B66,$C$151:$C$161) -> 519336.1618 | N66: =IF(N$11>=SUMIF($B$151:$B$161,$B66,$D$151:$D$161),'04.1 DEMANDA'!O$14*N67*N68,0)*SUMIF($B$151:$B$161,$B66,$C$151:$C$161) -> 528928.7961 | O66: =IF(O$11>=SUMIF($B$151:$B$161,$B66,$D$151:$D$161),'04.1 DEMANDA'!P$14*O67*O68,0)*SUMIF($B$151:$B$161,$B66,$C$151:$C$161) -> 538698.6156 | P66: =IF(P$11>=SUMIF($B$151:$B$161,$B66,$D$151:$D$161),'04.1 DEMANDA'!Q$14*P67*P68,0)*SUMIF($B$151:$B$161,$B66,$C$151:$C$161) -> 548648.8929 | Q66: =IF(Q$11>=SUMIF($B$151:$B$161,$B66,$D$151:$D$161),'04.1 DEMANDA'!R$14*Q67*Q68,0)*SUMIF($B$151:$B$161,$B66,$C$151:$C$161) -> 558782.9613 | R66: =IF(R$11>=SUMIF($B$151:$B$161,$B66,$D$151:$D$161),'04.1 DEMANDA'!S$14*R67*R68,0)*SUMIF($B$151:$B$161,$B66,$C$151:$C$161) -> 569104.2157 | S66: =IF(S$11>=SUMIF($B$151:$B$161,$B66,$D$151:$D$161),'04.1 DEMANDA'!T$14*S67*S68,0)*SUMIF($B$151:$B$161,$B66,$C$151:$C$161) -> 579616.1134 | T66: =IF(T$11>=SUMIF($B$151:$B$161,$B66,$D$151:$D$161),'04.1 DEMANDA'!U$14*T67*T68,0)*SUMIF($B$151:$B$161,$B66,$C$151:$C$161) -> 590322.1759 | U66: =IF(U$11>=SUMIF($B$151:$B$161,$B66,$D$151:$D$161),'04.1 DEMANDA'!V$14*U67*U68,0)*SUMIF($B$151:$B$161,$B66,$C$151:$C$161) -> 601225.9897 | V66: =IF(V$11>=SUMIF($B$151:$B$161,$B66,$D$151:$D$161),'04.1 DEMANDA'!W$14*V67*V68,0)*SUMIF($B$151:$B$161,$B66,$C$151:$C$161) -> 612331.2072 | W66: =IF(W$11>=SUMIF($B$151:$B$161,$B66,$D$151:$D$161),'04.1 DEMANDA'!X$14*W67*W68,0)*SUMIF($B$151:$B$161,$B66,$C$151:$C$161) -> 623641.5488 | X66: =IF(X$11>=SUMIF($B$151:$B$161,$B66,$D$151:$D$161),'04.1 DEMANDA'!Y$14*X67*X68,0)*SUMIF($B$151:$B$161,$B66,$C$151:$C$161) -> 635160.8031 | Y66: =IF(Y$11>=SUMIF($B$151:$B$161,$B66,$D$151:$D$161),'04.1 DEMANDA'!Z$14*Y67*Y68,0)*SUMIF($B$151:$B$161,$B66,$C$151:$C$161) -> 646892.829 | Z66: =IF(Z$11>=SUMIF($B$151:$B$161,$B66,$D$151:$D$161),'04.1 DEMANDA'!AA$14*Z67*Z68,0)*SUMIF($B$151:$B$161,$B66,$C$151:$C$161) -> 658841.5567 | AA66: =IF(AA$11>=SUMIF($B$151:$B$161,$B66,$D$151:$D$161),'04.1 DEMANDA'!AB$14*AA67*AA68,0)*SUMIF($B$151:$B$161,$B66,$C$151:$C$161) -> 671010.9887 | AB66: =IF(AB$11>=SUMIF($B$151:$B$161,$B66,$D$151:$D$161),'04.1 DEMANDA'!AC$14*AB67*AB68,0)*SUMIF($B$151:$B$161,$B66,$C$151:$C$161) -> 683405.2018 | AC66: =IF(AC$11>=SUMIF($B$151:$B$161,$B66,$D$151:$D$161),'04.1 DEMANDA'!AD$14*AC67*AC68,0)*SUMIF($B$151:$B$161,$B66,$C$151:$C$161) -> 696028.3478 | AD66: =IF(AD$11>=SUMIF($B$151:$B$161,$B66,$D$151:$D$161),'04.1 DEMANDA'!AE$14*AD67*AD68,0)*SUMIF($B$151:$B$161,$B66,$C$151:$C$161) -> 708884.6554 | AE66: =IF(AE$11>=SUMIF($B$151:$B$161,$B66,$D$151:$D$161),'04.1 DEMANDA'!AF$14*AE67*AE68,0)*SUMIF($B$151:$B$161,$B66,$C$151:$C$161) -> 721978.4312 | AF66: =IF(AF$11>=SUMIF($B$151:$B$161,$B66,$D$151:$D$161),'04.1 DEMANDA'!AG$14*AF67*AF68,0)*SUMIF($B$151:$B$161,$B66,$C$151:$C$161) -> 735314.0615 | AG66: =IF(AG$11>=SUMIF($B$151:$B$161,$B66,$D$151:$D$161),'04.1 DEMANDA'!AH$14*AG67*AG68,0)*SUMIF($B$151:$B$161,$B66,$C$151:$C$161) -> 0 | AH66: =IF(AH$11>=SUMIF($B$151:$B$161,$B66,$D$151:$D$161),'04.1 DEMANDA'!AI$14*AH67*AH68,0)*SUMIF($B$151:$B$161,$B66,$C$151:$C$161) -> 0 | AI66: =IF(AI$11>=SUMIF($B$151:$B$161,$B66,$D$151:$D$161),'04.1 DEMANDA'!AJ$14*AI67*AI68,0)*SUMIF($B$151:$B$161,$B66,$C$151:$C$161) -> 0 | AJ66: =IF(AJ$11>=SUMIF($B$151:$B$161,$B66,$D$151:$D$161),'04.1 DEMANDA'!AK$14*AJ67*AJ68,0)*SUMIF($B$151:$B$161,$B66,$C$151:$C$161) -> 0 | AK66: =IF(AK$11>=SUMIF($B$151:$B$161,$B66,$D$151:$D$161),'04.1 DEMANDA'!AL$14*AK67*AK68,0)*SUMIF($B$151:$B$161,$B66,$C$151:$C$161) -> 0 | AM66: =SUM(C66:AK66) -> 17131068.88
B67: Adesão | C67: ='01. PC'!J40 -> 0.03 | D67: =C67 -> 0.03 | E67: 0.03 | F67: 0.03 | G67: 0.03 | H67: 0.03 | I67: 0.03 | J67: 0.03 | K67: 0.03 | L67: 0.03 | M67: 0.03 | N67: 0.03 | O67: 0.03 | P67: 0.03 | Q67: 0.03 | R67: 0.03 | S67: 0.03 | T67: 0.03 | U67: 0.03 | V67: 0.03 | W67: 0.03 | X67: 0.03 | Y67: 0.03 | Z67: 0.03 | AA67: 0.03 | AB67: 0.03 | AC67: 0.03 | AD67: 0.03 | AE67: 0.03 | AF67: 0.03 | AG67: 0.03 | AH67: 0.03 | AI67: 0.03 | AJ67: 0.03 | AK67: 0.03 | AM67: =SUM(C67:AK67) -> 1.05
B68: Ticket Médio (R$) | C68: ='01. PC'!H40 -> 48 | D68: =C68 -> 48 | E68: 48 | F68: 48 | G68: 48 | H68: 48 | I68: 48 | J68: 48 | K68: 48 | L68: 48 | M68: 48 | N68: 48 | O68: 48 | P68: 48 | Q68: 48 | R68: 48 | S68: 48 | T68: 48 | U68: 48 | V68: 48 | W68: 48 | X68: 48 | Y68: 48 | Z68: 48 | AA68: 48 | AB68: 48 | AC68: 48 | AD68: 48 | AE68: 48 | AF68: 48 | AG68: 48 | AH68: 48 | AI68: 48 | AJ68: 48 | AK68: 48 | AM68: -
B69: Galeria Santa Maria | C69: =IF(C$11>=SUMIF($B$151:$B$161,$B69,$D$151:$D$161),'04.1 DEMANDA'!D$14*C70*C71,0)*SUMIF($B$151:$B$161,$B69,$C$151:$C$161) -> 0 | D69: =IF(D$11>=SUMIF($B$151:$B$161,$B69,$D$151:$D$161),'04.1 DEMANDA'!E$14*D70*D71,0)*SUMIF($B$151:$B$161,$B69,$C$151:$C$161) -> 0 | E69: =IF(E$11>=SUMIF($B$151:$B$161,$B69,$D$151:$D$161),'04.1 DEMANDA'!F$14*E70*E71,0)*SUMIF($B$151:$B$161,$B69,$C$151:$C$161) -> 0 | F69: =IF(F$11>=SUMIF($B$151:$B$161,$B69,$D$151:$D$161),'04.1 DEMANDA'!G$14*F70*F71,0)*SUMIF($B$151:$B$161,$B69,$C$151:$C$161) -> 0 | G69: =IF(G$11>=SUMIF($B$151:$B$161,$B69,$D$151:$D$161),'04.1 DEMANDA'!H$14*G70*G71,0)*SUMIF($B$151:$B$161,$B69,$C$151:$C$161) -> 465325.3122 | H69: =IF(H$11>=SUMIF($B$151:$B$161,$B69,$D$151:$D$161),'04.1 DEMANDA'!I$14*H70*H71,0)*SUMIF($B$151:$B$161,$B69,$C$151:$C$161) -> 473920.3146 | I69: =IF(I$11>=SUMIF($B$151:$B$161,$B69,$D$151:$D$161),'04.1 DEMANDA'!J$14*I70*I71,0)*SUMIF($B$151:$B$161,$B69,$C$151:$C$161) -> 482674.075 | J69: =IF(J$11>=SUMIF($B$151:$B$161,$B69,$D$151:$D$161),'04.1 DEMANDA'!K$14*J70*J71,0)*SUMIF($B$151:$B$161,$B69,$C$151:$C$161) -> 491589.5256 | K69: =IF(K$11>=SUMIF($B$151:$B$161,$B69,$D$151:$D$161),'04.1 DEMANDA'!L$14*K70*K71,0)*SUMIF($B$151:$B$161,$B69,$C$151:$C$161) -> 500669.653 | L69: =IF(L$11>=SUMIF($B$151:$B$161,$B69,$D$151:$D$161),'04.1 DEMANDA'!M$14*L70*L71,0)*SUMIF($B$151:$B$161,$B69,$C$151:$C$161) -> 509917.4992 | M69: =IF(M$11>=SUMIF($B$151:$B$161,$B69,$D$151:$D$161),'04.1 DEMANDA'!N$14*M70*M71,0)*SUMIF($B$151:$B$161,$B69,$C$151:$C$161) -> 519336.1618 | N69: =IF(N$11>=SUMIF($B$151:$B$161,$B69,$D$151:$D$161),'04.1 DEMANDA'!O$14*N70*N71,0)*SUMIF($B$151:$B$161,$B69,$C$151:$C$161) -> 528928.7961 | O69: =IF(O$11>=SUMIF($B$151:$B$161,$B69,$D$151:$D$161),'04.1 DEMANDA'!P$14*O70*O71,0)*SUMIF($B$151:$B$161,$B69,$C$151:$C$161) -> 538698.6156 | P69: =IF(P$11>=SUMIF($B$151:$B$161,$B69,$D$151:$D$161),'04.1 DEMANDA'!Q$14*P70*P71,0)*SUMIF($B$151:$B$161,$B69,$C$151:$C$161) -> 548648.8929 | Q69: =IF(Q$11>=SUMIF($B$151:$B$161,$B69,$D$151:$D$161),'04.1 DEMANDA'!R$14*Q70*Q71,0)*SUMIF($B$151:$B$161,$B69,$C$151:$C$161) -> 558782.9613 | R69: =IF(R$11>=SUMIF($B$151:$B$161,$B69,$D$151:$D$161),'04.1 DEMANDA'!S$14*R70*R71,0)*SUMIF($B$151:$B$161,$B69,$C$151:$C$161) -> 569104.2157 | S69: =IF(S$11>=SUMIF($B$151:$B$161,$B69,$D$151:$D$161),'04.1 DEMANDA'!T$14*S70*S71,0)*SUMIF($B$151:$B$161,$B69,$C$151:$C$161) -> 579616.1134 | T69: =IF(T$11>=SUMIF($B$151:$B$161,$B69,$D$151:$D$161),'04.1 DEMANDA'!U$14*T70*T71,0)*SUMIF($B$151:$B$161,$B69,$C$151:$C$161) -> 590322.1759 | U69: =IF(U$11>=SUMIF($B$151:$B$161,$B69,$D$151:$D$161),'04.1 DEMANDA'!V$14*U70*U71,0)*SUMIF($B$151:$B$161,$B69,$C$151:$C$161) -> 601225.9897 | V69: =IF(V$11>=SUMIF($B$151:$B$161,$B69,$D$151:$D$161),'04.1 DEMANDA'!W$14*V70*V71,0)*SUMIF($B$151:$B$161,$B69,$C$151:$C$161) -> 612331.2072 | W69: =IF(W$11>=SUMIF($B$151:$B$161,$B69,$D$151:$D$161),'04.1 DEMANDA'!X$14*W70*W71,0)*SUMIF($B$151:$B$161,$B69,$C$151:$C$161) -> 623641.5488 | X69: =IF(X$11>=SUMIF($B$151:$B$161,$B69,$D$151:$D$161),'04.1 DEMANDA'!Y$14*X70*X71,0)*SUMIF($B$151:$B$161,$B69,$C$151:$C$161) -> 635160.8031 | Y69: =IF(Y$11>=SUMIF($B$151:$B$161,$B69,$D$151:$D$161),'04.1 DEMANDA'!Z$14*Y70*Y71,0)*SUMIF($B$151:$B$161,$B69,$C$151:$C$161) -> 646892.829 | Z69: =IF(Z$11>=SUMIF($B$151:$B$161,$B69,$D$151:$D$161),'04.1 DEMANDA'!AA$14*Z70*Z71,0)*SUMIF($B$151:$B$161,$B69,$C$151:$C$161) -> 658841.5567 | AA69: =IF(AA$11>=SUMIF($B$151:$B$161,$B69,$D$151:$D$161),'04.1 DEMANDA'!AB$14*AA70*AA71,0)*SUMIF($B$151:$B$161,$B69,$C$151:$C$161) -> 671010.9887 | AB69: =IF(AB$11>=SUMIF($B$151:$B$161,$B69,$D$151:$D$161),'04.1 DEMANDA'!AC$14*AB70*AB71,0)*SUMIF($B$151:$B$161,$B69,$C$151:$C$161) -> 683405.2018 | AC69: =IF(AC$11>=SUMIF($B$151:$B$161,$B69,$D$151:$D$161),'04.1 DEMANDA'!AD$14*AC70*AC71,0)*SUMIF($B$151:$B$161,$B69,$C$151:$C$161) -> 696028.3478 | AD69: =IF(AD$11>=SUMIF($B$151:$B$161,$B69,$D$151:$D$161),'04.1 DEMANDA'!AE$14*AD70*AD71,0)*SUMIF($B$151:$B$161,$B69,$C$151:$C$161) -> 708884.6554 | AE69: =IF(AE$11>=SUMIF($B$151:$B$161,$B69,$D$151:$D$161),'04.1 DEMANDA'!AF$14*AE70*AE71,0)*SUMIF($B$151:$B$161,$B69,$C$151:$C$161) -> 721978.4312 | AF69: =IF(AF$11>=SUMIF($B$151:$B$161,$B69,$D$151:$D$161),'04.1 DEMANDA'!AG$14*AF70*AF71,0)*SUMIF($B$151:$B$161,$B69,$C$151:$C$161) -> 735314.0615 | AG69: =IF(AG$11>=SUMIF($B$151:$B$161,$B69,$D$151:$D$161),'04.1 DEMANDA'!AH$14*AG70*AG71,0)*SUMIF($B$151:$B$161,$B69,$C$151:$C$161) -> 0 | AH69: =IF(AH$11>=SUMIF($B$151:$B$161,$B69,$D$151:$D$161),'04.1 DEMANDA'!AI$14*AH70*AH71,0)*SUMIF($B$151:$B$161,$B69,$C$151:$C$161) -> 0 | AI69: =IF(AI$11>=SUMIF($B$151:$B$161,$B69,$D$151:$D$161),'04.1 DEMANDA'!AJ$14*AI70*AI71,0)*SUMIF($B$151:$B$161,$B69,$C$151:$C$161) -> 0 | AJ69: =IF(AJ$11>=SUMIF($B$151:$B$161,$B69,$D$151:$D$161),'04.1 DEMANDA'!AK$14*AJ70*AJ71,0)*SUMIF($B$151:$B$161,$B69,$C$151:$C$161) -> 0 | AK69: =IF(AK$11>=SUMIF($B$151:$B$161,$B69,$D$151:$D$161),'04.1 DEMANDA'!AL$14*AK70*AK71,0)*SUMIF($B$151:$B$161,$B69,$C$151:$C$161) -> 0 | AM69: =SUM(C69:AK69) -> 15352249.93
B70: Adesão | C70: ='01. PC'!$J$41 -> 0.03 | D70: =C70 -> 0.03 | E70: 0.03 | F70: 0.03 | G70: 0.03 | H70: 0.03 | I70: 0.03 | J70: 0.03 | K70: 0.03 | L70: 0.03 | M70: 0.03 | N70: 0.03 | O70: 0.03 | P70: 0.03 | Q70: 0.03 | R70: 0.03 | S70: 0.03 | T70: 0.03 | U70: 0.03 | V70: 0.03 | W70: 0.03 | X70: 0.03 | Y70: 0.03 | Z70: 0.03 | AA70: 0.03 | AB70: 0.03 | AC70: 0.03 | AD70: 0.03 | AE70: 0.03 | AF70: 0.03 | AG70: 0.03 | AH70: 0.03 | AI70: 0.03 | AJ70: 0.03 | AK70: 0.03 | AM70: =SUM(C70:AK70) -> 1.05
B71: Ticket Médio (R$) | C71: ='01. PC'!$H$41 -> 48 | D71: =C71 -> 48 | E71: 48 | F71: 48 | G71: 48 | H71: 48 | I71: 48 | J71: 48 | K71: 48 | L71: 48 | M71: 48 | N71: 48 | O71: 48 | P71: 48 | Q71: 48 | R71: 48 | S71: 48 | T71: 48 | U71: 48 | V71: 48 | W71: 48 | X71: 48 | Y71: 48 | Z71: 48 | AA71: 48 | AB71: 48 | AC71: 48 | AD71: 48 | AE71: 48 | AF71: 48 | AG71: 48 | AH71: 48 | AI71: 48 | AJ71: 48 | AK71: 48 | AM71: -
B72: Quiosque - Vale do Rio da Palma | C72: =IF(C$11>='01. PC'!$H$29,'04.1 DEMANDA'!D$14*C73*C74,0)*SUMIF($B$151:$B$161,$B72,$C$151:$C$161) -> 0 | D72: =IF(D$11>='01. PC'!$H$29,'04.1 DEMANDA'!E$14*D73*D74,0)*SUMIF($B$151:$B$161,$B72,$C$151:$C$161) -> 0 | E72: =IF(E$11>='01. PC'!$H$29,'04.1 DEMANDA'!F$14*E73*E74,0)*SUMIF($B$151:$B$161,$B72,$C$151:$C$161) -> 0 | F72: =IF(F$11>='01. PC'!$H$29,'04.1 DEMANDA'!G$14*F73*F74,0)*SUMIF($B$151:$B$161,$B72,$C$151:$C$161) -> 0 | G72: =IF(G$11>='01. PC'!$H$29,'04.1 DEMANDA'!H$14*G73*G74,0)*SUMIF($B$151:$B$161,$B72,$C$151:$C$161) -> 465325.3122 | H72: =IF(H$11>='01. PC'!$H$29,'04.1 DEMANDA'!I$14*H73*H74,0)*SUMIF($B$151:$B$161,$B72,$C$151:$C$161) -> 473920.3146 | I72: =IF(I$11>='01. PC'!$H$29,'04.1 DEMANDA'!J$14*I73*I74,0)*SUMIF($B$151:$B$161,$B72,$C$151:$C$161) -> 482674.075 | J72: =IF(J$11>='01. PC'!$H$29,'04.1 DEMANDA'!K$14*J73*J74,0)*SUMIF($B$151:$B$161,$B72,$C$151:$C$161) -> 491589.5256 | K72: =IF(K$11>='01. PC'!$H$29,'04.1 DEMANDA'!L$14*K73*K74,0)*SUMIF($B$151:$B$161,$B72,$C$151:$C$161) -> 500669.653 | L72: =IF(L$11>='01. PC'!$H$29,'04.1 DEMANDA'!M$14*L73*L74,0)*SUMIF($B$151:$B$161,$B72,$C$151:$C$161) -> 509917.4992 | M72: =IF(M$11>='01. PC'!$H$29,'04.1 DEMANDA'!N$14*M73*M74,0)*SUMIF($B$151:$B$161,$B72,$C$151:$C$161) -> 519336.1618 | N72: =IF(N$11>='01. PC'!$H$29,'04.1 DEMANDA'!O$14*N73*N74,0)*SUMIF($B$151:$B$161,$B72,$C$151:$C$161) -> 528928.7961 | O72: =IF(O$11>='01. PC'!$H$29,'04.1 DEMANDA'!P$14*O73*O74,0)*SUMIF($B$151:$B$161,$B72,$C$151:$C$161) -> 538698.6156 | P72: =IF(P$11>='01. PC'!$H$29,'04.1 DEMANDA'!Q$14*P73*P74,0)*SUMIF($B$151:$B$161,$B72,$C$151:$C$161) -> 548648.8929 | Q72: =IF(Q$11>='01. PC'!$H$29,'04.1 DEMANDA'!R$14*Q73*Q74,0)*SUMIF($B$151:$B$161,$B72,$C$151:$C$161) -> 558782.9613 | R72: =IF(R$11>='01. PC'!$H$29,'04.1 DEMANDA'!S$14*R73*R74,0)*SUMIF($B$151:$B$161,$B72,$C$151:$C$161) -> 569104.2157 | S72: =IF(S$11>='01. PC'!$H$29,'04.1 DEMANDA'!T$14*S73*S74,0)*SUMIF($B$151:$B$161,$B72,$C$151:$C$161) -> 579616.1134 | T72: =IF(T$11>='01. PC'!$H$29,'04.1 DEMANDA'!U$14*T73*T74,0)*SUMIF($B$151:$B$161,$B72,$C$151:$C$161) -> 590322.1759 | U72: =IF(U$11>='01. PC'!$H$29,'04.1 DEMANDA'!V$14*U73*U74,0)*SUMIF($B$151:$B$161,$B72,$C$151:$C$161) -> 601225.9897 | V72: =IF(V$11>='01. PC'!$H$29,'04.1 DEMANDA'!W$14*V73*V74,0)*SUMIF($B$151:$B$161,$B72,$C$151:$C$161) -> 612331.2072 | W72: =IF(W$11>='01. PC'!$H$29,'04.1 DEMANDA'!X$14*W73*W74,0)*SUMIF($B$151:$B$161,$B72,$C$151:$C$161) -> 623641.5488 | X72: =IF(X$11>='01. PC'!$H$29,'04.1 DEMANDA'!Y$14*X73*X74,0)*SUMIF($B$151:$B$161,$B72,$C$151:$C$161) -> 635160.8031 | Y72: =IF(Y$11>='01. PC'!$H$29,'04.1 DEMANDA'!Z$14*Y73*Y74,0)*SUMIF($B$151:$B$161,$B72,$C$151:$C$161) -> 646892.829 | Z72: =IF(Z$11>='01. PC'!$H$29,'04.1 DEMANDA'!AA$14*Z73*Z74,0)*SUMIF($B$151:$B$161,$B72,$C$151:$C$161) -> 658841.5567 | AA72: =IF(AA$11>='01. PC'!$H$29,'04.1 DEMANDA'!AB$14*AA73*AA74,0)*SUMIF($B$151:$B$161,$B72,$C$151:$C$161) -> 671010.9887 | AB72: =IF(AB$11>='01. PC'!$H$29,'04.1 DEMANDA'!AC$14*AB73*AB74,0)*SUMIF($B$151:$B$161,$B72,$C$151:$C$161) -> 683405.2018 | AC72: =IF(AC$11>='01. PC'!$H$29,'04.1 DEMANDA'!AD$14*AC73*AC74,0)*SUMIF($B$151:$B$161,$B72,$C$151:$C$161) -> 696028.3478 | AD72: =IF(AD$11>='01. PC'!$H$29,'04.1 DEMANDA'!AE$14*AD73*AD74,0)*SUMIF($B$151:$B$161,$B72,$C$151:$C$161) -> 708884.6554 | AE72: =IF(AE$11>='01. PC'!$H$29,'04.1 DEMANDA'!AF$14*AE73*AE74,0)*SUMIF($B$151:$B$161,$B72,$C$151:$C$161) -> 721978.4312 | AF72: =IF(AF$11>='01. PC'!$H$29,'04.1 DEMANDA'!AG$14*AF73*AF74,0)*SUMIF($B$151:$B$161,$B72,$C$151:$C$161) -> 735314.0615 | AG72: =IF(AG$11>='01. PC'!$H$29,'04.1 DEMANDA'!AH$14*AG73*AG74,0)*SUMIF($B$151:$B$161,$B72,$C$151:$C$161) -> 0 | AH72: =IF(AH$11>='01. PC'!$H$29,'04.1 DEMANDA'!AI$14*AH73*AH74,0)*SUMIF($B$151:$B$161,$B72,$C$151:$C$161) -> 0 | AI72: =IF(AI$11>='01. PC'!$H$29,'04.1 DEMANDA'!AJ$14*AI73*AI74,0)*SUMIF($B$151:$B$161,$B72,$C$151:$C$161) -> 0 | AJ72: =IF(AJ$11>='01. PC'!$H$29,'04.1 DEMANDA'!AK$14*AJ73*AJ74,0)*SUMIF($B$151:$B$161,$B72,$C$151:$C$161) -> 0 | AK72: =IF(AK$11>='01. PC'!$H$29,'04.1 DEMANDA'!AL$14*AK73*AK74,0)*SUMIF($B$151:$B$161,$B72,$C$151:$C$161) -> 0 | AM72: =SUM(C72:AK72) -> 15352249.93
B73: Adesão | C73: ='01. PC'!$J$42 -> 0.03 | D73: =C73 -> 0.03 | E73: 0.03 | F73: 0.03 | G73: 0.03 | H73: 0.03 | I73: 0.03 | J73: 0.03 | K73: 0.03 | L73: 0.03 | M73: 0.03 | N73: 0.03 | O73: 0.03 | P73: 0.03 | Q73: 0.03 | R73: 0.03 | S73: 0.03 | T73: 0.03 | U73: 0.03 | V73: 0.03 | W73: 0.03 | X73: 0.03 | Y73: 0.03 | Z73: 0.03 | AA73: 0.03 | AB73: 0.03 | AC73: 0.03 | AD73: 0.03 | AE73: 0.03 | AF73: 0.03 | AG73: 0.03 | AH73: 0.03 | AI73: 0.03 | AJ73: 0.03 | AK73: 0.03 | AM73: =SUM(C73:AK73) -> 1.05
B74: Ticket Médio (R$) | C74: ='01. PC'!$H$42 -> 48 | D74: =C74 -> 48 | E74: 48 | F74: 48 | G74: 48 | H74: 48 | I74: 48 | J74: 48 | K74: 48 | L74: 48 | M74: 48 | N74: 48 | O74: 48 | P74: 48 | Q74: 48 | R74: 48 | S74: 48 | T74: 48 | U74: 48 | V74: 48 | W74: 48 | X74: 48 | Y74: 48 | Z74: 48 | AA74: 48 | AB74: 48 | AC74: 48 | AD74: 48 | AE74: 48 | AF74: 48 | AG74: 48 | AH74: 48 | AI74: 48 | AJ74: 48 | AK74: 48 | AM74: -
B75: Lanchonete - Vale do Rio da Palma | C75: =IF(C$11>='01. PC'!$H$29,'04.1 DEMANDA'!D$14*C76*C77,0)*SUMIF($B$151:$B$161,$B75,$C$151:$C$161) -> 0 | D75: =IF(D$11>='01. PC'!$H$29,'04.1 DEMANDA'!E$14*D76*D77,0)*SUMIF($B$151:$B$161,$B75,$C$151:$C$161) -> 0 | E75: =IF(E$11>='01. PC'!$H$29,'04.1 DEMANDA'!F$14*E76*E77,0)*SUMIF($B$151:$B$161,$B75,$C$151:$C$161) -> 0 | F75: =IF(F$11>='01. PC'!$H$29,'04.1 DEMANDA'!G$14*F76*F77,0)*SUMIF($B$151:$B$161,$B75,$C$151:$C$161) -> 0 | G75: =IF(G$11>='01. PC'!$H$29,'04.1 DEMANDA'!H$14*G76*G77,0)*SUMIF($B$151:$B$161,$B75,$C$151:$C$161) -> 348993.9842 | H75: =IF(H$11>='01. PC'!$H$29,'04.1 DEMANDA'!I$14*H76*H77,0)*SUMIF($B$151:$B$161,$B75,$C$151:$C$161) -> 355440.236 | I75: =IF(I$11>='01. PC'!$H$29,'04.1 DEMANDA'!J$14*I76*I77,0)*SUMIF($B$151:$B$161,$B75,$C$151:$C$161) -> 362005.5562 | J75: =IF(J$11>='01. PC'!$H$29,'04.1 DEMANDA'!K$14*J76*J77,0)*SUMIF($B$151:$B$161,$B75,$C$151:$C$161) -> 368692.1442 | K75: =IF(K$11>='01. PC'!$H$29,'04.1 DEMANDA'!L$14*K76*K77,0)*SUMIF($B$151:$B$161,$B75,$C$151:$C$161) -> 375502.2398 | L75: =IF(L$11>='01. PC'!$H$29,'04.1 DEMANDA'!M$14*L76*L77,0)*SUMIF($B$151:$B$161,$B75,$C$151:$C$161) -> 382438.1244 | M75: =IF(M$11>='01. PC'!$H$29,'04.1 DEMANDA'!N$14*M76*M77,0)*SUMIF($B$151:$B$161,$B75,$C$151:$C$161) -> 389502.1213 | N75: =IF(N$11>='01. PC'!$H$29,'04.1 DEMANDA'!O$14*N76*N77,0)*SUMIF($B$151:$B$161,$B75,$C$151:$C$161) -> 396696.5971 | O75: =IF(O$11>='01. PC'!$H$29,'04.1 DEMANDA'!P$14*O76*O77,0)*SUMIF($B$151:$B$161,$B75,$C$151:$C$161) -> 404023.9617 | P75: =IF(P$11>='01. PC'!$H$29,'04.1 DEMANDA'!Q$14*P76*P77,0)*SUMIF($B$151:$B$161,$B75,$C$151:$C$161) -> 411486.6697 | Q75: =IF(Q$11>='01. PC'!$H$29,'04.1 DEMANDA'!R$14*Q76*Q77,0)*SUMIF($B$151:$B$161,$B75,$C$151:$C$161) -> 419087.221 | R75: =IF(R$11>='01. PC'!$H$29,'04.1 DEMANDA'!S$14*R76*R77,0)*SUMIF($B$151:$B$161,$B75,$C$151:$C$161) -> 426828.1617 | S75: =IF(S$11>='01. PC'!$H$29,'04.1 DEMANDA'!T$14*S76*S77,0)*SUMIF($B$151:$B$161,$B75,$C$151:$C$161) -> 434712.0851 | T75: =IF(T$11>='01. PC'!$H$29,'04.1 DEMANDA'!U$14*T76*T77,0)*SUMIF($B$151:$B$161,$B75,$C$151:$C$161) -> 442741.632 | U75: =IF(U$11>='01. PC'!$H$29,'04.1 DEMANDA'!V$14*U76*U77,0)*SUMIF($B$151:$B$161,$B75,$C$151:$C$161) -> 450919.4923 | V75: =IF(V$11>='01. PC'!$H$29,'04.1 DEMANDA'!W$14*V76*V77,0)*SUMIF($B$151:$B$161,$B75,$C$151:$C$161) -> 459248.4054 | W75: =IF(W$11>='01. PC'!$H$29,'04.1 DEMANDA'!X$14*W76*W77,0)*SUMIF($B$151:$B$161,$B75,$C$151:$C$161) -> 467731.1616 | X75: =IF(X$11>='01. PC'!$H$29,'04.1 DEMANDA'!Y$14*X76*X77,0)*SUMIF($B$151:$B$161,$B75,$C$151:$C$161) -> 476370.6023 | Y75: =IF(Y$11>='01. PC'!$H$29,'04.1 DEMANDA'!Z$14*Y76*Y77,0)*SUMIF($B$151:$B$161,$B75,$C$151:$C$161) -> 485169.6218 | Z75: =IF(Z$11>='01. PC'!$H$29,'04.1 DEMANDA'!AA$14*Z76*Z77,0)*SUMIF($B$151:$B$161,$B75,$C$151:$C$161) -> 494131.1675 | AA75: =IF(AA$11>='01. PC'!$H$29,'04.1 DEMANDA'!AB$14*AA76*AA77,0)*SUMIF($B$151:$B$161,$B75,$C$151:$C$161) -> 503258.2415 | AB75: =IF(AB$11>='01. PC'!$H$29,'04.1 DEMANDA'!AC$14*AB76*AB77,0)*SUMIF($B$151:$B$161,$B75,$C$151:$C$161) -> 512553.9014 | AC75: =IF(AC$11>='01. PC'!$H$29,'04.1 DEMANDA'!AD$14*AC76*AC77,0)*SUMIF($B$151:$B$161,$B75,$C$151:$C$161) -> 522021.2609 | AD75: =IF(AD$11>='01. PC'!$H$29,'04.1 DEMANDA'!AE$14*AD76*AD77,0)*SUMIF($B$151:$B$161,$B75,$C$151:$C$161) -> 531663.4915 | AE75: =IF(AE$11>='01. PC'!$H$29,'04.1 DEMANDA'!AF$14*AE76*AE77,0)*SUMIF($B$151:$B$161,$B75,$C$151:$C$161) -> 541483.8234 | AF75: =IF(AF$11>='01. PC'!$H$29,'04.1 DEMANDA'!AG$14*AF76*AF77,0)*SUMIF($B$151:$B$161,$B75,$C$151:$C$161) -> 551485.5462 | AG75: =IF(AG$11>='01. PC'!$H$29,'04.1 DEMANDA'!AH$14*AG76*AG77,0)*SUMIF($B$151:$B$161,$B75,$C$151:$C$161) -> 0 | AH75: =IF(AH$11>='01. PC'!$H$29,'04.1 DEMANDA'!AI$14*AH76*AH77,0)*SUMIF($B$151:$B$161,$B75,$C$151:$C$161) -> 0 | AI75: =IF(AI$11>='01. PC'!$H$29,'04.1 DEMANDA'!AJ$14*AI76*AI77,0)*SUMIF($B$151:$B$161,$B75,$C$151:$C$161) -> 0 | AJ75: =IF(AJ$11>='01. PC'!$H$29,'04.1 DEMANDA'!AK$14*AJ76*AJ77,0)*SUMIF($B$151:$B$161,$B75,$C$151:$C$161) -> 0 | AK75: =IF(AK$11>='01. PC'!$H$29,'04.1 DEMANDA'!AL$14*AK76*AK77,0)*SUMIF($B$151:$B$161,$B75,$C$151:$C$161) -> 0 | AM75: =SUM(C75:AK75) -> 11514187.45
B76: Adesão | C76: ='01. PC'!$J$43 -> 0.03 | D76: =C76 -> 0.03 | E76: 0.03 | F76: 0.03 | G76: 0.03 | H76: 0.03 | I76: 0.03 | J76: 0.03 | K76: 0.03 | L76: 0.03 | M76: 0.03 | N76: 0.03 | O76: 0.03 | P76: 0.03 | Q76: 0.03 | R76: 0.03 | S76: 0.03 | T76: 0.03 | U76: 0.03 | V76: 0.03 | W76: 0.03 | X76: 0.03 | Y76: 0.03 | Z76: 0.03 | AA76: 0.03 | AB76: 0.03 | AC76: 0.03 | AD76: 0.03 | AE76: 0.03 | AF76: 0.03 | AG76: 0.03 | AH76: 0.03 | AI76: 0.03 | AJ76: 0.03 | AK76: 0.03 | AM76: =SUM(C76:AK76) -> 1.05
B77: Ticket Médio (R$) | C77: ='01. PC'!$H$43 -> 36 | D77: =C77 -> 36 | E77: 36 | F77: 36 | G77: 36 | H77: 36 | I77: 36 | J77: 36 | K77: 36 | L77: 36 | M77: 36 | N77: 36 | O77: 36 | P77: 36 | Q77: 36 | R77: 36 | S77: 36 | T77: 36 | U77: 36 | V77: 36 | W77: 36 | X77: 36 | Y77: 36 | Z77: 36 | AA77: 36 | AB77: 36 | AC77: 36 | AD77: 36 | AE77: 36 | AF77: 36 | AG77: 36 | AH77: 36 | AI77: 36 | AJ77: 36 | AK77: 36 | AM77: -
B79: FLONA | C79: =(C80+C83+C86)/10^6 -> 0 | D79: 0 | E79: 0 | F79: 0 | G79: 0 | H79: 0 | I79: 0 | J79: 0 | K79: 0 | L79: 0.5670527946 | M79: 0.5775268006 | N79: 0.5881942716 | O79: 0.5990587809 | P79: 0.610123968 | Q79: 0.6213935397 | R79: 0.6328712712 | S79: 0.6445610073 | T79: 0.656466664 | U79: 0.6685922295 | V79: 0.6809417658 | W79: 0.6935194097 | X79: 0.7063293748 | Y79: 0.7193759522 | Z79: 0.7326635123 | AA79: 0.7461965063 | AB79: 0.7599794676 | AC79: 0.7740170133 | AD79: 0.7883138459 | AE79: 0.8028747546 | AF79: 0.8177046173 | AG79: 0 | AH79: 0 | AI79: 0 | AJ79: 0 | AK79: 0 | AM79: =SUM(C79:AK79) -> 14.38775755
B80: Mercado Aberto | C80: =IF(C$11>='01. PC'!$H$26,'04.1 DEMANDA'!D$15*C81*C82,0)*SUMIF($B$151:$B$161,$B80,$C$151:$C$161) -> 0 | D80: =IF(D$11>='01. PC'!$H$26,'04.1 DEMANDA'!E$15*D81*D82,0)*SUMIF($B$151:$B$161,$B80,$C$151:$C$161) -> 0 | E80: =IF(E$11>='01. PC'!$H$26,'04.1 DEMANDA'!F$15*E81*E82,0)*SUMIF($B$151:$B$161,$B80,$C$151:$C$161) -> 0 | F80: =IF(F$11>='01. PC'!$H$26,'04.1 DEMANDA'!G$15*F81*F82,0)*SUMIF($B$151:$B$161,$B80,$C$151:$C$161) -> 0 | G80: =IF(G$11>='01. PC'!$H$26,'04.1 DEMANDA'!H$15*G81*G82,0)*SUMIF($B$151:$B$161,$B80,$C$151:$C$161) -> 0 | H80: =IF(H$11>='01. PC'!$H$26,'04.1 DEMANDA'!I$15*H81*H82,0)*SUMIF($B$151:$B$161,$B80,$C$151:$C$161) -> 0 | I80: =IF(I$11>='01. PC'!$H$26,'04.1 DEMANDA'!J$15*I81*I82,0)*SUMIF($B$151:$B$161,$B80,$C$151:$C$161) -> 0 | J80: =IF(J$11>='01. PC'!$H$26,'04.1 DEMANDA'!K$15*J81*J82,0)*SUMIF($B$151:$B$161,$B80,$C$151:$C$161) -> 0 | K80: =IF(K$11>='01. PC'!$H$26,'04.1 DEMANDA'!L$15*K81*K82,0)*SUMIF($B$151:$B$161,$B80,$C$151:$C$161) -> 0 | L80: =IF(L$11>='01. PC'!$H$26,'04.1 DEMANDA'!M$15*L81*L82,0)*SUMIF($B$151:$B$161,$B80,$C$151:$C$161) -> 0 | M80: =IF(M$11>='01. PC'!$H$26,'04.1 DEMANDA'!N$15*M81*M82,0)*SUMIF($B$151:$B$161,$B80,$C$151:$C$161) -> 0 | N80: =IF(N$11>='01. PC'!$H$26,'04.1 DEMANDA'!O$15*N81*N82,0)*SUMIF($B$151:$B$161,$B80,$C$151:$C$161) -> 0 | O80: =IF(O$11>='01. PC'!$H$26,'04.1 DEMANDA'!P$15*O81*O82,0)*SUMIF($B$151:$B$161,$B80,$C$151:$C$161) -> 0 | P80: =IF(P$11>='01. PC'!$H$26,'04.1 DEMANDA'!Q$15*P81*P82,0)*SUMIF($B$151:$B$161,$B80,$C$151:$C$161) -> 0 | Q80: =IF(Q$11>='01. PC'!$H$26,'04.1 DEMANDA'!R$15*Q81*Q82,0)*SUMIF($B$151:$B$161,$B80,$C$151:$C$161) -> 0 | R80: =IF(R$11>='01. PC'!$H$26,'04.1 DEMANDA'!S$15*R81*R82,0)*SUMIF($B$151:$B$161,$B80,$C$151:$C$161) -> 0 | S80: =IF(S$11>='01. PC'!$H$26,'04.1 DEMANDA'!T$15*S81*S82,0)*SUMIF($B$151:$B$161,$B80,$C$151:$C$161) -> 0 | T80: =IF(T$11>='01. PC'!$H$26,'04.1 DEMANDA'!U$15*T81*T82,0)*SUMIF($B$151:$B$161,$B80,$C$151:$C$161) -> 0 | U80: =IF(U$11>='01. PC'!$H$26,'04.1 DEMANDA'!V$15*U81*U82,0)*SUMIF($B$151:$B$161,$B80,$C$151:$C$161) -> 0 | V80: =IF(V$11>='01. PC'!$H$26,'04.1 DEMANDA'!W$15*V81*V82,0)*SUMIF($B$151:$B$161,$B80,$C$151:$C$161) -> 0 | W80: =IF(W$11>='01. PC'!$H$26,'04.1 DEMANDA'!X$15*W81*W82,0)*SUMIF($B$151:$B$161,$B80,$C$151:$C$161) -> 0 | X80: =IF(X$11>='01. PC'!$H$26,'04.1 DEMANDA'!Y$15*X81*X82,0)*SUMIF($B$151:$B$161,$B80,$C$151:$C$161) -> 0 | Y80: =IF(Y$11>='01. PC'!$H$26,'04.1 DEMANDA'!Z$15*Y81*Y82,0)*SUMIF($B$151:$B$161,$B80,$C$151:$C$161) -> 0 | Z80: =IF(Z$11>='01. PC'!$H$26,'04.1 DEMANDA'!AA$15*Z81*Z82,0)*SUMIF($B$151:$B$161,$B80,$C$151:$C$161) -> 0 | AA80: =IF(AA$11>='01. PC'!$H$26,'04.1 DEMANDA'!AB$15*AA81*AA82,0)*SUMIF($B$151:$B$161,$B80,$C$151:$C$161) -> 0 | AB80: =IF(AB$11>='01. PC'!$H$26,'04.1 DEMANDA'!AC$15*AB81*AB82,0)*SUMIF($B$151:$B$161,$B80,$C$151:$C$161) -> 0 | AC80: =IF(AC$11>='01. PC'!$H$26,'04.1 DEMANDA'!AD$15*AC81*AC82,0)*SUMIF($B$151:$B$161,$B80,$C$151:$C$161) -> 0 | AD80: =IF(AD$11>='01. PC'!$H$26,'04.1 DEMANDA'!AE$15*AD81*AD82,0)*SUMIF($B$151:$B$161,$B80,$C$151:$C$161) -> 0 | AE80: =IF(AE$11>='01. PC'!$H$26,'04.1 DEMANDA'!AF$15*AE81*AE82,0)*SUMIF($B$151:$B$161,$B80,$C$151:$C$161) -> 0 | AF80: =IF(AF$11>='01. PC'!$H$26,'04.1 DEMANDA'!AG$15*AF81*AF82,0)*SUMIF($B$151:$B$161,$B80,$C$151:$C$161) -> 0 | AG80: =IF(AG$11>='01. PC'!$H$26,'04.1 DEMANDA'!AH$15*AG81*AG82,0)*SUMIF($B$151:$B$161,$B80,$C$151:$C$161) -> 0 | AH80: =IF(AH$11>='01. PC'!$H$26,'04.1 DEMANDA'!AI$15*AH81*AH82,0)*SUMIF($B$151:$B$161,$B80,$C$151:$C$161) -> 0 | AI80: =IF(AI$11>='01. PC'!$H$26,'04.1 DEMANDA'!AJ$15*AI81*AI82,0)*SUMIF($B$151:$B$161,$B80,$C$151:$C$161) -> 0 | AJ80: =IF(AJ$11>='01. PC'!$H$26,'04.1 DEMANDA'!AK$15*AJ81*AJ82,0)*SUMIF($B$151:$B$161,$B80,$C$151:$C$161) -> 0 | AK80: =IF(AK$11>='01. PC'!$H$26,'04.1 DEMANDA'!AL$15*AK81*AK82,0)*SUMIF($B$151:$B$161,$B80,$C$151:$C$161) -> 0 | AM80: =SUM(C80:AK80) -> 0
B81: Adesão | C81: ='01. PC'!$J$44 -> 0 | D81: =C81 -> 0 | E81: 0 | F81: 0 | G81: 0 | H81: 0 | I81: 0 | J81: 0 | K81: 0 | L81: 0 | M81: 0 | N81: 0 | O81: 0 | P81: 0 | Q81: 0 | R81: 0 | S81: 0 | T81: 0 | U81: 0 | V81: 0 | W81: 0 | X81: 0 | Y81: 0 | Z81: 0 | AA81: 0 | AB81: 0 | AC81: 0 | AD81: 0 | AE81: 0 | AF81: 0 | AG81: 0 | AH81: 0 | AI81: 0 | AJ81: 0 | AK81: 0 | AM81: =SUM(C81:AK81) -> 0
B82: Ticket Médio (R$) | C82: ='01. PC'!$H$44 -> 36 | D82: =C82 -> 36 | E82: 36 | F82: 36 | G82: 36 | H82: 36 | I82: 36 | J82: 36 | K82: 36 | L82: 36 | M82: 36 | N82: 36 | O82: 36 | P82: 36 | Q82: 36 | R82: 36 | S82: 36 | T82: 36 | U82: 36 | V82: 36 | W82: 36 | X82: 36 | Y82: 36 | Z82: 36 | AA82: 36 | AB82: 36 | AC82: 36 | AD82: 36 | AE82: 36 | AF82: 36 | AG82: 36 | AH82: 36 | AI82: 36 | AJ82: 36 | AK82: 36 | AM82: -
B83: Lanchonete Centro de Visitantes | C83: =IF(C$11>='01. PC'!$H$26,'04.1 DEMANDA'!D$15*C84*C85,0)*SUMIF($B$151:$B$161,$B83,$C$151:$C$161) -> 0 | D83: =IF(D$11>='01. PC'!$H$26,'04.1 DEMANDA'!E$15*D84*D85,0)*SUMIF($B$151:$B$161,$B83,$C$151:$C$161) -> 0 | E83: =IF(E$11>='01. PC'!$H$26,'04.1 DEMANDA'!F$15*E84*E85,0)*SUMIF($B$151:$B$161,$B83,$C$151:$C$161) -> 0 | F83: =IF(F$11>='01. PC'!$H$26,'04.1 DEMANDA'!G$15*F84*F85,0)*SUMIF($B$151:$B$161,$B83,$C$151:$C$161) -> 0 | G83: =IF(G$11>='01. PC'!$H$26,'04.1 DEMANDA'!H$15*G84*G85,0)*SUMIF($B$151:$B$161,$B83,$C$151:$C$161) -> 0 | H83: =IF(H$11>='01. PC'!$H$26,'04.1 DEMANDA'!I$15*H84*H85,0)*SUMIF($B$151:$B$161,$B83,$C$151:$C$161) -> 0 | I83: =IF(I$11>='01. PC'!$H$26,'04.1 DEMANDA'!J$15*I84*I85,0)*SUMIF($B$151:$B$161,$B83,$C$151:$C$161) -> 0 | J83: =IF(J$11>='01. PC'!$H$26,'04.1 DEMANDA'!K$15*J84*J85,0)*SUMIF($B$151:$B$161,$B83,$C$151:$C$161) -> 0 | K83: =IF(K$11>='01. PC'!$H$26,'04.1 DEMANDA'!L$15*K84*K85,0)*SUMIF($B$151:$B$161,$B83,$C$151:$C$161) -> 0 | L83: =IF(L$11>='01. PC'!$H$26,'04.1 DEMANDA'!M$15*L84*L85,0)*SUMIF($B$151:$B$161,$B83,$C$151:$C$161) -> 425289.5959 | M83: =IF(M$11>='01. PC'!$H$26,'04.1 DEMANDA'!N$15*M84*M85,0)*SUMIF($B$151:$B$161,$B83,$C$151:$C$161) -> 433145.1005 | N83: =IF(N$11>='01. PC'!$H$26,'04.1 DEMANDA'!O$15*N84*N85,0)*SUMIF($B$151:$B$161,$B83,$C$151:$C$161) -> 441145.7037 | O83: =IF(O$11>='01. PC'!$H$26,'04.1 DEMANDA'!P$15*O84*O85,0)*SUMIF($B$151:$B$161,$B83,$C$151:$C$161) -> 449294.0856 | P83: =IF(P$11>='01. PC'!$H$26,'04.1 DEMANDA'!Q$15*P84*P85,0)*SUMIF($B$151:$B$161,$B83,$C$151:$C$161) -> 457592.976 | Q83: =IF(Q$11>='01. PC'!$H$26,'04.1 DEMANDA'!R$15*Q84*Q85,0)*SUMIF($B$151:$B$161,$B83,$C$151:$C$161) -> 466045.1548 | R83: =IF(R$11>='01. PC'!$H$26,'04.1 DEMANDA'!S$15*R84*R85,0)*SUMIF($B$151:$B$161,$B83,$C$151:$C$161) -> 474653.4534 | S83: =IF(S$11>='01. PC'!$H$26,'04.1 DEMANDA'!T$15*S84*S85,0)*SUMIF($B$151:$B$161,$B83,$C$151:$C$161) -> 483420.7555 | T83: =IF(T$11>='01. PC'!$H$26,'04.1 DEMANDA'!U$15*T84*T85,0)*SUMIF($B$151:$B$161,$B83,$C$151:$C$161) -> 492349.998 | U83: =IF(U$11>='01. PC'!$H$26,'04.1 DEMANDA'!V$15*U84*U85,0)*SUMIF($B$151:$B$161,$B83,$C$151:$C$161) -> 501444.1721 | V83: =IF(V$11>='01. PC'!$H$26,'04.1 DEMANDA'!W$15*V84*V85,0)*SUMIF($B$151:$B$161,$B83,$C$151:$C$161) -> 510706.3243 | W83: =IF(W$11>='01. PC'!$H$26,'04.1 DEMANDA'!X$15*W84*W85,0)*SUMIF($B$151:$B$161,$B83,$C$151:$C$161) -> 520139.5573 | X83: =IF(X$11>='01. PC'!$H$26,'04.1 DEMANDA'!Y$15*X84*X85,0)*SUMIF($B$151:$B$161,$B83,$C$151:$C$161) -> 529747.0311 | Y83: =IF(Y$11>='01. PC'!$H$26,'04.1 DEMANDA'!Z$15*Y84*Y85,0)*SUMIF($B$151:$B$161,$B83,$C$151:$C$161) -> 539531.9641 | Z83: =IF(Z$11>='01. PC'!$H$26,'04.1 DEMANDA'!AA$15*Z84*Z85,0)*SUMIF($B$151:$B$161,$B83,$C$151:$C$161) -> 549497.6342 | AA83: =IF(AA$11>='01. PC'!$H$26,'04.1 DEMANDA'!AB$15*AA84*AA85,0)*SUMIF($B$151:$B$161,$B83,$C$151:$C$161) -> 559647.3797 | AB83: =IF(AB$11>='01. PC'!$H$26,'04.1 DEMANDA'!AC$15*AB84*AB85,0)*SUMIF($B$151:$B$161,$B83,$C$151:$C$161) -> 569984.6007 | AC83: =IF(AC$11>='01. PC'!$H$26,'04.1 DEMANDA'!AD$15*AC84*AC85,0)*SUMIF($B$151:$B$161,$B83,$C$151:$C$161) -> 580512.76 | AD83: =IF(AD$11>='01. PC'!$H$26,'04.1 DEMANDA'!AE$15*AD84*AD85,0)*SUMIF($B$151:$B$161,$B83,$C$151:$C$161) -> 591235.3844 | AE83: =IF(AE$11>='01. PC'!$H$26,'04.1 DEMANDA'!AF$15*AE84*AE85,0)*SUMIF($B$151:$B$161,$B83,$C$151:$C$161) -> 602156.066 | AF83: =IF(AF$11>='01. PC'!$H$26,'04.1 DEMANDA'!AG$15*AF84*AF85,0)*SUMIF($B$151:$B$161,$B83,$C$151:$C$161) -> 613278.4629 | AG83: =IF(AG$11>='01. PC'!$H$26,'04.1 DEMANDA'!AH$15*AG84*AG85,0)*SUMIF($B$151:$B$161,$B83,$C$151:$C$161) -> 0 | AH83: =IF(AH$11>='01. PC'!$H$26,'04.1 DEMANDA'!AI$15*AH84*AH85,0)*SUMIF($B$151:$B$161,$B83,$C$151:$C$161) -> 0 | AI83: =IF(AI$11>='01. PC'!$H$26,'04.1 DEMANDA'!AJ$15*AI84*AI85,0)*SUMIF($B$151:$B$161,$B83,$C$151:$C$161) -> 0 | AJ83: =IF(AJ$11>='01. PC'!$H$26,'04.1 DEMANDA'!AK$15*AJ84*AJ85,0)*SUMIF($B$151:$B$161,$B83,$C$151:$C$161) -> 0 | AK83: =IF(AK$11>='01. PC'!$H$26,'04.1 DEMANDA'!AL$15*AK84*AK85,0)*SUMIF($B$151:$B$161,$B83,$C$151:$C$161) -> 0 | AM83: =SUM(C83:AK83) -> 10790818.16
B84: Adesão | C84: ='01. PC'!$J$45 -> 0.15 | D84: =C84 -> 0.15 | E84: 0.15 | F84: 0.15 | G84: 0.15 | H84: 0.15 | I84: 0.15 | J84: 0.15 | K84: 0.15 | L84: 0.15 | M84: 0.15 | N84: 0.15 | O84: 0.15 | P84: 0.15 | Q84: 0.15 | R84: 0.15 | S84: 0.15 | T84: 0.15 | U84: 0.15 | V84: 0.15 | W84: 0.15 | X84: 0.15 | Y84: 0.15 | Z84: 0.15 | AA84: 0.15 | AB84: 0.15 | AC84: 0.15 | AD84: 0.15 | AE84: 0.15 | AF84: 0.15 | AG84: 0.15 | AH84: 0.15 | AI84: 0.15 | AJ84: 0.15 | AK84: 0.15 | AM84: =SUM(C84:AK84) -> 5.25
B85: Ticket Médio (R$) | C85: ='01. PC'!$H$45 -> 36 | D85: =C85 -> 36 | E85: 36 | F85: 36 | G85: 36 | H85: 36 | I85: 36 | J85: 36 | K85: 36 | L85: 36 | M85: 36 | N85: 36 | O85: 36 | P85: 36 | Q85: 36 | R85: 36 | S85: 36 | T85: 36 | U85: 36 | V85: 36 | W85: 36 | X85: 36 | Y85: 36 | Z85: 36 | AA85: 36 | AB85: 36 | AC85: 36 | AD85: 36 | AE85: 36 | AF85: 36 | AG85: 36 | AH85: 36 | AI85: 36 | AJ85: 36 | AK85: 36 | AM85: -
B86: Espaço do Ciclista Centro de Visitantes | C86: =IF(C$11>='01. PC'!$H$26,'04.1 DEMANDA'!D$15*C87*C88,0)*SUMIF($B$151:$B$161,$B86,$C$151:$C$161) -> 0 | D86: =IF(D$11>='01. PC'!$H$26,'04.1 DEMANDA'!E$15*D87*D88,0)*SUMIF($B$151:$B$161,$B86,$C$151:$C$161) -> 0 | E86: =IF(E$11>='01. PC'!$H$26,'04.1 DEMANDA'!F$15*E87*E88,0)*SUMIF($B$151:$B$161,$B86,$C$151:$C$161) -> 0 | F86: =IF(F$11>='01. PC'!$H$26,'04.1 DEMANDA'!G$15*F87*F88,0)*SUMIF($B$151:$B$161,$B86,$C$151:$C$161) -> 0 | G86: =IF(G$11>='01. PC'!$H$26,'04.1 DEMANDA'!H$15*G87*G88,0)*SUMIF($B$151:$B$161,$B86,$C$151:$C$161) -> 0 | H86: =IF(H$11>='01. PC'!$H$26,'04.1 DEMANDA'!I$15*H87*H88,0)*SUMIF($B$151:$B$161,$B86,$C$151:$C$161) -> 0 | I86: =IF(I$11>='01. PC'!$H$26,'04.1 DEMANDA'!J$15*I87*I88,0)*SUMIF($B$151:$B$161,$B86,$C$151:$C$161) -> 0 | J86: =IF(J$11>='01. PC'!$H$26,'04.1 DEMANDA'!K$15*J87*J88,0)*SUMIF($B$151:$B$161,$B86,$C$151:$C$161) -> 0 | K86: =IF(K$11>='01. PC'!$H$26,'04.1 DEMANDA'!L$15*K87*K88,0)*SUMIF($B$151:$B$161,$B86,$C$151:$C$161) -> 0 | L86: =IF(L$11>='01. PC'!$H$26,'04.1 DEMANDA'!M$15*L87*L88,0)*SUMIF($B$151:$B$161,$B86,$C$151:$C$161) -> 141763.1986 | M86: =IF(M$11>='01. PC'!$H$26,'04.1 DEMANDA'!N$15*M87*M88,0)*SUMIF($B$151:$B$161,$B86,$C$151:$C$161) -> 144381.7002 | N86: =IF(N$11>='01. PC'!$H$26,'04.1 DEMANDA'!O$15*N87*N88,0)*SUMIF($B$151:$B$161,$B86,$C$151:$C$161) -> 147048.5679 | O86: =IF(O$11>='01. PC'!$H$26,'04.1 DEMANDA'!P$15*O87*O88,0)*SUMIF($B$151:$B$161,$B86,$C$151:$C$161) -> 149764.6952 | P86: =IF(P$11>='01. PC'!$H$26,'04.1 DEMANDA'!Q$15*P87*P88,0)*SUMIF($B$151:$B$161,$B86,$C$151:$C$161) -> 152530.992 | Q86: =IF(Q$11>='01. PC'!$H$26,'04.1 DEMANDA'!R$15*Q87*Q88,0)*SUMIF($B$151:$B$161,$B86,$C$151:$C$161) -> 155348.3849 | R86: =IF(R$11>='01. PC'!$H$26,'04.1 DEMANDA'!S$15*R87*R88,0)*SUMIF($B$151:$B$161,$B86,$C$151:$C$161) -> 158217.8178 | S86: =IF(S$11>='01. PC'!$H$26,'04.1 DEMANDA'!T$15*S87*S88,0)*SUMIF($B$151:$B$161,$B86,$C$151:$C$161) -> 161140.2518 | T86: =IF(T$11>='01. PC'!$H$26,'04.1 DEMANDA'!U$15*T87*T88,0)*SUMIF($B$151:$B$161,$B86,$C$151:$C$161) -> 164116.666 | U86: =IF(U$11>='01. PC'!$H$26,'04.1 DEMANDA'!V$15*U87*U88,0)*SUMIF($B$151:$B$161,$B86,$C$151:$C$161) -> 167148.0574 | V86: =IF(V$11>='01. PC'!$H$26,'04.1 DEMANDA'!W$15*V87*V88,0)*SUMIF($B$151:$B$161,$B86,$C$151:$C$161) -> 170235.4414 | W86: =IF(W$11>='01. PC'!$H$26,'04.1 DEMANDA'!X$15*W87*W88,0)*SUMIF($B$151:$B$161,$B86,$C$151:$C$161) -> 173379.8524 | X86: =IF(X$11>='01. PC'!$H$26,'04.1 DEMANDA'!Y$15*X87*X88,0)*SUMIF($B$151:$B$161,$B86,$C$151:$C$161) -> 176582.3437 | Y86: =IF(Y$11>='01. PC'!$H$26,'04.1 DEMANDA'!Z$15*Y87*Y88,0)*SUMIF($B$151:$B$161,$B86,$C$151:$C$161) -> 179843.988 | Z86: =IF(Z$11>='01. PC'!$H$26,'04.1 DEMANDA'!AA$15*Z87*Z88,0)*SUMIF($B$151:$B$161,$B86,$C$151:$C$161) -> 183165.8781 | AA86: =IF(AA$11>='01. PC'!$H$26,'04.1 DEMANDA'!AB$15*AA87*AA88,0)*SUMIF($B$151:$B$161,$B86,$C$151:$C$161) -> 186549.1266 | AB86: =IF(AB$11>='01. PC'!$H$26,'04.1 DEMANDA'!AC$15*AB87*AB88,0)*SUMIF($B$151:$B$161,$B86,$C$151:$C$161) -> 189994.8669 | AC86: =IF(AC$11>='01. PC'!$H$26,'04.1 DEMANDA'!AD$15*AC87*AC88,0)*SUMIF($B$151:$B$161,$B86,$C$151:$C$161) -> 193504.2533 | AD86: =IF(AD$11>='01. PC'!$H$26,'04.1 DEMANDA'!AE$15*AD87*AD88,0)*SUMIF($B$151:$B$161,$B86,$C$151:$C$161) -> 197078.4615 | AE86: =IF(AE$11>='01. PC'!$H$26,'04.1 DEMANDA'!AF$15*AE87*AE88,0)*SUMIF($B$151:$B$161,$B86,$C$151:$C$161) -> 200718.6887 | AF86: =IF(AF$11>='01. PC'!$H$26,'04.1 DEMANDA'!AG$15*AF87*AF88,0)*SUMIF($B$151:$B$161,$B86,$C$151:$C$161) -> 204426.1543 | AG86: =IF(AG$11>='01. PC'!$H$26,'04.1 DEMANDA'!AH$15*AG87*AG88,0)*SUMIF($B$151:$B$161,$B86,$C$151:$C$161) -> 0 | AH86: =IF(AH$11>='01. PC'!$H$26,'04.1 DEMANDA'!AI$15*AH87*AH88,0)*SUMIF($B$151:$B$161,$B86,$C$151:$C$161) -> 0 | AI86: =IF(AI$11>='01. PC'!$H$26,'04.1 DEMANDA'!AJ$15*AI87*AI88,0)*SUMIF($B$151:$B$161,$B86,$C$151:$C$161) -> 0 | AJ86: =IF(AJ$11>='01. PC'!$H$26,'04.1 DEMANDA'!AK$15*AJ87*AJ88,0)*SUMIF($B$151:$B$161,$B86,$C$151:$C$161) -> 0 | AK86: =IF(AK$11>='01. PC'!$H$26,'04.1 DEMANDA'!AL$15*AK87*AK88,0)*SUMIF($B$151:$B$161,$B86,$C$151:$C$161) -> 0 | AM86: =SUM(C86:AK86) -> 3596939.387
B87: Adesão | C87: ='01. PC'!$J$46 -> 0.05 | D87: =C87 -> 0.05 | E87: 0.05 | F87: 0.05 | G87: 0.05 | H87: 0.05 | I87: 0.05 | J87: 0.05 | K87: 0.05 | L87: 0.05 | M87: 0.05 | N87: 0.05 | O87: 0.05 | P87: 0.05 | Q87: 0.05 | R87: 0.05 | S87: 0.05 | T87: 0.05 | U87: 0.05 | V87: 0.05 | W87: 0.05 | X87: 0.05 | Y87: 0.05 | Z87: 0.05 | AA87: 0.05 | AB87: 0.05 | AC87: 0.05 | AD87: 0.05 | AE87: 0.05 | AF87: 0.05 | AG87: 0.05 | AH87: 0.05 | AI87: 0.05 | AJ87: 0.05 | AK87: 0.05 | AM87: =SUM(C87:AK87) -> 1.75
B88: Ticket Médio (R$) | C88: ='01. PC'!$H$46 -> 36 | D88: =C88 -> 36 | E88: 36 | F88: 36 | G88: 36 | H88: 36 | I88: 36 | J88: 36 | K88: 36 | L88: 36 | M88: 36 | N88: 36 | O88: 36 | P88: 36 | Q88: 36 | R88: 36 | S88: 36 | T88: 36 | U88: 36 | V88: 36 | W88: 36 | X88: 36 | Y88: 36 | Z88: 36 | AA88: 36 | AB88: 36 | AC88: 36 | AD88: 36 | AE88: 36 | AF88: 36 | AG88: 36 | AH88: 36 | AI88: 36 | AJ88: 36 | AK88: 36 | AM88: -
B90: Alimentação temporária | C90: =C91*C92*C93*'04.1 DEMANDA'!D12/10^6 -> 0 | D90: =D91*D92*D93*'04.1 DEMANDA'!E12/10^6 -> 0 | E90: =E91*E92*E93*'04.1 DEMANDA'!F12/10^6 -> 0 | F90: =F91*F92*F93*'04.1 DEMANDA'!G12/10^6 -> 0 | G90: =G91*G92*G93*'04.1 DEMANDA'!H12/10^6 -> 0 | H90: =H91*H92*H93*'04.1 DEMANDA'!I12/10^6 -> 0 | I90: =I91*I92*I93*'04.1 DEMANDA'!J12/10^6 -> 0 | J90: =J91*J92*J93*'04.1 DEMANDA'!K12/10^6 -> 0 | K90: =K91*K92*K93*'04.1 DEMANDA'!L12/10^6 -> 0 | L90: =L91*L92*L93*'04.1 DEMANDA'!M12/10^6 -> 0 | M90: =M91*M92*M93*'04.1 DEMANDA'!N12/10^6 -> 0 | N90: =N91*N92*N93*'04.1 DEMANDA'!O12/10^6 -> 0 | O90: =O91*O92*O93*'04.1 DEMANDA'!P12/10^6 -> 0 | P90: =P91*P92*P93*'04.1 DEMANDA'!Q12/10^6 -> 0 | Q90: =Q91*Q92*Q93*'04.1 DEMANDA'!R12/10^6 -> 0 | R90: =R91*R92*R93*'04.1 DEMANDA'!S12/10^6 -> 0 | S90: =S91*S92*S93*'04.1 DEMANDA'!T12/10^6 -> 0 | T90: =T91*T92*T93*'04.1 DEMANDA'!U12/10^6 -> 0 | U90: =U91*U92*U93*'04.1 DEMANDA'!V12/10^6 -> 0 | V90: =V91*V92*V93*'04.1 DEMANDA'!W12/10^6 -> 0 | W90: =W91*W92*W93*'04.1 DEMANDA'!X12/10^6 -> 0 | X90: =X91*X92*X93*'04.1 DEMANDA'!Y12/10^6 -> 0 | Y90: =Y91*Y92*Y93*'04.1 DEMANDA'!Z12/10^6 -> 0 | Z90: =Z91*Z92*Z93*'04.1 DEMANDA'!AA12/10^6 -> 0 | AA90: =AA91*AA92*AA93*'04.1 DEMANDA'!AB12/10^6 -> 0 | AB90: =AB91*AB92*AB93*'04.1 DEMANDA'!AC12/10^6 -> 0 | AC90: =AC91*AC92*AC93*'04.1 DEMANDA'!AD12/10^6 -> 0 | AD90: =AD91*AD92*AD93*'04.1 DEMANDA'!AE12/10^6 -> 0 | AE90: =AE91*AE92*AE93*'04.1 DEMANDA'!AF12/10^6 -> 0 | AF90: =AF91*AF92*AF93*'04.1 DEMANDA'!AG12/10^6 -> 0 | AG90: =AG91*AG92*AG93*'04.1 DEMANDA'!AH12/10^6 -> 0 | AH90: =AH91*AH92*AH93*'04.1 DEMANDA'!AI12/10^6 -> 0 | AI90: =AI91*AI92*AI93*'04.1 DEMANDA'!AJ12/10^6 -> 0 | AJ90: =AJ91*AJ92*AJ93*'04.1 DEMANDA'!AK12/10^6 -> 0 | AK90: =AK91*AK92*AK93*'04.1 DEMANDA'!AL12/10^6 -> 0 | AM90: =SUM(C90:AK90) -> 0
B91: Funcionamento | C91: =IF(C11<'01. PC'!$I$26,SUM('04.1 DEMANDA'!E49:N49),) -> 0.7815291561 | D91: =IF(D11<'01. PC'!$I$26,SUM('04.1 DEMANDA'!$C49:$N49),) -> 1 | E91: =IF(E11<'01. PC'!$I$26,SUM('04.1 DEMANDA'!$C49:$N49),) -> 1 | F91: =IF(F11<'01. PC'!$I$26,SUM('04.1 DEMANDA'!$C49:$N49),) -> 1 | G91: =IF(G11<'01. PC'!$I$26,SUM('04.1 DEMANDA'!$C49:$N49),) -> 1 | H91: =IF(H11<'01. PC'!$I$26,SUM('04.1 DEMANDA'!$C49:$N49),) -> 1 | I91: =IF(I11<'01. PC'!$I$26,SUM('04.1 DEMANDA'!$C49:$N49),) -> 1 | J91: =IF(J11<'01. PC'!$I$26,SUM('04.1 DEMANDA'!$C49:$N49),) -> 1 | K91: =IF(K11<'01. PC'!$I$26,SUM('04.1 DEMANDA'!$C49:$N49),) -> 1 | L91: =IF(L11<'01. PC'!$I$26,SUM('04.1 DEMANDA'!$C49:$N49),) -> 1 | M91: =IF(M11<'01. PC'!$I$26,SUM('04.1 DEMANDA'!$C49:$N49),) -> 1 | N91: =IF(N11<'01. PC'!$I$26,SUM('04.1 DEMANDA'!$C49:$N49),) -> 0 | O91: =IF(O11<'01. PC'!$I$26,SUM('04.1 DEMANDA'!$C49:$N49),) -> 0 | P91: =IF(P11<'01. PC'!$I$26,SUM('04.1 DEMANDA'!$C49:$N49),) -> 0 | Q91: =IF(Q11<'01. PC'!$I$26,SUM('04.1 DEMANDA'!$C49:$N49),) -> 0 | R91: =IF(R11<'01. PC'!$I$26,SUM('04.1 DEMANDA'!$C49:$N49),) -> 0 | S91: =IF(S11<'01. PC'!$I$26,SUM('04.1 DEMANDA'!$C49:$N49),) -> 0 | T91: =IF(T11<'01. PC'!$I$26,SUM('04.1 DEMANDA'!$C49:$N49),) -> 0 | U91: =IF(U11<'01. PC'!$I$26,SUM('04.1 DEMANDA'!$C49:$N49),) -> 0 | V91: =IF(V11<'01. PC'!$I$26,SUM('04.1 DEMANDA'!$C49:$N49),) -> 0 | W91: =IF(W11<'01. PC'!$I$26,SUM('04.1 DEMANDA'!$C49:$N49),) -> 0 | X91: =IF(X11<'01. PC'!$I$26,SUM('04.1 DEMANDA'!$C49:$N49),) -> 0 | Y91: =IF(Y11<'01. PC'!$I$26,SUM('04.1 DEMANDA'!$C49:$N49),) -> 0 | Z91: =IF(Z11<'01. PC'!$I$26,SUM('04.1 DEMANDA'!$C49:$N49),) -> 0 | AA91: =IF(AA11<'01. PC'!$I$26,SUM('04.1 DEMANDA'!$C49:$N49),) -> 0 | AB91: =IF(AB11<'01. PC'!$I$26,SUM('04.1 DEMANDA'!$C49:$N49),) -> 0 | AC91: =IF(AC11<'01. PC'!$I$26,SUM('04.1 DEMANDA'!$C49:$N49),) -> 0 | AD91: =IF(AD11<'01. PC'!$I$26,SUM('04.1 DEMANDA'!$C49:$N49),) -> 0 | AE91: =IF(AE11<'01. PC'!$I$26,SUM('04.1 DEMANDA'!$C49:$N49),) -> 0 | AF91: =IF(AF11<'01. PC'!$I$26,SUM('04.1 DEMANDA'!$C49:$N49),) -> 0 | AG91: =IF(AG11<'01. PC'!$I$26,SUM('04.1 DEMANDA'!$C49:$N49),) -> 0 | AH91: =IF(AH11<'01. PC'!$I$26,SUM('04.1 DEMANDA'!$C49:$N49),) -> 0 | AI91: =IF(AI11<'01. PC'!$I$26,SUM('04.1 DEMANDA'!$C49:$N49),) -> 0 | AJ91: =IF(AJ11<'01. PC'!$I$26,SUM('04.1 DEMANDA'!$C49:$N49),) -> 0 | AK91: =IF(AK11<'01. PC'!$I$26,SUM('04.1 DEMANDA'!$C49:$N49),) -> 0
B92: Adesão | C92: 0 | D92: =C92 -> 0 | E92: =D92 -> 0 | F92: =E92 -> 0 | G92: 0 | H92: 0 | I92: 0 | J92: 0 | K92: 0 | L92: 0 | M92: 0 | N92: 0 | O92: 0 | P92: 0 | Q92: 0 | R92: 0 | S92: 0 | T92: 0 | U92: 0 | V92: 0 | W92: 0 | X92: 0 | Y92: 0 | Z92: 0 | AA92: 0 | AB92: 0 | AC92: 0 | AD92: 0 | AE92: 0 | AF92: 0 | AG92: 0 | AH92: 0 | AI92: 0 | AJ92: 0 | AK92: 0 | AM92: =SUM(C92:AK92) -> 0
B93: Ticket Médio (R$) | C93: ='01. PC'!$H$47 -> 48 | D93: =C93 -> 48 | E93: =D93 -> 48 | F93: =E93 -> 48 | G93: 48 | H93: 48 | I93: 48 | J93: 48 | K93: 48 | L93: 48 | M93: 48 | N93: 48 | O93: 48 | P93: 48 | Q93: 48 | R93: 48 | S93: 48 | T93: 48 | U93: 48 | V93: 48 | W93: 48 | X93: 48 | Y93: 48 | Z93: 48 | AA93: 48 | AB93: 48 | AC93: 48 | AD93: 48 | AE93: 48 | AF93: 48 | AG93: 48 | AH93: 48 | AI93: 48 | AJ93: 48 | AK93: 48 | AM93: -
B95: Varejo | C95: =C97+C105 -> 0 | D95: 0 | E95: 0 | F95: 0 | G95: 0 | H95: 0 | I95: 0 | J95: 0 | K95: 0 | L95: 0.3386565301 | M95: 0.3449118393 | N95: 0.35128269 | O95: 0.3577712163 | P95: 0.364379592 | Q95: 0.3711100307 | R95: 0.377964787 | S95: 0.3849461571 | T95: 0.3920564799 | U95: 0.399298137 | V95: 0.4066735545 | W95: 0.414185203 | X95: 0.4218355989 | Y95: 0.4296273048 | Z95: 0.4375629309 | AA95: 0.4456451357 | AB95: 0.4538766265 | AC95: 0.4622601607 | AD95: 0.4707985469 | AE95: 0.4794946451 | AF95: 0.4883513686 | AG95: 0 | AH95: 0 | AI95: 0 | AJ95: 0 | AK95: 0 | AM95: =SUM(C95:AK95) -> 8.592688535
A97: =VLOOKUP(B97,'01. PC'!$Q$7:$V$35,2,0) ->  | B97: FLONA | C97: =(C98+C101)/10^6 -> 0 | D97: 0 | E97: 0 | F97: 0 | G97: 0 | H97: 0 | I97: 0 | J97: 0 | K97: 0 | L97: 0.3386565301 | M97: 0.3449118393 | N97: 0.35128269 | O97: 0.3577712163 | P97: 0.364379592 | Q97: 0.3711100307 | R97: 0.377964787 | S97: 0.3849461571 | T97: 0.3920564799 | U97: 0.399298137 | V97: 0.4066735545 | W97: 0.414185203 | X97: 0.4218355989 | Y97: 0.4296273048 | Z97: 0.4375629309 | AA97: 0.4456451357 | AB97: 0.4538766265 | AC97: 0.4622601607 | AD97: 0.4707985469 | AE97: 0.4794946451 | AF97: 0.4883513686 | AG97: 0 | AH97: 0 | AI97: 0 | AJ97: 0 | AK97: 0 | AM97: =SUM(C97:AK97) -> 8.592688535
B98: Espaço do Ciclista - FLONA | C98: =IF(C$11>='01. PC'!$H$26,'04.1 DEMANDA'!D$15*C99*C100,0)*SUMIF($B$164:$B$166,$B98,$C$164:$C$166) -> 0 | D98: =IF(D$11>='01. PC'!$H$26,'04.1 DEMANDA'!E$15*D99*D100,0)*SUMIF($B$164:$B$166,$B98,$C$164:$C$166) -> 0 | E98: =IF(E$11>='01. PC'!$H$26,'04.1 DEMANDA'!F$15*E99*E100,0)*SUMIF($B$164:$B$166,$B98,$C$164:$C$166) -> 0 | F98: =IF(F$11>='01. PC'!$H$26,'04.1 DEMANDA'!G$15*F99*F100,0)*SUMIF($B$164:$B$166,$B98,$C$164:$C$166) -> 0 | G98: =IF(G$11>='01. PC'!$H$26,'04.1 DEMANDA'!H$15*G99*G100,0)*SUMIF($B$164:$B$166,$B98,$C$164:$C$166) -> 0 | H98: =IF(H$11>='01. PC'!$H$26,'04.1 DEMANDA'!I$15*H99*H100,0)*SUMIF($B$164:$B$166,$B98,$C$164:$C$166) -> 0 | I98: =IF(I$11>='01. PC'!$H$26,'04.1 DEMANDA'!J$15*I99*I100,0)*SUMIF($B$164:$B$166,$B98,$C$164:$C$166) -> 0 | J98: =IF(J$11>='01. PC'!$H$26,'04.1 DEMANDA'!K$15*J99*J100,0)*SUMIF($B$164:$B$166,$B98,$C$164:$C$166) -> 0 | K98: =IF(K$11>='01. PC'!$H$26,'04.1 DEMANDA'!L$15*K99*K100,0)*SUMIF($B$164:$B$166,$B98,$C$164:$C$166) -> 0 | L98: =IF(L$11>='01. PC'!$H$26,'04.1 DEMANDA'!M$15*L99*L100,0)*SUMIF($B$164:$B$166,$B98,$C$164:$C$166) -> 338656.5301 | M98: =IF(M$11>='01. PC'!$H$26,'04.1 DEMANDA'!N$15*M99*M100,0)*SUMIF($B$164:$B$166,$B98,$C$164:$C$166) -> 344911.8393 | N98: =IF(N$11>='01. PC'!$H$26,'04.1 DEMANDA'!O$15*N99*N100,0)*SUMIF($B$164:$B$166,$B98,$C$164:$C$166) -> 351282.69 | O98: =IF(O$11>='01. PC'!$H$26,'04.1 DEMANDA'!P$15*O99*O100,0)*SUMIF($B$164:$B$166,$B98,$C$164:$C$166) -> 357771.2163 | P98: =IF(P$11>='01. PC'!$H$26,'04.1 DEMANDA'!Q$15*P99*P100,0)*SUMIF($B$164:$B$166,$B98,$C$164:$C$166) -> 364379.592 | Q98: =IF(Q$11>='01. PC'!$H$26,'04.1 DEMANDA'!R$15*Q99*Q100,0)*SUMIF($B$164:$B$166,$B98,$C$164:$C$166) -> 371110.0307 | R98: =IF(R$11>='01. PC'!$H$26,'04.1 DEMANDA'!S$15*R99*R100,0)*SUMIF($B$164:$B$166,$B98,$C$164:$C$166) -> 377964.787 | S98: =IF(S$11>='01. PC'!$H$26,'04.1 DEMANDA'!T$15*S99*S100,0)*SUMIF($B$164:$B$166,$B98,$C$164:$C$166) -> 384946.1571 | T98: =IF(T$11>='01. PC'!$H$26,'04.1 DEMANDA'!U$15*T99*T100,0)*SUMIF($B$164:$B$166,$B98,$C$164:$C$166) -> 392056.4799 | U98: =IF(U$11>='01. PC'!$H$26,'04.1 DEMANDA'!V$15*U99*U100,0)*SUMIF($B$164:$B$166,$B98,$C$164:$C$166) -> 399298.137 | V98: =IF(V$11>='01. PC'!$H$26,'04.1 DEMANDA'!W$15*V99*V100,0)*SUMIF($B$164:$B$166,$B98,$C$164:$C$166) -> 406673.5545 | W98: =IF(W$11>='01. PC'!$H$26,'04.1 DEMANDA'!X$15*W99*W100,0)*SUMIF($B$164:$B$166,$B98,$C$164:$C$166) -> 414185.203 | X98: =IF(X$11>='01. PC'!$H$26,'04.1 DEMANDA'!Y$15*X99*X100,0)*SUMIF($B$164:$B$166,$B98,$C$164:$C$166) -> 421835.5989 | Y98: =IF(Y$11>='01. PC'!$H$26,'04.1 DEMANDA'!Z$15*Y99*Y100,0)*SUMIF($B$164:$B$166,$B98,$C$164:$C$166) -> 429627.3048 | Z98: =IF(Z$11>='01. PC'!$H$26,'04.1 DEMANDA'!AA$15*Z99*Z100,0)*SUMIF($B$164:$B$166,$B98,$C$164:$C$166) -> 437562.9309 | AA98: =IF(AA$11>='01. PC'!$H$26,'04.1 DEMANDA'!AB$15*AA99*AA100,0)*SUMIF($B$164:$B$166,$B98,$C$164:$C$166) -> 445645.1357 | AB98: =IF(AB$11>='01. PC'!$H$26,'04.1 DEMANDA'!AC$15*AB99*AB100,0)*SUMIF($B$164:$B$166,$B98,$C$164:$C$166) -> 453876.6265 | AC98: =IF(AC$11>='01. PC'!$H$26,'04.1 DEMANDA'!AD$15*AC99*AC100,0)*SUMIF($B$164:$B$166,$B98,$C$164:$C$166) -> 462260.1607 | AD98: =IF(AD$11>='01. PC'!$H$26,'04.1 DEMANDA'!AE$15*AD99*AD100,0)*SUMIF($B$164:$B$166,$B98,$C$164:$C$166) -> 470798.5469 | AE98: =IF(AE$11>='01. PC'!$H$26,'04.1 DEMANDA'!AF$15*AE99*AE100,0)*SUMIF($B$164:$B$166,$B98,$C$164:$C$166) -> 479494.6451 | AF98: =IF(AF$11>='01. PC'!$H$26,'04.1 DEMANDA'!AG$15*AF99*AF100,0)*SUMIF($B$164:$B$166,$B98,$C$164:$C$166) -> 488351.3686 | AG98: =IF(AG$11>='01. PC'!$H$26,'04.1 DEMANDA'!AH$15*AG99*AG100,0)*SUMIF($B$164:$B$166,$B98,$C$164:$C$166) -> 0 | AH98: =IF(AH$11>='01. PC'!$H$26,'04.1 DEMANDA'!AI$15*AH99*AH100,0)*SUMIF($B$164:$B$166,$B98,$C$164:$C$166) -> 0 | AI98: =IF(AI$11>='01. PC'!$H$26,'04.1 DEMANDA'!AJ$15*AI99*AI100,0)*SUMIF($B$164:$B$166,$B98,$C$164:$C$166) -> 0 | AJ98: =IF(AJ$11>='01. PC'!$H$26,'04.1 DEMANDA'!AK$15*AJ99*AJ100,0)*SUMIF($B$164:$B$166,$B98,$C$164:$C$166) -> 0 | AK98: =IF(AK$11>='01. PC'!$H$26,'04.1 DEMANDA'!AL$15*AK99*AK100,0)*SUMIF($B$164:$B$166,$B98,$C$164:$C$166) -> 0 | AM98: =SUM(C98:AK98) -> 8592688.535
B99: Adesão | C99: ='01. PC'!$J$48 -> 0.1 | D99: =C99 -> 0.1 | E99: 0.1 | F99: 0.1 | G99: 0.1 | H99: 0.1 | I99: 0.1 | J99: 0.1 | K99: 0.1 | L99: 0.1 | M99: 0.1 | N99: 0.1 | O99: 0.1 | P99: 0.1 | Q99: 0.1 | R99: 0.1 | S99: 0.1 | T99: 0.1 | U99: 0.1 | V99: 0.1 | W99: 0.1 | X99: 0.1 | Y99: 0.1 | Z99: 0.1 | AA99: 0.1 | AB99: 0.1 | AC99: 0.1 | AD99: 0.1 | AE99: 0.1 | AF99: 0.1 | AG99: 0.1 | AH99: 0.1 | AI99: 0.1 | AJ99: 0.1 | AK99: 0.1 | AM99: =SUM(C99:AK99) -> 3.5
B100: Ticket Médio (R$) | C100: ='01. PC'!$H$48 -> 43 | D100: =C100 -> 43 | E100: 43 | F100: 43 | G100: 43 | H100: 43 | I100: 43 | J100: 43 | K100: 43 | L100: 43 | M100: 43 | N100: 43 | O100: 43 | P100: 43 | Q100: 43 | R100: 43 | S100: 43 | T100: 43 | U100: 43 | V100: 43 | W100: 43 | X100: 43 | Y100: 43 | Z100: 43 | AA100: 43 | AB100: 43 | AC100: 43 | AD100: 43 | AE100: 43 | AF100: 43 | AG100: 43 | AH100: 43 | AI100: 43 | AJ100: 43 | AK100: 43 | AM100: -
B101: Mercado Aberto | C101: =IF(C$11>='01. PC'!$H$26,'04.1 DEMANDA'!D$15*C102*C103,0)*SUMIF($B$164:$B$166,$B101,$C$164:$C$166) -> 0 | D101: =IF(D$11>='01. PC'!$H$26,'04.1 DEMANDA'!E$15*D102*D103,0)*SUMIF($B$164:$B$166,$B101,$C$164:$C$166) -> 0 | E101: =IF(E$11>='01. PC'!$H$26,'04.1 DEMANDA'!F$15*E102*E103,0)*SUMIF($B$164:$B$166,$B101,$C$164:$C$166) -> 0 | F101: =IF(F$11>='01. PC'!$H$26,'04.1 DEMANDA'!G$15*F102*F103,0)*SUMIF($B$164:$B$166,$B101,$C$164:$C$166) -> 0 | G101: =IF(G$11>='01. PC'!$H$26,'04.1 DEMANDA'!H$15*G102*G103,0)*SUMIF($B$164:$B$166,$B101,$C$164:$C$166) -> 0 | H101: =IF(H$11>='01. PC'!$H$26,'04.1 DEMANDA'!I$15*H102*H103,0)*SUMIF($B$164:$B$166,$B101,$C$164:$C$166) -> 0 | I101: =IF(I$11>='01. PC'!$H$26,'04.1 DEMANDA'!J$15*I102*I103,0)*SUMIF($B$164:$B$166,$B101,$C$164:$C$166) -> 0 | J101: =IF(J$11>='01. PC'!$H$26,'04.1 DEMANDA'!K$15*J102*J103,0)*SUMIF($B$164:$B$166,$B101,$C$164:$C$166) -> 0 | K101: =IF(K$11>='01. PC'!$H$26,'04.1 DEMANDA'!L$15*K102*K103,0)*SUMIF($B$164:$B$166,$B101,$C$164:$C$166) -> 0 | L101: =IF(L$11>='01. PC'!$H$26,'04.1 DEMANDA'!M$15*L102*L103,0)*SUMIF($B$164:$B$166,$B101,$C$164:$C$166) -> 0 | M101: =IF(M$11>='01. PC'!$H$26,'04.1 DEMANDA'!N$15*M102*M103,0)*SUMIF($B$164:$B$166,$B101,$C$164:$C$166) -> 0 | N101: =IF(N$11>='01. PC'!$H$26,'04.1 DEMANDA'!O$15*N102*N103,0)*SUMIF($B$164:$B$166,$B101,$C$164:$C$166) -> 0 | O101: =IF(O$11>='01. PC'!$H$26,'04.1 DEMANDA'!P$15*O102*O103,0)*SUMIF($B$164:$B$166,$B101,$C$164:$C$166) -> 0 | P101: =IF(P$11>='01. PC'!$H$26,'04.1 DEMANDA'!Q$15*P102*P103,0)*SUMIF($B$164:$B$166,$B101,$C$164:$C$166) -> 0 | Q101: =IF(Q$11>='01. PC'!$H$26,'04.1 DEMANDA'!R$15*Q102*Q103,0)*SUMIF($B$164:$B$166,$B101,$C$164:$C$166) -> 0 | R101: =IF(R$11>='01. PC'!$H$26,'04.1 DEMANDA'!S$15*R102*R103,0)*SUMIF($B$164:$B$166,$B101,$C$164:$C$166) -> 0 | S101: =IF(S$11>='01. PC'!$H$26,'04.1 DEMANDA'!T$15*S102*S103,0)*SUMIF($B$164:$B$166,$B101,$C$164:$C$166) -> 0 | T101: =IF(T$11>='01. PC'!$H$26,'04.1 DEMANDA'!U$15*T102*T103,0)*SUMIF($B$164:$B$166,$B101,$C$164:$C$166) -> 0 | U101: =IF(U$11>='01. PC'!$H$26,'04.1 DEMANDA'!V$15*U102*U103,0)*SUMIF($B$164:$B$166,$B101,$C$164:$C$166) -> 0 | V101: =IF(V$11>='01. PC'!$H$26,'04.1 DEMANDA'!W$15*V102*V103,0)*SUMIF($B$164:$B$166,$B101,$C$164:$C$166) -> 0 | W101: =IF(W$11>='01. PC'!$H$26,'04.1 DEMANDA'!X$15*W102*W103,0)*SUMIF($B$164:$B$166,$B101,$C$164:$C$166) -> 0 | X101: =IF(X$11>='01. PC'!$H$26,'04.1 DEMANDA'!Y$15*X102*X103,0)*SUMIF($B$164:$B$166,$B101,$C$164:$C$166) -> 0 | Y101: =IF(Y$11>='01. PC'!$H$26,'04.1 DEMANDA'!Z$15*Y102*Y103,0)*SUMIF($B$164:$B$166,$B101,$C$164:$C$166) -> 0 | Z101: =IF(Z$11>='01. PC'!$H$26,'04.1 DEMANDA'!AA$15*Z102*Z103,0)*SUMIF($B$164:$B$166,$B101,$C$164:$C$166) -> 0 | AA101: =IF(AA$11>='01. PC'!$H$26,'04.1 DEMANDA'!AB$15*AA102*AA103,0)*SUMIF($B$164:$B$166,$B101,$C$164:$C$166) -> 0 | AB101: =IF(AB$11>='01. PC'!$H$26,'04.1 DEMANDA'!AC$15*AB102*AB103,0)*SUMIF($B$164:$B$166,$B101,$C$164:$C$166) -> 0 | AC101: =IF(AC$11>='01. PC'!$H$26,'04.1 DEMANDA'!AD$15*AC102*AC103,0)*SUMIF($B$164:$B$166,$B101,$C$164:$C$166) -> 0 | AD101: =IF(AD$11>='01. PC'!$H$26,'04.1 DEMANDA'!AE$15*AD102*AD103,0)*SUMIF($B$164:$B$166,$B101,$C$164:$C$166) -> 0 | AE101: =IF(AE$11>='01. PC'!$H$26,'04.1 DEMANDA'!AF$15*AE102*AE103,0)*SUMIF($B$164:$B$166,$B101,$C$164:$C$166) -> 0 | AF101: =IF(AF$11>='01. PC'!$H$26,'04.1 DEMANDA'!AG$15*AF102*AF103,0)*SUMIF($B$164:$B$166,$B101,$C$164:$C$166) -> 0 | AG101: =IF(AG$11>='01. PC'!$H$26,'04.1 DEMANDA'!AH$15*AG102*AG103,0)*SUMIF($B$164:$B$166,$B101,$C$164:$C$166) -> 0 | AH101: =IF(AH$11>='01. PC'!$H$26,'04.1 DEMANDA'!AI$15*AH102*AH103,0)*SUMIF($B$164:$B$166,$B101,$C$164:$C$166) -> 0 | AI101: =IF(AI$11>='01. PC'!$H$26,'04.1 DEMANDA'!AJ$15*AI102*AI103,0)*SUMIF($B$164:$B$166,$B101,$C$164:$C$166) -> 0 | AJ101: =IF(AJ$11>='01. PC'!$H$26,'04.1 DEMANDA'!AK$15*AJ102*AJ103,0)*SUMIF($B$164:$B$166,$B101,$C$164:$C$166) -> 0 | AK101: =IF(AK$11>='01. PC'!$H$26,'04.1 DEMANDA'!AL$15*AK102*AK103,0)*SUMIF($B$164:$B$166,$B101,$C$164:$C$166) -> 0 | AM101: =SUM(C101:AK101) -> 0
B102: Adesão | C102: ='01. PC'!$J$49 -> 0 | D102: =C102 -> 0 | E102: 0 | F102: 0 | G102: 0 | H102: 0 | I102: 0 | J102: 0 | K102: 0 | L102: 0 | M102: 0 | N102: 0 | O102: 0 | P102: 0 | Q102: 0 | R102: 0 | S102: 0 | T102: 0 | U102: 0 | V102: 0 | W102: 0 | X102: 0 | Y102: 0 | Z102: 0 | AA102: 0 | AB102: 0 | AC102: 0 | AD102: 0 | AE102: 0 | AF102: 0 | AG102: 0 | AH102: 0 | AI102: 0 | AJ102: 0 | AK102: 0 | AM102: =SUM(C102:AK102) -> 0
B103: Ticket Médio (R$) | C103: ='01. PC'!$H$49 -> 43 | D103: =C103 -> 43 | E103: 43 | F103: 43 | G103: 43 | H103: 43 | I103: 43 | J103: 43 | K103: 43 | L103: 43 | M103: 43 | N103: 43 | O103: 43 | P103: 43 | Q103: 43 | R103: 43 | S103: 43 | T103: 43 | U103: 43 | V103: 43 | W103: 43 | X103: 43 | Y103: 43 | Z103: 43 | AA103: 43 | AB103: 43 | AC103: 43 | AD103: 43 | AE103: 43 | AF103: 43 | AG103: 43 | AH103: 43 | AI103: 43 | AJ103: 43 | AK103: 43 | AM103: -
A105: =VLOOKUP(B105,'01. PC'!$Q$7:$V$35,2,0) ->  | B105: Varejo Temporário | C105: =C106*C107*C108*'04.1 DEMANDA'!D12/10^6 -> 0 | D105: =D106*D107*D108*'04.1 DEMANDA'!E12/10^6 -> 0 | E105: =E106*E107*E108*'04.1 DEMANDA'!F12/10^6 -> 0 | F105: =F106*F107*F108*'04.1 DEMANDA'!G12/10^6 -> 0 | G105: =G106*G107*G108*'04.1 DEMANDA'!H12/10^6 -> 0 | H105: =H106*H107*H108*'04.1 DEMANDA'!I12/10^6 -> 0 | I105: =I106*I107*I108*'04.1 DEMANDA'!J12/10^6 -> 0 | J105: =J106*J107*J108*'04.1 DEMANDA'!K12/10^6 -> 0 | K105: =K106*K107*K108*'04.1 DEMANDA'!L12/10^6 -> 0 | L105: =L106*L107*L108*'04.1 DEMANDA'!M12/10^6 -> 0 | M105: =M106*M107*M108*'04.1 DEMANDA'!N12/10^6 -> 0 | N105: =N106*N107*N108*'04.1 DEMANDA'!O12/10^6 -> 0 | O105: =O106*O107*O108*'04.1 DEMANDA'!P12/10^6 -> 0 | P105: =P106*P107*P108*'04.1 DEMANDA'!Q12/10^6 -> 0 | Q105: =Q106*Q107*Q108*'04.1 DEMANDA'!R12/10^6 -> 0 | R105: =R106*R107*R108*'04.1 DEMANDA'!S12/10^6 -> 0 | S105: =S106*S107*S108*'04.1 DEMANDA'!T12/10^6 -> 0 | T105: =T106*T107*T108*'04.1 DEMANDA'!U12/10^6 -> 0 | U105: =U106*U107*U108*'04.1 DEMANDA'!V12/10^6 -> 0 | V105: =V106*V107*V108*'04.1 DEMANDA'!W12/10^6 -> 0 | W105: =W106*W107*W108*'04.1 DEMANDA'!X12/10^6 -> 0 | X105: =X106*X107*X108*'04.1 DEMANDA'!Y12/10^6 -> 0 | Y105: =Y106*Y107*Y108*'04.1 DEMANDA'!Z12/10^6 -> 0 | Z105: =Z106*Z107*Z108*'04.1 DEMANDA'!AA12/10^6 -> 0 | AA105: =AA106*AA107*AA108*'04.1 DEMANDA'!AB12/10^6 -> 0 | AB105: =AB106*AB107*AB108*'04.1 DEMANDA'!AC12/10^6 -> 0 | AC105: =AC106*AC107*AC108*'04.1 DEMANDA'!AD12/10^6 -> 0 | AD105: =AD106*AD107*AD108*'04.1 DEMANDA'!AE12/10^6 -> 0 | AE105: =AE106*AE107*AE108*'04.1 DEMANDA'!AF12/10^6 -> 0 | AF105: =AF106*AF107*AF108*'04.1 DEMANDA'!AG12/10^6 -> 0 | AG105: =AG106*AG107*AG108*'04.1 DEMANDA'!AH12/10^6 -> 0 | AH105: =AH106*AH107*AH108*'04.1 DEMANDA'!AI12/10^6 -> 0 | AI105: =AI106*AI107*AI108*'04.1 DEMANDA'!AJ12/10^6 -> 0 | AJ105: =AJ106*AJ107*AJ108*'04.1 DEMANDA'!AK12/10^6 -> 0 | AK105: =AK106*AK107*AK108*'04.1 DEMANDA'!AL12/10^6 -> 0 | AM105: =SUM(C105:AK105) -> 0
B106: Funcionamento | C106: =SUM('04.1 DEMANDA'!E49:N49) -> 0.7815291561 | D106: =IF(D$11<'01. PC'!$I$26,100%,0) -> 1 | E106: =IF(E$11<'01. PC'!$I$26,100%,0) -> 1 | F106: =IF(F$11<'01. PC'!$I$26,100%,0) -> 1 | G106: =IF(G$11<'01. PC'!$I$26,100%,0) -> 1 | H106: =IF(H$11<'01. PC'!$I$26,100%,0) -> 1 | I106: =IF(I$11<'01. PC'!$I$26,100%,0) -> 1 | J106: =IF(J$11<'01. PC'!$I$26,100%,0) -> 1 | K106: =IF(K$11<'01. PC'!$I$26,100%,0) -> 1 | L106: =IF(L$11<'01. PC'!$I$26,100%,0) -> 1 | M106: =IF(M$11<'01. PC'!$I$26,100%,0) -> 1 | N106: =IF(N$11<'01. PC'!$I$26,100%,0) -> 0 | O106: =IF(O$11<'01. PC'!$I$26,100%,0) -> 0 | P106: =IF(P$11<'01. PC'!$I$26,100%,0) -> 0 | Q106: =IF(Q$11<'01. PC'!$I$26,100%,0) -> 0 | R106: =IF(R$11<'01. PC'!$I$26,100%,0) -> 0 | S106: =IF(S$11<'01. PC'!$I$26,100%,0) -> 0 | T106: =IF(T$11<'01. PC'!$I$26,100%,0) -> 0 | U106: =IF(U$11<'01. PC'!$I$26,100%,0) -> 0 | V106: =IF(V$11<'01. PC'!$I$26,100%,0) -> 0 | W106: =IF(W$11<'01. PC'!$I$26,100%,0) -> 0 | X106: =IF(X$11<'01. PC'!$I$26,100%,0) -> 0 | Y106: =IF(Y$11<'01. PC'!$I$26,100%,0) -> 0 | Z106: =IF(Z$11<'01. PC'!$I$26,100%,0) -> 0 | AA106: =IF(AA$11<'01. PC'!$I$26,100%,0) -> 0 | AB106: =IF(AB$11<'01. PC'!$I$26,100%,0) -> 0 | AC106: =IF(AC$11<'01. PC'!$I$26,100%,0) -> 0 | AD106: =IF(AD$11<'01. PC'!$I$26,100%,0) -> 0 | AE106: =IF(AE$11<'01. PC'!$I$26,100%,0) -> 0 | AF106: =IF(AF$11<'01. PC'!$I$26,100%,0) -> 0 | AG106: =IF(AG$11<'01. PC'!$I$26,100%,0) -> 0 | AH106: =IF(AH$11<'01. PC'!$I$26,100%,0) -> 0 | AI106: =IF(AI$11<'01. PC'!$I$26,100%,0) -> 0 | AJ106: =IF(AJ$11<'01. PC'!$I$26,100%,0) -> 0 | AK106: =IF(AK$11<'01. PC'!$I$26,100%,0) -> 0
B107: Adesão | C107: 0 | D107: =C107 -> 0 | E107: =D107 -> 0 | F107: =E107 -> 0 | G107: 0 | H107: 0 | I107: 0 | J107: 0 | K107: 0 | L107: 0 | M107: 0 | N107: 0 | O107: 0 | P107: 0 | Q107: 0 | R107: 0 | S107: 0 | T107: 0 | U107: 0 | V107: 0 | W107: 0 | X107: 0 | Y107: 0 | Z107: 0 | AA107: 0 | AB107: 0 | AC107: 0 | AD107: 0 | AE107: 0 | AF107: 0 | AG107: 0 | AH107: 0 | AI107: 0 | AJ107: 0 | AK107: 0 | AM107: =SUM(C107:AK107) -> 0
B108: Ticket Médio (R$) | C108: ='01. PC'!$H$50 -> 43 | D108: =C108 -> 43 | E108: =D108 -> 43 | F108: =E108 -> 43 | G108: 43 | H108: 43 | I108: 43 | J108: 43 | K108: 43 | L108: 43 | M108: 43 | N108: 43 | O108: 43 | P108: 43 | Q108: 43 | R108: 43 | S108: 43 | T108: 43 | U108: 43 | V108: 43 | W108: 43 | X108: 43 | Y108: 43 | Z108: 43 | AA108: 43 | AB108: 43 | AC108: 43 | AD108: 43 | AE108: 43 | AF108: 43 | AG108: 43 | AH108: 43 | AI108: 43 | AJ108: 43 | AK108: 43 | AM108: -
B110: Hospedagem | C110: =C112+C130 -> 0 | D110: 0 | E110: 0 | F110: 0 | G110: 0 | H110: 0 | I110: 0.07302959311 | J110: 0.07437851936 | K110: 0.07575236157 | L110: 0.07715157995 | M110: 0.07857664323 | N110: 0.1231316403 | O110: 0.1254059991 | P110: 0.1277223675 | Q110: 0.1300815215 | R110: 0.1324842513 | S110: 0.1349313618 | T110: 0.1374236728 | U110: 0.1399620191 | V110: 0.1425472511 | W110: 0.1451802348 | X110: 0.1478618523 | Y110: 0.1505930017 | Z110: 0.1533745981 | AA110: 0.1562075733 | AB110: 0.1590928762 | AC110: 0.1620314733 | AD110: 0.1650243492 | AE110: 0.1680725064 | AF110: 0.1711769659 | AG110: 0 | AH110: 0 | AI110: 0 | AJ110: 0 | AK110: 0 | AM110: =SUM(C110:AK110) -> 3.151194213
B112: FLONA | C112: =(C113+C121) -> 0 | D112: 0 | E112: 0 | F112: 0 | G112: 0 | H112: 0 | I112: 0 | J112: 0 | K112: 0 | L112: 0 | M112: 0 | N112: 0.04310361146 | O112: 0.04389977628 | P112: 0.04471064703 | Q112: 0.04553649533 | R112: 0.04637759784 | S112: 0.04723423631 | T112: 0.04810669772 | U112: 0.04899527432 | V112: 0.04990026377 | W112: 0.05082196925 | X112: 0.0517606995 | Y112: 0.052716769 | Z112: 0.05369049801 | AA112: 0.05468221272 | AB112: 0.05569224536 | AC112: 0.05672093426 | AD112: 0.05776862402 | AE112: 0.05883566561 | AF112: 0.05992241648 | AG112: 0 | AH112: 0 | AI112: 0 | AJ112: 0 | AK112: 0 | AM112: =SUM(C112:AK112) -> 0.9704766343
A113: =VLOOKUP(B113,'01. PC'!$Q$7:$V$35,2,0) ->  | B113: Camping - CV | C113: =IF(C$11>='01. PC'!$I$26,C118+C120,0)/10^6 -> 0 | D113: =IF(D$11>='01. PC'!$I$26,D118+D120,0)/10^6 -> 0 | E113: =IF(E$11>='01. PC'!$I$26,E118+E120,0)/10^6 -> 0 | F113: =IF(F$11>='01. PC'!$I$26,F118+F120,0)/10^6 -> 0 | G113: =IF(G$11>='01. PC'!$I$26,G118+G120,0)/10^6 -> 0 | H113: =IF(H$11>='01. PC'!$I$26,H118+H120,0)/10^6 -> 0 | I113: =IF(I$11>='01. PC'!$I$26,I118+I120,0)/10^6 -> 0 | J113: =IF(J$11>='01. PC'!$I$26,J118+J120,0)/10^6 -> 0 | K113: =IF(K$11>='01. PC'!$I$26,K118+K120,0)/10^6 -> 0 | L113: =IF(L$11>='01. PC'!$I$26,L118+L120,0)/10^6 -> 0 | M113: =IF(M$11>='01. PC'!$I$26,M118+M120,0)/10^6 -> 0 | N113: =IF(N$11>='01. PC'!$I$26,N118+N120,0)/10^6 -> 0.01779900374 | O113: =IF(O$11>='01. PC'!$I$26,O118+O120,0)/10^6 -> 0.01812776832 | P113: =IF(P$11>='01. PC'!$I$26,P118+P120,0)/10^6 -> 0.01846260549 | Q113: =IF(Q$11>='01. PC'!$I$26,Q118+Q120,0)/10^6 -> 0.01880362743 | R113: =IF(R$11>='01. PC'!$I$26,R118+R120,0)/10^6 -> 0.01915094836 | S113: =IF(S$11>='01. PC'!$I$26,S118+S120,0)/10^6 -> 0.01950468465 | T113: =IF(T$11>='01. PC'!$I$26,T118+T120,0)/10^6 -> 0.01986495478 | U113: =IF(U$11>='01. PC'!$I$26,U118+U120,0)/10^6 -> 0.02023187944 | V113: =IF(V$11>='01. PC'!$I$26,V118+V120,0)/10^6 -> 0.02060558156 | W113: =IF(W$11>='01. PC'!$I$26,W118+W120,0)/10^6 -> 0.02098618631 | X113: =IF(X$11>='01. PC'!$I$26,X118+X120,0)/10^6 -> 0.02137382119 | Y113: =IF(Y$11>='01. PC'!$I$26,Y118+Y120,0)/10^6 -> 0.02176861605 | Z113: =IF(Z$11>='01. PC'!$I$26,Z118+Z120,0)/10^6 -> 0.02217070316 | AA113: =IF(AA$11>='01. PC'!$I$26,AA118+AA120,0)/10^6 -> 0.02258021719 | AB113: =IF(AB$11>='01. PC'!$I$26,AB118+AB120,0)/10^6 -> 0.02299729535 | AC113: =IF(AC$11>='01. PC'!$I$26,AC118+AC120,0)/10^6 -> 0.02342207733 | AD113: =IF(AD$11>='01. PC'!$I$26,AD118+AD120,0)/10^6 -> 0.02385470544 | AE113: =IF(AE$11>='01. PC'!$I$26,AE118+AE120,0)/10^6 -> 0.02429532461 | AF113: =IF(AF$11>='01. PC'!$I$26,AF118+AF120,0)/10^6 -> 0.02474408243 | AG113: =IF(AG$11>='01. PC'!$I$26,AG118+AG120,0)/10^6 -> 0 | AH113: =IF(AH$11>='01. PC'!$I$26,AH118+AH120,0)/10^6 -> 0 | AI113: =IF(AI$11>='01. PC'!$I$26,AI118+AI120,0)/10^6 -> 0 | AJ113: =IF(AJ$11>='01. PC'!$I$26,AJ118+AJ120,0)/10^6 -> 0 | AK113: =IF(AK$11>='01. PC'!$I$26,AK118+AK120,0)/10^6 -> 0 | AM113: =SUM(C113:AK113) -> 0.4007440828
B114: Adesão | C114: 0.005 | D114: =C114 -> 0.005 | E114: 0.005 | F114: 0.005 | G114: 0.005 | H114: 0.005 | I114: 0.005 | J114: 0.005 | K114: 0.005 | L114: 0.005 | M114: 0.005 | N114: 0.005 | O114: 0.005 | P114: 0.005 | Q114: 0.005 | R114: 0.005 | S114: 0.005 | T114: 0.005 | U114: 0.005 | V114: 0.005 | W114: 0.005 | X114: 0.005 | Y114: 0.005 | Z114: 0.005 | AA114: 0.005 | AB114: 0.005 | AC114: 0.005 | AD114: 0.005 | AE114: 0.005 | AF114: 0.005 | AG114: 0.005 | AH114: 0.005 | AI114: 0.005 | AJ114: 0.005 | AK114: 0.005 | AM114: =SUM(C114:AK114) -> 0.175
B115: Capacidade (visitantes/ano) | C115: =VLOOKUP(B113,$B$172:$Q$183,12,0)*12 -> 109440 | D115: =C115 -> 109440 | E115: 109440 | F115: 109440 | G115: 109440 | H115: 109440 | I115: 109440 | J115: 109440 | K115: 109440 | L115: 109440 | M115: 109440 | N115: 109440 | O115: 109440 | P115: 109440 | Q115: 109440 | R115: 109440 | S115: 109440 | T115: 109440 | U115: 109440 | V115: 109440 | W115: 109440 | X115: 109440 | Y115: 109440 | Z115: 109440 | AA115: 109440 | AB115: 109440 | AC115: 109440 | AD115: 109440 | AE115: 109440 | AF115: 109440 | AG115: 109440 | AH115: 109440 | AI115: 109440 | AJ115: 109440 | AK115: 109440
B116: Demanda | C116: ='04.1 DEMANDA'!D$15*'04. RECEITAS'!C114 -> 334.285 | D116: ='04.1 DEMANDA'!E$15*'04. RECEITAS'!D114 -> 340.151054 | E116: ='04.1 DEMANDA'!F$15*'04. RECEITAS'!E114 -> 346.4339684 | F116: ='04.1 DEMANDA'!G$15*'04. RECEITAS'!F114 -> 352.8329343 | G116: ='04.1 DEMANDA'!H$15*'04. RECEITAS'!G114 -> 359.3500952 | H116: ='04.1 DEMANDA'!I$15*'04. RECEITAS'!H114 -> 365.9876343 | I116: ='04.1 DEMANDA'!J$15*'04. RECEITAS'!I114 -> 372.747775 | J116: ='04.1 DEMANDA'!K$15*'04. RECEITAS'!J114 -> 379.632782 | K116: ='04.1 DEMANDA'!L$15*'04. RECEITAS'!K114 -> 386.6449616 | L116: ='04.1 DEMANDA'!M$15*'04. RECEITAS'!L114 -> 393.7866629 | M116: ='04.1 DEMANDA'!N$15*'04. RECEITAS'!M114 -> 401.0602782 | N116: ='04.1 DEMANDA'!O$15*'04. RECEITAS'!N114 -> 408.4682441 | O116: ='04.1 DEMANDA'!P$15*'04. RECEITAS'!O114 -> 416.0130423 | P116: ='04.1 DEMANDA'!Q$15*'04. RECEITAS'!P114 -> 423.6972 | Q116: ='04.1 DEMANDA'!R$15*'04. RECEITAS'!Q114 -> 431.5232915 | R116: ='04.1 DEMANDA'!S$15*'04. RECEITAS'!R114 -> 439.4939383 | S116: ='04.1 DEMANDA'!T$15*'04. RECEITAS'!S114 -> 447.6118106 | T116: ='04.1 DEMANDA'!U$15*'04. RECEITAS'!T114 -> 455.8796277 | U116: ='04.1 DEMANDA'!V$15*'04. RECEITAS'!U114 -> 464.3001594 | V116: ='04.1 DEMANDA'!W$15*'04. RECEITAS'!V114 -> 472.8762262 | W116: ='04.1 DEMANDA'!X$15*'04. RECEITAS'!W114 -> 481.6107012 | X116: ='04.1 DEMANDA'!Y$15*'04. RECEITAS'!X114 -> 490.5065103 | Y116: ='04.1 DEMANDA'!Z$15*'04. RECEITAS'!Y114 -> 499.5666335 | Z116: ='04.1 DEMANDA'!AA$15*'04. RECEITAS'!Z114 -> 508.7941057 | AA116: ='04.1 DEMANDA'!AB$15*'04. RECEITAS'!AA114 -> 518.1920182 | AB116: ='04.1 DEMANDA'!AC$15*'04. RECEITAS'!AB114 -> 527.7635191 | AC116: ='04.1 DEMANDA'!AD$15*'04. RECEITAS'!AC114 -> 537.5118148 | AD116: ='04.1 DEMANDA'!AE$15*'04. RECEITAS'!AD114 -> 547.4401708 | AE116: ='04.1 DEMANDA'!AF$15*'04. RECEITAS'!AE114 -> 557.5519129 | AF116: ='04.1 DEMANDA'!AG$15*'04. RECEITAS'!AF114 -> 567.8504287 | AG116: ='04.1 DEMANDA'!AH$15*'04. RECEITAS'!AG114 -> 0 | AH116: ='04.1 DEMANDA'!AI$15*'04. RECEITAS'!AH114 -> 0 | AI116: ='04.1 DEMANDA'!AJ$15*'04. RECEITAS'!AI114 -> 0 | AJ116: ='04.1 DEMANDA'!AK$15*'04. RECEITAS'!AJ114 -> 0 | AK116: ='04.1 DEMANDA'!AL$15*'04. RECEITAS'!AK114 -> 0 | AM116: =SUM(C116:AK116) -> 13229.5645
B117: Ticket Médio (R$) | C117: =VLOOKUP(B113,$B$172:$Q$183,9,0) -> 41.5 | D117: =C117 -> 41.5 | E117: 41.5 | F117: 41.5 | G117: 41.5 | H117: 41.5 | I117: 41.5 | J117: 41.5 | K117: 41.5 | L117: 41.5 | M117: 41.5 | N117: 41.5 | O117: 41.5 | P117: 41.5 | Q117: 41.5 | R117: 41.5 | S117: 41.5 | T117: 41.5 | U117: 41.5 | V117: 41.5 | W117: 41.5 | X117: 41.5 | Y117: 41.5 | Z117: 41.5 | AA117: 41.5 | AB117: 41.5 | AC117: 41.5 | AD117: 41.5 | AE117: 41.5 | AF117: 41.5 | AG117: 41.5 | AH117: 41.5 | AI117: 41.5 | AJ117: 41.5 | AK117: 41.5 | AM117: -
B118: Receita de Hospedagem (R$) | C118: =C117*C116 -> 13872.8275 | D118: 14116.26874 | E118: 14377.00969 | F118: 14642.56677 | G118: 14913.02895 | H118: 15188.48682 | I118: 15469.03266 | J118: 15754.76045 | K118: 16045.76591 | L118: 16342.14651 | M118: 16644.00155 | N118: 16951.43213 | O118: 17264.54125 | P118: 17583.4338 | Q118: 17908.2166 | R118: 18238.99844 | S118: 18575.89014 | T118: 18919.00455 | U118: 19268.45661 | V118: 19624.36339 | W118: 19986.8441 | X118: 20356.02018 | Y118: 20732.01529 | Z118: 21114.95539 | AA118: 21504.96876 | AB118: 21902.18604 | AC118: 22306.74031 | AD118: 22718.76709 | AE118: 23138.40439 | AF118: 23565.79279 | AG118: 0 | AH118: 0 | AI118: 0 | AJ118: 0 | AK118: 0
B119: % Outras Receitas (day-use, consumo, etc) | C119: =VLOOKUP(B113,$B$172:$Q$183,7,0) -> 0.05 | D119: =C119 -> 0.05 | E119: 0.05 | F119: 0.05 | G119: 0.05 | H119: 0.05 | I119: 0.05 | J119: 0.05 | K119: 0.05 | L119: 0.05 | M119: 0.05 | N119: 0.05 | O119: 0.05 | P119: 0.05 | Q119: 0.05 | R119: 0.05 | S119: 0.05 | T119: 0.05 | U119: 0.05 | V119: 0.05 | W119: 0.05 | X119: 0.05 | Y119: 0.05 | Z119: 0.05 | AA119: 0.05 | AB119: 0.05 | AC119: 0.05 | AD119: 0.05 | AE119: 0.05 | AF119: 0.05 | AG119: 0.05 | AH119: 0.05 | AI119: 0.05 | AJ119: 0.05 | AK119: 0.05 | AM119: =SUM(C119:AK119) -> 1.75
B120: Outras Receitas (R$) | C120: =C119*C118 -> 693.641375 | D120: 705.813437 | E120: 718.8504845 | F120: 732.1283387 | G120: 745.6514475 | H120: 759.4243411 | I120: 773.4516331 | J120: 787.7380226 | K120: 802.2882953 | L120: 817.1073255 | M120: 832.2000773 | N120: 847.5716066 | O120: 863.2270627 | P120: 879.17169 | Q120: 895.4108298 | R120: 911.949922 | S120: 928.794507 | T120: 945.9502276 | U120: 963.4228307 | V120: 981.2181694 | W120: 999.342205 | X120: 1017.801009 | Y120: 1036.600764 | Z120: 1055.747769 | AA120: 1075.248438 | AB120: 1095.109302 | AC120: 1115.337016 | AD120: 1135.938354 | AE120: 1156.920219 | AF120: 1178.289639 | AG120: 0 | AH120: 0 | AI120: 0 | AJ120: 0 | AK120: 0 | AM120: -
A121: =VLOOKUP(B121,'01. PC'!$Q$7:$V$35,2,0) ->  | B121: Lost | C121: =IF(C$11>='01. PC'!$I$26,C126+C128,0)/10^6 -> 0 | D121: =IF(D$11>='01. PC'!$I$26,D126+D128,0)/10^6 -> 0 | E121: =IF(E$11>='01. PC'!$I$26,E126+E128,0)/10^6 -> 0 | F121: =IF(F$11>='01. PC'!$I$26,F126+F128,0)/10^6 -> 0 | G121: =IF(G$11>='01. PC'!$I$26,G126+G128,0)/10^6 -> 0 | H121: =IF(H$11>='01. PC'!$I$26,H126+H128,0)/10^6 -> 0 | I121: =IF(I$11>='01. PC'!$I$26,I126+I128,0)/10^6 -> 0 | J121: =IF(J$11>='01. PC'!$I$26,J126+J128,0)/10^6 -> 0 | K121: =IF(K$11>='01. PC'!$I$26,K126+K128,0)/10^6 -> 0 | L121: =IF(L$11>='01. PC'!$I$26,L126+L128,0)/10^6 -> 0 | M121: =IF(M$11>='01. PC'!$I$26,M126+M128,0)/10^6 -> 0 | N121: =IF(N$11>='01. PC'!$I$26,N126+N128,0)/10^6 -> 0.02530460772 | O121: =IF(O$11>='01. PC'!$I$26,O126+O128,0)/10^6 -> 0.02577200797 | P121: =IF(P$11>='01. PC'!$I$26,P126+P128,0)/10^6 -> 0.02624804154 | Q121: =IF(Q$11>='01. PC'!$I$26,Q126+Q128,0)/10^6 -> 0.02673286791 | R121: =IF(R$11>='01. PC'!$I$26,R126+R128,0)/10^6 -> 0.02722664948 | S121: =IF(S$11>='01. PC'!$I$26,S126+S128,0)/10^6 -> 0.02772955167 | T121: =IF(T$11>='01. PC'!$I$26,T126+T128,0)/10^6 -> 0.02824174294 | U121: =IF(U$11>='01. PC'!$I$26,U126+U128,0)/10^6 -> 0.02876339487 | V121: =IF(V$11>='01. PC'!$I$26,V126+V128,0)/10^6 -> 0.02929468221 | W121: =IF(W$11>='01. PC'!$I$26,W126+W128,0)/10^6 -> 0.02983578294 | X121: =IF(X$11>='01. PC'!$I$26,X126+X128,0)/10^6 -> 0.03038687831 | Y121: =IF(Y$11>='01. PC'!$I$26,Y126+Y128,0)/10^6 -> 0.03094815294 | Z121: =IF(Z$11>='01. PC'!$I$26,Z126+Z128,0)/10^6 -> 0.03151979485 | AA121: =IF(AA$11>='01. PC'!$I$26,AA126+AA128,0)/10^6 -> 0.03210199553 | AB121: =IF(AB$11>='01. PC'!$I$26,AB126+AB128,0)/10^6 -> 0.03269495001 | AC121: =IF(AC$11>='01. PC'!$I$26,AC126+AC128,0)/10^6 -> 0.03329885693 | AD121: =IF(AD$11>='01. PC'!$I$26,AD126+AD128,0)/10^6 -> 0.03391391858 | AE121: =IF(AE$11>='01. PC'!$I$26,AE126+AE128,0)/10^6 -> 0.03454034101 | AF121: =IF(AF$11>='01. PC'!$I$26,AF126+AF128,0)/10^6 -> 0.03517833406 | AG121: =IF(AG$11>='01. PC'!$I$26,AG126+AG128,0)/10^6 -> 0 | AH121: =IF(AH$11>='01. PC'!$I$26,AH126+AH128,0)/10^6 -> 0 | AI121: =IF(AI$11>='01. PC'!$I$26,AI126+AI128,0)/10^6 -> 0 | AJ121: =IF(AJ$11>='01. PC'!$I$26,AJ126+AJ128,0)/10^6 -> 0 | AK121: =IF(AK$11>='01. PC'!$I$26,AK126+AK128,0)/10^6 -> 0 | AM121: =SUM(C121:AK121) -> 0.5697325515
B122: Adesão | C122: 0.005 | D122: =C122 -> 0.005 | E122: 0.005 | F122: 0.005 | G122: 0.005 | H122: 0.005 | I122: 0.005 | J122: 0.005 | K122: 0.005 | L122: 0.005 | M122: 0.005 | N122: 0.005 | O122: 0.005 | P122: 0.005 | Q122: 0.005 | R122: 0.005 | S122: 0.005 | T122: 0.005 | U122: 0.005 | V122: 0.005 | W122: 0.005 | X122: 0.005 | Y122: 0.005 | Z122: 0.005 | AA122: 0.005 | AB122: 0.005 | AC122: 0.005 | AD122: 0.005 | AE122: 0.005 | AF122: 0.005 | AG122: 0.005 | AH122: 0.005 | AI122: 0.005 | AJ122: 0.005 | AK122: 0.005 | AM122: =SUM(C122:AK122) -> 0.175
B123: Capacidade (visitantes/ano) | C123: =VLOOKUP(B121,$B$172:$Q$183,12,0)*12 -> 54720 | D123: =C123 -> 54720 | E123: 54720 | F123: 54720 | G123: 54720 | H123: 54720 | I123: 54720 | J123: 54720 | K123: 54720 | L123: 54720 | M123: 54720 | N123: 54720 | O123: 54720 | P123: 54720 | Q123: 54720 | R123: 54720 | S123: 54720 | T123: 54720 | U123: 54720 | V123: 54720 | W123: 54720 | X123: 54720 | Y123: 54720 | Z123: 54720 | AA123: 54720 | AB123: 54720 | AC123: 54720 | AD123: 54720 | AE123: 54720 | AF123: 54720 | AG123: 54720 | AH123: 54720 | AI123: 54720 | AJ123: 54720 | AK123: 54720
B124: Demanda | C124: ='04.1 DEMANDA'!D$15*'04. RECEITAS'!C122 -> 334.285 | D124: ='04.1 DEMANDA'!E$15*'04. RECEITAS'!D122 -> 340.151054 | E124: ='04.1 DEMANDA'!F$15*'04. RECEITAS'!E122 -> 346.4339684 | F124: ='04.1 DEMANDA'!G$15*'04. RECEITAS'!F122 -> 352.8329343 | G124: ='04.1 DEMANDA'!H$15*'04. RECEITAS'!G122 -> 359.3500952 | H124: ='04.1 DEMANDA'!I$15*'04. RECEITAS'!H122 -> 365.9876343 | I124: ='04.1 DEMANDA'!J$15*'04. RECEITAS'!I122 -> 372.747775 | J124: ='04.1 DEMANDA'!K$15*'04. RECEITAS'!J122 -> 379.632782 | K124: ='04.1 DEMANDA'!L$15*'04. RECEITAS'!K122 -> 386.6449616 | L124: ='04.1 DEMANDA'!M$15*'04. RECEITAS'!L122 -> 393.7866629 | M124: ='04.1 DEMANDA'!N$15*'04. RECEITAS'!M122 -> 401.0602782 | N124: ='04.1 DEMANDA'!O$15*'04. RECEITAS'!N122 -> 408.4682441 | O124: ='04.1 DEMANDA'!P$15*'04. RECEITAS'!O122 -> 416.0130423 | P124: ='04.1 DEMANDA'!Q$15*'04. RECEITAS'!P122 -> 423.6972 | Q124: ='04.1 DEMANDA'!R$15*'04. RECEITAS'!Q122 -> 431.5232915 | R124: ='04.1 DEMANDA'!S$15*'04. RECEITAS'!R122 -> 439.4939383 | S124: ='04.1 DEMANDA'!T$15*'04. RECEITAS'!S122 -> 447.6118106 | T124: ='04.1 DEMANDA'!U$15*'04. RECEITAS'!T122 -> 455.8796277 | U124: ='04.1 DEMANDA'!V$15*'04. RECEITAS'!U122 -> 464.3001594 | V124: ='04.1 DEMANDA'!W$15*'04. RECEITAS'!V122 -> 472.8762262 | W124: ='04.1 DEMANDA'!X$15*'04. RECEITAS'!W122 -> 481.6107012 | X124: ='04.1 DEMANDA'!Y$15*'04. RECEITAS'!X122 -> 490.5065103 | Y124: ='04.1 DEMANDA'!Z$15*'04. RECEITAS'!Y122 -> 499.5666335 | Z124: ='04.1 DEMANDA'!AA$15*'04. RECEITAS'!Z122 -> 508.7941057 | AA124: ='04.1 DEMANDA'!AB$15*'04. RECEITAS'!AA122 -> 518.1920182 | AB124: ='04.1 DEMANDA'!AC$15*'04. RECEITAS'!AB122 -> 527.7635191 | AC124: ='04.1 DEMANDA'!AD$15*'04. RECEITAS'!AC122 -> 537.5118148 | AD124: ='04.1 DEMANDA'!AE$15*'04. RECEITAS'!AD122 -> 547.4401708 | AE124: ='04.1 DEMANDA'!AF$15*'04. RECEITAS'!AE122 -> 557.5519129 | AF124: ='04.1 DEMANDA'!AG$15*'04. RECEITAS'!AF122 -> 567.8504287 | AG124: ='04.1 DEMANDA'!AH$15*'04. RECEITAS'!AG122 -> 0 | AH124: ='04.1 DEMANDA'!AI$15*'04. RECEITAS'!AH122 -> 0 | AI124: ='04.1 DEMANDA'!AJ$15*'04. RECEITAS'!AI122 -> 0 | AJ124: ='04.1 DEMANDA'!AK$15*'04. RECEITAS'!AJ122 -> 0 | AK124: ='04.1 DEMANDA'!AL$15*'04. RECEITAS'!AK122 -> 0 | AM124: =SUM(C124:AK124) -> 13229.5645
B125: Ticket Médio (R$) | C125: =VLOOKUP(B121,$B$172:$Q$183,9,0) -> 59 | D125: =C125 -> 59 | E125: 59 | F125: 59 | G125: 59 | H125: 59 | I125: 59 | J125: 59 | K125: 59 | L125: 59 | M125: 59 | N125: 59 | O125: 59 | P125: 59 | Q125: 59 | R125: 59 | S125: 59 | T125: 59 | U125: 59 | V125: 59 | W125: 59 | X125: 59 | Y125: 59 | Z125: 59 | AA125: 59 | AB125: 59 | AC125: 59 | AD125: 59 | AE125: 59 | AF125: 59 | AG125: 59 | AH125: 59 | AI125: 59 | AJ125: 59 | AK125: 59 | AM125: -
B126: Receita de Hospedagem (R$) | C126: =C125*C124 -> 19722.815 | D126: 20068.91219 | E126: 20439.60414 | F126: 20817.14312 | G126: 21201.65562 | H126: 21593.27042 | I126: 21992.11872 | J126: 22398.33414 | K126: 22812.05274 | L126: 23233.41311 | M126: 23662.55641 | N126: 24099.6264 | O126: 24544.76949 | P126: 24998.1348 | Q126: 25459.8742 | R126: 25930.14236 | S126: 26409.09683 | T126: 26896.89804 | U126: 27393.7094 | V126: 27899.69735 | W126: 28415.03137 | X126: 28939.88411 | Y126: 29474.43137 | Z126: 30018.85224 | AA126: 30573.32908 | AB126: 31138.04763 | AC126: 31713.19707 | AD126: 32298.97008 | AE126: 32895.56286 | AF126: 33503.17529 | AG126: 0 | AH126: 0 | AI126: 0 | AJ126: 0 | AK126: 0
B127: % Outras Receitas (day-use, consumo, etc) | C127: =VLOOKUP(B121,$B$172:$Q$183,7,0) -> 0.05 | D127: =C127 -> 0.05 | E127: 0.05 | F127: 0.05 | G127: 0.05 | H127: 0.05 | I127: 0.05 | J127: 0.05 | K127: 0.05 | L127: 0.05 | M127: 0.05 | N127: 0.05 | O127: 0.05 | P127: 0.05 | Q127: 0.05 | R127: 0.05 | S127: 0.05 | T127: 0.05 | U127: 0.05 | V127: 0.05 | W127: 0.05 | X127: 0.05 | Y127: 0.05 | Z127: 0.05 | AA127: 0.05 | AB127: 0.05 | AC127: 0.05 | AD127: 0.05 | AE127: 0.05 | AF127: 0.05 | AG127: 0.05 | AH127: 0.05 | AI127: 0.05 | AJ127: 0.05 | AK127: 0.05 | AM127: =SUM(C127:AK127) -> 1.75
B128: Outras Receitas (R$) | C128: =C127*C126 -> 986.14075 | D128: 1003.445609 | E128: 1021.980207 | F128: 1040.857156 | G128: 1060.082781 | H128: 1079.663521 | I128: 1099.605936 | J128: 1119.916707 | K128: 1140.602637 | L128: 1161.670656 | M128: 1183.127821 | N128: 1204.98132 | O128: 1227.238475 | P128: 1249.90674 | Q128: 1272.99371 | R128: 1296.507118 | S128: 1320.454841 | T128: 1344.844902 | U128: 1369.68547 | V128: 1394.984867 | W128: 1420.751569 | X128: 1446.994205 | Y128: 1473.721569 | Z128: 1500.942612 | AA128: 1528.666454 | AB128: 1556.902381 | AC128: 1585.659854 | AD128: 1614.948504 | AE128: 1644.778143 | AF128: 1675.158765 | AG128: 0 | AH128: 0 | AI128: 0 | AJ128: 0 | AK128: 0 | AM128: -
B130: PNB | C130: =C131+C139 -> 0 | D130: =D131+D139 -> 0 | E130: 0 | F130: 0 | G130: 0 | H130: 0 | I130: 0.07302959311 | J130: 0.07437851936 | K130: 0.07575236157 | L130: 0.07715157995 | M130: 0.07857664323 | N130: 0.08002802879 | O130: 0.08150622282 | P130: 0.08301172051 | Q130: 0.08454502618 | R130: 0.08610665346 | S130: 0.08769712549 | T130: 0.08931697506 | U130: 0.09096674479 | V130: 0.09264698734 | W130: 0.09435826558 | X130: 0.09610115276 | Y130: 0.09787623273 | Z130: 0.09968410011 | AA130: 0.1015253605 | AB130: 0.1034006308 | AC130: 0.1053105391 | AD130: 0.1072557252 | AE130: 0.1092368408 | AF130: 0.1112545494 | AG130: 0 | AH130: 0 | AI130: 0 | AJ130: 0 | AK130: 0 | AM130: =SUM(C130:AK130) -> 2.180717579
A131: =VLOOKUP(B131,'01. PC'!$Q$7:$V$35,2,0) ->  | B131: Pernoite Santa Maria | C131: =IF(C$11>='01. PC'!$I$28,C136+C138,0)/10^6 -> 0 | D131: =IF(D$11>='01. PC'!$I$28,D136+D138,0)/10^6 -> 0 | E131: =IF(E$11>='01. PC'!$I$28,E136+E138,0)/10^6 -> 0 | F131: =IF(F$11>='01. PC'!$I$28,F136+F138,0)/10^6 -> 0 | G131: =IF(G$11>='01. PC'!$I$28,G136+G138,0)/10^6 -> 0 | H131: =IF(H$11>='01. PC'!$I$28,H136+H138,0)/10^6 -> 0 | I131: =IF(I$11>='01. PC'!$I$28,I136+I138,0)/10^6 -> 0.07302959311 | J131: =IF(J$11>='01. PC'!$I$28,J136+J138,0)/10^6 -> 0.07437851936 | K131: =IF(K$11>='01. PC'!$I$28,K136+K138,0)/10^6 -> 0.07575236157 | L131: =IF(L$11>='01. PC'!$I$28,L136+L138,0)/10^6 -> 0.07715157995 | M131: =IF(M$11>='01. PC'!$I$28,M136+M138,0)/10^6 -> 0.07857664323 | N131: =IF(N$11>='01. PC'!$I$28,N136+N138,0)/10^6 -> 0.08002802879 | O131: =IF(O$11>='01. PC'!$I$28,O136+O138,0)/10^6 -> 0.08150622282 | P131: =IF(P$11>='01. PC'!$I$28,P136+P138,0)/10^6 -> 0.08301172051 | Q131: =IF(Q$11>='01. PC'!$I$28,Q136+Q138,0)/10^6 -> 0.08454502618 | R131: =IF(R$11>='01. PC'!$I$28,R136+R138,0)/10^6 -> 0.08610665346 | S131: =IF(S$11>='01. PC'!$I$28,S136+S138,0)/10^6 -> 0.08769712549 | T131: =IF(T$11>='01. PC'!$I$28,T136+T138,0)/10^6 -> 0.08931697506 | U131: =IF(U$11>='01. PC'!$I$28,U136+U138,0)/10^6 -> 0.09096674479 | V131: =IF(V$11>='01. PC'!$I$28,V136+V138,0)/10^6 -> 0.09264698734 | W131: =IF(W$11>='01. PC'!$I$28,W136+W138,0)/10^6 -> 0.09435826558 | X131: =IF(X$11>='01. PC'!$I$28,X136+X138,0)/10^6 -> 0.09610115276 | Y131: =IF(Y$11>='01. PC'!$I$28,Y136+Y138,0)/10^6 -> 0.09787623273 | Z131: =IF(Z$11>='01. PC'!$I$28,Z136+Z138,0)/10^6 -> 0.09968410011 | AA131: =IF(AA$11>='01. PC'!$I$28,AA136+AA138,0)/10^6 -> 0.1015253605 | AB131: =IF(AB$11>='01. PC'!$I$28,AB136+AB138,0)/10^6 -> 0.1034006308 | AC131: =IF(AC$11>='01. PC'!$I$28,AC136+AC138,0)/10^6 -> 0.1053105391 | AD131: =IF(AD$11>='01. PC'!$I$28,AD136+AD138,0)/10^6 -> 0.1072557252 | AE131: =IF(AE$11>='01. PC'!$I$28,AE136+AE138,0)/10^6 -> 0.1092368408 | AF131: =IF(AF$11>='01. PC'!$I$28,AF136+AF138,0)/10^6 -> 0.1112545494 | AG131: =IF(AG$11>='01. PC'!$I$28,AG136+AG138,0)/10^6 -> 0 | AH131: =IF(AH$11>='01. PC'!$I$28,AH136+AH138,0)/10^6 -> 0 | AI131: =IF(AI$11>='01. PC'!$I$28,AI136+AI138,0)/10^6 -> 0 | AJ131: =IF(AJ$11>='01. PC'!$I$28,AJ136+AJ138,0)/10^6 -> 0 | AK131: =IF(AK$11>='01. PC'!$I$28,AK136+AK138,0)/10^6 -> 0 | AM131: =SUM(C131:AK131) -> 2.180717579
B132: Adesão | C132: 0.005 | D132: =C132 -> 0.005 | E132: 0.005 | F132: 0.005 | G132: 0.005 | H132: 0.005 | I132: 0.005 | J132: 0.005 | K132: 0.005 | L132: 0.005 | M132: 0.005 | N132: 0.005 | O132: 0.005 | P132: 0.005 | Q132: 0.005 | R132: 0.005 | S132: 0.005 | T132: 0.005 | U132: 0.005 | V132: 0.005 | W132: 0.005 | X132: 0.005 | Y132: 0.005 | Z132: 0.005 | AA132: 0.005 | AB132: 0.005 | AC132: 0.005 | AD132: 0.005 | AE132: 0.005 | AF132: 0.005 | AG132: 0.005 | AH132: 0.005 | AI132: 0.005 | AJ132: 0.005 | AK132: 0.005 | AM132: =SUM(C132:AK132) -> 0.175
B133: Capacidade (visitantes/ano) | C133: =VLOOKUP(B131,$B$172:$Q$183,12,0)*12 -> 41040 | D133: =C133 -> 41040 | E133: 41040 | F133: 41040 | G133: 41040 | H133: 41040 | I133: 41040 | J133: 41040 | K133: 41040 | L133: 41040 | M133: 41040 | N133: 41040 | O133: 41040 | P133: 41040 | Q133: 41040 | R133: 41040 | S133: 41040 | T133: 41040 | U133: 41040 | V133: 41040 | W133: 41040 | X133: 41040 | Y133: 41040 | Z133: 41040 | AA133: 41040 | AB133: 41040 | AC133: 41040 | AD133: 41040 | AE133: 41040 | AF133: 41040 | AG133: 41040 | AH133: 41040 | AI133: 41040 | AJ133: 41040 | AK133: 41040
B134: Demanda | C134: ='04.1 DEMANDA'!D$14*'04. RECEITAS'!C132 -> 1503.015 | D134: ='04.1 DEMANDA'!E$14*'04. RECEITAS'!D132 -> 1529.390001 | E134: ='04.1 DEMANDA'!F$14*'04. RECEITAS'!E132 -> 1557.639293 | F134: ='04.1 DEMANDA'!G$14*'04. RECEITAS'!F132 -> 1586.410377 | G134: ='04.1 DEMANDA'!H$14*'04. RECEITAS'!G132 -> 1615.71289 | H134: ='04.1 DEMANDA'!I$14*'04. RECEITAS'!H132 -> 1645.556648 | I134: ='04.1 DEMANDA'!J$14*'04. RECEITAS'!I132 -> 1675.951649 | J134: ='04.1 DEMANDA'!K$14*'04. RECEITAS'!J132 -> 1706.908075 | K134: ='04.1 DEMANDA'!L$14*'04. RECEITAS'!K132 -> 1738.436295 | L134: ='04.1 DEMANDA'!M$14*'04. RECEITAS'!L132 -> 1770.546872 | M134: ='04.1 DEMANDA'!N$14*'04. RECEITAS'!M132 -> 1803.250562 | N134: ='04.1 DEMANDA'!O$14*'04. RECEITAS'!N132 -> 1836.55832 | O134: ='04.1 DEMANDA'!P$14*'04. RECEITAS'!O132 -> 1870.481304 | P134: ='04.1 DEMANDA'!Q$14*'04. RECEITAS'!P132 -> 1905.030878 | Q134: ='04.1 DEMANDA'!R$14*'04. RECEITAS'!Q132 -> 1940.218616 | R134: ='04.1 DEMANDA'!S$14*'04. RECEITAS'!R132 -> 1976.056304 | S134: ='04.1 DEMANDA'!T$14*'04. RECEITAS'!S132 -> 2012.555949 | T134: ='04.1 DEMANDA'!U$14*'04. RECEITAS'!T132 -> 2049.729778 | U134: ='04.1 DEMANDA'!V$14*'04. RECEITAS'!U132 -> 2087.590242 | V134: ='04.1 DEMANDA'!W$14*'04. RECEITAS'!V132 -> 2126.150025 | W134: ='04.1 DEMANDA'!X$14*'04. RECEITAS'!W132 -> 2165.422044 | X134: ='04.1 DEMANDA'!Y$14*'04. RECEITAS'!X132 -> 2205.419455 | Y134: ='04.1 DEMANDA'!Z$14*'04. RECEITAS'!Y132 -> 2246.155656 | Z134: ='04.1 DEMANDA'!AA$14*'04. RECEITAS'!Z132 -> 2287.644294 | AA134: ='04.1 DEMANDA'!AB$14*'04. RECEITAS'!AA132 -> 2329.899266 | AB134: ='04.1 DEMANDA'!AC$14*'04. RECEITAS'!AB132 -> 2372.934728 | AC134: ='04.1 DEMANDA'!AD$14*'04. RECEITAS'!AC132 -> 2416.765097 | AD134: ='04.1 DEMANDA'!AE$14*'04. RECEITAS'!AD132 -> 2461.405053 | AE134: ='04.1 DEMANDA'!AF$14*'04. RECEITAS'!AE132 -> 2506.869553 | AF134: ='04.1 DEMANDA'!AG$14*'04. RECEITAS'!AF132 -> 2553.173825 | AG134: ='04.1 DEMANDA'!AH$14*'04. RECEITAS'!AG132 -> 0 | AH134: ='04.1 DEMANDA'!AI$14*'04. RECEITAS'!AH132 -> 0 | AI134: ='04.1 DEMANDA'!AJ$14*'04. RECEITAS'!AI132 -> 0 | AJ134: ='04.1 DEMANDA'!AK$14*'04. RECEITAS'!AJ132 -> 0 | AK134: ='04.1 DEMANDA'!AL$14*'04. RECEITAS'!AK132 -> 0 | AM134: =SUM(C134:AK134) -> 59482.87805
B135: Ticket Médio (R$) | C135: =VLOOKUP(B131,$B$172:$Q$183,9,0) -> 41.5 | D135: =C135 -> 41.5 | E135: 41.5 | F135: 41.5 | G135: 41.5 | H135: 41.5 | I135: 41.5 | J135: 41.5 | K135: 41.5 | L135: 41.5 | M135: 41.5 | N135: 41.5 | O135: 41.5 | P135: 41.5 | Q135: 41.5 | R135: 41.5 | S135: 41.5 | T135: 41.5 | U135: 41.5 | V135: 41.5 | W135: 41.5 | X135: 41.5 | Y135: 41.5 | Z135: 41.5 | AA135: 41.5 | AB135: 41.5 | AC135: 41.5 | AD135: 41.5 | AE135: 41.5 | AF135: 41.5 | AG135: 41.5 | AH135: 41.5 | AI135: 41.5 | AJ135: 41.5 | AK135: 41.5 | AM135: -
B136: Receita de Hospedagem (R$) | C136: =C135*C134 -> 62375.1225 | D136: 63469.68503 | E136: 64642.03066 | F136: 65836.03063 | G136: 67052.08492 | H136: 68290.6009 | I136: 69551.99344 | J136: 70836.68511 | K136: 72145.10626 | L136: 73477.69519 | M136: 74834.89831 | N136: 76217.17027 | O136: 77624.97412 | P136: 79058.78144 | Q136: 80519.07255 | R136: 82006.33663 | S136: 83521.0719 | T136: 85063.78577 | U136: 86634.99504 | V136: 88235.22604 | W136: 89865.01484 | X136: 91524.90739 | Y136: 93215.45974 | Z136: 94937.2382 | AA136: 96690.81956 | AB136: 98476.79123 | AC136: 100295.7515 | AD136: 102148.3097 | AE136: 104035.0864 | AF136: 105956.7137 | AG136: 0 | AH136: 0 | AI136: 0 | AJ136: 0 | AK136: 0
B137: % Outras Receitas (day-use, consumo, etc) | C137: =VLOOKUP(B131,$B$172:$Q$183,7,0) -> 0.05 | D137: =C137 -> 0.05 | E137: 0.05 | F137: 0.05 | G137: 0.05 | H137: 0.05 | I137: 0.05 | J137: 0.05 | K137: 0.05 | L137: 0.05 | M137: 0.05 | N137: 0.05 | O137: 0.05 | P137: 0.05 | Q137: 0.05 | R137: 0.05 | S137: 0.05 | T137: 0.05 | U137: 0.05 | V137: 0.05 | W137: 0.05 | X137: 0.05 | Y137: 0.05 | Z137: 0.05 | AA137: 0.05 | AB137: 0.05 | AC137: 0.05 | AD137: 0.05 | AE137: 0.05 | AF137: 0.05 | AG137: 0.05 | AH137: 0.05 | AI137: 0.05 | AJ137: 0.05 | AK137: 0.05 | AM137: =SUM(C137:AK137) -> 1.75
B138: Outras Receitas (R$) | C138: =C137*C136 -> 3118.756125 | D138: 3173.484252 | E138: 3232.101533 | F138: 3291.801532 | G138: 3352.604246 | H138: 3414.530045 | I138: 3477.599672 | J138: 3541.834255 | K138: 3607.255313 | L138: 3673.88476 | M138: 3741.744916 | N138: 3810.858514 | O138: 3881.248706 | P138: 3952.939072 | Q138: 4025.953627 | R138: 4100.316832 | S138: 4176.053595 | T138: 4253.189288 | U138: 4331.749752 | V138: 4411.761302 | W138: 4493.250742 | X138: 4576.245369 | Y138: 4660.772987 | Z138: 4746.86191 | AA138: 4834.540978 | AB138: 4923.839562 | AC138: 5014.787575 | AD138: 5107.415486 | AE138: 5201.754322 | AF138: 5297.835686 | AG138: 0 | AH138: 0 | AI138: 0 | AJ138: 0 | AK138: 0 | AM138: -
A139: =VLOOKUP(B139,'01. PC'!$Q$7:$V$35,2,0) ->  | B139: Hospedagem 4 | C139: =IF(C$11>=VLOOKUP($B139,$B$172:$Q$183,4,0),C144+C146,0)/10^6 -> 0 | D139: 0 | E139: 0 | F139: 0 | G139: 0 | H139: 0 | I139: 0 | J139: 0 | K139: 0 | L139: 0 | M139: 0 | N139: 0 | O139: 0 | P139: 0 | Q139: 0 | R139: 0 | S139: 0 | T139: 0 | U139: 0 | V139: 0 | W139: 0 | X139: 0 | Y139: 0 | Z139: 0 | AA139: 0 | AB139: 0 | AC139: 0 | AD139: 0 | AE139: 0 | AF139: 0 | AG139: 0 | AH139: 0 | AI139: 0 | AJ139: 0 | AK139: 0 | AM139: =SUM(C139:AK139) -> 0
B140: Adesão | C140: 0.005 | D140: =C140 -> 0.005 | E140: 0.005 | F140: 0.005 | G140: 0.005 | H140: 0.005 | I140: 0.005 | J140: 0.005 | K140: 0.005 | L140: 0.005 | M140: 0.005 | N140: 0.005 | O140: 0.005 | P140: 0.005 | Q140: 0.005 | R140: 0.005 | S140: 0.005 | T140: 0.005 | U140: 0.005 | V140: 0.005 | W140: 0.005 | X140: 0.005 | Y140: 0.005 | Z140: 0.005 | AA140: 0.005 | AB140: 0.005 | AC140: 0.005 | AD140: 0.005 | AE140: 0.005 | AF140: 0.005 | AG140: 0.005 | AH140: 0.005 | AI140: 0.005 | AJ140: 0.005 | AK140: 0.005 | AM140: =SUM(C140:AK140) -> 0.175
B141: Capacidade (visitantes/ano) | C141: =VLOOKUP(B139,$B$172:$Q$183,12,0)*12 -> 3420 | D141: =C141 -> 3420 | E141: 3420 | F141: 3420 | G141: 3420 | H141: 3420 | I141: 3420 | J141: 3420 | K141: 3420 | L141: 3420 | M141: 3420 | N141: 3420 | O141: 3420 | P141: 3420 | Q141: 3420 | R141: 3420 | S141: 3420 | T141: 3420 | U141: 3420 | V141: 3420 | W141: 3420 | X141: 3420 | Y141: 3420 | Z141: 3420 | AA141: 3420 | AB141: 3420 | AC141: 3420 | AD141: 3420 | AE141: 3420 | AF141: 3420 | AG141: 3420 | AH141: 3420 | AI141: 3420 | AJ141: 3420 | AK141: 3420
B142: Demanda | C142: ='04.1 DEMANDA'!D$14*'04. RECEITAS'!C140 -> 1503.015 | D142: ='04.1 DEMANDA'!E$14*'04. RECEITAS'!D140 -> 1529.390001 | E142: ='04.1 DEMANDA'!F$14*'04. RECEITAS'!E140 -> 1557.639293 | F142: ='04.1 DEMANDA'!G$14*'04. RECEITAS'!F140 -> 1586.410377 | G142: ='04.1 DEMANDA'!H$14*'04. RECEITAS'!G140 -> 1615.71289 | H142: ='04.1 DEMANDA'!I$14*'04. RECEITAS'!H140 -> 1645.556648 | I142: ='04.1 DEMANDA'!J$14*'04. RECEITAS'!I140 -> 1675.951649 | J142: ='04.1 DEMANDA'!K$14*'04. RECEITAS'!J140 -> 1706.908075 | K142: ='04.1 DEMANDA'!L$14*'04. RECEITAS'!K140 -> 1738.436295 | L142: ='04.1 DEMANDA'!M$14*'04. RECEITAS'!L140 -> 1770.546872 | M142: ='04.1 DEMANDA'!N$14*'04. RECEITAS'!M140 -> 1803.250562 | N142: ='04.1 DEMANDA'!O$14*'04. RECEITAS'!N140 -> 1836.55832 | O142: ='04.1 DEMANDA'!P$14*'04. RECEITAS'!O140 -> 1870.481304 | P142: ='04.1 DEMANDA'!Q$14*'04. RECEITAS'!P140 -> 1905.030878 | Q142: ='04.1 DEMANDA'!R$14*'04. RECEITAS'!Q140 -> 1940.218616 | R142: ='04.1 DEMANDA'!S$14*'04. RECEITAS'!R140 -> 1976.056304 | S142: ='04.1 DEMANDA'!T$14*'04. RECEITAS'!S140 -> 2012.555949 | T142: ='04.1 DEMANDA'!U$14*'04. RECEITAS'!T140 -> 2049.729778 | U142: ='04.1 DEMANDA'!V$14*'04. RECEITAS'!U140 -> 2087.590242 | V142: ='04.1 DEMANDA'!W$14*'04. RECEITAS'!V140 -> 2126.150025 | W142: ='04.1 DEMANDA'!X$14*'04. RECEITAS'!W140 -> 2165.422044 | X142: ='04.1 DEMANDA'!Y$14*'04. RECEITAS'!X140 -> 2205.419455 | Y142: ='04.1 DEMANDA'!Z$14*'04. RECEITAS'!Y140 -> 2246.155656 | Z142: ='04.1 DEMANDA'!AA$14*'04. RECEITAS'!Z140 -> 2287.644294 | AA142: ='04.1 DEMANDA'!AB$14*'04. RECEITAS'!AA140 -> 2329.899266 | AB142: ='04.1 DEMANDA'!AC$14*'04. RECEITAS'!AB140 -> 2372.934728 | AC142: ='04.1 DEMANDA'!AD$14*'04. RECEITAS'!AC140 -> 2416.765097 | AD142: ='04.1 DEMANDA'!AE$14*'04. RECEITAS'!AD140 -> 2461.405053 | AE142: ='04.1 DEMANDA'!AF$14*'04. RECEITAS'!AE140 -> 2506.869553 | AF142: ='04.1 DEMANDA'!AG$14*'04. RECEITAS'!AF140 -> 2553.173825 | AG142: ='04.1 DEMANDA'!AH$14*'04. RECEITAS'!AG140 -> 0 | AH142: ='04.1 DEMANDA'!AI$14*'04. RECEITAS'!AH140 -> 0 | AI142: ='04.1 DEMANDA'!AJ$14*'04. RECEITAS'!AI140 -> 0 | AJ142: ='04.1 DEMANDA'!AK$14*'04. RECEITAS'!AJ140 -> 0 | AK142: ='04.1 DEMANDA'!AL$14*'04. RECEITAS'!AK140 -> 0 | AM142: =SUM(C142:AK142) -> 59482.87805
B143: Ticket Médio (R$) | C143: =VLOOKUP(B139,$B$172:$Q$183,9,0) -> 0 | D143: =C143 -> 0 | E143: 0 | F143: 0 | G143: 0 | H143: 0 | I143: 0 | J143: 0 | K143: 0 | L143: 0 | M143: 0 | N143: 0 | O143: 0 | P143: 0 | Q143: 0 | R143: 0 | S143: 0 | T143: 0 | U143: 0 | V143: 0 | W143: 0 | X143: 0 | Y143: 0 | Z143: 0 | AA143: 0 | AB143: 0 | AC143: 0 | AD143: 0 | AE143: 0 | AF143: 0 | AG143: 0 | AH143: 0 | AI143: 0 | AJ143: 0 | AK143: 0 | AM143: -
B144: Receita de Hospedagem (R$) | C144: =C143*C142 -> 0 | D144: 0 | E144: 0 | F144: 0 | G144: 0 | H144: 0 | I144: 0 | J144: 0 | K144: 0 | L144: 0 | M144: 0 | N144: 0 | O144: 0 | P144: 0 | Q144: 0 | R144: 0 | S144: 0 | T144: 0 | U144: 0 | V144: 0 | W144: 0 | X144: 0 | Y144: 0 | Z144: 0 | AA144: 0 | AB144: 0 | AC144: 0 | AD144: 0 | AE144: 0 | AF144: 0 | AG144: 0 | AH144: 0 | AI144: 0 | AJ144: 0 | AK144: 0
B145: % Outras Receitas (day-use, consumo, etc) | C145: =VLOOKUP(B139,$B$172:$Q$183,7,0) -> 0 | D145: =C145 -> 0 | E145: 0 | F145: 0 | G145: 0 | H145: 0 | I145: 0 | J145: 0 | K145: 0 | L145: 0 | M145: 0 | N145: 0 | O145: 0 | P145: 0 | Q145: 0 | R145: 0 | S145: 0 | T145: 0 | U145: 0 | V145: 0 | W145: 0 | X145: 0 | Y145: 0 | Z145: 0 | AA145: 0 | AB145: 0 | AC145: 0 | AD145: 0 | AE145: 0 | AF145: 0 | AG145: 0 | AH145: 0 | AI145: 0 | AJ145: 0 | AK145: 0 | AM145: =SUM(C145:AK145) -> 0
B146: Outras Receitas (R$) | C146: =C145*C144 -> 0 | D146: 0 | E146: 0 | F146: 0 | G146: 0 | H146: 0 | I146: 0 | J146: 0 | K146: 0 | L146: 0 | M146: 0 | N146: 0 | O146: 0 | P146: 0 | Q146: 0 | R146: 0 | S146: 0 | T146: 0 | U146: 0 | V146: 0 | W146: 0 | X146: 0 | Y146: 0 | Z146: 0 | AA146: 0 | AB146: 0 | AC146: 0 | AD146: 0 | AE146: 0 | AF146: 0 | AG146: 0 | AH146: 0 | AI146: 0 | AJ146: 0 | AK146: 0 | AM146: -
B150: Receita Alimentação | C150: Ativação | D150: Início (ano) | E150: Fim (ano)
B151: Lanchonete - Pedreira | C151: 1 | D151: ='01. PC'!$H$27 -> 1
B152: Quiosque Vazio - Pedreira | C152: 1 | D152: ='01. PC'!$H$27 -> 1
B153: Lanchonete Areal | C153: 1 | D153: ='01. PC'!$H$27 -> 1
B154: Quiosques Areal | C154: 1 | D154: ='01. PC'!$H$27 -> 1
B155: Galeria Santa Maria | C155: 1 | D155: ='01. PC'!H28 -> 5
B156: Quiosque - Vale do Rio da Palma | C156: 1 | D156: ='01. PC'!$H$29 -> 5
B157: Lanchonete - Vale do Rio da Palma | C157: 1 | D157: ='01. PC'!$H$29 -> 5
B158: Mercado Aberto | C158: 0 | D158: ='01. PC'!$H$26 -> 10
B159: Lanchonete Centro de Visitantes | C159: 1 | D159: ='01. PC'!$H$26 -> 10
B160: Espaço do Ciclista Centro de Visitantes | C160: 1 | D160: ='01. PC'!$H$26 -> 10
B161: Alimentação temporária | C161: 1 | D161: 1 | E161: ='01. PC'!$I$27 -> 3
B163: Receita Varejo | C163: Ativação | D163: Início (ano) | E163: Fim (ano)
B164: Espaço do Ciclista - FLONA | C164: 1 | D164: ='01. PC'!$H$26 -> 10
B165: Mercado Aberto | C165: 1 | D165: ='01. PC'!$H$26 -> 10
B166: Varejo temporário | C166: 1 | D166: ='01. PC'!$H$26 -> 10 | E166: ='01. PC'!$I$26 -> 12
B168: Receita Transporte Interno | C168: Ativação | D168: Início (ano) | E168: Fim (ano)
B169: PNB | C169: 1 | D169: ='01. PC'!H28 -> 5
B170: FLONA | C170: 1 | D170: ='01. PC'!$H$26 -> 10
B172: Premissa | C172: Ativação | D172: Polo | E172: Início da operação | F172: Unidades | G172: Diária / Unidade | H172: Outras Receitas | I172: Quantidade Média de Vis. Por Unid. | J172: Diária / Visitante | K172: Dias alvo - operação | L172: Ajuste de capacidade | M172: Capacidade | N172: Adesão | O172: Custo fixo | P172: Custo variável | Q172: CMV/CSV - Outras Receitas
B173: Descrição | C173: (1=Sim;0=Não) | E173: [mm] | F173: [unid.] | G173: [$/unid.] | H173: [%ROB diária] | I173: [visit./unid.] | J173: [$/visit.] | K173: [dias/mês] | L173: [%] | M173: [visit./mês] | N173: [%] | O173: [R$/unidade/mês] | P173: [% Receita Hospedagem] | Q173: [% Outras Receitas]
B174: Camping - CV | C174: 1 | D174: FLONA | E174: ='01. PC'!$I$26 -> 12 | F174: 160 | G174: =ROUNDUP(70*(1+'01. PC'!$C$11),0) -> 83 | H174: 0.05 | I174: 2 | J174: =G174/I174 -> 41.5 | K174: 30 | L174: 0.95 | M174: =F174*I174*K174*L174 -> 9120 | N174: 0.02 | O174: =ROUNDUP(22.9166666666667*(1+'01. PC'!$C$11),0) -> 27 | P174: 0.05 | Q174: 0.3
B175: Lost | C175: 1 | D175: FLONA | E175: ='01. PC'!$I$26 -> 12 | F175: 80 | G175: =ROUNDUP(100*(1+'01. PC'!$C$11),0) -> 118 | H175: 0.05 | I175: 2 | J175: 59 | K175: 30 | L175: 0.95 | M175: 4560 | N175: 0.02 | O175: =ROUNDUP(22.9166666666667*(1+'01. PC'!$C$11),0) -> 27 | P175: 0.05 | Q175: 0.3
B176: Pernoite Santa Maria | C176: 1 | D176: PNB | E176: ='01. PC'!$I$28 -> 7 | F176: 60 | G176: =ROUNDUP(70*(1+'01. PC'!$C$11),0) -> 83 | H176: 0.05 | I176: 2 | J176: 41.5 | K176: 30 | L176: 0.95 | M176: 3420 | N176: 0.02 | O176: =ROUNDUP(229.166666666667*(1+'01. PC'!$C$11),0) -> 270 | P176: 0.2 | Q176: 0.3
B177: Hospedagem 4 | C177: 0 | D177: PNB | E177: ='01. PC'!$H$27 -> 1 | F177: 10 | G177: 0 | H177: 0 | I177: 1 | J177: 0 | K177: 30 | L177: 0.95 | M177: 285 | N177: 0 | O177: 0 | P177: 0 | Q177: 0.3
B178: Hospedagem 5 | C178: 0 | D178: PNB | E178: ='01. PC'!$H$27 -> 1 | F178: 10 | G178: 0 | H178: 0 | I178: 1 | J178: 0 | K178: 30 | L178: 0.95 | M178: 285 | N178: 0 | O178: 0 | P178: 0 | Q178: 0.3
B179: Hospedagem 6 | C179: 0 | D179: PNB | E179: ='01. PC'!$H$27 -> 1 | F179: 10 | G179: 0 | H179: 0 | I179: 1 | J179: 0 | K179: 30 | L179: 0.95 | M179: 285 | N179: 0 | O179: 0 | P179: 0 | Q179: 0.3
B180: Hospedagem 7 | C180: 0 | D180: PNB | E180: ='01. PC'!$H$27 -> 1 | F180: 10 | G180: 0 | H180: 0 | I180: 1 | J180: 0 | K180: 30 | L180: 0.95 | M180: 285 | N180: 0 | O180: 0 | P180: 0 | Q180: 0.3
B181: Hospedagem 8 | C181: 0 | D181: PNB | E181: ='01. PC'!$H$27 -> 1 | F181: 10 | G181: 0 | H181: 0 | I181: 1 | J181: 0 | K181: 30 | L181: 0.95 | M181: 285 | N181: 0 | O181: 0 | P181: 0 | Q181: 0.3
B182: Hospedagem 9 | C182: 0 | D182: PNB | E182: ='01. PC'!$H$27 -> 1 | F182: 10 | G182: 0 | H182: 0 | I182: 1 | J182: 0 | K182: 30 | L182: 0.95 | M182: 285 | N182: 0 | O182: 0 | P182: 0 | Q182: 0.3
B183: Hospedagem 10 | C183: 0 | D183: PNB | E183: ='01. PC'!$H$27 -> 1 | F183: 10 | G183: 0 | H183: 0 | I183: 1 | J183: 0 | K183: 30 | L183: 0.95 | M183: 285 | N183: 0 | O183: 0 | P183: 0 | Q183: 0.3

Sheet 04.1 DEMANDA
B5: Demanda
B6: Prazo | D6: =IF(D8<=ano_final,1,0) -> 1 | E6: 1 | F6: 1 | G6: 1 | H6: 1 | I6: 1 | J6: 1 | K6: 1 | L6: 1 | M6: 1 | N6: 1 | O6: 1 | P6: 1 | Q6: 1 | R6: 1 | S6: 1 | T6: 1 | U6: 1 | V6: 1 | W6: 1 | X6: 1 | Y6: 1 | Z6: 1 | AA6: 1 | AB6: 1 | AC6: 1 | AD6: 1 | AE6: 1 | AF6: 1 | AG6: 1 | AH6: 0 | AI6: 0 | AJ6: 0 | AK6: 0 | AL6: 0
B8: Ano | D8: =ano_inicial -> 2026 | E8: =D8+1 -> 2027 | F8: =E8+1 -> 2028 | G8: 2029 | H8: 2030 | I8: 2031 | J8: 2032 | K8: 2033 | L8: 2034 | M8: 2035 | N8: 2036 | O8: 2037 | P8: 2038 | Q8: 2039 | R8: 2040 | S8: 2041 | T8: 2042 | U8: 2043 | V8: 2044 | W8: 2045 | X8: 2046 | Y8: 2047 | Z8: 2048 | AA8: 2049 | AB8: 2050 | AC8: 2051 | AD8: 2052 | AE8: 2053 | AF8: 2054 | AG8: 2055 | AH8: 2056 | AI8: 2057 | AJ8: 2058 | AK8: 2059 | AL8: 2060
D10: 1 | E10: =D10+1 -> 2 | F10: =E10+1 -> 3 | G10: 4 | H10: 5 | I10: 6 | J10: 7 | K10: 8 | L10: 9 | M10: 10 | N10: 11 | O10: 12 | P10: 13 | Q10: 14 | R10: 15 | S10: 16 | T10: 17 | U10: 18 | V10: 19 | W10: 20 | X10: 21 | Y10: 22 | Z10: 23 | AA10: 24 | AB10: 25 | AC10: 26 | AD10: 27 | AE10: 28 | AF10: 29 | AG10: 30 | AH10: 31 | AI10: 32 | AJ10: 33 | AK10: 34 | AL10: 35 | AN10: Total | AP10: Risco
B12: Projeção de Demanda (visitantes/ano) | D12: =SUM(D14,D15) -> 367460 | E12: =SUM(E14,E15) -> 373908.211 | F12: 380814.6523 | G12: 387848.6622 | H12: 395012.597 | I12: 402308.8565 | J12: 409739.8848 | K12: 417308.1714 | L12: 425016.2514 | M12: 432866.707 | N12: 440862.168 | O12: 449005.3128 | P12: 457298.8693 | Q12: 465745.6156 | R12: 474348.3814 | S12: 483110.0485 | T12: 492033.552 | U12: 501121.8811 | V12: 510378.0803 | W12: 519805.2503 | X12: 529406.5491 | Y12: 539185.1931 | Z12: 549144.458 | AA12: 559287.68 | AB12: 569618.2569 | AC12: 580139.6495 | AD12: 590855.3823 | AE12: 601769.0448 | AF12: 612884.2931 | AG12: 624204.8507 | AH12: 0 | AI12: 0 | AJ12: 0 | AK12: 0 | AL12: 0 | AN12: =SUM(D12:AL12) -> 14542488.51 | AP12: ='18. RISCO'!$C$9 -> 0
B14: PNB | D14: =(IFERROR(_xlfn.XLOOKUP('04.1 DEMANDA'!D$10,'04.2 DEMANDA PROJEÇÃO'!$B$39:$B$70,'04.2 DEMANDA PROJEÇÃO'!$G$39:$G$70),0))*(1+$AP$12) -> 300603 | E14: =(IFERROR(_xlfn.XLOOKUP('04.1 DEMANDA'!E$10,'04.2 DEMANDA PROJEÇÃO'!$B$39:$B$70,'04.2 DEMANDA PROJEÇÃO'!$G$39:$G$70),0))*(1+$AP$12) -> 305878.0002 | F14: =(IFERROR(_xlfn.XLOOKUP('04.1 DEMANDA'!F$10,'04.2 DEMANDA PROJEÇÃO'!$B$39:$B$70,'04.2 DEMANDA PROJEÇÃO'!$G$39:$G$70),0))*(1+$AP$12) -> 311527.8586 | G14: =(IFERROR(_xlfn.XLOOKUP('04.1 DEMANDA'!G$10,'04.2 DEMANDA PROJEÇÃO'!$B$39:$B$70,'04.2 DEMANDA PROJEÇÃO'!$G$39:$G$70),0))*(1+$AP$12) -> 317282.0753 | H14: =(IFERROR(_xlfn.XLOOKUP('04.1 DEMANDA'!H$10,'04.2 DEMANDA PROJEÇÃO'!$B$39:$B$70,'04.2 DEMANDA PROJEÇÃO'!$G$39:$G$70),0))*(1+$AP$12) -> 323142.5779 | I14: =(IFERROR(_xlfn.XLOOKUP('04.1 DEMANDA'!I$10,'04.2 DEMANDA PROJEÇÃO'!$B$39:$B$70,'04.2 DEMANDA PROJEÇÃO'!$G$39:$G$70),0))*(1+$AP$12) -> 329111.3296 | J14: =(IFERROR(_xlfn.XLOOKUP('04.1 DEMANDA'!J$10,'04.2 DEMANDA PROJEÇÃO'!$B$39:$B$70,'04.2 DEMANDA PROJEÇÃO'!$G$39:$G$70),0))*(1+$AP$12) -> 335190.3298 | K14: =(IFERROR(_xlfn.XLOOKUP('04.1 DEMANDA'!K$10,'04.2 DEMANDA PROJEÇÃO'!$B$39:$B$70,'04.2 DEMANDA PROJEÇÃO'!$G$39:$G$70),0))*(1+$AP$12) -> 341381.615 | L14: =(IFERROR(_xlfn.XLOOKUP('04.1 DEMANDA'!L$10,'04.2 DEMANDA PROJEÇÃO'!$B$39:$B$70,'04.2 DEMANDA PROJEÇÃO'!$G$39:$G$70),0))*(1+$AP$12) -> 347687.2591 | M14: =(IFERROR(_xlfn.XLOOKUP('04.1 DEMANDA'!M$10,'04.2 DEMANDA PROJEÇÃO'!$B$39:$B$70,'04.2 DEMANDA PROJEÇÃO'!$G$39:$G$70),0))*(1+$AP$12) -> 354109.3744 | N14: =(IFERROR(_xlfn.XLOOKUP('04.1 DEMANDA'!N$10,'04.2 DEMANDA PROJEÇÃO'!$B$39:$B$70,'04.2 DEMANDA PROJEÇÃO'!$G$39:$G$70),0))*(1+$AP$12) -> 360650.1124 | O14: =(IFERROR(_xlfn.XLOOKUP('04.1 DEMANDA'!O$10,'04.2 DEMANDA PROJEÇÃO'!$B$39:$B$70,'04.2 DEMANDA PROJEÇÃO'!$G$39:$G$70),0))*(1+$AP$12) -> 367311.664 | P14: =(IFERROR(_xlfn.XLOOKUP('04.1 DEMANDA'!P$10,'04.2 DEMANDA PROJEÇÃO'!$B$39:$B$70,'04.2 DEMANDA PROJEÇÃO'!$G$39:$G$70),0))*(1+$AP$12) -> 374096.2608 | Q14: =(IFERROR(_xlfn.XLOOKUP('04.1 DEMANDA'!Q$10,'04.2 DEMANDA PROJEÇÃO'!$B$39:$B$70,'04.2 DEMANDA PROJEÇÃO'!$G$39:$G$70),0))*(1+$AP$12) -> 381006.1756 | R14: =(IFERROR(_xlfn.XLOOKUP('04.1 DEMANDA'!R$10,'04.2 DEMANDA PROJEÇÃO'!$B$39:$B$70,'04.2 DEMANDA PROJEÇÃO'!$G$39:$G$70),0))*(1+$AP$12) -> 388043.7231 | S14: =(IFERROR(_xlfn.XLOOKUP('04.1 DEMANDA'!S$10,'04.2 DEMANDA PROJEÇÃO'!$B$39:$B$70,'04.2 DEMANDA PROJEÇÃO'!$G$39:$G$70),0))*(1+$AP$12) -> 395211.2609 | T14: =(IFERROR(_xlfn.XLOOKUP('04.1 DEMANDA'!T$10,'04.2 DEMANDA PROJEÇÃO'!$B$39:$B$70,'04.2 DEMANDA PROJEÇÃO'!$G$39:$G$70),0))*(1+$AP$12) -> 402511.1899 | U14: =(IFERROR(_xlfn.XLOOKUP('04.1 DEMANDA'!U$10,'04.2 DEMANDA PROJEÇÃO'!$B$39:$B$70,'04.2 DEMANDA PROJEÇÃO'!$G$39:$G$70),0))*(1+$AP$12) -> 409945.9555 | V14: =(IFERROR(_xlfn.XLOOKUP('04.1 DEMANDA'!V$10,'04.2 DEMANDA PROJEÇÃO'!$B$39:$B$70,'04.2 DEMANDA PROJEÇÃO'!$G$39:$G$70),0))*(1+$AP$12) -> 417518.0484 | W14: =(IFERROR(_xlfn.XLOOKUP('04.1 DEMANDA'!W$10,'04.2 DEMANDA PROJEÇÃO'!$B$39:$B$70,'04.2 DEMANDA PROJEÇÃO'!$G$39:$G$70),0))*(1+$AP$12) -> 425230.005 | X14: =(IFERROR(_xlfn.XLOOKUP('04.1 DEMANDA'!X$10,'04.2 DEMANDA PROJEÇÃO'!$B$39:$B$70,'04.2 DEMANDA PROJEÇÃO'!$G$39:$G$70),0))*(1+$AP$12) -> 433084.4089 | Y14: =(IFERROR(_xlfn.XLOOKUP('04.1 DEMANDA'!Y$10,'04.2 DEMANDA PROJEÇÃO'!$B$39:$B$70,'04.2 DEMANDA PROJEÇÃO'!$G$39:$G$70),0))*(1+$AP$12) -> 441083.891 | Z14: =(IFERROR(_xlfn.XLOOKUP('04.1 DEMANDA'!Z$10,'04.2 DEMANDA PROJEÇÃO'!$B$39:$B$70,'04.2 DEMANDA PROJEÇÃO'!$G$39:$G$70),0))*(1+$AP$12) -> 449231.1313 | AA14: =(IFERROR(_xlfn.XLOOKUP('04.1 DEMANDA'!AA$10,'04.2 DEMANDA PROJEÇÃO'!$B$39:$B$70,'04.2 DEMANDA PROJEÇÃO'!$G$39:$G$70),0))*(1+$AP$12) -> 457528.8588 | AB14: =(IFERROR(_xlfn.XLOOKUP('04.1 DEMANDA'!AB$10,'04.2 DEMANDA PROJEÇÃO'!$B$39:$B$70,'04.2 DEMANDA PROJEÇÃO'!$G$39:$G$70),0))*(1+$AP$12) -> 465979.8533 | AC14: =(IFERROR(_xlfn.XLOOKUP('04.1 DEMANDA'!AC$10,'04.2 DEMANDA PROJEÇÃO'!$B$39:$B$70,'04.2 DEMANDA PROJEÇÃO'!$G$39:$G$70),0))*(1+$AP$12) -> 474586.9457 | AD14: =(IFERROR(_xlfn.XLOOKUP('04.1 DEMANDA'!AD$10,'04.2 DEMANDA PROJEÇÃO'!$B$39:$B$70,'04.2 DEMANDA PROJEÇÃO'!$G$39:$G$70),0))*(1+$AP$12) -> 483353.0193 | AE14: =(IFERROR(_xlfn.XLOOKUP('04.1 DEMANDA'!AE$10,'04.2 DEMANDA PROJEÇÃO'!$B$39:$B$70,'04.2 DEMANDA PROJEÇÃO'!$G$39:$G$70),0))*(1+$AP$12) -> 492281.0107 | AF14: =(IFERROR(_xlfn.XLOOKUP('04.1 DEMANDA'!AF$10,'04.2 DEMANDA PROJEÇÃO'!$B$39:$B$70,'04.2 DEMANDA PROJEÇÃO'!$G$39:$G$70),0))*(1+$AP$12) -> 501373.9105 | AG14: =(IFERROR(_xlfn.XLOOKUP('04.1 DEMANDA'!AG$10,'04.2 DEMANDA PROJEÇÃO'!$B$39:$B$70,'04.2 DEMANDA PROJEÇÃO'!$G$39:$G$70),0))*(1+$AP$12) -> 510634.765 | AH14: =(IFERROR(_xlfn.XLOOKUP('04.1 DEMANDA'!AH$10,'04.2 DEMANDA PROJEÇÃO'!$B$39:$B$70,'04.2 DEMANDA PROJEÇÃO'!$G$39:$G$70),0))*(1+$AP$12) -> 0 | AI14: =(IFERROR(_xlfn.XLOOKUP('04.1 DEMANDA'!AI$10,'04.2 DEMANDA PROJEÇÃO'!$B$39:$B$70,'04.2 DEMANDA PROJEÇÃO'!$G$39:$G$70),0))*(1+$AP$12) -> 0 | AJ14: =(IFERROR(_xlfn.XLOOKUP('04.1 DEMANDA'!AJ$10,'04.2 DEMANDA PROJEÇÃO'!$B$39:$B$70,'04.2 DEMANDA PROJEÇÃO'!$G$39:$G$70),0))*(1+$AP$12) -> 0 | AK14: =(IFERROR(_xlfn.XLOOKUP('04.1 DEMANDA'!AK$10,'04.2 DEMANDA PROJEÇÃO'!$B$39:$B$70,'04.2 DEMANDA PROJEÇÃO'!$G$39:$G$70),0))*(1+$AP$12) -> 0 | AL14: =(IFERROR(_xlfn.XLOOKUP('04.1 DEMANDA'!AL$10,'04.2 DEMANDA PROJEÇÃO'!$B$39:$B$70,'04.2 DEMANDA PROJEÇÃO'!$G$39:$G$70),0))*(1+$AP$12) -> 0 | AN14: =SUM(D14:AL14) -> 11896575.61
B15: FLONA | D15: =(IFERROR(_xlfn.XLOOKUP('04.1 DEMANDA'!D$10,'04.2 DEMANDA PROJEÇÃO'!$B$39:$B$70,'04.2 DEMANDA PROJEÇÃO'!$H$39:$H$70),0))*(1+$AP$12) -> 66857 | E15: =(IFERROR(_xlfn.XLOOKUP('04.1 DEMANDA'!E$10,'04.2 DEMANDA PROJEÇÃO'!$B$39:$B$70,'04.2 DEMANDA PROJEÇÃO'!$H$39:$H$70),0))*(1+$AP$12) -> 68030.2108 | F15: =(IFERROR(_xlfn.XLOOKUP('04.1 DEMANDA'!F$10,'04.2 DEMANDA PROJEÇÃO'!$B$39:$B$70,'04.2 DEMANDA PROJEÇÃO'!$H$39:$H$70),0))*(1+$AP$12) -> 69286.79369 | G15: =(IFERROR(_xlfn.XLOOKUP('04.1 DEMANDA'!G$10,'04.2 DEMANDA PROJEÇÃO'!$B$39:$B$70,'04.2 DEMANDA PROJEÇÃO'!$H$39:$H$70),0))*(1+$AP$12) -> 70566.58686 | H15: =(IFERROR(_xlfn.XLOOKUP('04.1 DEMANDA'!H$10,'04.2 DEMANDA PROJEÇÃO'!$B$39:$B$70,'04.2 DEMANDA PROJEÇÃO'!$H$39:$H$70),0))*(1+$AP$12) -> 71870.01904 | I15: =(IFERROR(_xlfn.XLOOKUP('04.1 DEMANDA'!I$10,'04.2 DEMANDA PROJEÇÃO'!$B$39:$B$70,'04.2 DEMANDA PROJEÇÃO'!$H$39:$H$70),0))*(1+$AP$12) -> 73197.52685 | J15: =(IFERROR(_xlfn.XLOOKUP('04.1 DEMANDA'!J$10,'04.2 DEMANDA PROJEÇÃO'!$B$39:$B$70,'04.2 DEMANDA PROJEÇÃO'!$H$39:$H$70),0))*(1+$AP$12) -> 74549.555 | K15: =(IFERROR(_xlfn.XLOOKUP('04.1 DEMANDA'!K$10,'04.2 DEMANDA PROJEÇÃO'!$B$39:$B$70,'04.2 DEMANDA PROJEÇÃO'!$H$39:$H$70),0))*(1+$AP$12) -> 75926.5564 | L15: =(IFERROR(_xlfn.XLOOKUP('04.1 DEMANDA'!L$10,'04.2 DEMANDA PROJEÇÃO'!$B$39:$B$70,'04.2 DEMANDA PROJEÇÃO'!$H$39:$H$70),0))*(1+$AP$12) -> 77328.99232 | M15: =(IFERROR(_xlfn.XLOOKUP('04.1 DEMANDA'!M$10,'04.2 DEMANDA PROJEÇÃO'!$B$39:$B$70,'04.2 DEMANDA PROJEÇÃO'!$H$39:$H$70),0))*(1+$AP$12) -> 78757.33258 | N15: =(IFERROR(_xlfn.XLOOKUP('04.1 DEMANDA'!N$10,'04.2 DEMANDA PROJEÇÃO'!$B$39:$B$70,'04.2 DEMANDA PROJEÇÃO'!$H$39:$H$70),0))*(1+$AP$12) -> 80212.05564 | O15: =(IFERROR(_xlfn.XLOOKUP('04.1 DEMANDA'!O$10,'04.2 DEMANDA PROJEÇÃO'!$B$39:$B$70,'04.2 DEMANDA PROJEÇÃO'!$H$39:$H$70),0))*(1+$AP$12) -> 81693.64883 | P15: =(IFERROR(_xlfn.XLOOKUP('04.1 DEMANDA'!P$10,'04.2 DEMANDA PROJEÇÃO'!$B$39:$B$70,'04.2 DEMANDA PROJEÇÃO'!$H$39:$H$70),0))*(1+$AP$12) -> 83202.60845 | Q15: =(IFERROR(_xlfn.XLOOKUP('04.1 DEMANDA'!Q$10,'04.2 DEMANDA PROJEÇÃO'!$B$39:$B$70,'04.2 DEMANDA PROJEÇÃO'!$H$39:$H$70),0))*(1+$AP$12) -> 84739.44 | R15: =(IFERROR(_xlfn.XLOOKUP('04.1 DEMANDA'!R$10,'04.2 DEMANDA PROJEÇÃO'!$B$39:$B$70,'04.2 DEMANDA PROJEÇÃO'!$H$39:$H$70),0))*(1+$AP$12) -> 86304.65829 | S15: =(IFERROR(_xlfn.XLOOKUP('04.1 DEMANDA'!S$10,'04.2 DEMANDA PROJEÇÃO'!$B$39:$B$70,'04.2 DEMANDA PROJEÇÃO'!$H$39:$H$70),0))*(1+$AP$12) -> 87898.78766 | T15: =(IFERROR(_xlfn.XLOOKUP('04.1 DEMANDA'!T$10,'04.2 DEMANDA PROJEÇÃO'!$B$39:$B$70,'04.2 DEMANDA PROJEÇÃO'!$H$39:$H$70),0))*(1+$AP$12) -> 89522.36212 | U15: =(IFERROR(_xlfn.XLOOKUP('04.1 DEMANDA'!U$10,'04.2 DEMANDA PROJEÇÃO'!$B$39:$B$70,'04.2 DEMANDA PROJEÇÃO'!$H$39:$H$70),0))*(1+$AP$12) -> 91175.92555 | V15: =(IFERROR(_xlfn.XLOOKUP('04.1 DEMANDA'!V$10,'04.2 DEMANDA PROJEÇÃO'!$B$39:$B$70,'04.2 DEMANDA PROJEÇÃO'!$H$39:$H$70),0))*(1+$AP$12) -> 92860.03187 | W15: =(IFERROR(_xlfn.XLOOKUP('04.1 DEMANDA'!W$10,'04.2 DEMANDA PROJEÇÃO'!$B$39:$B$70,'04.2 DEMANDA PROJEÇÃO'!$H$39:$H$70),0))*(1+$AP$12) -> 94575.24524 | X15: =(IFERROR(_xlfn.XLOOKUP('04.1 DEMANDA'!X$10,'04.2 DEMANDA PROJEÇÃO'!$B$39:$B$70,'04.2 DEMANDA PROJEÇÃO'!$H$39:$H$70),0))*(1+$AP$12) -> 96322.14024 | Y15: =(IFERROR(_xlfn.XLOOKUP('04.1 DEMANDA'!Y$10,'04.2 DEMANDA PROJEÇÃO'!$B$39:$B$70,'04.2 DEMANDA PROJEÇÃO'!$H$39:$H$70),0))*(1+$AP$12) -> 98101.30206 | Z15: =(IFERROR(_xlfn.XLOOKUP('04.1 DEMANDA'!Z$10,'04.2 DEMANDA PROJEÇÃO'!$B$39:$B$70,'04.2 DEMANDA PROJEÇÃO'!$H$39:$H$70),0))*(1+$AP$12) -> 99913.32669 | AA15: =(IFERROR(_xlfn.XLOOKUP('04.1 DEMANDA'!AA$10,'04.2 DEMANDA PROJEÇÃO'!$B$39:$B$70,'04.2 DEMANDA PROJEÇÃO'!$H$39:$H$70),0))*(1+$AP$12) -> 101758.8211 | AB15: =(IFERROR(_xlfn.XLOOKUP('04.1 DEMANDA'!AB$10,'04.2 DEMANDA PROJEÇÃO'!$B$39:$B$70,'04.2 DEMANDA PROJEÇÃO'!$H$39:$H$70),0))*(1+$AP$12) -> 103638.4036 | AC15: =(IFERROR(_xlfn.XLOOKUP('04.1 DEMANDA'!AC$10,'04.2 DEMANDA PROJEÇÃO'!$B$39:$B$70,'04.2 DEMANDA PROJEÇÃO'!$H$39:$H$70),0))*(1+$AP$12) -> 105552.7038 | AD15: =(IFERROR(_xlfn.XLOOKUP('04.1 DEMANDA'!AD$10,'04.2 DEMANDA PROJEÇÃO'!$B$39:$B$70,'04.2 DEMANDA PROJEÇÃO'!$H$39:$H$70),0))*(1+$AP$12) -> 107502.363 | AE15: =(IFERROR(_xlfn.XLOOKUP('04.1 DEMANDA'!AE$10,'04.2 DEMANDA PROJEÇÃO'!$B$39:$B$70,'04.2 DEMANDA PROJEÇÃO'!$H$39:$H$70),0))*(1+$AP$12) -> 109488.0342 | AF15: =(IFERROR(_xlfn.XLOOKUP('04.1 DEMANDA'!AF$10,'04.2 DEMANDA PROJEÇÃO'!$B$39:$B$70,'04.2 DEMANDA PROJEÇÃO'!$H$39:$H$70),0))*(1+$AP$12) -> 111510.3826 | AG15: =(IFERROR(_xlfn.XLOOKUP('04.1 DEMANDA'!AG$10,'04.2 DEMANDA PROJEÇÃO'!$B$39:$B$70,'04.2 DEMANDA PROJEÇÃO'!$H$39:$H$70),0))*(1+$AP$12) -> 113570.0857 | AH15: =(IFERROR(_xlfn.XLOOKUP('04.1 DEMANDA'!AH$10,'04.2 DEMANDA PROJEÇÃO'!$B$39:$B$70,'04.2 DEMANDA PROJEÇÃO'!$H$39:$H$70),0))*(1+$AP$12) -> 0 | AI15: =(IFERROR(_xlfn.XLOOKUP('04.1 DEMANDA'!AI$10,'04.2 DEMANDA PROJEÇÃO'!$B$39:$B$70,'04.2 DEMANDA PROJEÇÃO'!$H$39:$H$70),0))*(1+$AP$12) -> 0 | AJ15: =(IFERROR(_xlfn.XLOOKUP('04.1 DEMANDA'!AJ$10,'04.2 DEMANDA PROJEÇÃO'!$B$39:$B$70,'04.2 DEMANDA PROJEÇÃO'!$H$39:$H$70),0))*(1+$AP$12) -> 0 | AK15: =(IFERROR(_xlfn.XLOOKUP('04.1 DEMANDA'!AK$10,'04.2 DEMANDA PROJEÇÃO'!$B$39:$B$70,'04.2 DEMANDA PROJEÇÃO'!$H$39:$H$70),0))*(1+$AP$12) -> 0 | AL15: =(IFERROR(_xlfn.XLOOKUP('04.1 DEMANDA'!AL$10,'04.2 DEMANDA PROJEÇÃO'!$B$39:$B$70,'04.2 DEMANDA PROJEÇÃO'!$H$39:$H$70),0))*(1+$AP$12) -> 0 | AN15: =SUM(D15:AL15) -> 2645912.9
B16: PNB - Projeção Anterior | D16: =257869.6 -> 257869.6 | E16: 259323.1954 | F16: 268109.6876 | G16: 277193.8873 | H16: 287665.9608 | I16: 298484.9234 | J16: 309710.7814 | K16: 321044.0255 | L16: 332574.4322 | M16: 344518.9573 | N16: 356775.7429 | O16: 369226.8139 | P16: 381987.3103 | Q16: 394994.6703 | R16: 408244.2041 | S16: 421730.6902 | T16: 435376.922 | U16: 449022.1658 | V16: 462638.6499 | W16: 476119.4146 | X16: 489509.0314 | Y16: 502777.624 | Z16: 515894.8147 | AA16: 528917.2318 | AB16: 541820.3411 | AC16: 554671.0626 | AD16: 567450.7016 | AE16: 580236.3851 | AF16: 593310.153 | AG16: 606678.4963
B17: FLONA - Projeção Anterior | D17: =70623 -> 70623 | E17: 71021.0976 | F17: 73427.46284 | G17: 75915.3615 | H17: 78783.35853 | I17: 81746.35842 | J17: 84820.79514 | K17: 87924.64182 | L17: 91082.48558 | M17: 94353.74438 | N17: 97710.52225 | O17: 101120.5093 | P17: 104615.2389 | Q17: 108177.5774 | R17: 111806.2402 | S17: 115499.7973 | T17: 119237.1042 | U17: 122974.1405 | V17: 126703.3003 | W17: 130395.2905 | X17: 134062.318 | Y17: 137696.2005 | Z17: 141288.6184 | AA17: 144855.0805 | AB17: 148388.8677 | AC17: 151908.3074 | AD17: 155408.2796 | AE17: 158909.9073 | AF17: 162490.4329 | AG17: 166151.6342
B19: Demanda por Categoria | D19: =(D21+D26) -> 367460 | E19: =(E21+E26) -> 373908.211 | F19: 380814.6523 | G19: 387848.6622 | H19: 395012.597 | I19: 402308.8565 | J19: 409739.8848 | K19: 417308.1714 | L19: 425016.2514 | M19: 432866.707 | N19: 440862.168 | O19: 449005.3128 | P19: 457298.8693 | Q19: 465745.6156 | R19: 474348.3814 | S19: 483110.0485 | T19: 492033.552 | U19: 501121.8811 | V19: 510378.0803 | W19: 519805.2503 | X19: 529406.5491 | Y19: 539185.1931 | Z19: 549144.458 | AA19: 559287.68 | AB19: 569618.2569 | AC19: 580139.6495 | AD19: 590855.3823 | AE19: 601769.0448 | AF19: 612884.2931 | AG19: 624204.8507 | AH19: 0 | AI19: 0 | AJ19: 0 | AK19: 0 | AL19: 0 | AN19: =SUM(D19:AL19) -> 14542488.51
B21: PNB | D21: =D22+D24 -> 300603 | E21: =E22+E24 -> 305878.0002 | F21: 311527.8586 | G21: 317282.0753 | H21: 323142.5779 | I21: 329111.3296 | J21: 335190.3298 | K21: 341381.615 | L21: 347687.2591 | M21: 354109.3744 | N21: 360650.1124 | O21: 367311.664 | P21: 374096.2608 | Q21: 381006.1756 | R21: 388043.7231 | S21: 395211.2609 | T21: 402511.1899 | U21: 409945.9555 | V21: 417518.0484 | W21: 425230.005 | X21: 433084.4089 | Y21: 441083.891 | Z21: 449231.1313 | AA21: 457528.8588 | AB21: 465979.8533 | AC21: 474586.9457 | AD21: 483353.0193 | AE21: 492281.0107 | AF21: 501373.9105 | AG21: 510634.765 | AH21: 0 | AI21: 0 | AJ21: 0 | AK21: 0 | AL21: 0 | AN21: =SUM(D21:AL21) -> 11896575.61
B22: Brasileiros | D22: =IF('01. PC'!$C$12="Nova",D$14*D23,D$16*D23) -> 191719.6462 | E22: =IF('01. PC'!$C$12="Nova",E$14*E23,E$16*E23) -> 195083.9545 | F22: =IF('01. PC'!$C$12="Nova",F$14*F23,F$16*F23) -> 198687.3412 | G22: =IF('01. PC'!$C$12="Nova",G$14*G23,G$16*G23) -> 202357.2859 | H22: =IF('01. PC'!$C$12="Nova",H$14*H23,H$16*H23) -> 206095.018 | I22: =IF('01. PC'!$C$12="Nova",I$14*I23,I$16*I23) -> 209901.7896 | J22: =IF('01. PC'!$C$12="Nova",J$14*J23,J$16*J23) -> 213778.8759 | K22: =IF('01. PC'!$C$12="Nova",K$14*K23,K$16*K23) -> 217727.5757 | L22: =IF('01. PC'!$C$12="Nova",L$14*L23,L$16*L23) -> 221749.2117 | M22: =IF('01. PC'!$C$12="Nova",M$14*M23,M$16*M23) -> 225845.1312 | N22: =IF('01. PC'!$C$12="Nova",N$14*N23,N$16*N23) -> 230016.7062 | O22: =IF('01. PC'!$C$12="Nova",O$14*O23,O$16*O23) -> 234265.3342 | P22: =IF('01. PC'!$C$12="Nova",P$14*P23,P$16*P23) -> 238592.4384 | Q22: =IF('01. PC'!$C$12="Nova",Q$14*Q23,Q$16*Q23) -> 242999.4683 | R22: =IF('01. PC'!$C$12="Nova",R$14*R23,R$16*R23) -> 247487.9003 | S22: =IF('01. PC'!$C$12="Nova",S$14*S23,S$16*S23) -> 252059.2379 | T22: =IF('01. PC'!$C$12="Nova",T$14*T23,T$16*T23) -> 256715.0125 | U22: =IF('01. PC'!$C$12="Nova",U$14*U23,U$16*U23) -> 261456.7837 | V22: =IF('01. PC'!$C$12="Nova",V$14*V23,V$16*V23) -> 266286.1399 | W22: =IF('01. PC'!$C$12="Nova",W$14*W23,W$16*W23) -> 271204.6989 | X22: =IF('01. PC'!$C$12="Nova",X$14*X23,X$16*X23) -> 276214.1084 | Y22: =IF('01. PC'!$C$12="Nova",Y$14*Y23,Y$16*Y23) -> 281316.0465 | Z22: =IF('01. PC'!$C$12="Nova",Z$14*Z23,Z$16*Z23) -> 286512.2222 | AA22: =IF('01. PC'!$C$12="Nova",AA$14*AA23,AA$16*AA23) -> 291804.3763 | AB22: =IF('01. PC'!$C$12="Nova",AB$14*AB23,AB$16*AB23) -> 297194.2815 | AC22: =IF('01. PC'!$C$12="Nova",AC$14*AC23,AC$16*AC23) -> 302683.7434 | AD22: =IF('01. PC'!$C$12="Nova",AD$14*AD23,AD$16*AD23) -> 308274.6009 | AE22: =IF('01. PC'!$C$12="Nova",AE$14*AE23,AE$16*AE23) -> 313968.7268 | AF22: =IF('01. PC'!$C$12="Nova",AF$14*AF23,AF$16*AF23) -> 319768.0287 | AG22: =IF('01. PC'!$C$12="Nova",AG$14*AG23,AG$16*AG23) -> 325674.4492 | AH22: =IF('01. PC'!$C$12="Nova",AH$14*AH23,AH$16*AH23) -> 0 | AI22: =IF('01. PC'!$C$12="Nova",AI$14*AI23,AI$16*AI23) -> 0 | AJ22: =IF('01. PC'!$C$12="Nova",AJ$14*AJ23,AJ$16*AJ23) -> 0 | AK22: =IF('01. PC'!$C$12="Nova",AK$14*AK23,AK$16*AK23) -> 0 | AL22: =IF('01. PC'!$C$12="Nova",AL$14*AL23,AL$16*AL23) -> 0
B23: Brasileiros (%) | D23: =1-D25 -> 0.6377835423 | E23: =1-E25 -> 0.6377835423 | F23: 0.6377835423 | G23: 0.6377835423 | H23: 0.6377835423 | I23: 0.6377835423 | J23: 0.6377835423 | K23: 0.6377835423 | L23: 0.6377835423 | M23: 0.6377835423 | N23: 0.6377835423 | O23: 0.6377835423 | P23: 0.6377835423 | Q23: 0.6377835423 | R23: 0.6377835423 | S23: 0.6377835423 | T23: 0.6377835423 | U23: 0.6377835423 | V23: 0.6377835423 | W23: 0.6377835423 | X23: 0.6377835423 | Y23: 0.6377835423 | Z23: 0.6377835423 | AA23: 0.6377835423 | AB23: 0.6377835423 | AC23: 0.6377835423 | AD23: 0.6377835423 | AE23: 0.6377835423 | AF23: 0.6377835423 | AG23: 0.6377835423 | AH23: 0.6377835423 | AI23: 0.6377835423 | AJ23: 0.6377835423 | AK23: 0.6377835423 | AL23: 0.6377835423 | AN23: -
B24: Isentos | D24: =IF('01. PC'!$C$12="Nova",D$14*D25,D$16*D25) -> 108883.3538 | E24: =IF('01. PC'!$C$12="Nova",E$14*E25,E$16*E25) -> 110794.0457 | F24: =IF('01. PC'!$C$12="Nova",F$14*F25,F$16*F25) -> 112840.5174 | G24: =IF('01. PC'!$C$12="Nova",G$14*G25,G$16*G25) -> 114924.7894 | H24: =IF('01. PC'!$C$12="Nova",H$14*H25,H$16*H25) -> 117047.5599 | I24: =IF('01. PC'!$C$12="Nova",I$14*I25,I$16*I25) -> 119209.54 | J24: =IF('01. PC'!$C$12="Nova",J$14*J25,J$16*J25) -> 121411.4539 | K24: =IF('01. PC'!$C$12="Nova",K$14*K25,K$16*K25) -> 123654.0393 | L24: =IF('01. PC'!$C$12="Nova",L$14*L25,L$16*L25) -> 125938.0474 | M24: =IF('01. PC'!$C$12="Nova",M$14*M25,M$16*M25) -> 128264.2432 | N24: =IF('01. PC'!$C$12="Nova",N$14*N25,N$16*N25) -> 130633.4062 | O24: =IF('01. PC'!$C$12="Nova",O$14*O25,O$16*O25) -> 133046.3298 | P24: =IF('01. PC'!$C$12="Nova",P$14*P25,P$16*P25) -> 135503.8224 | Q24: =IF('01. PC'!$C$12="Nova",Q$14*Q25,Q$16*Q25) -> 138006.7073 | R24: =IF('01. PC'!$C$12="Nova",R$14*R25,R$16*R25) -> 140555.8228 | S24: =IF('01. PC'!$C$12="Nova",S$14*S25,S$16*S25) -> 143152.0229 | T24: =IF('01. PC'!$C$12="Nova",T$14*T25,T$16*T25) -> 145796.1774 | U24: =IF('01. PC'!$C$12="Nova",U$14*U25,U$16*U25) -> 148489.1718 | V24: =IF('01. PC'!$C$12="Nova",V$14*V25,V$16*V25) -> 151231.9085 | W24: =IF('01. PC'!$C$12="Nova",W$14*W25,W$16*W25) -> 154025.3061 | X24: =IF('01. PC'!$C$12="Nova",X$14*X25,X$16*X25) -> 156870.3004 | Y24: =IF('01. PC'!$C$12="Nova",Y$14*Y25,Y$16*Y25) -> 159767.8445 | Z24: =IF('01. PC'!$C$12="Nova",Z$14*Z25,Z$16*Z25) -> 162718.909 | AA24: =IF('01. PC'!$C$12="Nova",AA$14*AA25,AA$16*AA25) -> 165724.4825 | AB24: =IF('01. PC'!$C$12="Nova",AB$14*AB25,AB$16*AB25) -> 168785.5718 | AC24: =IF('01. PC'!$C$12="Nova",AC$14*AC25,AC$16*AC25) -> 171903.2023 | AD24: =IF('01. PC'!$C$12="Nova",AD$14*AD25,AD$16*AD25) -> 175078.4185 | AE24: =IF('01. PC'!$C$12="Nova",AE$14*AE25,AE$16*AE25) -> 178312.2839 | AF24: =IF('01. PC'!$C$12="Nova",AF$14*AF25,AF$16*AF25) -> 181605.8818 | AG24: =IF('01. PC'!$C$12="Nova",AG$14*AG25,AG$16*AG25) -> 184960.3157 | AH24: =IF('01. PC'!$C$12="Nova",AH$14*AH25,AH$16*AH25) -> 0 | AI24: =IF('01. PC'!$C$12="Nova",AI$14*AI25,AI$16*AI25) -> 0 | AJ24: =IF('01. PC'!$C$12="Nova",AJ$14*AJ25,AJ$16*AJ25) -> 0 | AK24: =IF('01. PC'!$C$12="Nova",AK$14*AK25,AK$16*AK25) -> 0 | AL24: =IF('01. PC'!$C$12="Nova",AL$14*AL25,AL$16*AL25) -> 0
B25: Isenções (%) | D25: =IF('01. PC'!$C$13="Não",'01. PC'!$C$110,'01. PC'!$H$111) -> 0.3622164577 | E25: =D25 -> 0.3622164577 | F25: =E25 -> 0.3622164577 | G25: 0.3622164577 | H25: 0.3622164577 | I25: 0.3622164577 | J25: 0.3622164577 | K25: 0.3622164577 | L25: 0.3622164577 | M25: 0.3622164577 | N25: 0.3622164577 | O25: 0.3622164577 | P25: 0.3622164577 | Q25: 0.3622164577 | R25: 0.3622164577 | S25: 0.3622164577 | T25: 0.3622164577 | U25: 0.3622164577 | V25: 0.3622164577 | W25: 0.3622164577 | X25: 0.3622164577 | Y25: 0.3622164577 | Z25: 0.3622164577 | AA25: 0.3622164577 | AB25: 0.3622164577 | AC25: 0.3622164577 | AD25: 0.3622164577 | AE25: =AD25 -> 0.3622164577 | AF25: 0.3622164577 | AG25: 0.3622164577 | AH25: 0.3622164577 | AI25: 0.3622164577 | AJ25: 0.3622164577 | AK25: 0.3622164577 | AL25: 0.3622164577 | AN25: -
B26: FLONA | D26: =D27+D29 -> 66857 | E26: 68030.2108 | F26: 69286.79369 | G26: 70566.58686 | H26: 71870.01904 | I26: 73197.52685 | J26: 74549.555 | K26: 75926.5564 | L26: 77328.99232 | M26: 78757.33258 | N26: 80212.05564 | O26: 81693.64883 | P26: 83202.60845 | Q26: 84739.44 | R26: 86304.65829 | S26: 87898.78766 | T26: 89522.36212 | U26: 91175.92555 | V26: 92860.03187 | W26: 94575.24524 | X26: 96322.14024 | Y26: 98101.30206 | Z26: 99913.32669 | AA26: 101758.8211 | AB26: 103638.4036 | AC26: 105552.7038 | AD26: 107502.363 | AE26: 109488.0342 | AF26: 111510.3826 | AG26: 113570.0857 | AH26: 0 | AI26: 0 | AJ26: 0 | AK26: 0 | AL26: 0 | AN26: =SUM(D26:AL26) -> 2645912.9
B27: Brasileiros | D27: =IF('01. PC'!$C$12="Nova",D$15*D28,D$17*D28) -> 42640.29429 | E27: =IF('01. PC'!$C$12="Nova",E$15*E28,E$17*E28) -> 43388.54883 | F27: =IF('01. PC'!$C$12="Nova",F$15*F28,F$17*F28) -> 44189.97672 | G27: =IF('01. PC'!$C$12="Nova",G$15*G28,G$17*G28) -> 45006.20774 | H27: =IF('01. PC'!$C$12="Nova",H$15*H28,H$17*H28) -> 45837.51533 | I27: =IF('01. PC'!$C$12="Nova",I$15*I28,I$17*I28) -> 46684.17797 | J27: =IF('01. PC'!$C$12="Nova",J$15*J28,J$17*J28) -> 47546.47927 | K27: =IF('01. PC'!$C$12="Nova",K$15*K28,K$17*K28) -> 48424.7081 | L27: =IF('01. PC'!$C$12="Nova",L$15*L28,L$17*L28) -> 49319.15865 | M27: =IF('01. PC'!$C$12="Nova",M$15*M28,M$17*M28) -> 50230.13056 | N27: =IF('01. PC'!$C$12="Nova",N$15*N28,N$17*N28) -> 51157.92899 | O27: =IF('01. PC'!$C$12="Nova",O$15*O28,O$17*O28) -> 52102.86474 | P27: =IF('01. PC'!$C$12="Nova",P$15*P28,P$17*P28) -> 53065.25435 | Q27: =IF('01. PC'!$C$12="Nova",Q$15*Q28,Q$17*Q28) -> 54045.42022 | R27: =IF('01. PC'!$C$12="Nova",R$15*R28,R$17*R28) -> 55043.69069 | S27: =IF('01. PC'!$C$12="Nova",S$15*S28,S$17*S28) -> 56060.40016 | T27: =IF('01. PC'!$C$12="Nova",T$15*T28,T$17*T28) -> 57095.88923 | U27: =IF('01. PC'!$C$12="Nova",U$15*U28,U$17*U28) -> 58150.50477 | V27: =IF('01. PC'!$C$12="Nova",V$15*V28,V$17*V28) -> 59224.60007 | W27: =IF('01. PC'!$C$12="Nova",W$15*W28,W$17*W28) -> 60318.53493 | X27: =IF('01. PC'!$C$12="Nova",X$15*X28,X$17*X28) -> 61432.67581 | Y27: =IF('01. PC'!$C$12="Nova",Y$15*Y28,Y$17*Y28) -> 62567.39594 | Z27: =IF('01. PC'!$C$12="Nova",Z$15*Z28,Z$17*Z28) -> 63723.07542 | AA27: =IF('01. PC'!$C$12="Nova",AA$15*AA28,AA$17*AA28) -> 64900.10142 | AB27: =IF('01. PC'!$C$12="Nova",AB$15*AB28,AB$17*AB28) -> 66098.8682 | AC27: =IF('01. PC'!$C$12="Nova",AC$15*AC28,AC$17*AC28) -> 67319.77735 | AD27: =IF('01. PC'!$C$12="Nova",AD$15*AD28,AD$17*AD28) -> 68563.23786 | AE27: =IF('01. PC'!$C$12="Nova",AE$15*AE28,AE$17*AE28) -> 69829.66627 | AF27: =IF('01. PC'!$C$12="Nova",AF$15*AF28,AF$17*AF28) -> 71119.48682 | AG27: =IF('01. PC'!$C$12="Nova",AG$15*AG28,AG$17*AG28) -> 72433.13158 | AH27: =IF('01. PC'!$C$12="Nova",AH$15*AH28,AH$17*AH28) -> 0 | AI27: =IF('01. PC'!$C$12="Nova",AI$15*AI28,AI$17*AI28) -> 0 | AJ27: =IF('01. PC'!$C$12="Nova",AJ$15*AJ28,AJ$17*AJ28) -> 0 | AK27: =IF('01. PC'!$C$12="Nova",AK$15*AK28,AK$17*AK28) -> 0 | AL27: =IF('01. PC'!$C$12="Nova",AL$15*AL28,AL$17*AL28) -> 0
B28: Brasileiros (%) | D28: =1-D30 -> 0.6377835423 | E28: =1-E30 -> 0.6377835423 | F28: 0.6377835423 | G28: 0.6377835423 | H28: 0.6377835423 | I28: 0.6377835423 | J28: 0.6377835423 | K28: 0.6377835423 | L28: 0.6377835423 | M28: 0.6377835423 | N28: 0.6377835423 | O28: 0.6377835423 | P28: 0.6377835423 | Q28: 0.6377835423 | R28: 0.6377835423 | S28: 0.6377835423 | T28: 0.6377835423 | U28: 0.6377835423 | V28: 0.6377835423 | W28: 0.6377835423 | X28: 0.6377835423 | Y28: 0.6377835423 | Z28: 0.6377835423 | AA28: 0.6377835423 | AB28: 0.6377835423 | AC28: 0.6377835423 | AD28: 0.6377835423 | AE28: 0.6377835423 | AF28: 0.6377835423 | AG28: 0.6377835423 | AH28: 0.6377835423 | AI28: 0.6377835423 | AJ28: 0.6377835423 | AK28: 0.6377835423 | AL28: 0.6377835423 | AN28: -
B29: Isentos | D29: =IF('01. PC'!$C$12="Nova",D$15*D30,D$17*D30) -> 24216.70571 | E29: =IF('01. PC'!$C$12="Nova",E$15*E30,E$17*E30) -> 24641.66197 | F29: =IF('01. PC'!$C$12="Nova",F$15*F30,F$17*F30) -> 25096.81697 | G29: =IF('01. PC'!$C$12="Nova",G$15*G30,G$17*G30) -> 25560.37912 | H29: =IF('01. PC'!$C$12="Nova",H$15*H30,H$17*H30) -> 26032.50371 | I29: =IF('01. PC'!$C$12="Nova",I$15*I30,I$17*I30) -> 26513.34889 | J29: =IF('01. PC'!$C$12="Nova",J$15*J30,J$17*J30) -> 27003.07573 | K29: =IF('01. PC'!$C$12="Nova",K$15*K30,K$17*K30) -> 27501.8483 | L29: =IF('01. PC'!$C$12="Nova",L$15*L30,L$17*L30) -> 28009.83367 | M29: =IF('01. PC'!$C$12="Nova",M$15*M30,M$17*M30) -> 28527.20202 | N29: =IF('01. PC'!$C$12="Nova",N$15*N30,N$17*N30) -> 29054.12666 | O29: =IF('01. PC'!$C$12="Nova",O$15*O30,O$17*O30) -> 29590.78409 | P29: =IF('01. PC'!$C$12="Nova",P$15*P30,P$17*P30) -> 30137.3541 | Q29: =IF('01. PC'!$C$12="Nova",Q$15*Q30,Q$17*Q30) -> 30694.01978 | R29: =IF('01. PC'!$C$12="Nova",R$15*R30,R$17*R30) -> 31260.96761 | S29: =IF('01. PC'!$C$12="Nova",S$15*S30,S$17*S30) -> 31838.3875 | T29: =IF('01. PC'!$C$12="Nova",T$15*T30,T$17*T30) -> 32426.47289 | U29: =IF('01. PC'!$C$12="Nova",U$15*U30,U$17*U30) -> 33025.42078 | V29: =IF('01. PC'!$C$12="Nova",V$15*V30,V$17*V30) -> 33635.4318 | W29: =IF('01. PC'!$C$12="Nova",W$15*W30,W$17*W30) -> 34256.71031 | X29: =IF('01. PC'!$C$12="Nova",X$15*X30,X$17*X30) -> 34889.46443 | Y29: =IF('01. PC'!$C$12="Nova",Y$15*Y30,Y$17*Y30) -> 35533.90612 | Z29: =IF('01. PC'!$C$12="Nova",Z$15*Z30,Z$17*Z30) -> 36190.25127 | AA29: =IF('01. PC'!$C$12="Nova",AA$15*AA30,AA$17*AA30) -> 36858.71973 | AB29: =IF('01. PC'!$C$12="Nova",AB$15*AB30,AB$17*AB30) -> 37539.53545 | AC29: =IF('01. PC'!$C$12="Nova",AC$15*AC30,AC$17*AC30) -> 38232.92648 | AD29: =IF('01. PC'!$C$12="Nova",AD$15*AD30,AD$17*AD30) -> 38939.1251 | AE29: =IF('01. PC'!$C$12="Nova",AE$15*AE30,AE$17*AE30) -> 39658.36789 | AF29: =IF('01. PC'!$C$12="Nova",AF$15*AF30,AF$17*AF30) -> 40390.89577 | AG29: =IF('01. PC'!$C$12="Nova",AG$15*AG30,AG$17*AG30) -> 41136.95415 | AH29: =IF('01. PC'!$C$12="Nova",AH$15*AH30,AH$17*AH30) -> 0 | AI29: =IF('01. PC'!$C$12="Nova",AI$15*AI30,AI$17*AI30) -> 0 | AJ29: =IF('01. PC'!$C$12="Nova",AJ$15*AJ30,AJ$17*AJ30) -> 0 | AK29: =IF('01. PC'!$C$12="Nova",AK$15*AK30,AK$17*AK30) -> 0 | AL29: =IF('01. PC'!$C$12="Nova",AL$15*AL30,AL$17*AL30) -> 0
B30: Isenções (%) | D30: =IF('01. PC'!$C$13="Não",'01. PC'!$C$110,'01. PC'!$H$111) -> 0.3622164577 | E30: =D30 -> 0.3622164577 | F30: =E30 -> 0.3622164577 | G30: 0.3622164577 | H30: 0.3622164577 | I30: 0.3622164577 | J30: 0.3622164577 | K30: 0.3622164577 | L30: 0.3622164577 | M30: 0.3622164577 | N30: 0.3622164577 | O30: 0.3622164577 | P30: 0.3622164577 | Q30: 0.3622164577 | R30: 0.3622164577 | S30: 0.3622164577 | T30: 0.3622164577 | U30: 0.3622164577 | V30: 0.3622164577 | W30: 0.3622164577 | X30: 0.3622164577 | Y30: 0.3622164577 | Z30: 0.3622164577 | AA30: 0.3622164577 | AB30: 0.3622164577 | AC30: 0.3622164577 | AD30: 0.3622164577 | AE30: =AD30 -> 0.3622164577 | AF30: 0.3622164577 | AG30: 0.3622164577 | AH30: 0.3622164577 | AI30: 0.3622164577 | AJ30: 0.3622164577 | AK30: 0.3622164577 | AL30: 0.3622164577 | AN30: -
B32: Demanda Estacionamento | D32: =(D34+D39) -> 106226.58 | E32: =(E34+E39) -> 108090.6506 | F32: 110087.1881 | G32: 112120.6034 | H32: 114191.578 | I32: 116300.8053 | J32: 118448.9921 | K32: 120636.858 | L32: 122865.1359 | M32: 125134.5721 | N32: 127445.9271 | O32: 129799.9749 | P32: 132197.5043 | Q32: 134639.3183 | R32: 137126.2349 | S32: 139659.0873 | T32: 142238.7239 | U32: 144866.0088 | V32: 147541.8222 | W32: 150267.0604 | X32: 153042.6363 | Y32: 155869.4798 | Z32: 158748.5378 | AA32: 161680.7747 | AB32: 164667.1729 | AC32: 167708.7326 | AD32: 170806.4729 | AE32: 173961.4314 | AF32: 177174.665 | AG32: 180447.2501 | AH32: 0 | AI32: 0 | AJ32: 0 | AK32: 0 | AL32: 0 | AN32: =SUM(D32:AL32) -> 4203991.779
B34: PNB | D34: =D21*D37/D35*D36 -> 90180.9 | E34: =E21*E37/E35*E36 -> 91763.40005 | F34: 93458.35758 | G34: 95184.6226 | H34: 96942.77338 | I34: 98733.39889 | J34: 100557.0989 | K34: 102414.4845 | L34: 104306.1777 | M34: 106232.8123 | N34: 108195.0337 | O34: 110193.4992 | P34: 112228.8782 | Q34: 114301.8527 | R34: 116413.1169 | S34: 118563.3783 | T34: 120753.357 | U34: 122983.7867 | V34: 125255.4145 | W34: 127569.0015 | X34: 129925.3227 | Y34: 132325.1673 | Z34: 134769.3394 | AA34: 137258.6576 | AB34: 139793.956 | AC34: 142376.0837 | AD34: 145005.9058 | AE34: 147684.3032 | AF34: 150412.1732 | AG34: 153190.4295 | AH34: 0 | AI34: 0 | AJ34: 0 | AK34: 0 | AL34: 0 | AN34: =SUM(D34:AL34) -> 3568972.683
B35: Pessoas por Carro | D35: 2.5 | E35: =D35 -> 2.5 | F35: =E35 -> 2.5 | G35: 2.5 | H35: 2.5 | I35: 2.5 | J35: 2.5 | K35: 2.5 | L35: 2.5 | M35: 2.5 | N35: 2.5 | O35: 2.5 | P35: 2.5 | Q35: 2.5 | R35: 2.5 | S35: 2.5 | T35: 2.5 | U35: 2.5 | V35: 2.5 | W35: 2.5 | X35: 2.5 | Y35: 2.5 | Z35: 2.5 | AA35: 2.5 | AB35: 2.5 | AC35: 2.5 | AD35: 2.5 | AE35: =AD35 -> 2.5 | AF35: 2.5 | AG35: 2.5 | AH35: 2.5 | AI35: 2.5 | AJ35: 2.5 | AK35: 2.5 | AL35: 2.5 | AN35: -
B36: Giro | D36: 1 | E36: =D36 -> 1 | F36: 1 | G36: 1 | H36: 1 | I36: 1 | J36: 1 | K36: 1 | L36: 1 | M36: 1 | N36: 1 | O36: 1 | P36: 1 | Q36: 1 | R36: 1 | S36: 1 | T36: 1 | U36: 1 | V36: 1 | W36: 1 | X36: 1 | Y36: 1 | Z36: 1 | AA36: 1 | AB36: 1 | AC36: 1 | AD36: 1 | AE36: =AD36 -> 1 | AF36: 1 | AG36: 1 | AH36: 1 | AI36: 1 | AJ36: 1 | AK36: 1 | AL36: 1 | AN36: -
B37: % de visitantes que utilizam estacionamento | D37: ='01. PC'!$J$33 -> 0.75 | E37: 0.75 | F37: 0.75 | G37: 0.75 | H37: 0.75 | I37: 0.75 | J37: 0.75 | K37: 0.75 | L37: 0.75 | M37: 0.75 | N37: 0.75 | O37: 0.75 | P37: 0.75 | Q37: 0.75 | R37: 0.75 | S37: 0.75 | T37: 0.75 | U37: 0.75 | V37: 0.75 | W37: 0.75 | X37: 0.75 | Y37: 0.75 | Z37: 0.75 | AA37: 0.75 | AB37: 0.75 | AC37: 0.75 | AD37: 0.75 | AE37: =AD37 -> 0.75 | AF37: 0.75 | AG37: 0.75 | AH37: 0.75 | AI37: 0.75 | AJ37: 0.75 | AK37: 0.75 | AL37: 0.75 | AN37: -
B38: Ativação | D38: =IF(D10>='01. PC'!$H$27,1,0) -> 1 | E38: =IF(E10>='01. PC'!$H$27,1,0) -> 1 | F38: =IF(F10>='01. PC'!$H$27,1,0) -> 1 | G38: =IF(G10>='01. PC'!$H$27,1,0) -> 1 | H38: =IF(H10>='01. PC'!$H$27,1,0) -> 1 | I38: =IF(I10>='01. PC'!$H$27,1,0) -> 1 | J38: =IF(J10>='01. PC'!$H$27,1,0) -> 1 | K38: =IF(K10>='01. PC'!$H$27,1,0) -> 1 | L38: =IF(L10>='01. PC'!$H$27,1,0) -> 1 | M38: =IF(M10>='01. PC'!$H$27,1,0) -> 1 | N38: =IF(N10>='01. PC'!$H$27,1,0) -> 1 | O38: =IF(O10>='01. PC'!$H$27,1,0) -> 1 | P38: =IF(P10>='01. PC'!$H$27,1,0) -> 1 | Q38: =IF(Q10>='01. PC'!$H$27,1,0) -> 1 | R38: =IF(R10>='01. PC'!$H$27,1,0) -> 1 | S38: =IF(S10>='01. PC'!$H$27,1,0) -> 1 | T38: =IF(T10>='01. PC'!$H$27,1,0) -> 1 | U38: =IF(U10>='01. PC'!$H$27,1,0) -> 1 | V38: =IF(V10>='01. PC'!$H$27,1,0) -> 1 | W38: =IF(W10>='01. PC'!$H$27,1,0) -> 1 | X38: =IF(X10>='01. PC'!$H$27,1,0) -> 1 | Y38: =IF(Y10>='01. PC'!$H$27,1,0) -> 1 | Z38: =IF(Z10>='01. PC'!$H$27,1,0) -> 1 | AA38: =IF(AA10>='01. PC'!$H$27,1,0) -> 1 | AB38: =IF(AB10>='01. PC'!$H$27,1,0) -> 1 | AC38: =IF(AC10>='01. PC'!$H$27,1,0) -> 1 | AD38: =IF(AD10>='01. PC'!$H$27,1,0) -> 1 | AE38: =IF(AE10>='01. PC'!$H$27,1,0) -> 1 | AF38: =IF(AF10>='01. PC'!$H$27,1,0) -> 1 | AG38: =IF(AG10>='01. PC'!$H$27,1,0) -> 1
B39: FLONA | D39: =D26*D42/D40*D41 -> 16045.68 | E39: =E26*E42/E40*E41 -> 16327.25059 | F39: 16628.83049 | G39: 16935.98085 | H39: 17248.80457 | I39: 17567.40644 | J39: 17891.8932 | K39: 18222.37354 | L39: 18558.95816 | M39: 18901.75982 | N39: 19250.89335 | O39: 19606.47572 | P39: 19968.62603 | Q39: 20337.4656 | R39: 20713.11799 | S39: 21095.70904 | T39: 21485.36691 | U39: 21882.22213 | V39: 22286.40765 | W39: 22698.05886 | X39: 23117.31366 | Y39: 23544.31249 | Z39: 23979.19841 | AA39: 24422.11708 | AB39: 24873.21688 | AC39: 25332.64892 | AD39: 25800.56711 | AE39: 26277.1282 | AF39: 26762.49182 | AG39: 27256.82058 | AH39: 0 | AI39: 0 | AJ39: 0 | AK39: 0 | AL39: 0 | AN39: =SUM(D39:AL39) -> 635019.0961
B40: Pessoas por Carro | D40: 2.5 | E40: =D40 -> 2.5 | F40: =E40 -> 2.5 | G40: 2.5 | H40: 2.5 | I40: 2.5 | J40: 2.5 | K40: 2.5 | L40: 2.5 | M40: 2.5 | N40: 2.5 | O40: 2.5 | P40: 2.5 | Q40: 2.5 | R40: 2.5 | S40: 2.5 | T40: 2.5 | U40: 2.5 | V40: 2.5 | W40: 2.5 | X40: 2.5 | Y40: 2.5 | Z40: 2.5 | AA40: 2.5 | AB40: 2.5 | AC40: 2.5 | AD40: 2.5 | AE40: =AD40 -> 2.5 | AF40: 2.5 | AG40: 2.5 | AH40: 2.5 | AI40: 2.5 | AJ40: 2.5 | AK40: 2.5 | AL40: 2.5 | AN40: -
B41: Giro | D41: 1 | E41: =D41 -> 1 | F41: 1 | G41: 1 | H41: 1 | I41: 1 | J41: 1 | K41: 1 | L41: 1 | M41: 1 | N41: 1 | O41: 1 | P41: 1 | Q41: 1 | R41: 1 | S41: 1 | T41: 1 | U41: 1 | V41: 1 | W41: 1 | X41: 1 | Y41: 1 | Z41: 1 | AA41: 1 | AB41: 1 | AC41: 1 | AD41: 1 | AE41: =AD41 -> 1 | AF41: 1 | AG41: 1 | AH41: 1 | AI41: 1 | AJ41: 1 | AK41: 1 | AL41: 1 | AN41: -
B42: % de visitantes que utilizam estacionamento | D42: ='01. PC'!$J$34 -> 0.6 | E42: =D42 -> 0.6 | F42: 0.6 | G42: 0.6 | H42: 0.6 | I42: 0.6 | J42: 0.6 | K42: 0.6 | L42: 0.6 | M42: 0.6 | N42: 0.6 | O42: 0.6 | P42: 0.6 | Q42: 0.6 | R42: 0.6 | S42: 0.6 | T42: 0.6 | U42: 0.6 | V42: 0.6 | W42: 0.6 | X42: 0.6 | Y42: 0.6 | Z42: 0.6 | AA42: 0.6 | AB42: 0.6 | AC42: 0.6 | AD42: 0.6 | AE42: =AD42 -> 0.6 | AF42: 0.6 | AG42: 0.6 | AH42: 0.6 | AI42: 0.6 | AJ42: 0.6 | AK42: 0.6 | AL42: 0.6 | AN42: -
B45: Sazonalidade da Demanda - Mensal
C46: Janeiro | D46: Fevereiro | E46: Março | F46: Abril | G46: Maio | H46: Junho | I46: Julho | J46: Agosto | K46: Setembro | L46: Outubro | M46: Novembro | N46: Dezembro
B47: PNB | C47: 0.1417591346 | D47: 0.09555580778 | E47: 0.06615174056 | F47: 0.0708306177 | G47: 0.05309956109 | H47: 0.04389548115 | I47: 0.09552304472 | J47: 0.09038704486 | K47: 0.130161401 | L47: 0.09799158535 | M47: 0.04267739735 | N47: 0.07196718389
B48: FLONA | C48: 0.06622371015 | D48: 0.06752014148 | E48: 0.0697721776 | F48: 0.08267335732 | G48: 0.08712088779 | H48: 0.09303092838 | I48: 0.09198438479 | J48: 0.09171372974 | K48: 0.128820073 | L48: 0.07242282545 | M48: 0.07360161698 | N48: 0.07511616728
B49: Geral | C49: =(C47*$AN$21+C48*$AN$26)/$AN$19 -> 0.1280159465 | D49: =(D47*$AN$21+D48*$AN$26)/$AN$19 -> 0.09045489736 | E49: 0.06681045595 | F49: 0.07298532854 | G49: 0.05928952419 | H49: 0.05283536195 | I49: 0.09487920815 | J49: 0.0906284267 | K49: 0.1299173549 | L49: 0.0933395128 | M49: 0.04830386159 | N49: 0.07254012131

Sheet 04.2 DEMANDA PROJEÇÃO
B6: Projeção de Demanda
B7: Fonte: | C7: https://app.powerbi.com/view?r=eyJrIjoiYzJiNjgzZTktZWI3MS00YzM5LTkzZmEtZjZkOGUwNWJhY2FiIiwidCI6ImMxNGUyYjU2LWM1YmMtNDNiZC1hZDljLTQwOGNmNmNjMzU2MCJ9
B8: Ano | C8: PARNA - Demanda de Visitação | D8: FLONA - Demanda de Visitação | E8: PNI - Demanda de Visitação | F8: PIB a preços de mercado - Valores Correntes | H8: Log demanda PNI | J8: Log PIB | L8: RESULTADO DA REGRESSÃO
B9: 2000 | C9: 182744 | E9: 767157 | F9: 1199093 | H9: =IFERROR(LN(E9),0) -> 13.55044675 | J9: =IFERROR(LN(F9),0) -> 13.997076
B10: 2001 | C10: 218124 | E10: 735875 | F10: 1315756 | H10: 13.50881555 | J10: 14.08992196 | L10: Estatística de regressão
B11: 2002 | C11: 256634 | E11: 645832 | F11: 1488788 | H11: 13.37829469 | J11: 14.21347292 | L11: R múltiplo | M11: 0.9997328702
B12: 2003 | C12: 203150 | E12: 764709 | F12: 1717951 | H12: 13.54725065 | J12: 14.35664286 | L12: R Quadrado | M12: 0.9994658118
B13: 2004 | C13: 195265 | E13: 980937 | F13: 1957750 | H13: 13.79626352 | J13: 14.48730641 | L13: R Quadrado ajustado | M13: 0.9540112664
B14: 2005 | C14: 281016 | E14: 1084241 | F14: 2170584 | H14: 13.89639076 | J14: 14.59050681 | L14: Erro-padrão | M14: 0.3320970665
B15: 2006 | C15: 243422 | E15: 954039 | F15: 2409450 | H15: 13.76845983 | J15: 14.69490906 | L15: Observações | M15: 23
B16: 2007 | C16: 289184 | E16: 1055433 | F16: 2720263 | H16: 13.86946167 | J16: 14.81623912
B17: 2008 | C17: 266778 | E17: 1154046 | F17: 3109803 | H17: 13.95878459 | J17: 14.95006994
B18: 2009 | C18: 305988 | E18: 1070072 | F18: 3333039 | H18: 13.88323649 | J18: 15.01939506 | L18: ANOVA | M18: gl | N18: SQ | O18: MQ | P18: F | Q18: F de significância
B19: 2010 | C19: 236498 | E19: 1258159 | F19: 3885847 | H19: 14.0451601 | J19: 15.17285154 | L19: Regressão | M19: 1 | N19: 4539.69244 | O19: 4539.69244 | P19: 41161.98898 | Q19: 4.618791305e-36
B20: 2011 | C20: 280792 | E20: 1394187 | F20: 4376382 | H20: 14.14782201 | J20: 15.29173291 | L20: Residual | M20: 22 | N20: 2.426346155 | O20: 0.1102884616
B21: 2012 | C21: 318160 | E21: 1535382 | F21: 4814760 | H21: 14.24428977 | J21: 15.38719676 | L21: Total | M21: 23 | N21: 4542.118787
B22: 2013 | C22: 247836 | E22: 1518876 | F22: 5331619 | H22: 14.23348115 | J22: 15.4891655
B23: 2014 | C23: 229119 | E23: 1550607 | F23: 5778953 | H23: 14.25415703 | J23: 15.56973308 | M23: Coeficientes | N23: Erro-padrão | O23: Stat t | P23: valor P | Q23: 95% inferior | R23: 95% superior | S23: Inferior 95,0% | T23: Superior 95,0%
B24: 2015 | C24: 294682 | D24: 26872 | E24: 1642093 | F24: 5995787 | H24: 14.31148221 | J24: 15.60656761 | L24: Interceptar | M24: 0
B25: 2016 | C25: 265518 | D25: 33665 | E25: 1560792 | F25: 6269327 | H25: 14.26070394 | J25: 15.65117957 | L25: Variável X 1 | M25: 0.9242429068 | N25: 0.004555519922 | O25: 202.8841763 | P25: 1.70035107e-37 | Q25: 0.9147953367 | R25: 0.9336904769 | S25: 0.9147953367 | T25: 0.9336904769
B26: 2017 | C26: 222687 | D26: 48332 | E26: 1788922 | F26: 6585479 | H26: 14.39712376 | J26: 15.70037763
B27: 2018 | C27: 217050 | D27: 55002 | E27: 1895628 | F27: 7004141 | H27: 14.45506074 | J27: 15.7620121
B28: 2019 | C28: 251521 | D28: 70623 | E28: 2020358 | F28: 7389131 | H28: 14.51878528 | J28: 15.81552069
B29: 2022 | C29: 197699 | D29: 64396 | E29: 1432446 | F29: 10079676 | H29: 14.17489403 | J29: 16.12603168
B30: 2023 | C30: 300603 | D30: 66857 | E30: 1800225 | F30: 10943344 | H30: 14.40342222 | J30: 16.20824198
B31: 2024 | C31: 196560 | D31: 47516 | E31: 2023813 | F31: 11744709 | H31: 14.52049391 | J31: 16.2789134
C34: Coeficiente de regressão PNI | D34: Aumento Pop (1=sim)
C35: =M25 -> 0.9242429068 | D35: 0
C38: Ano | D38: PIB Projetado | E38: Taxa de Crescimento do PIB | F38: PIB projetado | G38: Demanda PARNA | H38: Demanda FLONA | I38: Soma Demanda Total | J38: Projeção Aumento Pop
C39: 2024 | D39: =F31 -> 11744709 | E39: 0.034 | F39: =LN(D39) -> 16.2789134 | J39: 1
C40: 2025 | D40: =D39*(1+E40) -> 11998394.71 | E40: 0.0216 | F40: 16.30028343 | J40: 1
B41: 1 | C41: 2026 | D41: =D40*(1+E41) -> 12214365.82 | E41: 0.018 | F41: 16.31812334 | G41: =+C30 -> 300603 | H41: =+D30 -> 66857 | I41: =G41+H41 -> 367460 | J41: =(1.0076)^B41 -> 1.0076
B42: 2 | C42: 2027 | D42: =D41*(1+E42) -> 12446438.77 | E42: 0.019 | F42: 16.3369451 | G42: =($G$41*($D42/$D$41)^$C$35)*(1+$D$35*(J42-1)) -> 305878.0002 | H42: =($H$41*($D42/$D$41)^$C$35)*(1+$D$35*(J42-1)) -> 68030.2108 | I42: 373908.211 | J42: =(1.0076)^B42 -> 1.01525776
B43: 3 | C43: 2028 | D43: 12695367.55 | E43: 0.02 | F43: 16.35674772 | G43: =($G$41*($D43/$D$41)^$C$35)*(1+$D$35*(J43-1)) -> 311527.8586 | H43: =($H$41*($D43/$D$41)^$C$35)*(1+$D$35*(J43-1)) -> 69286.79369 | I43: 380814.6523 | J43: 1.022973719
B44: 4 | C44: 2029 | D44: 12949274.9 | E44: 0.02 | F44: 16.37655035 | G44: 317282.0753 | H44: 70566.58686 | I44: 387848.6622 | J44: 1.030748319
B45: 5 | C45: 2030 | D45: 13208260.39 | E45: 0.02 | F45: 16.39635298 | G45: 323142.5779 | H45: 71870.01904 | I45: 395012.597 | J45: 1.038582006
B46: 6 | C46: 2031 | D46: 13472425.6 | E46: 0.02 | F46: 16.41615561 | G46: 329111.3296 | H46: 73197.52685 | I46: 402308.8565 | J46: 1.04647523
B47: 7 | C47: 2032 | D47: 13741874.11 | E47: 0.02 | F47: 16.43595823 | G47: 335190.3298 | H47: 74549.555 | I47: 409739.8848 | J47: 1.054428441
B48: 8 | C48: 2033 | D48: 14016711.6 | E48: 0.02 | F48: 16.45576086 | G48: 341381.615 | H48: 75926.5564 | I48: 417308.1714 | J48: 1.062442098
B49: 9 | C49: 2034 | D49: 14297045.83 | E49: 0.02 | F49: 16.47556349 | G49: 347687.2591 | H49: 77328.99232 | I49: 425016.2514 | J49: 1.070516658
B50: 10 | C50: 2035 | D50: 14582986.74 | E50: 0.02 | F50: 16.49536612 | G50: 354109.3744 | H50: 78757.33258 | I50: 432866.707 | J50: 1.078652584
B51: 11 | C51: 2036 | D51: 14874646.48 | E51: 0.02 | F51: 16.51516874 | G51: 360650.1124 | H51: 80212.05564 | I51: 440862.168 | J51: 1.086850344
B52: 12 | C52: 2037 | D52: 15172139.41 | E52: 0.02 | F52: 16.53497137 | G52: 367311.664 | H52: 81693.64883 | I52: 449005.3128 | J52: 1.095110406
B53: 13 | C53: 2038 | D53: 15475582.2 | E53: 0.02 | F53: 16.554774 | G53: 374096.2608 | H53: 83202.60845 | I53: 457298.8693 | J53: 1.103433245
B54: 14 | C54: 2039 | D54: 15785093.84 | E54: 0.02 | F54: 16.57457662 | G54: 381006.1756 | H54: 84739.44 | I54: 465745.6156 | J54: 1.111819338
B55: 15 | C55: 2040 | D55: 16100795.72 | E55: 0.02 | F55: 16.59437925 | G55: 388043.7231 | H55: 86304.65829 | I55: 474348.3814 | J55: 1.120269165
B56: 16 | C56: 2041 | D56: 16422811.63 | E56: 0.02 | F56: 16.61418188 | G56: 395211.2609 | H56: 87898.78766 | I56: 483110.0485 | J56: 1.128783211
B57: 17 | C57: 2042 | D57: 16751267.87 | E57: 0.02 | F57: 16.63398451 | G57: 402511.1899 | H57: 89522.36212 | I57: 492033.552 | J57: 1.137361963
B58: 18 | C58: 2043 | D58: 17086293.22 | E58: 0.02 | F58: 16.65378713 | G58: 409945.9555 | H58: 91175.92555 | I58: 501121.8811 | J58: 1.146005914
B59: 19 | C59: 2044 | D59: 17428019.09 | E59: 0.02 | F59: 16.67358976 | G59: 417518.0484 | H59: 92860.03187 | I59: 510378.0803 | J59: 1.154715559
B60: 20 | C60: 2045 | D60: 17776579.47 | E60: 0.02 | F60: 16.69339239 | G60: 425230.005 | H60: 94575.24524 | I60: 519805.2503 | J60: 1.163491397
B61: 21 | C61: 2046 | D61: 18132111.06 | E61: 0.02 | F61: 16.71319502 | G61: 433084.4089 | H61: 96322.14024 | I61: 529406.5491 | J61: 1.172333932
B62: 22 | C62: 2047 | D62: 18494753.28 | E62: 0.02 | F62: 16.73299764 | G62: 441083.891 | H62: 98101.30206 | I62: 539185.1931 | J62: 1.18124367
B63: 23 | C63: 2048 | D63: 18864648.34 | E63: 0.02 | F63: 16.75280027 | G63: 449231.1313 | H63: 99913.32669 | I63: 549144.458 | J63: 1.190221122
B64: 24 | C64: 2049 | D64: 19241941.31 | E64: 0.02 | F64: 16.7726029 | G64: 457528.8588 | H64: 101758.8211 | I64: 559287.68 | J64: 1.199266802
B65: 25 | C65: 2050 | D65: 19626780.14 | E65: 0.02 | F65: 16.79240553 | G65: 465979.8533 | H65: 103638.4036 | I65: 569618.2569 | J65: 1.20838123
B66: 26 | C66: 2051 | D66: 20019315.74 | E66: 0.02 | F66: 16.81220815 | G66: 474586.9457 | H66: 105552.7038 | I66: 580139.6495 | J66: 1.217564927
B67: 27 | C67: 2052 | D67: 20419702.06 | E67: 0.02 | F67: 16.83201078 | G67: 483353.0193 | H67: 107502.363 | I67: 590855.3823 | J67: 1.226818421
B68: 28 | C68: 2053 | D68: 20828096.1 | E68: 0.02 | F68: 16.85181341 | G68: 492281.0107 | H68: 109488.0342 | I68: 601769.0448 | J68: 1.236142241
B69: 29 | C69: 2054 | D69: 21244658.02 | E69: 0.02 | F69: 16.87161603 | G69: 501373.9105 | H69: 111510.3826 | I69: 612884.2931 | J69: 1.245536922
B70: 30 | C70: 2055 | D70: 21669551.18 | E70: 0.02 | F70: 16.89141866 | G70: 510634.765 | H70: 113570.0857 | I70: 624204.8507 | J70: 1.255003002
K71: =SUM(I39:I70) -> 14542488.51 | L71: 15992637 | M71: =K71/L71-1 -> -0.09067600858
K73: 13776974.23

Sheet 05. (a) CAPEX
B6: Capex (R$ milhões)
D7: =IF(D11<=prazo,1,0) -> 1 | E7: 1 | F7: 1 | G7: 1 | H7: 1 | I7: 1 | J7: 1 | K7: 1 | L7: 1 | M7: 1 | N7: 1 | O7: 1 | P7: 1 | Q7: 1 | R7: 1 | S7: 1 | T7: 1 | U7: 1 | V7: 1 | W7: 1 | X7: 1 | Y7: 1 | Z7: 1 | AA7: 1 | AB7: 1 | AC7: 1 | AD7: 1 | AE7: 1 | AF7: 1 | AG7: 1 | AH7: 0 | AI7: 0 | AJ7: 0 | AK7: 0 | AL7: 0
D9: =ano_inicial -> 2026 | E9: =D9+1 -> 2027 | F9: 2028 | G9: 2029 | H9: 2030 | I9: 2031 | J9: 2032 | K9: 2033 | L9: 2034 | M9: 2035 | N9: 2036 | O9: 2037 | P9: 2038 | Q9: 2039 | R9: 2040 | S9: 2041 | T9: 2042 | U9: 2043 | V9: 2044 | W9: 2045 | X9: 2046 | Y9: 2047 | Z9: 2048 | AA9: 2049 | AB9: 2050 | AC9: 2051 | AD9: 2052 | AE9: 2053 | AF9: 2054 | AG9: 2055 | AH9: 2056 | AI9: 2057 | AJ9: 2058 | AK9: 2059 | AL9: 2060
D11: 1 | E11: =D11+1 -> 2 | F11: 3 | G11: 4 | H11: 5 | I11: 6 | J11: 7 | K11: 8 | L11: 9 | M11: 10 | N11: 11 | O11: 12 | P11: 13 | Q11: 14 | R11: 15 | S11: 16 | T11: 17 | U11: 18 | V11: 19 | W11: 20 | X11: 21 | Y11: 22 | Z11: 23 | AA11: 24 | AB11: 25 | AC11: 26 | AD11: 27 | AE11: 28 | AF11: 29 | AG11: 30 | AH11: 31 | AI11: 32 | AJ11: 33 | AK11: 34 | AL11: 35 | AN11: TOTAL | AP11: RISCO
B13: Capex | C13: Class. D&A | D13: =SUM(D15+D24+D34) -> 0 | E13: =SUM(E15+E24+E34) -> 0 | F13: 13.9493875 | G13: 0 | H13: 2.475776218 | I13: 5.188069111 | J13: 0.08680542747 | K13: 0 | L13: 0 | M13: 0 | N13: 8.568977105 | O13: 0.129636156 | P13: 0 | Q13: 0.004249187321 | R13: 0.1684538864 | S13: 0 | T13: 0 | U13: 0 | V13: 0.3267491873 | W13: 0.129636156 | X13: 0.1783686568 | Y13: 0 | Z13: 0 | AA13: 0.004249187321 | AB13: 0 | AC13: 2.989203543 | AD13: 0.7007457732 | AE13: 0.129636156 | AF13: 1.225247365 | AG13: 0.01866316691 | AH13: 0 | AI13: 0 | AJ13: 0 | AK13: 0 | AL13: 0 | AN13: =SUM(D13:AL13) -> 36.27385379
AI14: =SUM(D14:AG14) -> 0
B15: Atrativo | D15: =SUM(D16:D23)*(1+$AP$15)/10^6 -> 0 | E15: =SUM(E16:E23)*(1+$AP$15)/10^6 -> 0 | F15: 4.712612028 | G15: 0 | H15: 0.01223274317 | I15: 0 | J15: 0 | K15: 0 | L15: 0 | M15: 0 | N15: 0.02446548633 | O15: 0 | P15: 0 | Q15: 0 | R15: 0 | S15: 0 | T15: 0 | U15: 0 | V15: 0 | W15: 0 | X15: 0 | Y15: 0 | Z15: 0 | AA15: 0 | AB15: 0 | AC15: 1.013211586 | AD15: 0.002630039781 | AE15: 0 | AF15: 0 | AG15: 0 | AH15: 0 | AI15: 0 | AJ15: 0 | AK15: 0 | AL15: 0 | AN15: =SUM(D15:AL15) -> 5.765151884
